Workbook

Sheet Metadata (hidden)
B2: Metadata
B3: ContextData | C3: ProcessActivity | D3: NAT_MTEC
C4: Province | D4: National
C5: Department | D5: =MyDept_Name -> 0
C6: PublicEntity | D6: 0
C7: Fin Year | D7: =+Cover!MyYearP1 -> 2019/20
C8: VoteNo | D8: =MyDept_Code*1 -> 
C9: Identifier | D9: Template
C10: ProgSectionCount
C11: SubprogSectionCount2
B12: SourceRef | C12: name
C13: email
C14: telephone
C15: mobile
B16: Platform | C16: file modified | D16: =NOW() -> 2018-06-18T08:00:44.460
C17: OS version | D17: =INFO("OSVERSION") -> Windows (64-bit) NT :.00
C18: Excel version | D18: =INFO("RELEASE") -> 16.0
B19: SourceControl | C19: SourceIdentifier | D19: =CONCATENATE(D3,"_",D9,"_",D16) -> NAT_MTEC_Template_43269.3338479167
C20: Filename | D20: =MID(CELL("filename",A1),FIND("[",CELL("filename",A1))+1,FIND("]",CELL("filename",A1))-FIND("[",CELL("filename",A1))-1) -> 2019 MTEC Submission Workbook Ver 1.0.0.xlsm
C21: FilePath | D21: =LEFT(CELL("filename",A1),FIND("[",CELL("filename",A1),1)-1) -> X:\1. Budget\2019\MTEC\Master Workbook file\Model\
C22: template_versionDate | D22: =DATE(2018,6,1) -> 2018-06-01
C23: LockDate1 | D23: =DATE(2018,11,1) -> 2018-11-01
C24: lockDate2 | D24: =DATE(2018,11,1) -> 2018-11-01
C25: LockStatus1 | D25: 1
C26: LockStatus2 | D26: 1
B60: Macros applied on the Template
B61: Macro # | C61: Reason/Description | D61: Date | E61: MacroFileName
B62: 1
B63: 2
B64: 3
B65: 4
B66: 5
B67: 6
B68: 7
B69: 8
B70: 9
B71: 10
B79: Macros for individual departments
B80: Macro # | C80: Reason/Description | D80: Date | E80: MacroFileName
B81: 1
B82: 2
B83: 3
B84: 4
B85: 5
B86: 6
B87: 7
B88: 8
B89: 9
B90: 10

Sheet Tables (hidden)
A1: 1 | D1: 2 | G1: 3 | J1: 4 | T1: 5 | W1: 6 | AB1: 7 | AO1: 8 | CG1: 9 | DR1: 10
AO4: Lookup table for Programme and subprogramme drop down lists
AS5: No. of Sprog | AU5: =20-COUNTIF(AU11:AU30,"") -> 0 | AV5: 0 | AW5: 0 | AX5: 0 | AY5: 0 | AZ5: 0 | BA5: 0 | BB5: 0 | BC5: 0 | BD5: 0 | BE5: 0 | BF5: 0 | BG5: 0 | BH5: 0 | BI5: 0 | BJ5: 0
AS6: Dept | AT6: =INDEX((T_Sprog[Vote No.]),MATCH(AU6,T_Sprog[Department],0)) ->  | AU6: =MyDept_Name -> 0
AS7: Prog_ID | AU7: =IFERROR(INDEX(($AQ$11:$AQ$26),MATCH(AU9,$AP$11:$AP$26,0)),0) -> 0 | AV7: 0 | AW7: 0 | AX7: 0 | AY7: 0 | AZ7: 0 | BA7: 0 | BB7: 0 | BC7: 0 | BD7: 0 | BE7: 0 | BF7: 0 | BG7: 0 | BH7: 0 | BI7: 0 | BJ7: 0
AS8: Prog No. | AU8: 1 | AV8: 2 | AW8: 3 | AX8: 4 | AY8: 5 | AZ8: 6 | BA8: 7 | BB8: 8 | BC8: 9 | BD8: 10 | BE8: 11 | BF8: 12 | BG8: 13 | BH8: 14 | BI8: 15 | BJ8: 16
AU9: =IFERROR(INDEX(($AP$11:$AP$26),MATCH(AU8,$AO$11:$AO$26,0)),0) -> 1 | AV9: 0 | AW9: 0 | AX9: 0 | AY9: 0 | AZ9: 0 | BA9: 0 | BB9: 0 | BC9: 0 | BD9: 0 | BE9: 0 | BF9: 0 | BG9: 0 | BH9: 0 | BI9: 0 | BJ9: 0
X10: Updated 07/06/2018 | AB10: Structures | AC10: Updated 07/06/2018 | AO10: =MAX($AO$11:$AO$26) -> 1 | AS10: Prog Name | AU10: =IFERROR(INDEX((T_Sprog[Programme]),MATCH(AU$7,T_Sprog[ComboID_DP],0)),"") ->  | AV10: =IFERROR(INDEX((T_Sprog[Programme]),MATCH(AV$7,T_Sprog[ComboID_DP],0)),"") ->  | AW10: =IFERROR(INDEX((T_Sprog[Programme]),MATCH(AW$7,T_Sprog[ComboID_DP],0)),"") ->  | AX10: =IFERROR(INDEX((T_Sprog[Programme]),MATCH(AX$7,T_Sprog[ComboID_DP],0)),"") ->  | AY10: =IFERROR(INDEX((T_Sprog[Programme]),MATCH(AY$7,T_Sprog[ComboID_DP],0)),"") ->  | AZ10: =IFERROR(INDEX((T_Sprog[Programme]),MATCH(AZ$7,T_Sprog[ComboID_DP],0)),"") ->  | BA10: =IFERROR(INDEX((T_Sprog[Programme]),MATCH(BA$7,T_Sprog[ComboID_DP],0)),"") ->  | BB10: =IFERROR(INDEX((T_Sprog[Programme]),MATCH(BB$7,T_Sprog[ComboID_DP],0)),"") ->  | BC10: =IFERROR(INDEX((T_Sprog[Programme]),MATCH(BC$7,T_Sprog[ComboID_DP],0)),"") ->  | BD10: =IFERROR(INDEX((T_Sprog[Programme]),MATCH(BD$7,T_Sprog[ComboID_DP],0)),"") ->  | BE10: =IFERROR(INDEX((T_Sprog[Programme]),MATCH(BE$7,T_Sprog[ComboID_DP],0)),"") ->  | BF10: =IFERROR(INDEX((T_Sprog[Programme]),MATCH(BF$7,T_Sprog[ComboID_DP],0)),"") ->  | BG10: =IFERROR(INDEX((T_Sprog[Programme]),MATCH(BG$7,T_Sprog[ComboID_DP],0)),"") ->  | BH10: =IFERROR(INDEX((T_Sprog[Programme]),MATCH(BH$7,T_Sprog[ComboID_DP],0)),"") ->  | BI10: =IFERROR(INDEX((T_Sprog[Programme]),MATCH(BI$7,T_Sprog[ComboID_DP],0)),"") ->  | BJ10: =IFERROR(INDEX((T_Sprog[Programme]),MATCH(BJ$7,T_Sprog[ComboID_DP],0)),"") -> 
A11: Econ1_No | B11: Econ1 | D11: Econ2_No | E11: Econ2 | G11: Econ3_No | H11: Econ3 | J11: Econ1_Id | K11: Econ2_Id | L11: Econ3_Id | M11: Econ_Uid | N11: Econ1 | O11: Econ2 | P11: Econ3 | T11: Vote No. | U11: Department | W11: Vote No. | X11: Department | Y11: Programme No. | Z11: Programme | AB11: Vote No. | AC11: Department | AD11: Programme No. | AE11: Programme | AF11: Subprogramme No. | AG11: Subprogramme | AH11: DeptID | AI11: ProgID | AJ11: SProgID | AK11: ComboID_DP | AL11: ComboID_DPSP | AO11: 1 | AP11: 1 | AQ11: =REPT("0",3-LEN($AT$6))&$AT$6&REPT("0",3-LEN(AP11))&AP11 ->  | AR11: =IFERROR(INDEX((T_Sprog[Programme]),MATCH(AQ11,T_Sprog[ComboID_DP],0)),"") ->  | AT11: 1 | AU11: =IFERROR(INDEX((T_Sprog[Subprogramme]),MATCH(AU35,T_Sprog[ComboID_DPSP],0)),"") ->  | AV11: =IFERROR(INDEX((T_Sprog[Subprogramme]),MATCH(AV35,T_Sprog[ComboID_DPSP],0)),"") ->  | AW11: =IFERROR(INDEX((T_Sprog[Subprogramme]),MATCH(AW35,T_Sprog[ComboID_DPSP],0)),"") ->  | AX11: =IFERROR(INDEX((T_Sprog[Subprogramme]),MATCH(AX35,T_Sprog[ComboID_DPSP],0)),"") ->  | AY11: =IFERROR(INDEX((T_Sprog[Subprogramme]),MATCH(AY35,T_Sprog[ComboID_DPSP],0)),"") ->  | AZ11: =IFERROR(INDEX((T_Sprog[Subprogramme]),MATCH(AZ35,T_Sprog[ComboID_DPSP],0)),"") ->  | BA11: =IFERROR(INDEX((T_Sprog[Subprogramme]),MATCH(BA35,T_Sprog[ComboID_DPSP],0)),"") ->  | BB11: =IFERROR(INDEX((T_Sprog[Subprogramme]),MATCH(BB35,T_Sprog[ComboID_DPSP],0)),"") ->  | BC11: =IFERROR(INDEX((T_Sprog[Subprogramme]),MATCH(BC35,T_Sprog[ComboID_DPSP],0)),"") ->  | BD11: =IFERROR(INDEX((T_Sprog[Subprogramme]),MATCH(BD35,T_Sprog[ComboID_DPSP],0)),"") ->  | BE11: =IFERROR(INDEX((T_Sprog[Subprogramme]),MATCH(BE35,T_Sprog[ComboID_DPSP],0)),"") ->  | BF11: =IFERROR(INDEX((T_Sprog[Subprogramme]),MATCH(BF35,T_Sprog[ComboID_DPSP],0)),"") ->  | BG11: =IFERROR(INDEX((T_Sprog[Subprogramme]),MATCH(BG35,T_Sprog[ComboID_DPSP],0)),"") ->  | BH11: =IFERROR(INDEX((T_Sprog[Subprogramme]),MATCH(BH35,T_Sprog[ComboID_DPSP],0)),"") ->  | BI11: =IFERROR(INDEX((T_Sprog[Subprogramme]),MATCH(BI35,T_Sprog[ComboID_DPSP],0)),"") ->  | BJ11: =IFERROR(INDEX((T_Sprog[Subprogramme]),MATCH(BJ35,T_Sprog[ComboID_DPSP],0)),"") -> 
A12: =INDEX(('Econ ENE'!$F$5:$F$71),MATCH(T_Econ1[[#This Row],[Econ1]],'Econ ENE'!$N$5:$N$71,0)) -> 1 | B12: Current payments | D12: =INDEX(('Econ ENE'!$G$5:$G$71),MATCH(T_Econ2[[#This Row],[Econ2]],'Econ ENE'!$O$5:$O$71,0)) -> 1 | E12: Compensation of employees | G12: =INDEX(($I$47:$I$79),MATCH(T_Econ3[[#This Row],[Econ3]],$H$47:$H$79,0)) -> 1 | H12: Compensation of employees | J12: =REPT("0",3-LEN(INDEX((T_Econ1[Econ1_No]),MATCH(T_Econ[[#This Row],[Econ1]],T_Econ1[Econ1],0))))&INDEX((T_Econ1[Econ1_No]),MATCH(T_Econ[[#This Row],[Econ1]],T_Econ1[Econ1],0)) -> 001 | K12: =REPT("0",3-LEN(INDEX((T_Econ2[Econ2_No]),MATCH(T_Econ[[#This Row],[Econ2]],T_Econ2[Econ2],0))))&INDEX((T_Econ2[Econ2_No]),MATCH(T_Econ[[#This Row],[Econ2]],T_Econ2[Econ2],0)) -> 001 | L12: =REPT("0",3-LEN(INDEX((T_Econ3[Econ3_No]),MATCH(T_Econ[[#This Row],[Econ3]],T_Econ3[Econ3],0))))&INDEX((T_Econ3[Econ3_No]),MATCH(T_Econ[[#This Row],[Econ3]],T_Econ3[Econ3],0)) -> 001 | M12: =T_Econ[[#This Row],[Econ1_Id]]&T_Econ[[#This Row],[Econ2_Id]]&T_Econ[[#This Row],[Econ3_Id]] -> 001001001 | N12: Current payments | O12: Compensation of employees | P12: Compensation of employees | T12: 24 | U12: Agriculture, Forestry and Fisheries | W12: 1 | X12: The Presidency | Y12: 1 | Z12: Administration | AB12: 1 | AC12: The Presidency | AD12: 1 | AE12: Administration | AF12: 1 | AG12: Management | AH12: =REPT(0,3-LEN(T_Sprog[[#This Row],[Vote No.]]))&T_Sprog[[#This Row],[Vote No.]] -> 001 | AI12: =REPT(0,3-LEN(T_Sprog[[#This Row],[Programme No.]]))&T_Sprog[[#This Row],[Programme No.]] -> 001 | AJ12: =REPT(0,3-LEN(T_Sprog[[#This Row],[Subprogramme No.]]))&T_Sprog[[#This Row],[Subprogramme No.]] -> 001 | AK12: =T_Sprog[[#This Row],[DeptID]]&T_Sprog[[#This Row],[ProgID]] -> 001001 | AL12: =T_Sprog[[#This Row],[ComboID_DP]]&T_Sprog[[#This Row],[SProgID]] -> 001001001 | AO12: =IF(AR12<>"",MAX($AO$11:AO11)+1,0) -> 0 | AP12: 2 | AR12: =IFERROR(INDEX((T_Sprog[Programme]),MATCH(AQ12,T_Sprog[ComboID_DP],0)),"") ->  | AT12: 2 | AU12: =IFERROR(INDEX((T_Sprog[Subprogramme]),MATCH(AU36,T_Sprog[ComboID_DPSP],0)),"") ->  | AV12: =IFERROR(INDEX((T_Sprog[Subprogramme]),MATCH(AV36,T_Sprog[ComboID_DPSP],0)),"") ->  | AW12: =IFERROR(INDEX((T_Sprog[Subprogramme]),MATCH(AW36,T_Sprog[ComboID_DPSP],0)),"") ->  | AX12: =IFERROR(INDEX((T_Sprog[Subprogramme]),MATCH(AX36,T_Sprog[ComboID_DPSP],0)),"") ->  | AY12: =IFERROR(INDEX((T_Sprog[Subprogramme]),MATCH(AY36,T_Sprog[ComboID_DPSP],0)),"") ->  | AZ12: =IFERROR(INDEX((T_Sprog[Subprogramme]),MATCH(AZ36,T_Sprog[ComboID_DPSP],0)),"") ->  | BA12: =IFERROR(INDEX((T_Sprog[Subprogramme]),MATCH(BA36,T_Sprog[ComboID_DPSP],0)),"") ->  | BB12: =IFERROR(INDEX((T_Sprog[Subprogramme]),MATCH(BB36,T_Sprog[ComboID_DPSP],0)),"") ->  | BC12: =IFERROR(INDEX((T_Sprog[Subprogramme]),MATCH(BC36,T_Sprog[ComboID_DPSP],0)),"") ->  | BD12: =IFERROR(INDEX((T_Sprog[Subprogramme]),MATCH(BD36,T_Sprog[ComboID_DPSP],0)),"") ->  | BE12: =IFERROR(INDEX((T_Sprog[Subprogramme]),MATCH(BE36,T_Sprog[ComboID_DPSP],0)),"") ->  | BF12: =IFERROR(INDEX((T_Sprog[Subprogramme]),MATCH(BF36,T_Sprog[ComboID_DPSP],0)),"") ->  | BG12: =IFERROR(INDEX((T_Sprog[Subprogramme]),MATCH(BG36,T_Sprog[ComboID_DPSP],0)),"") ->  | BH12: =IFERROR(INDEX((T_Sprog[Subprogramme]),MATCH(BH36,T_Sprog[ComboID_DPSP],0)),"") ->  | BI12: =IFERROR(INDEX((T_Sprog[Subprogramme]),MATCH(BI36,T_Sprog[ComboID_DPSP],0)),"") ->  | BJ12: =IFERROR(INDEX((T_Sprog[Subprogramme]),MATCH(BJ36,T_Sprog[ComboID_DPSP],0)),"") -> 
A13: =INDEX(('Econ ENE'!$F$5:$F$71),MATCH(T_Econ1[[#This Row],[Econ1]],'Econ ENE'!$N$5:$N$71,0)) -> 2 | B13: Transfers and subsidies | D13: =INDEX(('Econ ENE'!$G$5:$G$71),MATCH(T_Econ2[[#This Row],[Econ2]],'Econ ENE'!$O$5:$O$71,0)) -> 2 | E13: Goods and services | G13: =INDEX(($I$47:$I$79),MATCH(T_Econ3[[#This Row],[Econ3]],$H$47:$H$79,0)) -> 2 | H13: Goods and services | J13: =REPT("0",3-LEN(INDEX((T_Econ1[Econ1_No]),MATCH(T_Econ[[#This Row],[Econ1]],T_Econ1[Econ1],0))))&INDEX((T_Econ1[Econ1_No]),MATCH(T_Econ[[#This Row],[Econ1]],T_Econ1[Econ1],0)) -> 001 | K13: =REPT("0",3-LEN(INDEX((T_Econ2[Econ2_No]),MATCH(T_Econ[[#This Row],[Econ2]],T_Econ2[Econ2],0))))&INDEX((T_Econ2[Econ2_No]),MATCH(T_Econ[[#This Row],[Econ2]],T_Econ2[Econ2],0)) -> 002 | L13: =REPT("0",3-LEN(INDEX((T_Econ3[Econ3_No]),MATCH(T_Econ[[#This Row],[Econ3]],T_Econ3[Econ3],0))))&INDEX((T_Econ3[Econ3_No]),MATCH(T_Econ[[#This Row],[Econ3]],T_Econ3[Econ3],0)) -> 002 | M13: =T_Econ[[#This Row],[Econ1_Id]]&T_Econ[[#This Row],[Econ2_Id]]&T_Econ[[#This Row],[Econ3_Id]] -> 001002002 | N13: Current payments | O13: Goods and services | P13: Goods and services | T13: 37 | U13: Arts and Culture | W13: 1 | X13: The Presidency | Y13: 2 | Z13: Executive Support | AB13: 1 | AC13: The Presidency | AD13: 1 | AE13: Administration | AF13: 2 | AG13: Support Service to President | AH13: =REPT(0,3-LEN(T_Sprog[[#This Row],[Vote No.]]))&T_Sprog[[#This Row],[Vote No.]] -> 001 | AI13: =REPT(0,3-LEN(T_Sprog[[#This Row],[Programme No.]]))&T_Sprog[[#This Row],[Programme No.]] -> 001 | AJ13: =REPT(0,3-LEN(T_Sprog[[#This Row],[Subprogramme No.]]))&T_Sprog[[#This Row],[Subprogramme No.]] -> 002 | AK13: =T_Sprog[[#This Row],[DeptID]]&T_Sprog[[#This Row],[ProgID]] -> 001001 | AL13: =T_Sprog[[#This Row],[ComboID_DP]]&T_Sprog[[#This Row],[SProgID]] -> 001001002 | AO13: =IF(AR13<>"",MAX($AO$11:AO12)+1,0) -> 0 | AP13: 3 | AR13: =IFERROR(INDEX((T_Sprog[Programme]),MATCH(AQ13,T_Sprog[ComboID_DP],0)),"") ->  | AT13: 3 | AU13: =IFERROR(INDEX((T_Sprog[Subprogramme]),MATCH(AU37,T_Sprog[ComboID_DPSP],0)),"") ->  | AV13: =IFERROR(INDEX((T_Sprog[Subprogramme]),MATCH(AV37,T_Sprog[ComboID_DPSP],0)),"") ->  | AW13: =IFERROR(INDEX((T_Sprog[Subprogramme]),MATCH(AW37,T_Sprog[ComboID_DPSP],0)),"") ->  | AX13: =IFERROR(INDEX((T_Sprog[Subprogramme]),MATCH(AX37,T_Sprog[ComboID_DPSP],0)),"") ->  | AY13: =IFERROR(INDEX((T_Sprog[Subprogramme]),MATCH(AY37,T_Sprog[ComboID_DPSP],0)),"") ->  | AZ13: =IFERROR(INDEX((T_Sprog[Subprogramme]),MATCH(AZ37,T_Sprog[ComboID_DPSP],0)),"") ->  | BA13: =IFERROR(INDEX((T_Sprog[Subprogramme]),MATCH(BA37,T_Sprog[ComboID_DPSP],0)),"") ->  | BB13: =IFERROR(INDEX((T_Sprog[Subprogramme]),MATCH(BB37,T_Sprog[ComboID_DPSP],0)),"") ->  | BC13: =IFERROR(INDEX((T_Sprog[Subprogramme]),MATCH(BC37,T_Sprog[ComboID_DPSP],0)),"") ->  | BD13: =IFERROR(INDEX((T_Sprog[Subprogramme]),MATCH(BD37,T_Sprog[ComboID_DPSP],0)),"") ->  | BE13: =IFERROR(INDEX((T_Sprog[Subprogramme]),MATCH(BE37,T_Sprog[ComboID_DPSP],0)),"") ->  | BF13: =IFERROR(INDEX((T_Sprog[Subprogramme]),MATCH(BF37,T_Sprog[ComboID_DPSP],0)),"") ->  | BG13: =IFERROR(INDEX((T_Sprog[Subprogramme]),MATCH(BG37,T_Sprog[ComboID_DPSP],0)),"") ->  | BH13: =IFERROR(INDEX((T_Sprog[Subprogramme]),MATCH(BH37,T_Sprog[ComboID_DPSP],0)),"") ->  | BI13: =IFERROR(INDEX((T_Sprog[Subprogramme]),MATCH(BI37,T_Sprog[ComboID_DPSP],0)),"") ->  | BJ13: =IFERROR(INDEX((T_Sprog[Subprogramme]),MATCH(BJ37,T_Sprog[ComboID_DPSP],0)),"") -> 
A14: =INDEX(('Econ ENE'!$F$5:$F$71),MATCH(T_Econ1[[#This Row],[Econ1]],'Econ ENE'!$N$5:$N$71,0)) -> 3 | B14: Payments for capital assets | D14: =INDEX(('Econ ENE'!$G$5:$G$71),MATCH(T_Econ2[[#This Row],[Econ2]],'Econ ENE'!$O$5:$O$71,0)) -> 3 | E14: Interest and rent on land | G14: =INDEX(($I$47:$I$79),MATCH(T_Econ3[[#This Row],[Econ3]],$H$47:$H$79,0)) -> 3 | H14: Interest and rent on land | J14: =REPT("0",3-LEN(INDEX((T_Econ1[Econ1_No]),MATCH(T_Econ[[#This Row],[Econ1]],T_Econ1[Econ1],0))))&INDEX((T_Econ1[Econ1_No]),MATCH(T_Econ[[#This Row],[Econ1]],T_Econ1[Econ1],0)) -> 001 | K14: =REPT("0",3-LEN(INDEX((T_Econ2[Econ2_No]),MATCH(T_Econ[[#This Row],[Econ2]],T_Econ2[Econ2],0))))&INDEX((T_Econ2[Econ2_No]),MATCH(T_Econ[[#This Row],[Econ2]],T_Econ2[Econ2],0)) -> 003 | L14: =REPT("0",3-LEN(INDEX((T_Econ3[Econ3_No]),MATCH(T_Econ[[#This Row],[Econ3]],T_Econ3[Econ3],0))))&INDEX((T_Econ3[Econ3_No]),MATCH(T_Econ[[#This Row],[Econ3]],T_Econ3[Econ3],0)) -> 003 | M14: =T_Econ[[#This Row],[Econ1_Id]]&T_Econ[[#This Row],[Econ2_Id]]&T_Econ[[#This Row],[Econ3_Id]] -> 001003003 | N14: Current payments | O14: Interest and rent on land | P14: Interest and rent on land | T14: 14 | U14: Basic Education | W14: 1 | X14: The Presidency | Y14: 3 | Z14: Direct charge against the National Revenue Fund | AB14: 1 | AC14: The Presidency | AD14: 1 | AE14: Administration | AF14: 3 | AG14: Support Service to Deputy President | AH14: =REPT(0,3-LEN(T_Sprog[[#This Row],[Vote No.]]))&T_Sprog[[#This Row],[Vote No.]] -> 001 | AI14: =REPT(0,3-LEN(T_Sprog[[#This Row],[Programme No.]]))&T_Sprog[[#This Row],[Programme No.]] -> 001 | AJ14: =REPT(0,3-LEN(T_Sprog[[#This Row],[Subprogramme No.]]))&T_Sprog[[#This Row],[Subprogramme No.]] -> 003 | AK14: =T_Sprog[[#This Row],[DeptID]]&T_Sprog[[#This Row],[ProgID]] -> 001001 | AL14: =T_Sprog[[#This Row],[ComboID_DP]]&T_Sprog[[#This Row],[SProgID]] -> 001001003 | AO14: =IF(AR14<>"",MAX($AO$11:AO13)+1,0) -> 0 | AP14: 4 | AR14: =IFERROR(INDEX((T_Sprog[Programme]),MATCH(AQ14,T_Sprog[ComboID_DP],0)),"") ->  | AT14: 4 | AU14: =IFERROR(INDEX((T_Sprog[Subprogramme]),MATCH(AU38,T_Sprog[ComboID_DPSP],0)),"") ->  | AV14: =IFERROR(INDEX((T_Sprog[Subprogramme]),MATCH(AV38,T_Sprog[ComboID_DPSP],0)),"") ->  | AW14: =IFERROR(INDEX((T_Sprog[Subprogramme]),MATCH(AW38,T_Sprog[ComboID_DPSP],0)),"") ->  | AX14: =IFERROR(INDEX((T_Sprog[Subprogramme]),MATCH(AX38,T_Sprog[ComboID_DPSP],0)),"") ->  | AY14: =IFERROR(INDEX((T_Sprog[Subprogramme]),MATCH(AY38,T_Sprog[ComboID_DPSP],0)),"") ->  | AZ14: =IFERROR(INDEX((T_Sprog[Subprogramme]),MATCH(AZ38,T_Sprog[ComboID_DPSP],0)),"") ->  | BA14: =IFERROR(INDEX((T_Sprog[Subprogramme]),MATCH(BA38,T_Sprog[ComboID_DPSP],0)),"") ->  | BB14: =IFERROR(INDEX((T_Sprog[Subprogramme]),MATCH(BB38,T_Sprog[ComboID_DPSP],0)),"") ->  | BC14: =IFERROR(INDEX((T_Sprog[Subprogramme]),MATCH(BC38,T_Sprog[ComboID_DPSP],0)),"") ->  | BD14: =IFERROR(INDEX((T_Sprog[Subprogramme]),MATCH(BD38,T_Sprog[ComboID_DPSP],0)),"") ->  | BE14: =IFERROR(INDEX((T_Sprog[Subprogramme]),MATCH(BE38,T_Sprog[ComboID_DPSP],0)),"") ->  | BF14: =IFERROR(INDEX((T_Sprog[Subprogramme]),MATCH(BF38,T_Sprog[ComboID_DPSP],0)),"") ->  | BG14: =IFERROR(INDEX((T_Sprog[Subprogramme]),MATCH(BG38,T_Sprog[ComboID_DPSP],0)),"") ->  | BH14: =IFERROR(INDEX((T_Sprog[Subprogramme]),MATCH(BH38,T_Sprog[ComboID_DPSP],0)),"") ->  | BI14: =IFERROR(INDEX((T_Sprog[Subprogramme]),MATCH(BI38,T_Sprog[ComboID_DPSP],0)),"") ->  | BJ14: =IFERROR(INDEX((T_Sprog[Subprogramme]),MATCH(BJ38,T_Sprog[ComboID_DPSP],0)),"") -> 
A15: =INDEX(('Econ ENE'!$F$5:$F$71),MATCH(T_Econ1[[#This Row],[Econ1]],'Econ ENE'!$N$5:$N$71,0)) -> 4 | B15: Payments for financial assets | D15: =INDEX(('Econ ENE'!$G$5:$G$71),MATCH(T_Econ2[[#This Row],[Econ2]],'Econ ENE'!$O$5:$O$71,0)) -> 4 | E15: Provinces and municipalities | G15: =INDEX(($I$47:$I$79),MATCH(T_Econ3[[#This Row],[Econ3]],$H$47:$H$79,0)) -> 43 | H15: Provinces | J15: =REPT("0",3-LEN(INDEX((T_Econ1[Econ1_No]),MATCH(T_Econ[[#This Row],[Econ1]],T_Econ1[Econ1],0))))&INDEX((T_Econ1[Econ1_No]),MATCH(T_Econ[[#This Row],[Econ1]],T_Econ1[Econ1],0)) -> 002 | K15: =REPT("0",3-LEN(INDEX((T_Econ2[Econ2_No]),MATCH(T_Econ[[#This Row],[Econ2]],T_Econ2[Econ2],0))))&INDEX((T_Econ2[Econ2_No]),MATCH(T_Econ[[#This Row],[Econ2]],T_Econ2[Econ2],0)) -> 004 | L15: =REPT("0",3-LEN(INDEX((T_Econ3[Econ3_No]),MATCH(T_Econ[[#This Row],[Econ3]],T_Econ3[Econ3],0))))&INDEX((T_Econ3[Econ3_No]),MATCH(T_Econ[[#This Row],[Econ3]],T_Econ3[Econ3],0)) -> 043 | M15: =T_Econ[[#This Row],[Econ1_Id]]&T_Econ[[#This Row],[Econ2_Id]]&T_Econ[[#This Row],[Econ3_Id]] -> 002004043 | N15: Transfers and subsidies | O15: Provinces and municipalities | P15: Provinces | T15: 47 | U15: Centre for Public Service Innovation | W15: 2 | X15: Parliament | Y15: 1 | Z15: Strategic Leadership and Governance | AB15: 1 | AC15: The Presidency | AD15: 2 | AE15: Executive Support | AF15: 1 | AG15: Cabinet Services | AH15: =REPT(0,3-LEN(T_Sprog[[#This Row],[Vote No.]]))&T_Sprog[[#This Row],[Vote No.]] -> 001 | AI15: =REPT(0,3-LEN(T_Sprog[[#This Row],[Programme No.]]))&T_Sprog[[#This Row],[Programme No.]] -> 002 | AJ15: =REPT(0,3-LEN(T_Sprog[[#This Row],[Subprogramme No.]]))&T_Sprog[[#This Row],[Subprogramme No.]] -> 001 | AK15: =T_Sprog[[#This Row],[DeptID]]&T_Sprog[[#This Row],[ProgID]] -> 001002 | AL15: =T_Sprog[[#This Row],[ComboID_DP]]&T_Sprog[[#This Row],[SProgID]] -> 001002001 | AO15: =IF(AR15<>"",MAX($AO$11:AO14)+1,0) -> 0 | AP15: 5 | AR15: =IFERROR(INDEX((T_Sprog[Programme]),MATCH(AQ15,T_Sprog[ComboID_DP],0)),"") ->  | AT15: 5 | AU15: =IFERROR(INDEX((T_Sprog[Subprogramme]),MATCH(AU39,T_Sprog[ComboID_DPSP],0)),"") ->  | AV15: =IFERROR(INDEX((T_Sprog[Subprogramme]),MATCH(AV39,T_Sprog[ComboID_DPSP],0)),"") ->  | AW15: =IFERROR(INDEX((T_Sprog[Subprogramme]),MATCH(AW39,T_Sprog[ComboID_DPSP],0)),"") ->  | AX15: =IFERROR(INDEX((T_Sprog[Subprogramme]),MATCH(AX39,T_Sprog[ComboID_DPSP],0)),"") ->  | AY15: =IFERROR(INDEX((T_Sprog[Subprogramme]),MATCH(AY39,T_Sprog[ComboID_DPSP],0)),"") ->  | AZ15: =IFERROR(INDEX((T_Sprog[Subprogramme]),MATCH(AZ39,T_Sprog[ComboID_DPSP],0)),"") ->  | BA15: =IFERROR(INDEX((T_Sprog[Subprogramme]),MATCH(BA39,T_Sprog[ComboID_DPSP],0)),"") ->  | BB15: =IFERROR(INDEX((T_Sprog[Subprogramme]),MATCH(BB39,T_Sprog[ComboID_DPSP],0)),"") ->  | BC15: =IFERROR(INDEX((T_Sprog[Subprogramme]),MATCH(BC39,T_Sprog[ComboID_DPSP],0)),"") ->  | BD15: =IFERROR(INDEX((T_Sprog[Subprogramme]),MATCH(BD39,T_Sprog[ComboID_DPSP],0)),"") ->  | BE15: =IFERROR(INDEX((T_Sprog[Subprogramme]),MATCH(BE39,T_Sprog[ComboID_DPSP],0)),"") ->  | BF15: =IFERROR(INDEX((T_Sprog[Subprogramme]),MATCH(BF39,T_Sprog[ComboID_DPSP],0)),"") ->  | BG15: =IFERROR(INDEX((T_Sprog[Subprogramme]),MATCH(BG39,T_Sprog[ComboID_DPSP],0)),"") ->  | BH15: =IFERROR(INDEX((T_Sprog[Subprogramme]),MATCH(BH39,T_Sprog[ComboID_DPSP],0)),"") ->  | BI15: =IFERROR(INDEX((T_Sprog[Subprogramme]),MATCH(BI39,T_Sprog[ComboID_DPSP],0)),"") ->  | BJ15: =IFERROR(INDEX((T_Sprog[Subprogramme]),MATCH(BJ39,T_Sprog[ComboID_DPSP],0)),"") -> 
D16: =INDEX(('Econ ENE'!$G$5:$G$71),MATCH(T_Econ2[[#This Row],[Econ2]],'Econ ENE'!$O$5:$O$71,0)) -> 5 | E16: Departmental agencies and accounts | G16: =INDEX(($I$47:$I$79),MATCH(T_Econ3[[#This Row],[Econ3]],$H$47:$H$79,0)) -> 44 | H16: Municipalities | J16: =REPT("0",3-LEN(INDEX((T_Econ1[Econ1_No]),MATCH(T_Econ[[#This Row],[Econ1]],T_Econ1[Econ1],0))))&INDEX((T_Econ1[Econ1_No]),MATCH(T_Econ[[#This Row],[Econ1]],T_Econ1[Econ1],0)) -> 002 | K16: =REPT("0",3-LEN(INDEX((T_Econ2[Econ2_No]),MATCH(T_Econ[[#This Row],[Econ2]],T_Econ2[Econ2],0))))&INDEX((T_Econ2[Econ2_No]),MATCH(T_Econ[[#This Row],[Econ2]],T_Econ2[Econ2],0)) -> 004 | L16: =REPT("0",3-LEN(INDEX((T_Econ3[Econ3_No]),MATCH(T_Econ[[#This Row],[Econ3]],T_Econ3[Econ3],0))))&INDEX((T_Econ3[Econ3_No]),MATCH(T_Econ[[#This Row],[Econ3]],T_Econ3[Econ3],0)) -> 044 | M16: =T_Econ[[#This Row],[Econ1_Id]]&T_Econ[[#This Row],[Econ2_Id]]&T_Econ[[#This Row],[Econ3_Id]] -> 002004044 | N16: Transfers and subsidies | O16: Provinces and municipalities | P16: Municipalities | T16: 41 | U16: Civilian Secretariat | W16: 2 | X16: Parliament | Y16: 2 | Z16: Administration | AB16: 1 | AC16: The Presidency | AD16: 3 | AE16: Direct charge against the National Revenue Fund | AF16: 1 | AG16: Salary of the President | AH16: =REPT(0,3-LEN(T_Sprog[[#This Row],[Vote No.]]))&T_Sprog[[#This Row],[Vote No.]] -> 001 | AI16: =REPT(0,3-LEN(T_Sprog[[#This Row],[Programme No.]]))&T_Sprog[[#This Row],[Programme No.]] -> 003 | AJ16: =REPT(0,3-LEN(T_Sprog[[#This Row],[Subprogramme No.]]))&T_Sprog[[#This Row],[Subprogramme No.]] -> 001 | AK16: =T_Sprog[[#This Row],[DeptID]]&T_Sprog[[#This Row],[ProgID]] -> 001003 | AL16: =T_Sprog[[#This Row],[ComboID_DP]]&T_Sprog[[#This Row],[SProgID]] -> 001003001 | AO16: =IF(AR16<>"",MAX($AO$11:AO15)+1,0) -> 0 | AP16: 6 | AR16: =IFERROR(INDEX((T_Sprog[Programme]),MATCH(AQ16,T_Sprog[ComboID_DP],0)),"") ->  | AT16: 6 | AU16: =IFERROR(INDEX((T_Sprog[Subprogramme]),MATCH(AU40,T_Sprog[ComboID_DPSP],0)),"") ->  | AV16: =IFERROR(INDEX((T_Sprog[Subprogramme]),MATCH(AV40,T_Sprog[ComboID_DPSP],0)),"") ->  | AW16: =IFERROR(INDEX((T_Sprog[Subprogramme]),MATCH(AW40,T_Sprog[ComboID_DPSP],0)),"") ->  | AX16: =IFERROR(INDEX((T_Sprog[Subprogramme]),MATCH(AX40,T_Sprog[ComboID_DPSP],0)),"") ->  | AY16: =IFERROR(INDEX((T_Sprog[Subprogramme]),MATCH(AY40,T_Sprog[ComboID_DPSP],0)),"") ->  | AZ16: =IFERROR(INDEX((T_Sprog[Subprogramme]),MATCH(AZ40,T_Sprog[ComboID_DPSP],0)),"") ->  | BA16: =IFERROR(INDEX((T_Sprog[Subprogramme]),MATCH(BA40,T_Sprog[ComboID_DPSP],0)),"") ->  | BB16: =IFERROR(INDEX((T_Sprog[Subprogramme]),MATCH(BB40,T_Sprog[ComboID_DPSP],0)),"") ->  | BC16: =IFERROR(INDEX((T_Sprog[Subprogramme]),MATCH(BC40,T_Sprog[ComboID_DPSP],0)),"") ->  | BD16: =IFERROR(INDEX((T_Sprog[Subprogramme]),MATCH(BD40,T_Sprog[ComboID_DPSP],0)),"") ->  | BE16: =IFERROR(INDEX((T_Sprog[Subprogramme]),MATCH(BE40,T_Sprog[ComboID_DPSP],0)),"") ->  | BF16: =IFERROR(INDEX((T_Sprog[Subprogramme]),MATCH(BF40,T_Sprog[ComboID_DPSP],0)),"") ->  | BG16: =IFERROR(INDEX((T_Sprog[Subprogramme]),MATCH(BG40,T_Sprog[ComboID_DPSP],0)),"") ->  | BH16: =IFERROR(INDEX((T_Sprog[Subprogramme]),MATCH(BH40,T_Sprog[ComboID_DPSP],0)),"") ->  | BI16: =IFERROR(INDEX((T_Sprog[Subprogramme]),MATCH(BI40,T_Sprog[ComboID_DPSP],0)),"") ->  | BJ16: =IFERROR(INDEX((T_Sprog[Subprogramme]),MATCH(BJ40,T_Sprog[ComboID_DPSP],0)),"") ->  | FP16: =COUNTA(FP18:FP25) -> 2 | FQ16: =COUNTA(FQ18:FQ25) -> 3
D17: =INDEX(('Econ ENE'!$G$5:$G$71),MATCH(T_Econ2[[#This Row],[Econ2]],'Econ ENE'!$O$5:$O$71,0)) -> 6 | E17: Higher education institutions | G17: =INDEX(($I$47:$I$79),MATCH(T_Econ3[[#This Row],[Econ3]],$H$47:$H$79,0)) -> 45 | H17: Social security funds | J17: =REPT("0",3-LEN(INDEX((T_Econ1[Econ1_No]),MATCH(T_Econ[[#This Row],[Econ1]],T_Econ1[Econ1],0))))&INDEX((T_Econ1[Econ1_No]),MATCH(T_Econ[[#This Row],[Econ1]],T_Econ1[Econ1],0)) -> 002 | K17: =REPT("0",3-LEN(INDEX((T_Econ2[Econ2_No]),MATCH(T_Econ[[#This Row],[Econ2]],T_Econ2[Econ2],0))))&INDEX((T_Econ2[Econ2_No]),MATCH(T_Econ[[#This Row],[Econ2]],T_Econ2[Econ2],0)) -> 005 | L17: =REPT("0",3-LEN(INDEX((T_Econ3[Econ3_No]),MATCH(T_Econ[[#This Row],[Econ3]],T_Econ3[Econ3],0))))&INDEX((T_Econ3[Econ3_No]),MATCH(T_Econ[[#This Row],[Econ3]],T_Econ3[Econ3],0)) -> 045 | M17: =T_Econ[[#This Row],[Econ1_Id]]&T_Econ[[#This Row],[Econ2_Id]]&T_Econ[[#This Row],[Econ3_Id]] -> 002005045 | N17: Transfers and subsidies | O17: Departmental agencies and accounts | P17: Social security funds | T17: 3 | U17: Communications | W17: 2 | X17: Parliament | Y17: 3 | Z17: Core Business | AB17: 1 | AC17: The Presidency | AD17: 3 | AE17: Direct charge against the National Revenue Fund | AF17: 2 | AG17: Salary of the Deputy President | AH17: =REPT(0,3-LEN(T_Sprog[[#This Row],[Vote No.]]))&T_Sprog[[#This Row],[Vote No.]] -> 001 | AI17: =REPT(0,3-LEN(T_Sprog[[#This Row],[Programme No.]]))&T_Sprog[[#This Row],[Programme No.]] -> 003 | AJ17: =REPT(0,3-LEN(T_Sprog[[#This Row],[Subprogramme No.]]))&T_Sprog[[#This Row],[Subprogramme No.]] -> 002 | AK17: =T_Sprog[[#This Row],[DeptID]]&T_Sprog[[#This Row],[ProgID]] -> 001003 | AL17: =T_Sprog[[#This Row],[ComboID_DP]]&T_Sprog[[#This Row],[SProgID]] -> 001003002 | AO17: =IF(AR17<>"",MAX($AO$11:AO16)+1,0) -> 0 | AP17: 7 | AR17: =IFERROR(INDEX((T_Sprog[Programme]),MATCH(AQ17,T_Sprog[ComboID_DP],0)),"") ->  | AT17: 7 | AU17: =IFERROR(INDEX((T_Sprog[Subprogramme]),MATCH(AU41,T_Sprog[ComboID_DPSP],0)),"") ->  | AV17: =IFERROR(INDEX((T_Sprog[Subprogramme]),MATCH(AV41,T_Sprog[ComboID_DPSP],0)),"") ->  | AW17: =IFERROR(INDEX((T_Sprog[Subprogramme]),MATCH(AW41,T_Sprog[ComboID_DPSP],0)),"") ->  | AX17: =IFERROR(INDEX((T_Sprog[Subprogramme]),MATCH(AX41,T_Sprog[ComboID_DPSP],0)),"") ->  | AY17: =IFERROR(INDEX((T_Sprog[Subprogramme]),MATCH(AY41,T_Sprog[ComboID_DPSP],0)),"") ->  | AZ17: =IFERROR(INDEX((T_Sprog[Subprogramme]),MATCH(AZ41,T_Sprog[ComboID_DPSP],0)),"") ->  | BA17: =IFERROR(INDEX((T_Sprog[Subprogramme]),MATCH(BA41,T_Sprog[ComboID_DPSP],0)),"") ->  | BB17: =IFERROR(INDEX((T_Sprog[Subprogramme]),MATCH(BB41,T_Sprog[ComboID_DPSP],0)),"") ->  | BC17: =IFERROR(INDEX((T_Sprog[Subprogramme]),MATCH(BC41,T_Sprog[ComboID_DPSP],0)),"") ->  | BD17: =IFERROR(INDEX((T_Sprog[Subprogramme]),MATCH(BD41,T_Sprog[ComboID_DPSP],0)),"") ->  | BE17: =IFERROR(INDEX((T_Sprog[Subprogramme]),MATCH(BE41,T_Sprog[ComboID_DPSP],0)),"") ->  | BF17: =IFERROR(INDEX((T_Sprog[Subprogramme]),MATCH(BF41,T_Sprog[ComboID_DPSP],0)),"") ->  | BG17: =IFERROR(INDEX((T_Sprog[Subprogramme]),MATCH(BG41,T_Sprog[ComboID_DPSP],0)),"") ->  | BH17: =IFERROR(INDEX((T_Sprog[Subprogramme]),MATCH(BH41,T_Sprog[ComboID_DPSP],0)),"") ->  | BI17: =IFERROR(INDEX((T_Sprog[Subprogramme]),MATCH(BI41,T_Sprog[ComboID_DPSP],0)),"") ->  | BJ17: =IFERROR(INDEX((T_Sprog[Subprogramme]),MATCH(BJ41,T_Sprog[ComboID_DPSP],0)),"") ->  | FP17: Infrastructure category | FQ17: Project category
D18: =INDEX(('Econ ENE'!$G$5:$G$71),MATCH(T_Econ2[[#This Row],[Econ2]],'Econ ENE'!$O$5:$O$71,0)) -> 7 | E18: Foreign governments and international organisations | G18: =INDEX(($I$47:$I$79),MATCH(T_Econ3[[#This Row],[Econ3]],$H$47:$H$79,0)) -> 46 | H18: Departmental agencies (non-business entities) | J18: =REPT("0",3-LEN(INDEX((T_Econ1[Econ1_No]),MATCH(T_Econ[[#This Row],[Econ1]],T_Econ1[Econ1],0))))&INDEX((T_Econ1[Econ1_No]),MATCH(T_Econ[[#This Row],[Econ1]],T_Econ1[Econ1],0)) -> 002 | K18: =REPT("0",3-LEN(INDEX((T_Econ2[Econ2_No]),MATCH(T_Econ[[#This Row],[Econ2]],T_Econ2[Econ2],0))))&INDEX((T_Econ2[Econ2_No]),MATCH(T_Econ[[#This Row],[Econ2]],T_Econ2[Econ2],0)) -> 005 | L18: =REPT("0",3-LEN(INDEX((T_Econ3[Econ3_No]),MATCH(T_Econ[[#This Row],[Econ3]],T_Econ3[Econ3],0))))&INDEX((T_Econ3[Econ3_No]),MATCH(T_Econ[[#This Row],[Econ3]],T_Econ3[Econ3],0)) -> 046 | M18: =T_Econ[[#This Row],[Econ1_Id]]&T_Econ[[#This Row],[Econ2_Id]]&T_Econ[[#This Row],[Econ3_Id]] -> 002005046 | N18: Transfers and subsidies | O18: Departmental agencies and accounts | P18: Departmental agencies (non-business entities) | T18: 4 | U18: Cooperative Governance and Traditional Affairs | W18: 2 | X18: Parliament | Y18: 4 | Z18: Support Services | AB18: 2 | AC18: Parliament | AD18: 1 | AE18: Strategic Leadership and Governance | AF18: 1 | AG18: Office of the Speaker | AH18: =REPT(0,3-LEN(T_Sprog[[#This Row],[Vote No.]]))&T_Sprog[[#This Row],[Vote No.]] -> 002 | AI18: =REPT(0,3-LEN(T_Sprog[[#This Row],[Programme No.]]))&T_Sprog[[#This Row],[Programme No.]] -> 001 | AJ18: =REPT(0,3-LEN(T_Sprog[[#This Row],[Subprogramme No.]]))&T_Sprog[[#This Row],[Subprogramme No.]] -> 001 | AK18: =T_Sprog[[#This Row],[DeptID]]&T_Sprog[[#This Row],[ProgID]] -> 002001 | AL18: =T_Sprog[[#This Row],[ComboID_DP]]&T_Sprog[[#This Row],[SProgID]] -> 002001001 | AO18: =IF(AR18<>"",MAX($AO$11:AO17)+1,0) -> 0 | AP18: 8 | AR18: =IFERROR(INDEX((T_Sprog[Programme]),MATCH(AQ18,T_Sprog[ComboID_DP],0)),"") ->  | AT18: 8 | AU18: =IFERROR(INDEX((T_Sprog[Subprogramme]),MATCH(AU42,T_Sprog[ComboID_DPSP],0)),"") ->  | AV18: =IFERROR(INDEX((T_Sprog[Subprogramme]),MATCH(AV42,T_Sprog[ComboID_DPSP],0)),"") ->  | AW18: =IFERROR(INDEX((T_Sprog[Subprogramme]),MATCH(AW42,T_Sprog[ComboID_DPSP],0)),"") ->  | AX18: =IFERROR(INDEX((T_Sprog[Subprogramme]),MATCH(AX42,T_Sprog[ComboID_DPSP],0)),"") ->  | AY18: =IFERROR(INDEX((T_Sprog[Subprogramme]),MATCH(AY42,T_Sprog[ComboID_DPSP],0)),"") ->  | AZ18: =IFERROR(INDEX((T_Sprog[Subprogramme]),MATCH(AZ42,T_Sprog[ComboID_DPSP],0)),"") ->  | BA18: =IFERROR(INDEX((T_Sprog[Subprogramme]),MATCH(BA42,T_Sprog[ComboID_DPSP],0)),"") ->  | BB18: =IFERROR(INDEX((T_Sprog[Subprogramme]),MATCH(BB42,T_Sprog[ComboID_DPSP],0)),"") ->  | BC18: =IFERROR(INDEX((T_Sprog[Subprogramme]),MATCH(BC42,T_Sprog[ComboID_DPSP],0)),"") ->  | BD18: =IFERROR(INDEX((T_Sprog[Subprogramme]),MATCH(BD42,T_Sprog[ComboID_DPSP],0)),"") ->  | BE18: =IFERROR(INDEX((T_Sprog[Subprogramme]),MATCH(BE42,T_Sprog[ComboID_DPSP],0)),"") ->  | BF18: =IFERROR(INDEX((T_Sprog[Subprogramme]),MATCH(BF42,T_Sprog[ComboID_DPSP],0)),"") ->  | BG18: =IFERROR(INDEX((T_Sprog[Subprogramme]),MATCH(BG42,T_Sprog[ComboID_DPSP],0)),"") ->  | BH18: =IFERROR(INDEX((T_Sprog[Subprogramme]),MATCH(BH42,T_Sprog[ComboID_DPSP],0)),"") ->  | BI18: =IFERROR(INDEX((T_Sprog[Subprogramme]),MATCH(BI42,T_Sprog[ComboID_DPSP],0)),"") ->  | BJ18: =IFERROR(INDEX((T_Sprog[Subprogramme]),MATCH(BJ42,T_Sprog[ComboID_DPSP],0)),"") ->  | FO18: 1 | FP18: Departmental infrastructure | FQ18: Mega projects
D19: =INDEX(('Econ ENE'!$G$5:$G$71),MATCH(T_Econ2[[#This Row],[Econ2]],'Econ ENE'!$O$5:$O$71,0)) -> 8 | E19: Public corporations and private enterprises | G19: =INDEX(($I$47:$I$79),MATCH(T_Econ3[[#This Row],[Econ3]],$H$47:$H$79,0)) -> 47 | H19: Higher education institutions | J19: =REPT("0",3-LEN(INDEX((T_Econ1[Econ1_No]),MATCH(T_Econ[[#This Row],[Econ1]],T_Econ1[Econ1],0))))&INDEX((T_Econ1[Econ1_No]),MATCH(T_Econ[[#This Row],[Econ1]],T_Econ1[Econ1],0)) -> 002 | K19: =REPT("0",3-LEN(INDEX((T_Econ2[Econ2_No]),MATCH(T_Econ[[#This Row],[Econ2]],T_Econ2[Econ2],0))))&INDEX((T_Econ2[Econ2_No]),MATCH(T_Econ[[#This Row],[Econ2]],T_Econ2[Econ2],0)) -> 006 | L19: =REPT("0",3-LEN(INDEX((T_Econ3[Econ3_No]),MATCH(T_Econ[[#This Row],[Econ3]],T_Econ3[Econ3],0))))&INDEX((T_Econ3[Econ3_No]),MATCH(T_Econ[[#This Row],[Econ3]],T_Econ3[Econ3],0)) -> 047 | M19: =T_Econ[[#This Row],[Econ1_Id]]&T_Econ[[#This Row],[Econ2_Id]]&T_Econ[[#This Row],[Econ3_Id]] -> 002006047 | N19: Transfers and subsidies | O19: Higher education institutions | P19: Higher education institutions | T19: 18 | U19: Correctional Services | W19: 2 | X19: Parliament | Y19: 5 | Z19: Associated Services | AB19: 2 | AC19: Parliament | AD19: 1 | AE19: Strategic Leadership and Governance | AF19: 2 | AG19: Office of the Chairperson | AH19: =REPT(0,3-LEN(T_Sprog[[#This Row],[Vote No.]]))&T_Sprog[[#This Row],[Vote No.]] -> 002 | AI19: =REPT(0,3-LEN(T_Sprog[[#This Row],[Programme No.]]))&T_Sprog[[#This Row],[Programme No.]] -> 001 | AJ19: =REPT(0,3-LEN(T_Sprog[[#This Row],[Subprogramme No.]]))&T_Sprog[[#This Row],[Subprogramme No.]] -> 002 | AK19: =T_Sprog[[#This Row],[DeptID]]&T_Sprog[[#This Row],[ProgID]] -> 002001 | AL19: =T_Sprog[[#This Row],[ComboID_DP]]&T_Sprog[[#This Row],[SProgID]] -> 002001002 | AO19: =IF(AR19<>"",MAX($AO$11:AO18)+1,0) -> 0 | AP19: 9 | AR19: =IFERROR(INDEX((T_Sprog[Programme]),MATCH(AQ19,T_Sprog[ComboID_DP],0)),"") ->  | AT19: 9 | AU19: =IFERROR(INDEX((T_Sprog[Subprogramme]),MATCH(AU43,T_Sprog[ComboID_DPSP],0)),"") ->  | AV19: =IFERROR(INDEX((T_Sprog[Subprogramme]),MATCH(AV43,T_Sprog[ComboID_DPSP],0)),"") ->  | AW19: =IFERROR(INDEX((T_Sprog[Subprogramme]),MATCH(AW43,T_Sprog[ComboID_DPSP],0)),"") ->  | AX19: =IFERROR(INDEX((T_Sprog[Subprogramme]),MATCH(AX43,T_Sprog[ComboID_DPSP],0)),"") ->  | AY19: =IFERROR(INDEX((T_Sprog[Subprogramme]),MATCH(AY43,T_Sprog[ComboID_DPSP],0)),"") ->  | AZ19: =IFERROR(INDEX((T_Sprog[Subprogramme]),MATCH(AZ43,T_Sprog[ComboID_DPSP],0)),"") ->  | BA19: =IFERROR(INDEX((T_Sprog[Subprogramme]),MATCH(BA43,T_Sprog[ComboID_DPSP],0)),"") ->  | BB19: =IFERROR(INDEX((T_Sprog[Subprogramme]),MATCH(BB43,T_Sprog[ComboID_DPSP],0)),"") ->  | BC19: =IFERROR(INDEX((T_Sprog[Subprogramme]),MATCH(BC43,T_Sprog[ComboID_DPSP],0)),"") ->  | BD19: =IFERROR(INDEX((T_Sprog[Subprogramme]),MATCH(BD43,T_Sprog[ComboID_DPSP],0)),"") ->  | BE19: =IFERROR(INDEX((T_Sprog[Subprogramme]),MATCH(BE43,T_Sprog[ComboID_DPSP],0)),"") ->  | BF19: =IFERROR(INDEX((T_Sprog[Subprogramme]),MATCH(BF43,T_Sprog[ComboID_DPSP],0)),"") ->  | BG19: =IFERROR(INDEX((T_Sprog[Subprogramme]),MATCH(BG43,T_Sprog[ComboID_DPSP],0)),"") ->  | BH19: =IFERROR(INDEX((T_Sprog[Subprogramme]),MATCH(BH43,T_Sprog[ComboID_DPSP],0)),"") ->  | BI19: =IFERROR(INDEX((T_Sprog[Subprogramme]),MATCH(BI43,T_Sprog[ComboID_DPSP],0)),"") ->  | BJ19: =IFERROR(INDEX((T_Sprog[Subprogramme]),MATCH(BJ43,T_Sprog[ComboID_DPSP],0)),"") ->  | FO19: 2 | FP19: Infrastructure transfers | FQ19: Large projects
A20: Id | B20: Key deliverables | D20: =INDEX(('Econ ENE'!$G$5:$G$71),MATCH(T_Econ2[[#This Row],[Econ2]],'Econ ENE'!$O$5:$O$71,0)) -> 9 | E20: Non-profit institutions | G20: =INDEX(($I$47:$I$79),MATCH(T_Econ3[[#This Row],[Econ3]],$H$47:$H$79,0)) -> 48 | H20: Foreign governments and international organisations | J20: =REPT("0",3-LEN(INDEX((T_Econ1[Econ1_No]),MATCH(T_Econ[[#This Row],[Econ1]],T_Econ1[Econ1],0))))&INDEX((T_Econ1[Econ1_No]),MATCH(T_Econ[[#This Row],[Econ1]],T_Econ1[Econ1],0)) -> 002 | K20: =REPT("0",3-LEN(INDEX((T_Econ2[Econ2_No]),MATCH(T_Econ[[#This Row],[Econ2]],T_Econ2[Econ2],0))))&INDEX((T_Econ2[Econ2_No]),MATCH(T_Econ[[#This Row],[Econ2]],T_Econ2[Econ2],0)) -> 007 | L20: =REPT("0",3-LEN(INDEX((T_Econ3[Econ3_No]),MATCH(T_Econ[[#This Row],[Econ3]],T_Econ3[Econ3],0))))&INDEX((T_Econ3[Econ3_No]),MATCH(T_Econ[[#This Row],[Econ3]],T_Econ3[Econ3],0)) -> 048 | M20: =T_Econ[[#This Row],[Econ1_Id]]&T_Econ[[#This Row],[Econ2_Id]]&T_Econ[[#This Row],[Econ3_Id]] -> 002007048 | N20: Transfers and subsidies | O20: Foreign governments and international organisations | P20: Foreign governments and international organisations | T20: 19 | U20: Defence and Military Veterans | W20: 2 | X20: Parliament | Y20: 6 | Z20: Direct charge against the National Revenue Fund | AB20: 2 | AC20: Parliament | AD20: 1 | AE20: Strategic Leadership and Governance | AF20: 3 | AG20: Treasury Advise Office | AH20: =REPT(0,3-LEN(T_Sprog[[#This Row],[Vote No.]]))&T_Sprog[[#This Row],[Vote No.]] -> 002 | AI20: =REPT(0,3-LEN(T_Sprog[[#This Row],[Programme No.]]))&T_Sprog[[#This Row],[Programme No.]] -> 001 | AJ20: =REPT(0,3-LEN(T_Sprog[[#This Row],[Subprogramme No.]]))&T_Sprog[[#This Row],[Subprogramme No.]] -> 003 | AK20: =T_Sprog[[#This Row],[DeptID]]&T_Sprog[[#This Row],[ProgID]] -> 002001 | AL20: =T_Sprog[[#This Row],[ComboID_DP]]&T_Sprog[[#This Row],[SProgID]] -> 002001003 | AO20: =IF(AR20<>"",MAX($AO$11:AO19)+1,0) -> 0 | AP20: 10 | AR20: =IFERROR(INDEX((T_Sprog[Programme]),MATCH(AQ20,T_Sprog[ComboID_DP],0)),"") ->  | AT20: 10 | AU20: =IFERROR(INDEX((T_Sprog[Subprogramme]),MATCH(AU44,T_Sprog[ComboID_DPSP],0)),"") ->  | AV20: =IFERROR(INDEX((T_Sprog[Subprogramme]),MATCH(AV44,T_Sprog[ComboID_DPSP],0)),"") ->  | AW20: =IFERROR(INDEX((T_Sprog[Subprogramme]),MATCH(AW44,T_Sprog[ComboID_DPSP],0)),"") ->  | AX20: =IFERROR(INDEX((T_Sprog[Subprogramme]),MATCH(AX44,T_Sprog[ComboID_DPSP],0)),"") ->  | AY20: =IFERROR(INDEX((T_Sprog[Subprogramme]),MATCH(AY44,T_Sprog[ComboID_DPSP],0)),"") ->  | AZ20: =IFERROR(INDEX((T_Sprog[Subprogramme]),MATCH(AZ44,T_Sprog[ComboID_DPSP],0)),"") ->  | BA20: =IFERROR(INDEX((T_Sprog[Subprogramme]),MATCH(BA44,T_Sprog[ComboID_DPSP],0)),"") ->  | BB20: =IFERROR(INDEX((T_Sprog[Subprogramme]),MATCH(BB44,T_Sprog[ComboID_DPSP],0)),"") ->  | BC20: =IFERROR(INDEX((T_Sprog[Subprogramme]),MATCH(BC44,T_Sprog[ComboID_DPSP],0)),"") ->  | BD20: =IFERROR(INDEX((T_Sprog[Subprogramme]),MATCH(BD44,T_Sprog[ComboID_DPSP],0)),"") ->  | BE20: =IFERROR(INDEX((T_Sprog[Subprogramme]),MATCH(BE44,T_Sprog[ComboID_DPSP],0)),"") ->  | BF20: =IFERROR(INDEX((T_Sprog[Subprogramme]),MATCH(BF44,T_Sprog[ComboID_DPSP],0)),"") ->  | BG20: =IFERROR(INDEX((T_Sprog[Subprogramme]),MATCH(BG44,T_Sprog[ComboID_DPSP],0)),"") ->  | BH20: =IFERROR(INDEX((T_Sprog[Subprogramme]),MATCH(BH44,T_Sprog[ComboID_DPSP],0)),"") ->  | BI20: =IFERROR(INDEX((T_Sprog[Subprogramme]),MATCH(BI44,T_Sprog[ComboID_DPSP],0)),"") ->  | BJ20: =IFERROR(INDEX((T_Sprog[Subprogramme]),MATCH(BJ44,T_Sprog[ComboID_DPSP],0)),"") ->  | FO20: 3 | FQ20: Small projects
A21: =IF(T_KeyDeliverables[[#This Row],[Key deliverables]]<>"",1,"") -> 1 | B21: =IF('Main adjustment proposal'!I11="","Other",'Main adjustment proposal'!I11) -> Other | D21: =INDEX(('Econ ENE'!$G$5:$G$71),MATCH(T_Econ2[[#This Row],[Econ2]],'Econ ENE'!$O$5:$O$71,0)) -> 10 | E21: Households | G21: =INDEX(($I$47:$I$79),MATCH(T_Econ3[[#This Row],[Econ3]],$H$47:$H$79,0)) -> 49 | H21: Public corporations | J21: =REPT("0",3-LEN(INDEX((T_Econ1[Econ1_No]),MATCH(T_Econ[[#This Row],[Econ1]],T_Econ1[Econ1],0))))&INDEX((T_Econ1[Econ1_No]),MATCH(T_Econ[[#This Row],[Econ1]],T_Econ1[Econ1],0)) -> 002 | K21: =REPT("0",3-LEN(INDEX((T_Econ2[Econ2_No]),MATCH(T_Econ[[#This Row],[Econ2]],T_Econ2[Econ2],0))))&INDEX((T_Econ2[Econ2_No]),MATCH(T_Econ[[#This Row],[Econ2]],T_Econ2[Econ2],0)) -> 008 | L21: =REPT("0",3-LEN(INDEX((T_Econ3[Econ3_No]),MATCH(T_Econ[[#This Row],[Econ3]],T_Econ3[Econ3],0))))&INDEX((T_Econ3[Econ3_No]),MATCH(T_Econ[[#This Row],[Econ3]],T_Econ3[Econ3],0)) -> 049 | M21: =T_Econ[[#This Row],[Econ1_Id]]&T_Econ[[#This Row],[Econ2_Id]]&T_Econ[[#This Row],[Econ3_Id]] -> 002008049 | N21: Transfers and subsidies | O21: Public corporations and private enterprises | P21: Public corporations | T21: 25 | U21: Economic Development | W21: 3 | X21: Communications | Y21: 1 | Z21: Administration | AB21: 2 | AC21: Parliament | AD21: 1 | AE21: Strategic Leadership and Governance | AF21: 4 | AG21: Parliamentary Budget Office | AH21: =REPT(0,3-LEN(T_Sprog[[#This Row],[Vote No.]]))&T_Sprog[[#This Row],[Vote No.]] -> 002 | AI21: =REPT(0,3-LEN(T_Sprog[[#This Row],[Programme No.]]))&T_Sprog[[#This Row],[Programme No.]] -> 001 | AJ21: =REPT(0,3-LEN(T_Sprog[[#This Row],[Subprogramme No.]]))&T_Sprog[[#This Row],[Subprogramme No.]] -> 004 | AK21: =T_Sprog[[#This Row],[DeptID]]&T_Sprog[[#This Row],[ProgID]] -> 002001 | AL21: =T_Sprog[[#This Row],[ComboID_DP]]&T_Sprog[[#This Row],[SProgID]] -> 002001004 | AO21: =IF(AR21<>"",MAX($AO$11:AO20)+1,0) -> 0 | AP21: 11 | AR21: =IFERROR(INDEX((T_Sprog[Programme]),MATCH(AQ21,T_Sprog[ComboID_DP],0)),"") ->  | AT21: 11 | AU21: =IFERROR(INDEX((T_Sprog[Subprogramme]),MATCH(AU45,T_Sprog[ComboID_DPSP],0)),"") ->  | AV21: =IFERROR(INDEX((T_Sprog[Subprogramme]),MATCH(AV45,T_Sprog[ComboID_DPSP],0)),"") ->  | AW21: =IFERROR(INDEX((T_Sprog[Subprogramme]),MATCH(AW45,T_Sprog[ComboID_DPSP],0)),"") ->  | AX21: =IFERROR(INDEX((T_Sprog[Subprogramme]),MATCH(AX45,T_Sprog[ComboID_DPSP],0)),"") ->  | AY21: =IFERROR(INDEX((T_Sprog[Subprogramme]),MATCH(AY45,T_Sprog[ComboID_DPSP],0)),"") ->  | AZ21: =IFERROR(INDEX((T_Sprog[Subprogramme]),MATCH(AZ45,T_Sprog[ComboID_DPSP],0)),"") ->  | BA21: =IFERROR(INDEX((T_Sprog[Subprogramme]),MATCH(BA45,T_Sprog[ComboID_DPSP],0)),"") ->  | BB21: =IFERROR(INDEX((T_Sprog[Subprogramme]),MATCH(BB45,T_Sprog[ComboID_DPSP],0)),"") ->  | BC21: =IFERROR(INDEX((T_Sprog[Subprogramme]),MATCH(BC45,T_Sprog[ComboID_DPSP],0)),"") ->  | BD21: =IFERROR(INDEX((T_Sprog[Subprogramme]),MATCH(BD45,T_Sprog[ComboID_DPSP],0)),"") ->  | BE21: =IFERROR(INDEX((T_Sprog[Subprogramme]),MATCH(BE45,T_Sprog[ComboID_DPSP],0)),"") ->  | BF21: =IFERROR(INDEX((T_Sprog[Subprogramme]),MATCH(BF45,T_Sprog[ComboID_DPSP],0)),"") ->  | BG21: =IFERROR(INDEX((T_Sprog[Subprogramme]),MATCH(BG45,T_Sprog[ComboID_DPSP],0)),"") ->  | BH21: =IFERROR(INDEX((T_Sprog[Subprogramme]),MATCH(BH45,T_Sprog[ComboID_DPSP],0)),"") ->  | BI21: =IFERROR(INDEX((T_Sprog[Subprogramme]),MATCH(BI45,T_Sprog[ComboID_DPSP],0)),"") ->  | BJ21: =IFERROR(INDEX((T_Sprog[Subprogramme]),MATCH(BJ45,T_Sprog[ComboID_DPSP],0)),"") ->  | FO21: 4
A22: =IF(T_KeyDeliverables[[#This Row],[Key deliverables]]<>"",MAX(A$21:A21)+1,"") ->  | B22: =IF(COUNTIF(B$21:B21,"Other")>0,"",IF('Main adjustment proposal'!I12="","Other",'Main adjustment proposal'!I12)) ->  | D22: =INDEX(('Econ ENE'!$G$5:$G$71),MATCH(T_Econ2[[#This Row],[Econ2]],'Econ ENE'!$O$5:$O$71,0)) -> 11 | E22: Buildings and other fixed structures | G22: =INDEX(($I$47:$I$79),MATCH(T_Econ3[[#This Row],[Econ3]],$H$47:$H$79,0)) -> 50 | H22: Private enterprises | J22: =REPT("0",3-LEN(INDEX((T_Econ1[Econ1_No]),MATCH(T_Econ[[#This Row],[Econ1]],T_Econ1[Econ1],0))))&INDEX((T_Econ1[Econ1_No]),MATCH(T_Econ[[#This Row],[Econ1]],T_Econ1[Econ1],0)) -> 002 | K22: =REPT("0",3-LEN(INDEX((T_Econ2[Econ2_No]),MATCH(T_Econ[[#This Row],[Econ2]],T_Econ2[Econ2],0))))&INDEX((T_Econ2[Econ2_No]),MATCH(T_Econ[[#This Row],[Econ2]],T_Econ2[Econ2],0)) -> 008 | L22: =REPT("0",3-LEN(INDEX((T_Econ3[Econ3_No]),MATCH(T_Econ[[#This Row],[Econ3]],T_Econ3[Econ3],0))))&INDEX((T_Econ3[Econ3_No]),MATCH(T_Econ[[#This Row],[Econ3]],T_Econ3[Econ3],0)) -> 050 | M22: =T_Econ[[#This Row],[Econ1_Id]]&T_Econ[[#This Row],[Econ2_Id]]&T_Econ[[#This Row],[Econ3_Id]] -> 002008050 | N22: Transfers and subsidies | O22: Public corporations and private enterprises | P22: Private enterprises | T22: 26 | U22: Energy | W22: 3 | X22: Communications | Y22: 2 | Z22: Communications Policy, Research and Development | AB22: 2 | AC22: Parliament | AD22: 1 | AE22: Strategic Leadership and Governance | AF22: 5 | AG22: Office of Institutions Supporting Democracy | AH22: =REPT(0,3-LEN(T_Sprog[[#This Row],[Vote No.]]))&T_Sprog[[#This Row],[Vote No.]] -> 002 | AI22: =REPT(0,3-LEN(T_Sprog[[#This Row],[Programme No.]]))&T_Sprog[[#This Row],[Programme No.]] -> 001 | AJ22: =REPT(0,3-LEN(T_Sprog[[#This Row],[Subprogramme No.]]))&T_Sprog[[#This Row],[Subprogramme No.]] -> 005 | AK22: =T_Sprog[[#This Row],[DeptID]]&T_Sprog[[#This Row],[ProgID]] -> 002001 | AL22: =T_Sprog[[#This Row],[ComboID_DP]]&T_Sprog[[#This Row],[SProgID]] -> 002001005 | AO22: =IF(AR22<>"",MAX($AO$11:AO21)+1,0) -> 0 | AP22: 12 | AR22: =IFERROR(INDEX((T_Sprog[Programme]),MATCH(AQ22,T_Sprog[ComboID_DP],0)),"") ->  | AT22: 12 | AU22: =IFERROR(INDEX((T_Sprog[Subprogramme]),MATCH(AU46,T_Sprog[ComboID_DPSP],0)),"") ->  | AV22: =IFERROR(INDEX((T_Sprog[Subprogramme]),MATCH(AV46,T_Sprog[ComboID_DPSP],0)),"") ->  | AW22: =IFERROR(INDEX((T_Sprog[Subprogramme]),MATCH(AW46,T_Sprog[ComboID_DPSP],0)),"") ->  | AX22: =IFERROR(INDEX((T_Sprog[Subprogramme]),MATCH(AX46,T_Sprog[ComboID_DPSP],0)),"") ->  | AY22: =IFERROR(INDEX((T_Sprog[Subprogramme]),MATCH(AY46,T_Sprog[ComboID_DPSP],0)),"") ->  | AZ22: =IFERROR(INDEX((T_Sprog[Subprogramme]),MATCH(AZ46,T_Sprog[ComboID_DPSP],0)),"") ->  | BA22: =IFERROR(INDEX((T_Sprog[Subprogramme]),MATCH(BA46,T_Sprog[ComboID_DPSP],0)),"") ->  | BB22: =IFERROR(INDEX((T_Sprog[Subprogramme]),MATCH(BB46,T_Sprog[ComboID_DPSP],0)),"") ->  | BC22: =IFERROR(INDEX((T_Sprog[Subprogramme]),MATCH(BC46,T_Sprog[ComboID_DPSP],0)),"") ->  | BD22: =IFERROR(INDEX((T_Sprog[Subprogramme]),MATCH(BD46,T_Sprog[ComboID_DPSP],0)),"") ->  | BE22: =IFERROR(INDEX((T_Sprog[Subprogramme]),MATCH(BE46,T_Sprog[ComboID_DPSP],0)),"") ->  | BF22: =IFERROR(INDEX((T_Sprog[Subprogramme]),MATCH(BF46,T_Sprog[ComboID_DPSP],0)),"") ->  | BG22: =IFERROR(INDEX((T_Sprog[Subprogramme]),MATCH(BG46,T_Sprog[ComboID_DPSP],0)),"") ->  | BH22: =IFERROR(INDEX((T_Sprog[Subprogramme]),MATCH(BH46,T_Sprog[ComboID_DPSP],0)),"") ->  | BI22: =IFERROR(INDEX((T_Sprog[Subprogramme]),MATCH(BI46,T_Sprog[ComboID_DPSP],0)),"") ->  | BJ22: =IFERROR(INDEX((T_Sprog[Subprogramme]),MATCH(BJ46,T_Sprog[ComboID_DPSP],0)),"") ->  | FO22: 5
A23: =IF(T_KeyDeliverables[[#This Row],[Key deliverables]]<>"",MAX(A$21:A22)+1,"") ->  | B23: =IF(COUNTIF(B$21:B22,"Other")>0,"",IF('Main adjustment proposal'!I13="","Other",'Main adjustment proposal'!I13)) ->  | D23: =INDEX(('Econ ENE'!$G$5:$G$71),MATCH(T_Econ2[[#This Row],[Econ2]],'Econ ENE'!$O$5:$O$71,0)) -> 12 | E23: Machinery and equipment | G23: =INDEX(($I$47:$I$79),MATCH(T_Econ3[[#This Row],[Econ3]],$H$47:$H$79,0)) -> 51 | H23: Non-profit institutions | J23: =REPT("0",3-LEN(INDEX((T_Econ1[Econ1_No]),MATCH(T_Econ[[#This Row],[Econ1]],T_Econ1[Econ1],0))))&INDEX((T_Econ1[Econ1_No]),MATCH(T_Econ[[#This Row],[Econ1]],T_Econ1[Econ1],0)) -> 002 | K23: =REPT("0",3-LEN(INDEX((T_Econ2[Econ2_No]),MATCH(T_Econ[[#This Row],[Econ2]],T_Econ2[Econ2],0))))&INDEX((T_Econ2[Econ2_No]),MATCH(T_Econ[[#This Row],[Econ2]],T_Econ2[Econ2],0)) -> 009 | L23: =REPT("0",3-LEN(INDEX((T_Econ3[Econ3_No]),MATCH(T_Econ[[#This Row],[Econ3]],T_Econ3[Econ3],0))))&INDEX((T_Econ3[Econ3_No]),MATCH(T_Econ[[#This Row],[Econ3]],T_Econ3[Econ3],0)) -> 051 | M23: =T_Econ[[#This Row],[Econ1_Id]]&T_Econ[[#This Row],[Econ2_Id]]&T_Econ[[#This Row],[Econ3_Id]] -> 002009051 | N23: Transfers and subsidies | O23: Non-profit institutions | P23: Non-profit institutions | T23: 27 | U23: Environmental Affairs | W23: 3 | X23: Communications | Y23: 3 | Z23: Industry and Capacity Development | AB23: 2 | AC23: Parliament | AD23: 2 | AE23: Administration | AF23: 1 | AG23: Secretary's Office | AH23: =REPT(0,3-LEN(T_Sprog[[#This Row],[Vote No.]]))&T_Sprog[[#This Row],[Vote No.]] -> 002 | AI23: =REPT(0,3-LEN(T_Sprog[[#This Row],[Programme No.]]))&T_Sprog[[#This Row],[Programme No.]] -> 002 | AJ23: =REPT(0,3-LEN(T_Sprog[[#This Row],[Subprogramme No.]]))&T_Sprog[[#This Row],[Subprogramme No.]] -> 001 | AK23: =T_Sprog[[#This Row],[DeptID]]&T_Sprog[[#This Row],[ProgID]] -> 002002 | AL23: =T_Sprog[[#This Row],[ComboID_DP]]&T_Sprog[[#This Row],[SProgID]] -> 002002001 | AO23: =IF(AR23<>"",MAX($AO$11:AO22)+1,0) -> 0 | AP23: 13 | AR23: =IFERROR(INDEX((T_Sprog[Programme]),MATCH(AQ23,T_Sprog[ComboID_DP],0)),"") ->  | AT23: 13 | AU23: =IFERROR(INDEX((T_Sprog[Subprogramme]),MATCH(AU47,T_Sprog[ComboID_DPSP],0)),"") ->  | AV23: =IFERROR(INDEX((T_Sprog[Subprogramme]),MATCH(AV47,T_Sprog[ComboID_DPSP],0)),"") ->  | AW23: =IFERROR(INDEX((T_Sprog[Subprogramme]),MATCH(AW47,T_Sprog[ComboID_DPSP],0)),"") ->  | AX23: =IFERROR(INDEX((T_Sprog[Subprogramme]),MATCH(AX47,T_Sprog[ComboID_DPSP],0)),"") ->  | AY23: =IFERROR(INDEX((T_Sprog[Subprogramme]),MATCH(AY47,T_Sprog[ComboID_DPSP],0)),"") ->  | AZ23: =IFERROR(INDEX((T_Sprog[Subprogramme]),MATCH(AZ47,T_Sprog[ComboID_DPSP],0)),"") ->  | BA23: =IFERROR(INDEX((T_Sprog[Subprogramme]),MATCH(BA47,T_Sprog[ComboID_DPSP],0)),"") ->  | BB23: =IFERROR(INDEX((T_Sprog[Subprogramme]),MATCH(BB47,T_Sprog[ComboID_DPSP],0)),"") ->  | BC23: =IFERROR(INDEX((T_Sprog[Subprogramme]),MATCH(BC47,T_Sprog[ComboID_DPSP],0)),"") ->  | BD23: =IFERROR(INDEX((T_Sprog[Subprogramme]),MATCH(BD47,T_Sprog[ComboID_DPSP],0)),"") ->  | BE23: =IFERROR(INDEX((T_Sprog[Subprogramme]),MATCH(BE47,T_Sprog[ComboID_DPSP],0)),"") ->  | BF23: =IFERROR(INDEX((T_Sprog[Subprogramme]),MATCH(BF47,T_Sprog[ComboID_DPSP],0)),"") ->  | BG23: =IFERROR(INDEX((T_Sprog[Subprogramme]),MATCH(BG47,T_Sprog[ComboID_DPSP],0)),"") ->  | BH23: =IFERROR(INDEX((T_Sprog[Subprogramme]),MATCH(BH47,T_Sprog[ComboID_DPSP],0)),"") ->  | BI23: =IFERROR(INDEX((T_Sprog[Subprogramme]),MATCH(BI47,T_Sprog[ComboID_DPSP],0)),"") ->  | BJ23: =IFERROR(INDEX((T_Sprog[Subprogramme]),MATCH(BJ47,T_Sprog[ComboID_DPSP],0)),"") ->  | FO23: 6
A24: =IF(T_KeyDeliverables[[#This Row],[Key deliverables]]<>"",MAX(A$21:A23)+1,"") ->  | B24: =IF(COUNTIF(B$21:B23,"Other")>0,"",IF('Main adjustment proposal'!I14="","Other",'Main adjustment proposal'!I14)) ->  | D24: =INDEX(('Econ ENE'!$G$5:$G$71),MATCH(T_Econ2[[#This Row],[Econ2]],'Econ ENE'!$O$5:$O$71,0)) -> 13 | E24: Heritage assets | G24: =INDEX(($I$47:$I$79),MATCH(T_Econ3[[#This Row],[Econ3]],$H$47:$H$79,0)) -> 52 | H24: Social benefits | J24: =REPT("0",3-LEN(INDEX((T_Econ1[Econ1_No]),MATCH(T_Econ[[#This Row],[Econ1]],T_Econ1[Econ1],0))))&INDEX((T_Econ1[Econ1_No]),MATCH(T_Econ[[#This Row],[Econ1]],T_Econ1[Econ1],0)) -> 002 | K24: =REPT("0",3-LEN(INDEX((T_Econ2[Econ2_No]),MATCH(T_Econ[[#This Row],[Econ2]],T_Econ2[Econ2],0))))&INDEX((T_Econ2[Econ2_No]),MATCH(T_Econ[[#This Row],[Econ2]],T_Econ2[Econ2],0)) -> 010 | L24: =REPT("0",3-LEN(INDEX((T_Econ3[Econ3_No]),MATCH(T_Econ[[#This Row],[Econ3]],T_Econ3[Econ3],0))))&INDEX((T_Econ3[Econ3_No]),MATCH(T_Econ[[#This Row],[Econ3]],T_Econ3[Econ3],0)) -> 052 | M24: =T_Econ[[#This Row],[Econ1_Id]]&T_Econ[[#This Row],[Econ2_Id]]&T_Econ[[#This Row],[Econ3_Id]] -> 002010052 | N24: Transfers and subsidies | O24: Households | P24: Social benefits | T24: 46 | U24: Government Communication and Information System | W24: 3 | X24: Communications | Y24: 4 | Z24: Entity Oversight | AB24: 2 | AC24: Parliament | AD24: 2 | AE24: Administration | AF24: 2 | AG24: Finance Management Office | AH24: =REPT(0,3-LEN(T_Sprog[[#This Row],[Vote No.]]))&T_Sprog[[#This Row],[Vote No.]] -> 002 | AI24: =REPT(0,3-LEN(T_Sprog[[#This Row],[Programme No.]]))&T_Sprog[[#This Row],[Programme No.]] -> 002 | AJ24: =REPT(0,3-LEN(T_Sprog[[#This Row],[Subprogramme No.]]))&T_Sprog[[#This Row],[Subprogramme No.]] -> 002 | AK24: =T_Sprog[[#This Row],[DeptID]]&T_Sprog[[#This Row],[ProgID]] -> 002002 | AL24: =T_Sprog[[#This Row],[ComboID_DP]]&T_Sprog[[#This Row],[SProgID]] -> 002002002 | AO24: =IF(AR24<>"",MAX($AO$11:AO23)+1,0) -> 0 | AP24: 14 | AR24: =IFERROR(INDEX((T_Sprog[Programme]),MATCH(AQ24,T_Sprog[ComboID_DP],0)),"") ->  | AT24: 14 | AU24: =IFERROR(INDEX((T_Sprog[Subprogramme]),MATCH(AU48,T_Sprog[ComboID_DPSP],0)),"") ->  | AV24: =IFERROR(INDEX((T_Sprog[Subprogramme]),MATCH(AV48,T_Sprog[ComboID_DPSP],0)),"") ->  | AW24: =IFERROR(INDEX((T_Sprog[Subprogramme]),MATCH(AW48,T_Sprog[ComboID_DPSP],0)),"") ->  | AX24: =IFERROR(INDEX((T_Sprog[Subprogramme]),MATCH(AX48,T_Sprog[ComboID_DPSP],0)),"") ->  | AY24: =IFERROR(INDEX((T_Sprog[Subprogramme]),MATCH(AY48,T_Sprog[ComboID_DPSP],0)),"") ->  | AZ24: =IFERROR(INDEX((T_Sprog[Subprogramme]),MATCH(AZ48,T_Sprog[ComboID_DPSP],0)),"") ->  | BA24: =IFERROR(INDEX((T_Sprog[Subprogramme]),MATCH(BA48,T_Sprog[ComboID_DPSP],0)),"") ->  | BB24: =IFERROR(INDEX((T_Sprog[Subprogramme]),MATCH(BB48,T_Sprog[ComboID_DPSP],0)),"") ->  | BC24: =IFERROR(INDEX((T_Sprog[Subprogramme]),MATCH(BC48,T_Sprog[ComboID_DPSP],0)),"") ->  | BD24: =IFERROR(INDEX((T_Sprog[Subprogramme]),MATCH(BD48,T_Sprog[ComboID_DPSP],0)),"") ->  | BE24: =IFERROR(INDEX((T_Sprog[Subprogramme]),MATCH(BE48,T_Sprog[ComboID_DPSP],0)),"") ->  | BF24: =IFERROR(INDEX((T_Sprog[Subprogramme]),MATCH(BF48,T_Sprog[ComboID_DPSP],0)),"") ->  | BG24: =IFERROR(INDEX((T_Sprog[Subprogramme]),MATCH(BG48,T_Sprog[ComboID_DPSP],0)),"") ->  | BH24: =IFERROR(INDEX((T_Sprog[Subprogramme]),MATCH(BH48,T_Sprog[ComboID_DPSP],0)),"") ->  | BI24: =IFERROR(INDEX((T_Sprog[Subprogramme]),MATCH(BI48,T_Sprog[ComboID_DPSP],0)),"") ->  | BJ24: =IFERROR(INDEX((T_Sprog[Subprogramme]),MATCH(BJ48,T_Sprog[ComboID_DPSP],0)),"") ->  | FO24: 7
A25: =IF(T_KeyDeliverables[[#This Row],[Key deliverables]]<>"",MAX(A$21:A24)+1,"") ->  | B25: =IF(COUNTIF(B$21:B24,"Other")>0,"",IF('Main adjustment proposal'!I15="","Other",'Main adjustment proposal'!I15)) ->  | D25: =INDEX(('Econ ENE'!$G$5:$G$71),MATCH(T_Econ2[[#This Row],[Econ2]],'Econ ENE'!$O$5:$O$71,0)) -> 14 | E25: Specialised military assets | G25: =INDEX(($I$47:$I$79),MATCH(T_Econ3[[#This Row],[Econ3]],$H$47:$H$79,0)) -> 53 | H25: Other transfers to households | J25: =REPT("0",3-LEN(INDEX((T_Econ1[Econ1_No]),MATCH(T_Econ[[#This Row],[Econ1]],T_Econ1[Econ1],0))))&INDEX((T_Econ1[Econ1_No]),MATCH(T_Econ[[#This Row],[Econ1]],T_Econ1[Econ1],0)) -> 002 | K25: =REPT("0",3-LEN(INDEX((T_Econ2[Econ2_No]),MATCH(T_Econ[[#This Row],[Econ2]],T_Econ2[Econ2],0))))&INDEX((T_Econ2[Econ2_No]),MATCH(T_Econ[[#This Row],[Econ2]],T_Econ2[Econ2],0)) -> 010 | L25: =REPT("0",3-LEN(INDEX((T_Econ3[Econ3_No]),MATCH(T_Econ[[#This Row],[Econ3]],T_Econ3[Econ3],0))))&INDEX((T_Econ3[Econ3_No]),MATCH(T_Econ[[#This Row],[Econ3]],T_Econ3[Econ3],0)) -> 053 | M25: =T_Econ[[#This Row],[Econ1_Id]]&T_Econ[[#This Row],[Econ2_Id]]&T_Econ[[#This Row],[Econ3_Id]] -> 002010053 | N25: Transfers and subsidies | O25: Households | P25: Other transfers to households | T25: 16 | U25: Health | W25: 4 | X25: Cooperative Governance and Traditional Affairs | Y25: 1 | Z25: Administration | AB25: 2 | AC25: Parliament | AD25: 2 | AE25: Administration | AF25: 3 | AG25: Internal Audit | AH25: =REPT(0,3-LEN(T_Sprog[[#This Row],[Vote No.]]))&T_Sprog[[#This Row],[Vote No.]] -> 002 | AI25: =REPT(0,3-LEN(T_Sprog[[#This Row],[Programme No.]]))&T_Sprog[[#This Row],[Programme No.]] -> 002 | AJ25: =REPT(0,3-LEN(T_Sprog[[#This Row],[Subprogramme No.]]))&T_Sprog[[#This Row],[Subprogramme No.]] -> 003 | AK25: =T_Sprog[[#This Row],[DeptID]]&T_Sprog[[#This Row],[ProgID]] -> 002002 | AL25: =T_Sprog[[#This Row],[ComboID_DP]]&T_Sprog[[#This Row],[SProgID]] -> 002002003 | AO25: =IF(AR25<>"",MAX($AO$11:AO24)+1,0) -> 0 | AP25: 15 | AR25: =IFERROR(INDEX((T_Sprog[Programme]),MATCH(AQ25,T_Sprog[ComboID_DP],0)),"") ->  | AT25: 15 | AU25: =IFERROR(INDEX((T_Sprog[Subprogramme]),MATCH(AU49,T_Sprog[ComboID_DPSP],0)),"") ->  | AV25: =IFERROR(INDEX((T_Sprog[Subprogramme]),MATCH(AV49,T_Sprog[ComboID_DPSP],0)),"") ->  | AW25: =IFERROR(INDEX((T_Sprog[Subprogramme]),MATCH(AW49,T_Sprog[ComboID_DPSP],0)),"") ->  | AX25: =IFERROR(INDEX((T_Sprog[Subprogramme]),MATCH(AX49,T_Sprog[ComboID_DPSP],0)),"") ->  | AY25: =IFERROR(INDEX((T_Sprog[Subprogramme]),MATCH(AY49,T_Sprog[ComboID_DPSP],0)),"") ->  | AZ25: =IFERROR(INDEX((T_Sprog[Subprogramme]),MATCH(AZ49,T_Sprog[ComboID_DPSP],0)),"") ->  | BA25: =IFERROR(INDEX((T_Sprog[Subprogramme]),MATCH(BA49,T_Sprog[ComboID_DPSP],0)),"") ->  | BB25: =IFERROR(INDEX((T_Sprog[Subprogramme]),MATCH(BB49,T_Sprog[ComboID_DPSP],0)),"") ->  | BC25: =IFERROR(INDEX((T_Sprog[Subprogramme]),MATCH(BC49,T_Sprog[ComboID_DPSP],0)),"") ->  | BD25: =IFERROR(INDEX((T_Sprog[Subprogramme]),MATCH(BD49,T_Sprog[ComboID_DPSP],0)),"") ->  | BE25: =IFERROR(INDEX((T_Sprog[Subprogramme]),MATCH(BE49,T_Sprog[ComboID_DPSP],0)),"") ->  | BF25: =IFERROR(INDEX((T_Sprog[Subprogramme]),MATCH(BF49,T_Sprog[ComboID_DPSP],0)),"") ->  | BG25: =IFERROR(INDEX((T_Sprog[Subprogramme]),MATCH(BG49,T_Sprog[ComboID_DPSP],0)),"") ->  | BH25: =IFERROR(INDEX((T_Sprog[Subprogramme]),MATCH(BH49,T_Sprog[ComboID_DPSP],0)),"") ->  | BI25: =IFERROR(INDEX((T_Sprog[Subprogramme]),MATCH(BI49,T_Sprog[ComboID_DPSP],0)),"") ->  | BJ25: =IFERROR(INDEX((T_Sprog[Subprogramme]),MATCH(BJ49,T_Sprog[ComboID_DPSP],0)),"") ->  | FO25: 8
A26: =IF(T_KeyDeliverables[[#This Row],[Key deliverables]]<>"",MAX(A$21:A25)+1,"") ->  | B26: =IF(COUNTIF(B$21:B25,"Other")>0,"",IF('Main adjustment proposal'!I16="","Other",'Main adjustment proposal'!I16)) ->  | D26: =INDEX(('Econ ENE'!$G$5:$G$71),MATCH(T_Econ2[[#This Row],[Econ2]],'Econ ENE'!$O$5:$O$71,0)) -> 15 | E26: Biological assets | G26: =INDEX(($I$47:$I$79),MATCH(T_Econ3[[#This Row],[Econ3]],$H$47:$H$79,0)) -> 54 | H26: Buildings | J26: =REPT("0",3-LEN(INDEX((T_Econ1[Econ1_No]),MATCH(T_Econ[[#This Row],[Econ1]],T_Econ1[Econ1],0))))&INDEX((T_Econ1[Econ1_No]),MATCH(T_Econ[[#This Row],[Econ1]],T_Econ1[Econ1],0)) -> 003 | K26: =REPT("0",3-LEN(INDEX((T_Econ2[Econ2_No]),MATCH(T_Econ[[#This Row],[Econ2]],T_Econ2[Econ2],0))))&INDEX((T_Econ2[Econ2_No]),MATCH(T_Econ[[#This Row],[Econ2]],T_Econ2[Econ2],0)) -> 011 | L26: =REPT("0",3-LEN(INDEX((T_Econ3[Econ3_No]),MATCH(T_Econ[[#This Row],[Econ3]],T_Econ3[Econ3],0))))&INDEX((T_Econ3[Econ3_No]),MATCH(T_Econ[[#This Row],[Econ3]],T_Econ3[Econ3],0)) -> 054 | M26: =T_Econ[[#This Row],[Econ1_Id]]&T_Econ[[#This Row],[Econ2_Id]]&T_Econ[[#This Row],[Econ3_Id]] -> 003011054 | N26: Payments for capital assets | O26: Buildings and other fixed structures | P26: Buildings | T26: 15 | U26: Higher Education and Training | W26: 4 | X26: Cooperative Governance and Traditional Affairs | Y26: 2 | Z26: Regional and Urban Development and Legislative Support | AB26: 2 | AC26: Parliament | AD26: 2 | AE26: Administration | AF26: 4 | AG26: Strategic Management and Governance | AH26: =REPT(0,3-LEN(T_Sprog[[#This Row],[Vote No.]]))&T_Sprog[[#This Row],[Vote No.]] -> 002 | AI26: =REPT(0,3-LEN(T_Sprog[[#This Row],[Programme No.]]))&T_Sprog[[#This Row],[Programme No.]] -> 002 | AJ26: =REPT(0,3-LEN(T_Sprog[[#This Row],[Subprogramme No.]]))&T_Sprog[[#This Row],[Subprogramme No.]] -> 004 | AK26: =T_Sprog[[#This Row],[DeptID]]&T_Sprog[[#This Row],[ProgID]] -> 002002 | AL26: =T_Sprog[[#This Row],[ComboID_DP]]&T_Sprog[[#This Row],[SProgID]] -> 002002004 | AO26: =IF(AR26<>"",MAX($AO$11:AO25)+1,0) -> 0 | AP26: 16 | AR26: =IFERROR(INDEX((T_Sprog[Programme]),MATCH(AQ26,T_Sprog[ComboID_DP],0)),"") ->  | AT26: 16 | AU26: =IFERROR(INDEX((T_Sprog[Subprogramme]),MATCH(AU50,T_Sprog[ComboID_DPSP],0)),"") ->  | AV26: =IFERROR(INDEX((T_Sprog[Subprogramme]),MATCH(AV50,T_Sprog[ComboID_DPSP],0)),"") ->  | AW26: =IFERROR(INDEX((T_Sprog[Subprogramme]),MATCH(AW50,T_Sprog[ComboID_DPSP],0)),"") ->  | AX26: =IFERROR(INDEX((T_Sprog[Subprogramme]),MATCH(AX50,T_Sprog[ComboID_DPSP],0)),"") ->  | AY26: =IFERROR(INDEX((T_Sprog[Subprogramme]),MATCH(AY50,T_Sprog[ComboID_DPSP],0)),"") ->  | AZ26: =IFERROR(INDEX((T_Sprog[Subprogramme]),MATCH(AZ50,T_Sprog[ComboID_DPSP],0)),"") ->  | BA26: =IFERROR(INDEX((T_Sprog[Subprogramme]),MATCH(BA50,T_Sprog[ComboID_DPSP],0)),"") ->  | BB26: =IFERROR(INDEX((T_Sprog[Subprogramme]),MATCH(BB50,T_Sprog[ComboID_DPSP],0)),"") ->  | BC26: =IFERROR(INDEX((T_Sprog[Subprogramme]),MATCH(BC50,T_Sprog[ComboID_DPSP],0)),"") ->  | BD26: =IFERROR(INDEX((T_Sprog[Subprogramme]),MATCH(BD50,T_Sprog[ComboID_DPSP],0)),"") ->  | BE26: =IFERROR(INDEX((T_Sprog[Subprogramme]),MATCH(BE50,T_Sprog[ComboID_DPSP],0)),"") ->  | BF26: =IFERROR(INDEX((T_Sprog[Subprogramme]),MATCH(BF50,T_Sprog[ComboID_DPSP],0)),"") ->  | BG26: =IFERROR(INDEX((T_Sprog[Subprogramme]),MATCH(BG50,T_Sprog[ComboID_DPSP],0)),"") ->  | BH26: =IFERROR(INDEX((T_Sprog[Subprogramme]),MATCH(BH50,T_Sprog[ComboID_DPSP],0)),"") ->  | BI26: =IFERROR(INDEX((T_Sprog[Subprogramme]),MATCH(BI50,T_Sprog[ComboID_DPSP],0)),"") ->  | BJ26: =IFERROR(INDEX((T_Sprog[Subprogramme]),MATCH(BJ50,T_Sprog[ComboID_DPSP],0)),"") ->  | FO26: 9
A27: =IF(T_KeyDeliverables[[#This Row],[Key deliverables]]<>"",MAX(A$21:A26)+1,"") ->  | B27: =IF(COUNTIF(B$21:B26,"Other")>0,"",IF('Main adjustment proposal'!I17="","Other",'Main adjustment proposal'!I17)) ->  | D27: =INDEX(('Econ ENE'!$G$5:$G$71),MATCH(T_Econ2[[#This Row],[Econ2]],'Econ ENE'!$O$5:$O$71,0)) -> 16 | E27: Land and sub-soil assets | G27: =INDEX(($I$47:$I$79),MATCH(T_Econ3[[#This Row],[Econ3]],$H$47:$H$79,0)) -> 55 | H27: Other fixed structures | J27: =REPT("0",3-LEN(INDEX((T_Econ1[Econ1_No]),MATCH(T_Econ[[#This Row],[Econ1]],T_Econ1[Econ1],0))))&INDEX((T_Econ1[Econ1_No]),MATCH(T_Econ[[#This Row],[Econ1]],T_Econ1[Econ1],0)) -> 003 | K27: =REPT("0",3-LEN(INDEX((T_Econ2[Econ2_No]),MATCH(T_Econ[[#This Row],[Econ2]],T_Econ2[Econ2],0))))&INDEX((T_Econ2[Econ2_No]),MATCH(T_Econ[[#This Row],[Econ2]],T_Econ2[Econ2],0)) -> 011 | L27: =REPT("0",3-LEN(INDEX((T_Econ3[Econ3_No]),MATCH(T_Econ[[#This Row],[Econ3]],T_Econ3[Econ3],0))))&INDEX((T_Econ3[Econ3_No]),MATCH(T_Econ[[#This Row],[Econ3]],T_Econ3[Econ3],0)) -> 055 | M27: =T_Econ[[#This Row],[Econ1_Id]]&T_Econ[[#This Row],[Econ2_Id]]&T_Econ[[#This Row],[Econ3_Id]] -> 003011055 | N27: Payments for capital assets | O27: Buildings and other fixed structures | P27: Other fixed structures | T27: 5 | U27: Home Affairs | W27: 4 | X27: Cooperative Governance and Traditional Affairs | Y27: 3 | Z27: Institutional Development | AB27: 2 | AC27: Parliament | AD27: 2 | AE27: Administration | AF27: 5 | AG27: Legislative Sector Support | AH27: =REPT(0,3-LEN(T_Sprog[[#This Row],[Vote No.]]))&T_Sprog[[#This Row],[Vote No.]] -> 002 | AI27: =REPT(0,3-LEN(T_Sprog[[#This Row],[Programme No.]]))&T_Sprog[[#This Row],[Programme No.]] -> 002 | AJ27: =REPT(0,3-LEN(T_Sprog[[#This Row],[Subprogramme No.]]))&T_Sprog[[#This Row],[Subprogramme No.]] -> 005 | AK27: =T_Sprog[[#This Row],[DeptID]]&T_Sprog[[#This Row],[ProgID]] -> 002002 | AL27: =T_Sprog[[#This Row],[ComboID_DP]]&T_Sprog[[#This Row],[SProgID]] -> 002002005 | AT27: 17 | AU27: =IFERROR(INDEX((T_Sprog[Subprogramme]),MATCH(AU51,T_Sprog[ComboID_DPSP],0)),"") ->  | AV27: =IFERROR(INDEX((T_Sprog[Subprogramme]),MATCH(AV51,T_Sprog[ComboID_DPSP],0)),"") ->  | AW27: =IFERROR(INDEX((T_Sprog[Subprogramme]),MATCH(AW51,T_Sprog[ComboID_DPSP],0)),"") ->  | AX27: =IFERROR(INDEX((T_Sprog[Subprogramme]),MATCH(AX51,T_Sprog[ComboID_DPSP],0)),"") ->  | AY27: =IFERROR(INDEX((T_Sprog[Subprogramme]),MATCH(AY51,T_Sprog[ComboID_DPSP],0)),"") ->  | AZ27: =IFERROR(INDEX((T_Sprog[Subprogramme]),MATCH(AZ51,T_Sprog[ComboID_DPSP],0)),"") ->  | BA27: =IFERROR(INDEX((T_Sprog[Subprogramme]),MATCH(BA51,T_Sprog[ComboID_DPSP],0)),"") ->  | BB27: =IFERROR(INDEX((T_Sprog[Subprogramme]),MATCH(BB51,T_Sprog[ComboID_DPSP],0)),"") ->  | BC27: =IFERROR(INDEX((T_Sprog[Subprogramme]),MATCH(BC51,T_Sprog[ComboID_DPSP],0)),"") ->  | BD27: =IFERROR(INDEX((T_Sprog[Subprogramme]),MATCH(BD51,T_Sprog[ComboID_DPSP],0)),"") ->  | BE27: =IFERROR(INDEX((T_Sprog[Subprogramme]),MATCH(BE51,T_Sprog[ComboID_DPSP],0)),"") ->  | BF27: =IFERROR(INDEX((T_Sprog[Subprogramme]),MATCH(BF51,T_Sprog[ComboID_DPSP],0)),"") ->  | BG27: =IFERROR(INDEX((T_Sprog[Subprogramme]),MATCH(BG51,T_Sprog[ComboID_DPSP],0)),"") ->  | BH27: =IFERROR(INDEX((T_Sprog[Subprogramme]),MATCH(BH51,T_Sprog[ComboID_DPSP],0)),"") ->  | BI27: =IFERROR(INDEX((T_Sprog[Subprogramme]),MATCH(BI51,T_Sprog[ComboID_DPSP],0)),"") ->  | BJ27: =IFERROR(INDEX((T_Sprog[Subprogramme]),MATCH(BJ51,T_Sprog[ComboID_DPSP],0)),"") ->  | FO27: 10 | GO27: =IFERROR(INDEX($FN$36:$FN$821,MATCH(0,COUNTIF($GO$26:GO26,$FN$36:$FN$821),0)),"") -> Infrastructure transfers | GP27: =IFERROR(INDEX(T_InfraS[Infrastructure category],MATCH(0,INDEX(COUNTIF(GP$26:GP26,T_InfraS[Infrastructure category]),0),0)),"") -> Infrastructure transfers | GQ27: =IFERROR(INDEX(T_InfraS[Project category],MATCH(0,INDEX(COUNTIF(GQ$26:GQ26,T_InfraS[Project category]),0),0)),"") -> Mega projects | GR27: =IFERROR(INDEX(T_InfraS[Project name],MATCH(0,INDEX(COUNTIF(GR$26:GR26,T_InfraS[Project name]),0),0)),"") -> Municipal infrastructure grant transfer | GS27: =IFERROR(INDEX(T_InfraS[Type of infrastructure],MATCH(0,INDEX(COUNTIF(GS$26:GS26,T_InfraS[Type of infrastructure]),0),0)),"") -> Roads, water, sanitation and community lights
A28: =IF(T_KeyDeliverables[[#This Row],[Key deliverables]]<>"",MAX(A$21:A27)+1,"") ->  | B28: =IF(COUNTIF(B$21:B27,"Other")>0,"",IF('Main adjustment proposal'!I18="","Other",'Main adjustment proposal'!I18)) ->  | D28: =INDEX(('Econ ENE'!$G$5:$G$71),MATCH(T_Econ2[[#This Row],[Econ2]],'Econ ENE'!$O$5:$O$71,0)) -> 17 | E28: Software and other intangible assets | G28: =INDEX(($I$47:$I$79),MATCH(T_Econ3[[#This Row],[Econ3]],$H$47:$H$79,0)) -> 56 | H28: Transport equipment | J28: =REPT("0",3-LEN(INDEX((T_Econ1[Econ1_No]),MATCH(T_Econ[[#This Row],[Econ1]],T_Econ1[Econ1],0))))&INDEX((T_Econ1[Econ1_No]),MATCH(T_Econ[[#This Row],[Econ1]],T_Econ1[Econ1],0)) -> 003 | K28: =REPT("0",3-LEN(INDEX((T_Econ2[Econ2_No]),MATCH(T_Econ[[#This Row],[Econ2]],T_Econ2[Econ2],0))))&INDEX((T_Econ2[Econ2_No]),MATCH(T_Econ[[#This Row],[Econ2]],T_Econ2[Econ2],0)) -> 012 | L28: =REPT("0",3-LEN(INDEX((T_Econ3[Econ3_No]),MATCH(T_Econ[[#This Row],[Econ3]],T_Econ3[Econ3],0))))&INDEX((T_Econ3[Econ3_No]),MATCH(T_Econ[[#This Row],[Econ3]],T_Econ3[Econ3],0)) -> 056 | M28: =T_Econ[[#This Row],[Econ1_Id]]&T_Econ[[#This Row],[Econ2_Id]]&T_Econ[[#This Row],[Econ3_Id]] -> 003012056 | N28: Payments for capital assets | O28: Machinery and equipment | P28: Transport equipment | T28: 38 | U28: Human Settlements | W28: 4 | X28: Cooperative Governance and Traditional Affairs | Y28: 4 | Z28: National Disaster Management Centre | AB28: 2 | AC28: Parliament | AD28: 2 | AE28: Administration | AF28: 6 | AG28: Registrar of Member's Interest | AH28: =REPT(0,3-LEN(T_Sprog[[#This Row],[Vote No.]]))&T_Sprog[[#This Row],[Vote No.]] -> 002 | AI28: =REPT(0,3-LEN(T_Sprog[[#This Row],[Programme No.]]))&T_Sprog[[#This Row],[Programme No.]] -> 002 | AJ28: =REPT(0,3-LEN(T_Sprog[[#This Row],[Subprogramme No.]]))&T_Sprog[[#This Row],[Subprogramme No.]] -> 006 | AK28: =T_Sprog[[#This Row],[DeptID]]&T_Sprog[[#This Row],[ProgID]] -> 002002 | AL28: =T_Sprog[[#This Row],[ComboID_DP]]&T_Sprog[[#This Row],[SProgID]] -> 002002006 | AT28: 18 | AU28: =IFERROR(INDEX((T_Sprog[Subprogramme]),MATCH(AU52,T_Sprog[ComboID_DPSP],0)),"") ->  | AV28: =IFERROR(INDEX((T_Sprog[Subprogramme]),MATCH(AV52,T_Sprog[ComboID_DPSP],0)),"") ->  | AW28: =IFERROR(INDEX((T_Sprog[Subprogramme]),MATCH(AW52,T_Sprog[ComboID_DPSP],0)),"") ->  | AX28: =IFERROR(INDEX((T_Sprog[Subprogramme]),MATCH(AX52,T_Sprog[ComboID_DPSP],0)),"") ->  | AY28: =IFERROR(INDEX((T_Sprog[Subprogramme]),MATCH(AY52,T_Sprog[ComboID_DPSP],0)),"") ->  | AZ28: =IFERROR(INDEX((T_Sprog[Subprogramme]),MATCH(AZ52,T_Sprog[ComboID_DPSP],0)),"") ->  | BA28: =IFERROR(INDEX((T_Sprog[Subprogramme]),MATCH(BA52,T_Sprog[ComboID_DPSP],0)),"") ->  | BB28: =IFERROR(INDEX((T_Sprog[Subprogramme]),MATCH(BB52,T_Sprog[ComboID_DPSP],0)),"") ->  | BC28: =IFERROR(INDEX((T_Sprog[Subprogramme]),MATCH(BC52,T_Sprog[ComboID_DPSP],0)),"") ->  | BD28: =IFERROR(INDEX((T_Sprog[Subprogramme]),MATCH(BD52,T_Sprog[ComboID_DPSP],0)),"") ->  | BE28: =IFERROR(INDEX((T_Sprog[Subprogramme]),MATCH(BE52,T_Sprog[ComboID_DPSP],0)),"") ->  | BF28: =IFERROR(INDEX((T_Sprog[Subprogramme]),MATCH(BF52,T_Sprog[ComboID_DPSP],0)),"") ->  | BG28: =IFERROR(INDEX((T_Sprog[Subprogramme]),MATCH(BG52,T_Sprog[ComboID_DPSP],0)),"") ->  | BH28: =IFERROR(INDEX((T_Sprog[Subprogramme]),MATCH(BH52,T_Sprog[ComboID_DPSP],0)),"") ->  | BI28: =IFERROR(INDEX((T_Sprog[Subprogramme]),MATCH(BI52,T_Sprog[ComboID_DPSP],0)),"") ->  | BJ28: =IFERROR(INDEX((T_Sprog[Subprogramme]),MATCH(BJ52,T_Sprog[ComboID_DPSP],0)),"") ->  | FO28: 11 | GO28: =IFERROR(INDEX($FN$36:$FN$821,MATCH(0,COUNTIF($GO$26:GO27,$FN$36:$FN$821),0)),"") -> Departmental infrastructure | GP28: =IFERROR(INDEX(T_InfraS[Infrastructure category],MATCH(0,INDEX(COUNTIF(GP$26:GP27,T_InfraS[Infrastructure category]),0),0)),"") -> Departmental infrastructure | GQ28: =IFERROR(INDEX(T_InfraS[Project category],MATCH(0,INDEX(COUNTIF(GQ$26:GQ27,T_InfraS[Project category]),0),0)),"") -> Small projects | GR28: =IFERROR(INDEX(T_InfraS[Project name],MATCH(0,INDEX(COUNTIF(GR$26:GR27,T_InfraS[Project name]),0),0)),"") -> Atamelang, Molopo and Mankwe
A29: =IF(T_KeyDeliverables[[#This Row],[Key deliverables]]<>"",MAX(A$21:A28)+1,"") ->  | B29: =IF(COUNTIF(B$21:B28,"Other")>0,"",IF('Main adjustment proposal'!I19="","Other",'Main adjustment proposal'!I19)) ->  | D29: =INDEX(('Econ ENE'!$G$5:$G$71),MATCH(T_Econ2[[#This Row],[Econ2]],'Econ ENE'!$O$5:$O$71,0)) -> 18 | E29: Payments for financial assets | G29: =INDEX(($I$47:$I$79),MATCH(T_Econ3[[#This Row],[Econ3]],$H$47:$H$79,0)) -> 57 | H29: Other machinery and equipment | J29: =REPT("0",3-LEN(INDEX((T_Econ1[Econ1_No]),MATCH(T_Econ[[#This Row],[Econ1]],T_Econ1[Econ1],0))))&INDEX((T_Econ1[Econ1_No]),MATCH(T_Econ[[#This Row],[Econ1]],T_Econ1[Econ1],0)) -> 003 | K29: =REPT("0",3-LEN(INDEX((T_Econ2[Econ2_No]),MATCH(T_Econ[[#This Row],[Econ2]],T_Econ2[Econ2],0))))&INDEX((T_Econ2[Econ2_No]),MATCH(T_Econ[[#This Row],[Econ2]],T_Econ2[Econ2],0)) -> 012 | L29: =REPT("0",3-LEN(INDEX((T_Econ3[Econ3_No]),MATCH(T_Econ[[#This Row],[Econ3]],T_Econ3[Econ3],0))))&INDEX((T_Econ3[Econ3_No]),MATCH(T_Econ[[#This Row],[Econ3]],T_Econ3[Econ3],0)) -> 057 | M29: =T_Econ[[#This Row],[Econ1_Id]]&T_Econ[[#This Row],[Econ2_Id]]&T_Econ[[#This Row],[Econ3_Id]] -> 003012057 | N29: Payments for capital assets | O29: Machinery and equipment | P29: Other machinery and equipment | T29: 20 | U29: Independent Police Investigative Directorate | W29: 4 | X29: Cooperative Governance and Traditional Affairs | Y29: 5 | Z29: Local Government Support and Intervention Management | AB29: 2 | AC29: Parliament | AD29: 2 | AE29: Administration | AF29: 7 | AG29: Projects | AH29: =REPT(0,3-LEN(T_Sprog[[#This Row],[Vote No.]]))&T_Sprog[[#This Row],[Vote No.]] -> 002 | AI29: =REPT(0,3-LEN(T_Sprog[[#This Row],[Programme No.]]))&T_Sprog[[#This Row],[Programme No.]] -> 002 | AJ29: =REPT(0,3-LEN(T_Sprog[[#This Row],[Subprogramme No.]]))&T_Sprog[[#This Row],[Subprogramme No.]] -> 007 | AK29: =T_Sprog[[#This Row],[DeptID]]&T_Sprog[[#This Row],[ProgID]] -> 002002 | AL29: =T_Sprog[[#This Row],[ComboID_DP]]&T_Sprog[[#This Row],[SProgID]] -> 002002007 | AT29: 19 | AU29: =IFERROR(INDEX((T_Sprog[Subprogramme]),MATCH(AU53,T_Sprog[ComboID_DPSP],0)),"") ->  | AV29: =IFERROR(INDEX((T_Sprog[Subprogramme]),MATCH(AV53,T_Sprog[ComboID_DPSP],0)),"") ->  | AW29: =IFERROR(INDEX((T_Sprog[Subprogramme]),MATCH(AW53,T_Sprog[ComboID_DPSP],0)),"") ->  | AX29: =IFERROR(INDEX((T_Sprog[Subprogramme]),MATCH(AX53,T_Sprog[ComboID_DPSP],0)),"") ->  | AY29: =IFERROR(INDEX((T_Sprog[Subprogramme]),MATCH(AY53,T_Sprog[ComboID_DPSP],0)),"") ->  | AZ29: =IFERROR(INDEX((T_Sprog[Subprogramme]),MATCH(AZ53,T_Sprog[ComboID_DPSP],0)),"") ->  | BA29: =IFERROR(INDEX((T_Sprog[Subprogramme]),MATCH(BA53,T_Sprog[ComboID_DPSP],0)),"") ->  | BB29: =IFERROR(INDEX((T_Sprog[Subprogramme]),MATCH(BB53,T_Sprog[ComboID_DPSP],0)),"") ->  | BC29: =IFERROR(INDEX((T_Sprog[Subprogramme]),MATCH(BC53,T_Sprog[ComboID_DPSP],0)),"") ->  | BD29: =IFERROR(INDEX((T_Sprog[Subprogramme]),MATCH(BD53,T_Sprog[ComboID_DPSP],0)),"") ->  | BE29: =IFERROR(INDEX((T_Sprog[Subprogramme]),MATCH(BE53,T_Sprog[ComboID_DPSP],0)),"") ->  | BF29: =IFERROR(INDEX((T_Sprog[Subprogramme]),MATCH(BF53,T_Sprog[ComboID_DPSP],0)),"") ->  | BG29: =IFERROR(INDEX((T_Sprog[Subprogramme]),MATCH(BG53,T_Sprog[ComboID_DPSP],0)),"") ->  | BH29: =IFERROR(INDEX((T_Sprog[Subprogramme]),MATCH(BH53,T_Sprog[ComboID_DPSP],0)),"") ->  | BI29: =IFERROR(INDEX((T_Sprog[Subprogramme]),MATCH(BI53,T_Sprog[ComboID_DPSP],0)),"") ->  | BJ29: =IFERROR(INDEX((T_Sprog[Subprogramme]),MATCH(BJ53,T_Sprog[ComboID_DPSP],0)),"") ->  | FO29: 12 | GP29: =IFERROR(INDEX(T_InfraS[Infrastructure category],MATCH(0,INDEX(COUNTIF(GP$26:GP28,T_InfraS[Infrastructure category]),0),0)),"") ->  | GQ29: =IFERROR(INDEX(T_InfraS[Project category],MATCH(0,INDEX(COUNTIF(GQ$26:GQ28,T_InfraS[Project category]),0),0)),"") -> Large projects
G30: =INDEX(($I$47:$I$79),MATCH(T_Econ3[[#This Row],[Econ3]],$H$47:$H$79,0)) -> 58 | H30: Heritage assets | J30: =REPT("0",3-LEN(INDEX((T_Econ1[Econ1_No]),MATCH(T_Econ[[#This Row],[Econ1]],T_Econ1[Econ1],0))))&INDEX((T_Econ1[Econ1_No]),MATCH(T_Econ[[#This Row],[Econ1]],T_Econ1[Econ1],0)) -> 003 | K30: =REPT("0",3-LEN(INDEX((T_Econ2[Econ2_No]),MATCH(T_Econ[[#This Row],[Econ2]],T_Econ2[Econ2],0))))&INDEX((T_Econ2[Econ2_No]),MATCH(T_Econ[[#This Row],[Econ2]],T_Econ2[Econ2],0)) -> 013 | L30: =REPT("0",3-LEN(INDEX((T_Econ3[Econ3_No]),MATCH(T_Econ[[#This Row],[Econ3]],T_Econ3[Econ3],0))))&INDEX((T_Econ3[Econ3_No]),MATCH(T_Econ[[#This Row],[Econ3]],T_Econ3[Econ3],0)) -> 058 | M30: =T_Econ[[#This Row],[Econ1_Id]]&T_Econ[[#This Row],[Econ2_Id]]&T_Econ[[#This Row],[Econ3_Id]] -> 003013058 | N30: Payments for capital assets | O30: Heritage assets | P30: Heritage assets | T30: 6 | U30: International Relations and Cooperation | W30: 4 | X30: Cooperative Governance and Traditional Affairs | Y30: 6 | Z30: Community Work Programme | AB30: 2 | AC30: Parliament | AD30: 2 | AE30: Administration | AF30: 8 | AG30: State of the Nation Address | AH30: =REPT(0,3-LEN(T_Sprog[[#This Row],[Vote No.]]))&T_Sprog[[#This Row],[Vote No.]] -> 002 | AI30: =REPT(0,3-LEN(T_Sprog[[#This Row],[Programme No.]]))&T_Sprog[[#This Row],[Programme No.]] -> 002 | AJ30: =REPT(0,3-LEN(T_Sprog[[#This Row],[Subprogramme No.]]))&T_Sprog[[#This Row],[Subprogramme No.]] -> 008 | AK30: =T_Sprog[[#This Row],[DeptID]]&T_Sprog[[#This Row],[ProgID]] -> 002002 | AL30: =T_Sprog[[#This Row],[ComboID_DP]]&T_Sprog[[#This Row],[SProgID]] -> 002002008 | AT30: 20 | AU30: =IFERROR(INDEX((T_Sprog[Subprogramme]),MATCH(AU54,T_Sprog[ComboID_DPSP],0)),"") ->  | AV30: =IFERROR(INDEX((T_Sprog[Subprogramme]),MATCH(AV54,T_Sprog[ComboID_DPSP],0)),"") ->  | AW30: =IFERROR(INDEX((T_Sprog[Subprogramme]),MATCH(AW54,T_Sprog[ComboID_DPSP],0)),"") ->  | AX30: =IFERROR(INDEX((T_Sprog[Subprogramme]),MATCH(AX54,T_Sprog[ComboID_DPSP],0)),"") ->  | AY30: =IFERROR(INDEX((T_Sprog[Subprogramme]),MATCH(AY54,T_Sprog[ComboID_DPSP],0)),"") ->  | AZ30: =IFERROR(INDEX((T_Sprog[Subprogramme]),MATCH(AZ54,T_Sprog[ComboID_DPSP],0)),"") ->  | BA30: =IFERROR(INDEX((T_Sprog[Subprogramme]),MATCH(BA54,T_Sprog[ComboID_DPSP],0)),"") ->  | BB30: =IFERROR(INDEX((T_Sprog[Subprogramme]),MATCH(BB54,T_Sprog[ComboID_DPSP],0)),"") ->  | BC30: =IFERROR(INDEX((T_Sprog[Subprogramme]),MATCH(BC54,T_Sprog[ComboID_DPSP],0)),"") ->  | BD30: =IFERROR(INDEX((T_Sprog[Subprogramme]),MATCH(BD54,T_Sprog[ComboID_DPSP],0)),"") ->  | BE30: =IFERROR(INDEX((T_Sprog[Subprogramme]),MATCH(BE54,T_Sprog[ComboID_DPSP],0)),"") ->  | BF30: =IFERROR(INDEX((T_Sprog[Subprogramme]),MATCH(BF54,T_Sprog[ComboID_DPSP],0)),"") ->  | BG30: =IFERROR(INDEX((T_Sprog[Subprogramme]),MATCH(BG54,T_Sprog[ComboID_DPSP],0)),"") ->  | BH30: =IFERROR(INDEX((T_Sprog[Subprogramme]),MATCH(BH54,T_Sprog[ComboID_DPSP],0)),"") ->  | BI30: =IFERROR(INDEX((T_Sprog[Subprogramme]),MATCH(BI54,T_Sprog[ComboID_DPSP],0)),"") ->  | BJ30: =IFERROR(INDEX((T_Sprog[Subprogramme]),MATCH(BJ54,T_Sprog[ComboID_DPSP],0)),"") ->  | FO30: 13 | GP30: =IFERROR(INDEX(T_InfraS[Infrastructure category],MATCH(0,INDEX(COUNTIF(GP$26:GP29,T_InfraS[Infrastructure category]),0),0)),"") ->  | GQ30: =IFERROR(INDEX(T_InfraS[Project category],MATCH(0,INDEX(COUNTIF(GQ$26:GQ29,T_InfraS[Project category]),0),0)),"") -> 
G31: =INDEX(($I$47:$I$79),MATCH(T_Econ3[[#This Row],[Econ3]],$H$47:$H$79,0)) -> 59 | H31: Specialised military assets | J31: =REPT("0",3-LEN(INDEX((T_Econ1[Econ1_No]),MATCH(T_Econ[[#This Row],[Econ1]],T_Econ1[Econ1],0))))&INDEX((T_Econ1[Econ1_No]),MATCH(T_Econ[[#This Row],[Econ1]],T_Econ1[Econ1],0)) -> 003 | K31: =REPT("0",3-LEN(INDEX((T_Econ2[Econ2_No]),MATCH(T_Econ[[#This Row],[Econ2]],T_Econ2[Econ2],0))))&INDEX((T_Econ2[Econ2_No]),MATCH(T_Econ[[#This Row],[Econ2]],T_Econ2[Econ2],0)) -> 014 | L31: =REPT("0",3-LEN(INDEX((T_Econ3[Econ3_No]),MATCH(T_Econ[[#This Row],[Econ3]],T_Econ3[Econ3],0))))&INDEX((T_Econ3[Econ3_No]),MATCH(T_Econ[[#This Row],[Econ3]],T_Econ3[Econ3],0)) -> 059 | M31: =T_Econ[[#This Row],[Econ1_Id]]&T_Econ[[#This Row],[Econ2_Id]]&T_Econ[[#This Row],[Econ3_Id]] -> 003014059 | N31: Payments for capital assets | O31: Specialised military assets | P31: Specialised military assets | T31: 21 | U31: Justice and Constitutional Development | W31: 5 | X31: Home Affairs | Y31: 1 | Z31: Administration | AB31: 2 | AC31: Parliament | AD31: 3 | AE31: Core Business | AF31: 1 | AG31: Office of the Deputy Secretary | AH31: =REPT(0,3-LEN(T_Sprog[[#This Row],[Vote No.]]))&T_Sprog[[#This Row],[Vote No.]] -> 002 | AI31: =REPT(0,3-LEN(T_Sprog[[#This Row],[Programme No.]]))&T_Sprog[[#This Row],[Programme No.]] -> 003 | AJ31: =REPT(0,3-LEN(T_Sprog[[#This Row],[Subprogramme No.]]))&T_Sprog[[#This Row],[Subprogramme No.]] -> 001 | AK31: =T_Sprog[[#This Row],[DeptID]]&T_Sprog[[#This Row],[ProgID]] -> 002003 | AL31: =T_Sprog[[#This Row],[ComboID_DP]]&T_Sprog[[#This Row],[SProgID]] -> 002003001 | FO31: 14 | GP31: =IFERROR(INDEX(T_InfraS[Infrastructure category],MATCH(0,INDEX(COUNTIF(GP$26:GP30,T_InfraS[Infrastructure category]),0),0)),"") ->  | GQ31: =IFERROR(INDEX(T_InfraS[Project category],MATCH(0,INDEX(COUNTIF(GQ$26:GQ30,T_InfraS[Project category]),0),0)),"") -> 
G32: =INDEX(($I$47:$I$79),MATCH(T_Econ3[[#This Row],[Econ3]],$H$47:$H$79,0)) -> 60 | H32: Biological assets | J32: =REPT("0",3-LEN(INDEX((T_Econ1[Econ1_No]),MATCH(T_Econ[[#This Row],[Econ1]],T_Econ1[Econ1],0))))&INDEX((T_Econ1[Econ1_No]),MATCH(T_Econ[[#This Row],[Econ1]],T_Econ1[Econ1],0)) -> 003 | K32: =REPT("0",3-LEN(INDEX((T_Econ2[Econ2_No]),MATCH(T_Econ[[#This Row],[Econ2]],T_Econ2[Econ2],0))))&INDEX((T_Econ2[Econ2_No]),MATCH(T_Econ[[#This Row],[Econ2]],T_Econ2[Econ2],0)) -> 015 | L32: =REPT("0",3-LEN(INDEX((T_Econ3[Econ3_No]),MATCH(T_Econ[[#This Row],[Econ3]],T_Econ3[Econ3],0))))&INDEX((T_Econ3[Econ3_No]),MATCH(T_Econ[[#This Row],[Econ3]],T_Econ3[Econ3],0)) -> 060 | M32: =T_Econ[[#This Row],[Econ1_Id]]&T_Econ[[#This Row],[Econ2_Id]]&T_Econ[[#This Row],[Econ3_Id]] -> 003015060 | N32: Payments for capital assets | O32: Biological assets | P32: Biological assets | T32: 28 | U32: Labour | W32: 5 | X32: Home Affairs | Y32: 2 | Z32: Citizen Affairs | AB32: 2 | AC32: Parliament | AD32: 3 | AE32: Core Business | AF32: 2 | AG32: National Assembly | AH32: =REPT(0,3-LEN(T_Sprog[[#This Row],[Vote No.]]))&T_Sprog[[#This Row],[Vote No.]] -> 002 | AI32: =REPT(0,3-LEN(T_Sprog[[#This Row],[Programme No.]]))&T_Sprog[[#This Row],[Programme No.]] -> 003 | AJ32: =REPT(0,3-LEN(T_Sprog[[#This Row],[Subprogramme No.]]))&T_Sprog[[#This Row],[Subprogramme No.]] -> 002 | AK32: =T_Sprog[[#This Row],[DeptID]]&T_Sprog[[#This Row],[ProgID]] -> 002003 | AL32: =T_Sprog[[#This Row],[ComboID_DP]]&T_Sprog[[#This Row],[SProgID]] -> 002003002 | FO32: 15 | GQ32: =IFERROR(INDEX(T_InfraS[Project category],MATCH(0,INDEX(COUNTIF(GQ$26:GQ31,T_InfraS[Project category]),0),0)),"") ->  | JA32: =MyDept_Code -> 
G33: =INDEX(($I$47:$I$79),MATCH(T_Econ3[[#This Row],[Econ3]],$H$47:$H$79,0)) -> 61 | H33: Land and sub-soil assets | J33: =REPT("0",3-LEN(INDEX((T_Econ1[Econ1_No]),MATCH(T_Econ[[#This Row],[Econ1]],T_Econ1[Econ1],0))))&INDEX((T_Econ1[Econ1_No]),MATCH(T_Econ[[#This Row],[Econ1]],T_Econ1[Econ1],0)) -> 003 | K33: =REPT("0",3-LEN(INDEX((T_Econ2[Econ2_No]),MATCH(T_Econ[[#This Row],[Econ2]],T_Econ2[Econ2],0))))&INDEX((T_Econ2[Econ2_No]),MATCH(T_Econ[[#This Row],[Econ2]],T_Econ2[Econ2],0)) -> 016 | L33: =REPT("0",3-LEN(INDEX((T_Econ3[Econ3_No]),MATCH(T_Econ[[#This Row],[Econ3]],T_Econ3[Econ3],0))))&INDEX((T_Econ3[Econ3_No]),MATCH(T_Econ[[#This Row],[Econ3]],T_Econ3[Econ3],0)) -> 061 | M33: =T_Econ[[#This Row],[Econ1_Id]]&T_Econ[[#This Row],[Econ2_Id]]&T_Econ[[#This Row],[Econ3_Id]] -> 003016061 | N33: Payments for capital assets | O33: Land and sub-soil assets | P33: Land and sub-soil assets | T33: 42 | U33: Military Veterans | W33: 5 | X33: Home Affairs | Y33: 3 | Z33: Immigration Affairs | AB33: 2 | AC33: Parliament | AD33: 3 | AE33: Core Business | AF33: 3 | AG33: National Council of Provinces | AH33: =REPT(0,3-LEN(T_Sprog[[#This Row],[Vote No.]]))&T_Sprog[[#This Row],[Vote No.]] -> 002 | AI33: =REPT(0,3-LEN(T_Sprog[[#This Row],[Programme No.]]))&T_Sprog[[#This Row],[Programme No.]] -> 003 | AJ33: =REPT(0,3-LEN(T_Sprog[[#This Row],[Subprogramme No.]]))&T_Sprog[[#This Row],[Subprogramme No.]] -> 003 | AK33: =T_Sprog[[#This Row],[DeptID]]&T_Sprog[[#This Row],[ProgID]] -> 002003 | AL33: =T_Sprog[[#This Row],[ComboID_DP]]&T_Sprog[[#This Row],[SProgID]] -> 002003003 | GB33: 0.075 | GQ33: =IFERROR(INDEX(T_InfraS[Project category],MATCH(0,INDEX(COUNTIF(GQ$26:GQ32,T_InfraS[Project category]),0),0)),"") -> 
G34: =INDEX(($I$47:$I$79),MATCH(T_Econ3[[#This Row],[Econ3]],$H$47:$H$79,0)) -> 62 | H34: Software and other intangible assets | J34: =REPT("0",3-LEN(INDEX((T_Econ1[Econ1_No]),MATCH(T_Econ[[#This Row],[Econ1]],T_Econ1[Econ1],0))))&INDEX((T_Econ1[Econ1_No]),MATCH(T_Econ[[#This Row],[Econ1]],T_Econ1[Econ1],0)) -> 003 | K34: =REPT("0",3-LEN(INDEX((T_Econ2[Econ2_No]),MATCH(T_Econ[[#This Row],[Econ2]],T_Econ2[Econ2],0))))&INDEX((T_Econ2[Econ2_No]),MATCH(T_Econ[[#This Row],[Econ2]],T_Econ2[Econ2],0)) -> 017 | L34: =REPT("0",3-LEN(INDEX((T_Econ3[Econ3_No]),MATCH(T_Econ[[#This Row],[Econ3]],T_Econ3[Econ3],0))))&INDEX((T_Econ3[Econ3_No]),MATCH(T_Econ[[#This Row],[Econ3]],T_Econ3[Econ3],0)) -> 062 | M34: =T_Econ[[#This Row],[Econ1_Id]]&T_Econ[[#This Row],[Econ2_Id]]&T_Econ[[#This Row],[Econ3_Id]] -> 003017062 | N34: Payments for capital assets | O34: Software and other intangible assets | P34: Software and other intangible assets | T34: 29 | U34: Mineral Resources | W34: 6 | X34: International Relations and Cooperation | Y34: 1 | Z34: Administration | AB34: 2 | AC34: Parliament | AD34: 3 | AE34: Core Business | AF34: 4 | AG34: Core Business Support | AH34: =REPT(0,3-LEN(T_Sprog[[#This Row],[Vote No.]]))&T_Sprog[[#This Row],[Vote No.]] -> 002 | AI34: =REPT(0,3-LEN(T_Sprog[[#This Row],[Programme No.]]))&T_Sprog[[#This Row],[Programme No.]] -> 003 | AJ34: =REPT(0,3-LEN(T_Sprog[[#This Row],[Subprogramme No.]]))&T_Sprog[[#This Row],[Subprogramme No.]] -> 004 | AK34: =T_Sprog[[#This Row],[DeptID]]&T_Sprog[[#This Row],[ProgID]] -> 002003 | AL34: =T_Sprog[[#This Row],[ComboID_DP]]&T_Sprog[[#This Row],[SProgID]] -> 002003004 | BV34: 201718 expenditure from IYM/Vulindlela | CA34: Updated 20180529 | CH34: Budgets - ENE 2018 | CJ34: Updated 20180529 | DS34: =COUNTIF($EC34:EC$36,EC34) -> 0 | DT34: Transfers | DU34: Updated 2018 | EP34: Personnel | EQ34: Updated 24052018 (Needs corrections on last 4 columns to remove #N/A's) | FN34: Infrastructure | FP34: Updated 24052018 final | GQ34: =IFERROR(INDEX(T_InfraS[Project category],MATCH(0,INDEX(COUNTIF(GQ$26:GQ33,T_InfraS[Project category]),0),0)),"") ->  | GU34: Names | HI34: Equitable share and Grants | HK34: Updated 24052018 | IN34: Non-recurring items | IP34: Updated on 20180530 | JA34: =MyDept_Name -> 0 | JC34: =250-COUNTIF(JB36:JB285,"") -> 0 | JM34: Key deliverables / cost drivers | JP34: Updated - 20180601 - awaiting inputs from PF | KD34: Outer year baseline
G35: =INDEX(($I$47:$I$79),MATCH(T_Econ3[[#This Row],[Econ3]],$H$47:$H$79,0)) -> 63 | H35: Payments for financial assets | J35: =REPT("0",3-LEN(INDEX((T_Econ1[Econ1_No]),MATCH(T_Econ[[#This Row],[Econ1]],T_Econ1[Econ1],0))))&INDEX((T_Econ1[Econ1_No]),MATCH(T_Econ[[#This Row],[Econ1]],T_Econ1[Econ1],0)) -> 004 | K35: =REPT("0",3-LEN(INDEX((T_Econ2[Econ2_No]),MATCH(T_Econ[[#This Row],[Econ2]],T_Econ2[Econ2],0))))&INDEX((T_Econ2[Econ2_No]),MATCH(T_Econ[[#This Row],[Econ2]],T_Econ2[Econ2],0)) -> 018 | L35: =REPT("0",3-LEN(INDEX((T_Econ3[Econ3_No]),MATCH(T_Econ[[#This Row],[Econ3]],T_Econ3[Econ3],0))))&INDEX((T_Econ3[Econ3_No]),MATCH(T_Econ[[#This Row],[Econ3]],T_Econ3[Econ3],0)) -> 063 | M35: =T_Econ[[#This Row],[Econ1_Id]]&T_Econ[[#This Row],[Econ2_Id]]&T_Econ[[#This Row],[Econ3_Id]] -> 004018063 | N35: Payments for financial assets | O35: Payments for financial assets | P35: Payments for financial assets | T35: 44 | U35: National School of Government | W35: 6 | X35: International Relations and Cooperation | Y35: 2 | Z35: International Relations | AB35: 2 | AC35: Parliament | AD35: 3 | AE35: Core Business | AF35: 5 | AG35: Knowledge and Information Services | AH35: =REPT(0,3-LEN(T_Sprog[[#This Row],[Vote No.]]))&T_Sprog[[#This Row],[Vote No.]] -> 002 | AI35: =REPT(0,3-LEN(T_Sprog[[#This Row],[Programme No.]]))&T_Sprog[[#This Row],[Programme No.]] -> 003 | AJ35: =REPT(0,3-LEN(T_Sprog[[#This Row],[Subprogramme No.]]))&T_Sprog[[#This Row],[Subprogramme No.]] -> 005 | AK35: =T_Sprog[[#This Row],[DeptID]]&T_Sprog[[#This Row],[ProgID]] -> 002003 | AL35: =T_Sprog[[#This Row],[ComboID_DP]]&T_Sprog[[#This Row],[SProgID]] -> 002003005 | AU35: =REPT("0",3-LEN($AT$6))&$AT$6&REPT("0",3-LEN(AU$9))&AU$9&REPT("0",3-LEN($AT11))&$AT11 ->  | BN35: FY_ID | BO35: FY_ID_name | BP35: Financial_Year | BV35: Vote No. | BW35: Department | BX35: Programme No# | BY35: Programme | BZ35: EconID | CA35: Econ | CB35: 201718 Total Expenditure | CC35: DeptEconCode | CD35: DeptProgEconCode | CE35: DeptProgCode2 | CH35: Lookup_Lvl_No | CI35: Vote No. | CJ35: Department | CK35: Programme No. | CL35: Programme | CM35: Subprogramme No. | CN35: Subprogramme | CO35: Econ2 | CP35: Econ3 | CQ35: Econ4 | CR35: 2015_16 | CS35: 2016_17 | CT35: 2017_18_MA | CU35: 2017_18_AA | CV35: 2017_18_RE | CW35: 2018_19 | CX35: 2019_20 | CY35: 2020_21 | CZ35: 2017_18_Pre-Audited | DA35: 2019_20 NR | DB35: 2020_21 NR | DC35: 2019_20 IB | DD35: 2020_21 IB | DE35: 2021_22 IB | DF35: Combo_DeptProg | DG35: DeptCode | DH35: ProgCode | DI35: SProgCode | DJ35: ItemCode | DK35: DeptProg_Combo_Code | DL35: DeptEcon_Combo_Code | DM35: Econ3/4 ID | DN35: DPSP_Econ_Combo | DO35: Econ_Id | DP35: DeptProgEcon_Combo_Code | DS35: Uid | DT35: T_Counter | DU35: Vote No. | DV35: Department | DW35: Programme No. | DX35: Programme | DY35: Subprogramme No. | DZ35: Transfers and subsidies / Payments for financial assets detail | EA35: 2018/19 Revised baseline | EB35: 2019/20 Revised baseline | EC35: 2020/21 Revised baseline | ED35: SPId | EE35: Subprog | EF35: Subprogramme No.2 | EG35: Subprogramme | EH35: Econ2 | EI35: Econ3 | EJ35: Econ4 | EK35: Econ1 | EL35: CostPressure_Code | EM35: TCounterProgLvl | EP35: Department | EQ35: Programme | ER35: Salary Level | ES35: 2017/18 - Number of posts on funded establishment as at 30 Sept 2017 | ET35: 2017/18 - Number of posts additional to the establishment as at 30 Sept 2017 | EU35: 2016/17 - Number of all posts to be filled | EV35: 2016/17 - Expenditure on all posts to be filled | EW35: 2017/18 - Number of all posts to be filled | EX35: 2017/18 - Expenditure on all posts to be filled | EY35: 2018/19 - Number of all posts to be filled | EZ35: 2018/19 - Expenditure on all posts to be filled | FA35: 2019/20 - Number of all posts to be filled | FB35: 2019/20 - Expenditure on all posts to be filled | FC35: Combo_DeptProg | FD35: DeptCode | FE35: ProgCode | FF35: DeptProg_Combo_Code | FL35: Vote No. | FM35: Department | FN35: Infrastructure category | FO35: Project category | FP35: Programme | FQ35: Project name | FR35: Type of infrastructure | FS35: Current project stage | FT35: Nature of investment / Current/Capital transfer | FU35: Project description | FV35: 2015/16 Audited outcome | FW35: 2016/17 Preliminary outcome | FX35: 2017/18 Revised Baseline | FY35: 2018/19 Revised Baseline | FZ35: 2019/20 Revised Baseline | GA35: 2020/21 Revised Baseline | GB35: 2021/22 | GC35: Dept_Id | GD35: Infra_Category_Id | GE35: Project_Cat_ID | GF35: Combo_1 | GG35: Dept_code | GH35: Order_No | GI35: Order_ID | GJ35: Combo_Lookup | GP35: =IFERROR(INDEX(T_InfraS[Project category],MATCH(0,INDEX(COUNTIF(GQ$26:GQ34,T_InfraS[Project category]),0),0)),"") ->  | GT35: ID | GU35: Area | GV35: Name | GW35: Range | HH35: Vote No. | HI35: Department | HJ35: Programme No. | HK35: Programme | HL35: Subprogramme No. | HM35: Subprogramme | HN35: Transfers and subsidies / Payments for financial assets detail | HO35: Econ1 | HP35: Econ2 | HQ35: Econ3 | HR35: Econ4 | HS35: DOR | HT35: 2014/15 Audited outcome | HU35: 2015/16 Audited outcome | HV35: 2016/17 Preliminary outcome | HW35: 2017/18 Voted (Main appropriation) | HX35: 2017/18 Adjusted appropriation | HY35: 2017/18 Revised estimate | HZ35: 2018/19 Revised baseline | IA35: 2019/20 Revised baseline | IB35: 2020/21 Revised baseline | IC35: 2019/20_NR | ID35: 2020_21 IB | IE35: Order)ID | IF35: ComBo_ID2 | IG35: CostPressure Code | IH35: OrderIDP_lvl | IM35: Vote number | IN35: Vote Name | IO35: Programme name | IP35: Subprogramme name | IQ35: Non-recurrent item description | IR35: Econ Class 4 | IS35: Transfer name | IT35: Total | IZ35: Re_ID | JA35: Trimmed list | JB35: Trimmed list | JD35: Current project stage | JF35: Nature of investment / Current/Capital transfer | JK35: CoEIndi | JL35: ID | JM35: VoteNo | JN35: ID_Combo | JO35: Department | JP35: Key deliverable / cost driver | JQ35: 2014/15 | JR35: 2015/16 | JS35: 2016/17 | JT35: 2017/18 | JU35: 2018/19 | JV35: 2019/20 | JW35: 2020/21 | JX35: 2021/22 | KD35: Department | KE35: Programme | KF35: Subprogramme | KG35: DOR abbrv | KH35: Division of Revenue level 1 | KI35: Division of Revenue level 2 | KJ35: Transfers and subsidies / Payments for financial assets detail | KK35: 2021/22 | KL35: Econ3 | KM35: U_Id
T36: 7 | U36: National Treasury | W36: 6 | X36: International Relations and Cooperation | Y36: 3 | Z36: International Cooperation | AB36: 2 | AC36: Parliament | AD36: 3 | AE36: Core Business | AF36: 6 | AG36: International Relations and Protocol | AH36: =REPT(0,3-LEN(T_Sprog[[#This Row],[Vote No.]]))&T_Sprog[[#This Row],[Vote No.]] -> 002 | AI36: =REPT(0,3-LEN(T_Sprog[[#This Row],[Programme No.]]))&T_Sprog[[#This Row],[Programme No.]] -> 003 | AJ36: =REPT(0,3-LEN(T_Sprog[[#This Row],[Subprogramme No.]]))&T_Sprog[[#This Row],[Subprogramme No.]] -> 006 | AK36: =T_Sprog[[#This Row],[DeptID]]&T_Sprog[[#This Row],[ProgID]] -> 002003 | AL36: =T_Sprog[[#This Row],[ComboID_DP]]&T_Sprog[[#This Row],[SProgID]] -> 002003006 | BN36: 1 | BO36: ="MyYear"&BN36 -> MyYear1 | BP36: =BT36 -> 2015/16 | BR36: 2015 | BS36: =RIGHT(BR37,2) -> 16 | BT36: =BR36&"/"&BS36 -> 2015/16 | BV36: 1 | BW36: The Presidency | BX36: 1 | BY36: Administration | BZ36: =INDEX((T_Econ3[Econ3_No]),MATCH(Table27[[#This Row],[Econ]],T_Econ3[Econ3],0)) -> 1 | CA36: Compensation of employees | CB36: 290134.9031 | CC36: =REPT("0",3-LEN(Table27[[#This Row],[Vote No.]]))&Table27[[#This Row],[Vote No.]]&REPT("0",3-LEN(Table27[[#This Row],[EconID]]))&Table27[[#This Row],[EconID]] -> 001001 | CD36: =REPT("0",3-LEN(Table27[[#This Row],[Vote No.]]))&Table27[[#This Row],[Vote No.]]&REPT("0",3-LEN(Table27[[#This Row],[Programme No'#]]))&Table27[[#This Row],[Programme No'#]]&REPT("0",3-LEN(Table27[[#This Row],[EconID]]))&Table27[[#This Row],[EconID]] -> 001001001 | CE36: =REPT("0",3-LEN(Table27[[#This Row],[Vote No.]]))&Table27[[#This Row],[Vote No.]]&REPT("0",3-LEN(Table27[[#This Row],[Programme No'#]]))&Table27[[#This Row],[Programme No'#]] -> 001001 | CG36: =T_ENE_2016[[#This Row],[Vote No.]]&T_ENE_2016[[#This Row],[Programme No.]]&T_ENE_2016[[#This Row],[Subprogramme No.]] -> 111 | CH36: =INDEX((T_Econ3[Econ3_No]),MATCH(T_ENE_2016[[#This Row],[Econ4]],T_Econ3[Econ3],0)) -> 1 | CI36: 1 | CJ36: The Presidency | CK36: 1 | CL36: Administration | CM36: 1 | CN36: Management | CO36: Current payments | CP36: Compensation of employees | CQ36: Compensation of employees | CR36: 197360 | CS36: 209875 | CT36: 220293 | CU36: 220293 | CV36: 220293 | CW36: 225123 | CX36: 242434 | CY36: 260617 | DC36: =T_ENE_2016[[#This Row],[2019_20]]+T_ENE_2016[[#This Row],[2019_20 NR]] -> 242434 | DD36: =T_ENE_2016[[#This Row],[2020_21]]+T_ENE_2016[[#This Row],[2020_21 NR]] -> 260617 | DE36: =SUMIF(Table28[U_Id],T_ENE_2016[[#This Row],[DPSP_Econ_Combo]],Table28[2021/22]) -> 277558 | DF36: =T_ENE_2016[[#This Row],[Department]]&"|"&T_ENE_2016[[#This Row],[Programme]] -> The Presidency|Administration | DG36: =REPT("0",3-LEN(T_ENE_2016[[#This Row],[Vote No.]]))&T_ENE_2016[[#This Row],[Vote No.]] -> 001 | DH36: =REPT("0",3-LEN(T_ENE_2016[[#This Row],[Programme No.]]))&T_ENE_2016[[#This Row],[Programme No.]] -> 001 | DI36: =REPT("0",3-LEN(T_ENE_2016[[#This Row],[Subprogramme No.]]))&T_ENE_2016[[#This Row],[Subprogramme No.]] -> 001 | DJ36: =REPT("0",3-LEN(T_ENE_2016[[#This Row],[Lookup_Lvl_No]]))&T_ENE_2016[[#This Row],[Lookup_Lvl_No]] -> 001 | DK36: =T_ENE_2016[[#This Row],[DeptCode]]&T_ENE_2016[[#This Row],[ProgCode]] -> 001001 | DL36: =T_ENE_2016[[#This Row],[DeptCode]]&T_ENE_2016[[#This Row],[ItemCode]] -> 001001 | DM36: =T_ENE_2016[[#This Row],[ItemCode]]*1 -> 1 | DN36: =T_ENE_2016[[#This Row],[DeptProg_Combo_Code]]&T_ENE_2016[[#This Row],[SProgCode]]&REPT("0",3-LEN(T_ENE_2016[[#This Row],[Econ3/4 ID]]))&T_ENE_2016[[#This Row],[Econ3/4 ID]] -> 001001001001 | DP36: =LEFT(T_ENE_2016[[#This Row],[DPSP_Econ_Combo]],6)&T_ENE_2016[[#This Row],[ItemCode]] -> 001001001 | DS36: =T_Transfers_NAT[[#This Row],[SPId]]&DT36 -> 001111 | DT36: 1 | DU36: 1 | DV36: The Presidency | DW36: 1 | DX36: Administration | DY36: 1 | DZ36: Communication | EA36: 38 | EB36: 40 | EC36: 42 | ED36: =REPT("0",3-LEN(T_Transfers_NAT[[#This Row],[Vote No.]]))&T_Transfers_NAT[[#This Row],[Vote No.]]&T_Transfers_NAT[[#This Row],[Programme No.]]&T_Transfers_NAT[[#This Row],[Subprogramme No.]] -> 00111 | EE36: Management | EH36: Transfers and subsidies | EI36: Departmental agencies and accounts | EJ36: Departmental agencies (non-business entities) | EK36: Current | EL36: =LEFT(T_Transfers_NAT[[#This Row],[Uid]],4)&T_Transfers_NAT[[#This Row],[TCounterProgLvl]] -> 00111 | EM36: 1 | EP36: The Presidency | EQ36: Administration | ER36: 1 | ES36: 31 | ET36: 31 | EU36: 31 | EV36: 1951 | EW36: 31 | EX36: 2123 | EY36: 31 | EZ36: 2290 | FA36: 31 | FB36: 2473 | FC36: =T_Personnel[[#This Row],[Department]]&"|"&T_Personnel[[#This Row],[Programme]] -> The Presidency|Administration | FD36: =INDEX((T_ENE_2016[DeptCode]),MATCH(T_Personnel[[#This Row],[Department]],T_ENE_2016[Department],0)) -> 001 | FE36: =INDEX((T_ENE_2016[ProgCode]),MATCH(T_Personnel[[#This Row],[Combo_DeptProg]],T_ENE_2016[Combo_DeptProg],0)) -> 001 | FF36: =T_Personnel[[#This Row],[DeptCode]]&T_Personnel[[#This Row],[ProgCode]] -> 001001 | FI36: =COUNTIF($FJ$36:$FJ$924,FJ36) -> 1 | FJ36: =T_InfraS[[#This Row],[Project name]]&"|"&T_InfraS[[#This Row],[Type of infrastructure]] -> Municipal infrastructure grant transfer|Roads, water, sanitation and community lights | FK36: =COUNTIF(T_InfraS[Project name],T_InfraS[[#This Row],[Project name]]) -> 1 | FL36: 4 | FM36: Cooperative Governance and Traditional Affairs | FN36: Infrastructure transfers | FO36: Mega projects | FP36: Local Government Support and Intervention Management | FQ36: Municipal infrastructure grant transfer | FR36: Roads, water, sanitation and community lights | FS36: On-going | FT36: Upgrading and additions | FU36: Eradication of the backlog in municipal infrastructure, provision of basic services to poor households | FV36: 14955762 | FW36: 14914028 | FX36: 15891252 | FY36: 15287685 | FZ36: 15733731 | GA36: 16599086 | GB36: =T_InfraS[[#This Row],[2020/21 Revised Baseline]]*(1+$GB$33) -> 17844017.45 | GC36: =INDEX((Table7[Vote No.]),MATCH(T_InfraS[[#This Row],[Department]],Table7[Department],0)) -> 4 | GD36: =MATCH(T_InfraS[[#This Row],[Infrastructure category]],$FP$18:$FP$32,0) -> 2 | GE36: =MATCH(T_InfraS[[#This Row],[Project category]],$FQ$18:$FQ$32,0) -> 1 | GF36: =CONCATENATE(T_InfraS[[#This Row],[Dept_Id]],T_InfraS[[#This Row],[Infra_Category_Id]],T_InfraS[[#This Row],[Project_Cat_ID]]) -> 421 | GG36: =REPT("0",3-LEN(T_InfraS[[#This Row],[Vote No.]]))&T_InfraS[[#This Row],[Vote No.]] -> 004 | GH36: 1 | GI36: =REPT("0",3-LEN(T_InfraS[[#This Row],[Order_No]]))&T_InfraS[[#This Row],[Order_No]] -> 001 | GJ36: =T_InfraS[[#This Row],[Dept_code]]&T_InfraS[[#This Row],[Order_ID]] -> 004001 | GP36: =IFERROR(INDEX(T_InfraS[Project category],MATCH(0,INDEX(COUNTIF(GQ$26:GQ35,T_InfraS[Project category]),0),0)),"") ->  | GS36: =MAX(GT36:GT135) -> 62 | GT36: 1 | GV36: My_Proposal_ID | GW36: $G$9 | HA36: 1 | HB36: Proposal ID | HH36: 4 | HI36: Cooperative Governance and Traditional Affairs | HJ36: 2 | HK36: Regional and Urban Development and Legislative Support | HL36: 6 | HM36: Municipal Demarcation Transition Grant | HN36: Municipal demarcation transition grant | HO36: Current | HP36: Transfers and subsidies | HQ36: Provinces and municipalities | HR36: Municipalities | HS36: LCG | HT36: 0 | HU36: 3714 | HV36: 297422 | HW36: 111856 | HX36: 139714 | HY36: 139714 | HZ36: 0 | IA36: 0 | IB36: 0 | ID36: =SUMIF(Table28[Transfers and subsidies / Payments for financial assets detail],T_SharesGrants[[#This Row],[Transfers and subsidies / Payments for financial assets detail]],Table28[2021/22]) -> 0 | IE36: 1 | IF36: =CONCATENATE(T_SharesGrants[[#This Row],[Vote No.]],T_SharesGrants[[#This Row],[Programme No.]],T_SharesGrants[[#This Row],[Subprogramme No.]],T_SharesGrants[[#This Row],[Order)ID]]) -> 4261 | IG36: =REPT("0",3-LEN(T_SharesGrants[[#This Row],[Vote No.]]))&T_SharesGrants[[#This Row],[Vote No.]]&T_SharesGrants[[#This Row],[Programme No.]]&T_SharesGrants[[#This Row],[OrderIDP_lvl]] -> 00421 | IH36: =IF(T_SharesGrants[[#This Row],[Vote No.]]<>HH35,1,IF(T_SharesGrants[[#This Row],[Programme No.]]<>HJ35,1,IH35+1)) -> 1 | IM36: 3 | IN36: Communications | IO36: Industry and Capacity Development | IP36: Broadcasting Digital Migration | IR36: Goods and services | IS36: 0 | IT36: -26754 | IZ36: =MyDept_Code&REPT("0",3-LEN(JA36))&JA36 ->  | JA36: 1 | JB36: =IFERROR(INDEX(T_InfraS[Project name],MATCH(IZ36,T_InfraS[Combo_Lookup],0)),"") ->  | JD36: Site identification | JF36: New infrastructure assets | JK36: 0 | JL36: =IF(JL35="ID",1,IF(T_KeyDeliverablesValues[[#This Row],[Department]]<>JO35,1,JL35+1)) -> 1 | JM36: =INDEX((Table7[Vote No.]),MATCH(T_KeyDeliverablesValues[[#This Row],[Department]],Table7[Department],0)) -> 1 | JN36: =REPT("0",3-LEN(T_KeyDeliverablesValues[[#This Row],[VoteNo]]))&T_KeyDeliverablesValues[[#This Row],[VoteNo]]&REPT("0",3-LEN(T_KeyDeliverablesValues[[#This Row],[ID]]))&T_KeyDeliverablesValues[[#This Row],[ID]] -> 001001 | JO36: The Presidency | JP36: Compensation of employees | JQ36: 269037 | JR36: 295098 | JS36: 308728 | JT36: 318234 | JU36: 328935 | JV36: 354004 | JW36: 380555 | JX36: 405291.075 | KD36: The Presidency | KE36: Administration | KF36: Management | KG36: NAT | KH36: National share (Including debt-services costs) | KI36: National share (Excluding debt-services costs) | KJ36: Not related to or unavailable | KK36: 245457 | KL36: Compensation of employees | KM36: 001001001001
T37: 22 | U37: Office of the Chief Justice and Judicial Administration | W37: 6 | X37: International Relations and Cooperation | Y37: 4 | Z37: Public Diplomacy and Protocol Services | AB37: 2 | AC37: Parliament | AD37: 3 | AE37: Core Business | AF37: 7 | AG37: Youth Parliament | AH37: =REPT(0,3-LEN(T_Sprog[[#This Row],[Vote No.]]))&T_Sprog[[#This Row],[Vote No.]] -> 002 | AI37: =REPT(0,3-LEN(T_Sprog[[#This Row],[Programme No.]]))&T_Sprog[[#This Row],[Programme No.]] -> 003 | AJ37: =REPT(0,3-LEN(T_Sprog[[#This Row],[Subprogramme No.]]))&T_Sprog[[#This Row],[Subprogramme No.]] -> 007 | AK37: =T_Sprog[[#This Row],[DeptID]]&T_Sprog[[#This Row],[ProgID]] -> 002003 | AL37: =T_Sprog[[#This Row],[ComboID_DP]]&T_Sprog[[#This Row],[SProgID]] -> 002003007 | BN37: 2 | BO37: ="MyYear"&BN37 -> MyYear2 | BP37: =BT37 -> 2016/17 | BR37: =BR36+1 -> 2016 | BS37: =BS36+1 -> 17 | BT37: =BR37&"/"&BS37 -> 2016/17 | BV37: 1 | BW37: The Presidency | BX37: 1 | BY37: Administration | BZ37: 2 | CA37: Goods and Services | CB37: 127217.4441 | CC37: 001002 | CD37: 001001002 | CE37: 001001 | CG37: =T_ENE_2016[[#This Row],[Vote No.]]&T_ENE_2016[[#This Row],[Programme No.]]&T_ENE_2016[[#This Row],[Subprogramme No.]] -> 111 | CH37: =INDEX((T_Econ3[Econ3_No]),MATCH(T_ENE_2016[[#This Row],[Econ4]],T_Econ3[Econ3],0)) -> 2 | CI37: 1 | CJ37: The Presidency | CK37: 1 | CL37: Administration | CM37: 1 | CN37: Management | CO37: Current payments | CP37: Goods and services | CQ37: Goods and services | CR37: 95692 | CS37: 113356 | CT37: 101982 | CU37: 104710 | CV37: 104710 | CW37: 100585 | CX37: 106102 | CY37: 112136 | DC37: 106102 | DD37: 112136 | DE37: 118305 | DF37: The Presidency|Administration | DG37: 001 | DH37: 001 | DI37: 001 | DJ37: 002 | DK37: 001001 | DL37: 001002 | DM37: 2 | DN37: 001001001002 | DP37: 001001002 | DS37: =T_Transfers_NAT[[#This Row],[SPId]]&DT37 -> 002521 | DT37: =IF(T_Transfers_NAT[[#This Row],[Vote No.]]<>DU36,1,IF(T_Transfers_NAT[[#This Row],[Programme No.]]<>DW36,1,IF(T_Transfers_NAT[[#This Row],[Subprogramme No.]]<>DY36,1,DT36+1))) -> 1 | DU37: 2 | DV37: Parliament | DW37: 5 | DX37: Associated Services | DY37: 2 | DZ37: Political Party Support | EA37: 102235 | EB37: 107960 | EC37: 113898 | ED37: =REPT("0",3-LEN(T_Transfers_NAT[[#This Row],[Vote No.]]))&T_Transfers_NAT[[#This Row],[Vote No.]]&T_Transfers_NAT[[#This Row],[Programme No.]]&T_Transfers_NAT[[#This Row],[Subprogramme No.]] -> 00252 | EE37: Political Party Support | EH37: Transfers and subsidies | EI37: Non-profit institutions | EJ37: Non-profit institutions | EK37: Current | EL37: =LEFT(T_Transfers_NAT[[#This Row],[Uid]],4)&T_Transfers_NAT[[#This Row],[TCounterProgLvl]] -> 00251 | EM37: =IF(T_Transfers_NAT[[#This Row],[Vote No.]]<>DU36,1,IF(T_Transfers_NAT[[#This Row],[Programme No.]]<>DW36,1,EM36+1)) -> 1 | EP37: The Presidency | EQ37: Administration | ER37: 2 | ES37: 42 | ET37: 0 | EU37: 41 | EV37: 6368 | EW37: 39 | EX37: 6318 | EY37: 39 | EZ37: 6591 | FA37: 39 | FB37: 7185 | FC37: The Presidency|Administration | FD37: 001 | FE37: 001 | FF37: 001001 | FI37: =COUNTIF($FJ$36:$FJ$924,FJ37) -> 1 | FJ37: =T_InfraS[[#This Row],[Project name]]&"|"&T_InfraS[[#This Row],[Type of infrastructure]] -> Atamelang, Molopo and Mankwe|Upgrading of offices | FK37: =COUNTIF(T_InfraS[Project name],T_InfraS[[#This Row],[Project name]]) -> 1 | FL37: 5 | FM37: Home Affairs | FN37: Departmental infrastructure | FO37: Small projects | FP37: Administration | FQ37: Atamelang, Molopo and Mankwe | FR37: Upgrading of offices | FS37: Construction | FT37: Upgrading and additions | FU37: Upgrades and renovations of office buildings (such as painting and new flooring) | FV37: 7785 | FW37: 317 | FX37: 118 | FY37: 0 | FZ37: 0 | GA37: 0 | GB37: =T_InfraS[[#This Row],[2020/21 Revised Baseline]]*(1+$GB$33) -> 0 | GC37: 5 | GD37: 1 | GE37: 3 | GF37: 513 | GG37: 005 | GH37: =IF(T_InfraS[[#This Row],[Department]]<>FM36,1,GH36+1) -> 1 | GI37: 001 | GJ37: 005001 | GP37: =IFERROR(INDEX(T_InfraS[Project category],MATCH(0,INDEX(COUNTIF(GQ$26:GQ36,T_InfraS[Project category]),0),0)),"") ->  | GT37: 2 | GV37: My_Proposal_Name | GW37: $G$12 | HA37: 2 | HB37: Proposal name | HH37: 4 | HI37: Cooperative Governance and Traditional Affairs | HJ37: 3 | HK37: Institutional Development | HL37: 7 | HM37: Local Government Equitable Share | HN37: Local government equitable share | HO37: Current | HP37: Transfers and subsidies | HQ37: Provinces and municipalities | HR37: Municipalities | HS37: LES | HT37: 41592070 | HU37: 49366507 | HV37: 50708988 | HW37: 57012141 | HX37: 57012141 | HY37: 55312141 | HZ37: 62731845 | IA37: 68973465 | IB37: 75683326 | ID37: =SUMIF(Table28[Transfers and subsidies / Payments for financial assets detail],T_SharesGrants[[#This Row],[Transfers and subsidies / Payments for financial assets detail]],Table28[2021/22]) -> 82161819 | IE37: =IF(T_SharesGrants[[#This Row],[Vote No.]]<>HH36,1,IF(T_SharesGrants[[#This Row],[Programme No.]]<>HJ36,1,IF(T_SharesGrants[[#This Row],[Subprogramme No.]]<>HL36,1,IE36+1))) -> 1 | IF37: =CONCATENATE(T_SharesGrants[[#This Row],[Vote No.]],T_SharesGrants[[#This Row],[Programme No.]],T_SharesGrants[[#This Row],[Subprogramme No.]],T_SharesGrants[[#This Row],[Order)ID]]) -> 4371 | IG37: =REPT("0",3-LEN(T_SharesGrants[[#This Row],[Vote No.]]))&T_SharesGrants[[#This Row],[Vote No.]]&T_SharesGrants[[#This Row],[Programme No.]]&T_SharesGrants[[#This Row],[OrderIDP_lvl]] -> 00431 | IH37: =IF(T_SharesGrants[[#This Row],[Vote No.]]<>HH36,1,IF(T_SharesGrants[[#This Row],[Programme No.]]<>HJ36,1,IH36+1)) -> 1 | IM37: 27 | IN37: Environmental Affairs | IO37: Environmental Programmes | IP37: Green Fund | IR37: Public corporations | IS37: Development Bank of Southern Africa | IT37: -116764 | IZ37: =MyDept_Code&REPT("0",3-LEN(JA37))&JA37 ->  | JA37: 2 | JB37: =IFERROR(INDEX(T_InfraS[Project name],MATCH(IZ37,T_InfraS[Combo_Lookup],0)),"") ->  | JD37: Pre-feasibility | JF37: Upgrading and additions | JK37: 0 | JL37: 2 | JM37: 1 | JN37: 001002 | JO37: The Presidency | JP37: Communication (G&S) | JQ37: 14894 | JR37: 17220 | JS37: 11170 | JT37: 15199 | JU37: 13677 | JV37: 13990 | JW37: 14754 | JX37: 15565.47 | KD37: The Presidency | KE37: Administration | KF37: Support Service to President | KG37: NAT | KH37: National share (Including debt-services costs) | KI37: National share (Excluding debt-services costs) | KJ37: Not related to or unavailable | KK37: 43909 | KL37: Compensation of employees | KM37: 001001002001
T38: 2 | U38: Parliament | W38: 6 | X38: International Relations and Cooperation | Y38: 5 | Z38: International Transfers | AB38: 2 | AC38: Parliament | AD38: 3 | AE38: Core Business | AF38: 8 | AG38: Women's Parliament | AH38: =REPT(0,3-LEN(T_Sprog[[#This Row],[Vote No.]]))&T_Sprog[[#This Row],[Vote No.]] -> 002 | AI38: =REPT(0,3-LEN(T_Sprog[[#This Row],[Programme No.]]))&T_Sprog[[#This Row],[Programme No.]] -> 003 | AJ38: =REPT(0,3-LEN(T_Sprog[[#This Row],[Subprogramme No.]]))&T_Sprog[[#This Row],[Subprogramme No.]] -> 008 | AK38: =T_Sprog[[#This Row],[DeptID]]&T_Sprog[[#This Row],[ProgID]] -> 002003 | AL38: =T_Sprog[[#This Row],[ComboID_DP]]&T_Sprog[[#This Row],[SProgID]] -> 002003008 | BN38: 3 | BO38: MyYear3 | BP38: 2017/18 | BR38: 2017 | BS38: 18 | BT38: 2017/18 | BV38: 1 | BW38: The Presidency | BX38: 1 | BY38: Administration | BZ38: 44 | CA38: Municipalities | CB38: 10.38592 | CC38: 001044 | CD38: 001001044 | CE38: 001001 | CG38: =T_ENE_2016[[#This Row],[Vote No.]]&T_ENE_2016[[#This Row],[Programme No.]]&T_ENE_2016[[#This Row],[Subprogramme No.]] -> 111 | CH38: =INDEX((T_Econ3[Econ3_No]),MATCH(T_ENE_2016[[#This Row],[Econ4]],T_Econ3[Econ3],0)) -> 3 | CI38: 1 | CJ38: The Presidency | CK38: 1 | CL38: Administration | CM38: 1 | CN38: Management | CO38: Current payments | CP38: Interest and rent on land | CQ38: Interest and rent on land | CR38: 0 | CS38: 46 | CT38: 0 | CU38: 0 | CV38: 0 | CW38: 0 | CX38: 0 | CY38: 0 | DC38: 0 | DD38: 0 | DE38: 0 | DF38: The Presidency|Administration | DG38: 001 | DH38: 001 | DI38: 001 | DJ38: 003 | DK38: 001001 | DL38: 001003 | DM38: 3 | DN38: 001001001003 | DP38: 001001003 | DS38: 002531 | DT38: 1 | DU38: 2 | DV38: Parliament | DW38: 5 | DX38: Associated Services | DY38: 3 | DZ38: Constituency Support | EA38: 327303 | EB38: 345632 | EC38: 364642 | ED38: 00253 | EE38: Constituency Support | EH38: Transfers and subsidies | EI38: Non-profit institutions | EJ38: Non-profit institutions | EK38: Current | EL38: =LEFT(T_Transfers_NAT[[#This Row],[Uid]],4)&T_Transfers_NAT[[#This Row],[TCounterProgLvl]] -> 00252 | EM38: =IF(T_Transfers_NAT[[#This Row],[Vote No.]]<>DU37,1,IF(T_Transfers_NAT[[#This Row],[Programme No.]]<>DW37,1,EM37+1)) -> 2 | EP38: The Presidency | EQ38: Administration | ER38: 3 | ES38: 8 | ET38: 0 | EU38: 8 | EV38: 1714 | EW38: 8 | EX38: 1792 | EY38: 7 | EZ38: 1624 | FA38: 7 | FB38: 1761 | FC38: The Presidency|Administration | FD38: 001 | FE38: 001 | FF38: 001001 | FI38: =COUNTIF($FJ$36:$FJ$924,FJ38) -> 2 | FJ38: =T_InfraS[[#This Row],[Project name]]&"|"&T_InfraS[[#This Row],[Type of infrastructure]] -> Beitbridge|Building | FK38: =COUNTIF(T_InfraS[Project name],T_InfraS[[#This Row],[Project name]]) -> 2 | FL38: 5 | FM38: Home Affairs | FN38: Departmental infrastructure | FO38: Small projects | FP38: Administration | FQ38: Beitbridge | FR38: Building | FS38: Feasibility | FT38: Upgrading and additions | FU38: Provision of residential accommodation for officials | FV38: 4341 | FW38: 0 | FX38: 0 | FY38: 0 | FZ38: 0 | GA38: 0 | GB38: =T_InfraS[[#This Row],[2020/21 Revised Baseline]]*(1+$GB$33) -> 0 | GC38: 5 | GD38: 1 | GE38: 3 | GF38: 513 | GG38: 005 | GH38: =IF(T_InfraS[[#This Row],[Department]]<>FM37,1,GH37+1) -> 2 | GI38: 002 | GJ38: 005002 | GP38: =IFERROR(INDEX(T_InfraS[Project category],MATCH(0,INDEX(COUNTIF(GQ$26:GQ37,T_InfraS[Project category]),0),0)),"") ->  | GT38: 3 | GV38: My_Motivation_for_change | GW38: $G$15 | HA38: 3 | HB38: Motivation for change proposal | HH38: 4 | HI38: Cooperative Governance and Traditional Affairs | HJ38: 4 | HK38: National Disaster Management Centre | HL38: 7 | HM38: Disaster Relief Grant | HN38: Municipal disaster relief grant | HO38: Current | HP38: Transfers and subsidies | HQ38: Provinces and municipalities | HR38: Municipalities | HS38: LCG | HT38: 35532 | HU38: 0 | HV38: 118075 | HW38: 300281 | HX38: 300281 | HY38: 150281 | HZ38: 349280 | IA38: 335488 | IB38: 353940 | ID38: =SUMIF(Table28[Transfers and subsidies / Payments for financial assets detail],T_SharesGrants[[#This Row],[Transfers and subsidies / Payments for financial assets detail]],Table28[2021/22]) -> 373407 | IE38: 1 | IF38: 4471 | IG38: 00441 | IH38: 1 | IM38: 29 | IN38: Mineral Resources | IO38: Mineral Policy and Promotion | IP38: Council for Geoscience | IR38: Departmental agencies (non-business entities) | IS38: Council for Geoscience: Economic competitiveness and support package | IT38: -197762 | JA38: 3 | JB38: =IFERROR(INDEX(T_InfraS[Project name],MATCH(IZ38,T_InfraS[Combo_Lookup],0)),"") ->  | JD38: Feasibility | JF38: Rehabilitation and refurbishment | JK38: 0 | JL38: 3 | JM38: 1 | JN38: 001003 | JO38: The Presidency | JP38: Computer services | JQ38: 16177 | JR38: 5946 | JS38: 23833 | JT38: 45137 | JU38: 41271 | JV38: 43477 | JW38: 45870 | JX38: 48392.85 | KD38: The Presidency | KE38: Administration | KF38: Support Service to Deputy President | KG38: NAT | KH38: National share (Including debt-services costs) | KI38: National share (Excluding debt-services costs) | KJ38: Not related to or unavailable | KK38: 42693 | KL38: Compensation of employees | KM38: 001001003001
B39: Scenario_names | T39: 8 | U39: Planning, Monitoring and Evaluation | W39: 7 | X39: National Treasury | Y39: 1 | Z39: Administration | AB39: 2 | AC39: Parliament | AD39: 4 | AE39: Support Services | AF39: 1 | AG39: Office of the Deputy Secretary | AH39: =REPT(0,3-LEN(T_Sprog[[#This Row],[Vote No.]]))&T_Sprog[[#This Row],[Vote No.]] -> 002 | AI39: =REPT(0,3-LEN(T_Sprog[[#This Row],[Programme No.]]))&T_Sprog[[#This Row],[Programme No.]] -> 004 | AJ39: =REPT(0,3-LEN(T_Sprog[[#This Row],[Subprogramme No.]]))&T_Sprog[[#This Row],[Subprogramme No.]] -> 001 | AK39: =T_Sprog[[#This Row],[DeptID]]&T_Sprog[[#This Row],[ProgID]] -> 002004 | AL39: =T_Sprog[[#This Row],[ComboID_DP]]&T_Sprog[[#This Row],[SProgID]] -> 002004001 | BN39: 4 | BO39: MyYear4 | BP39: 2018/19 | BR39: 2018 | BS39: 19 | BT39: 2018/19 | BV39: 1 | BW39: The Presidency | BX39: 1 | BY39: Administration | BZ39: 52 | CA39: Social benefits | CB39: 4781.05913 | CC39: 001052 | CD39: 001001052 | CE39: 001001 | CG39: =T_ENE_2016[[#This Row],[Vote No.]]&T_ENE_2016[[#This Row],[Programme No.]]&T_ENE_2016[[#This Row],[Subprogramme No.]] -> 111 | CH39: =INDEX((T_Econ3[Econ3_No]),MATCH(T_ENE_2016[[#This Row],[Econ4]],T_Econ3[Econ3],0)) -> 57 | CI39: 1 | CJ39: The Presidency | CK39: 1 | CL39: Administration | CM39: 1 | CN39: Management | CO39: Payments for capital assets | CP39: Machinery and equipment | CQ39: Other machinery and equipment | CR39: 35675 | CS39: 9366 | CT39: 10331 | CU39: 10331 | CV39: 10331 | CW39: 8440 | CX39: 8868 | CY39: 9248 | DC39: 8868 | DD39: 9248 | DE39: 9757 | DF39: The Presidency|Administration | DG39: 001 | DH39: 001 | DI39: 001 | DJ39: 057 | DK39: 001001 | DL39: 001057 | DM39: 57 | DN39: 001001001057 | DP39: 001001057 | DS39: 002541 | DT39: 1 | DU39: 2 | DV39: Parliament | DW39: 5 | DX39: Associated Services | DY39: 4 | DZ39: Party Leadership Support | EA39: 9205 | EB39: 9720 | EC39: 10255 | ED39: 00254 | EE39: Party Leadership Support | EH39: Transfers and subsidies | EI39: Non-profit institutions | EJ39: Non-profit institutions | EK39: Current | EL39: =LEFT(T_Transfers_NAT[[#This Row],[Uid]],4)&T_Transfers_NAT[[#This Row],[TCounterProgLvl]] -> 00253 | EM39: =IF(T_Transfers_NAT[[#This Row],[Vote No.]]<>DU38,1,IF(T_Transfers_NAT[[#This Row],[Programme No.]]<>DW38,1,EM38+1)) -> 3 | EP39: The Presidency | EQ39: Administration | ER39: 4 | ES39: 90 | ET39: 5 | EU39: 88 | EV39: 21990 | EW39: 86 | EX39: 22446 | EY39: 84 | EZ39: 22764 | FA39: 83 | FB39: 24457 | FC39: The Presidency|Administration | FD39: 001 | FE39: 001 | FF39: 001001 | FI39: 2 | FJ39: =T_InfraS[[#This Row],[Project name]]&"|"&T_InfraS[[#This Row],[Type of infrastructure]] -> Beitbridge|Building | FK39: =COUNTIF(T_InfraS[Project name],T_InfraS[[#This Row],[Project name]]) -> 2 | FL39: 5 | FM39: Home Affairs | FN39: Departmental infrastructure | FO39: Small projects | FP39: Administration | FQ39: Beitbridge | FR39: Building | FS39: Feasibility | FT39: Maintenance and repair | FU39: Provision of residential accommodation for officials | FV39: 0 | FW39: 0 | FX39: 0 | FY39: 15632 | FZ39: 15632 | GA39: 15632 | GB39: =T_InfraS[[#This Row],[2020/21 Revised Baseline]]*(1+$GB$33) -> 16804.4 | GC39: 5 | GD39: 1 | GE39: 3 | GF39: 513 | GG39: 005 | GH39: =IF(T_InfraS[[#This Row],[Department]]<>FM38,1,GH38+1) -> 3 | GI39: 003 | GJ39: 005003 | GP39: =IFERROR(INDEX(T_InfraS[Project category],MATCH(0,INDEX(COUNTIF(GQ$26:GQ38,T_InfraS[Project category]),0),0)),"") ->  | GT39: 4 | GV39: My_Performance_Area1 | GW39: $G$22:$G$36 | HA39: 4 | HB39: Performance indicator | HH39: 4 | HI39: Cooperative Governance and Traditional Affairs | HJ39: 4 | HK39: National Disaster Management Centre | HL39: 7 | HM39: Disaster Relief Grant | HN39: Provincial disaster relief grant | HO39: Current | HP39: Transfers and subsidies | HQ39: Provinces and municipalities | HR39: Provinces | HS39: PCG | HT39: 85951 | HU39: 35588 | HV39: 0 | HW39: 123432 | HX39: 123432 | HY39: 73432 | HZ39: 123591 | IA39: 130904 | IB39: 138489 | ID39: =SUMIF(Table28[Transfers and subsidies / Payments for financial assets detail],T_SharesGrants[[#This Row],[Transfers and subsidies / Payments for financial assets detail]],Table28[2021/22]) -> 146106 | IE39: 2 | IF39: 4472 | IG39: 00442 | IH39: 2 | IM39: 8 | IN39: Planning, Monitoring and Evaluation | IO39: Sector Planning and Monitoring | IP39: Sector Planning, Monitoring and Intervention Support | IR39: Goods and services | IS39: 0 | IT39: -551 | JA39: 4 | JB39: =IFERROR(INDEX(T_InfraS[Project name],MATCH(IZ39,T_InfraS[Combo_Lookup],0)),"") ->  | JD39: Design | JF39: Maintenance and repair | JK39: 0 | JL39: 4 | JM39: 1 | JN39: 001004 | JO39: The Presidency | JP39: Travel and subsistence | JQ39: 44631 | JR39: 60838 | JS39: 59232 | JT39: 47883 | JU39: 59050 | JV39: 63004 | JW39: 67015 | JX39: 70700.825 | KD39: The Presidency | KE39: Administration | KF39: Management | KG39: NAT | KH39: National share (Including debt-services costs) | KI39: National share (Excluding debt-services costs) | KJ39: Not related to or unavailable | KK39: 32101 | KL39: Compensation of employees | KM39: 001001001001
A40: 1 | B40: Main adjustment proposal | T40: 23 | U40: Police | W40: 7 | X40: National Treasury | Y40: 2 | Z40: Economic Policy, Tax, Financial Regulation and Research | AB40: 2 | AC40: Parliament | AD40: 4 | AE40: Support Services | AF40: 2 | AG40: Parliamentary Communication Services | AH40: =REPT(0,3-LEN(T_Sprog[[#This Row],[Vote No.]]))&T_Sprog[[#This Row],[Vote No.]] -> 002 | AI40: =REPT(0,3-LEN(T_Sprog[[#This Row],[Programme No.]]))&T_Sprog[[#This Row],[Programme No.]] -> 004 | AJ40: =REPT(0,3-LEN(T_Sprog[[#This Row],[Subprogramme No.]]))&T_Sprog[[#This Row],[Subprogramme No.]] -> 002 | AK40: =T_Sprog[[#This Row],[DeptID]]&T_Sprog[[#This Row],[ProgID]] -> 002004 | AL40: =T_Sprog[[#This Row],[ComboID_DP]]&T_Sprog[[#This Row],[SProgID]] -> 002004002 | BN40: 5 | BO40: MyYear5 | BP40: 2019/20 | BR40: 2019 | BS40: 20 | BT40: 2019/20 | BV40: 1 | BW40: The Presidency | BX40: 1 | BY40: Administration | BZ40: 53 | CA40: Other transfers to households | CB40: 40 | CC40: 001053 | CD40: 001001053 | CE40: 001001 | CG40: =T_ENE_2016[[#This Row],[Vote No.]]&T_ENE_2016[[#This Row],[Programme No.]]&T_ENE_2016[[#This Row],[Subprogramme No.]] -> 111 | CH40: =INDEX((T_Econ3[Econ3_No]),MATCH(T_ENE_2016[[#This Row],[Econ4]],T_Econ3[Econ3],0)) -> 56 | CI40: 1 | CJ40: The Presidency | CK40: 1 | CL40: Administration | CM40: 1 | CN40: Management | CO40: Payments for capital assets | CP40: Machinery and equipment | CQ40: Transport equipment | CR40: 696 | CS40: 821 | CT40: 1185 | CU40: 1185 | CV40: 1185 | CW40: 1254 | CX40: 1324 | CY40: 1397 | DC40: 1324 | DD40: 1397 | DE40: 1474 | DF40: The Presidency|Administration | DG40: 001 | DH40: 001 | DI40: 001 | DJ40: 056 | DK40: 001001 | DL40: 001056 | DM40: 56 | DN40: 001001001056 | DP40: 001001056 | DS40: 003421 | DT40: 1 | DU40: 3 | DV40: Communications | DW40: 4 | DX40: Entity Oversight | DY40: 2 | DZ40: Media Development and Diversity Agency | EA40: 30669 | EB40: 32015 | EC40: 33776 | ED40: 00342 | EE40: Broadcasting and Community Media | EH40: Transfers and subsidies | EI40: Departmental agencies and accounts | EJ40: Departmental agencies (non-business entities) | EK40: Current | EL40: =LEFT(T_Transfers_NAT[[#This Row],[Uid]],4)&T_Transfers_NAT[[#This Row],[TCounterProgLvl]] -> 00341 | EM40: =IF(T_Transfers_NAT[[#This Row],[Vote No.]]<>DU39,1,IF(T_Transfers_NAT[[#This Row],[Programme No.]]<>DW39,1,EM39+1)) -> 1 | EP40: The Presidency | EQ40: Administration | ER40: 5 | ES40: 18 | ET40: 0 | EU40: 15 | EV40: 4004 | EW40: 14 | EX40: 3906 | EY40: 14 | EZ40: 4060 | FA40: 14 | FB40: 4412 | FC40: The Presidency|Administration | FD40: 001 | FE40: 001 | FF40: 001001 | FI40: 2 | FJ40: =T_InfraS[[#This Row],[Project name]]&"|"&T_InfraS[[#This Row],[Type of infrastructure]] -> Bochum|Building | FK40: =COUNTIF(T_InfraS[Project name],T_InfraS[[#This Row],[Project name]]) -> 2 | FL40: 5 | FM40: Home Affairs | FN40: Departmental infrastructure | FO40: Small projects | FP40: Administration | FQ40: Bochum | FR40: Building | FS40: Pre-feasibility | FT40: Upgrading and additions | FU40: Construction of new office building | FV40: 300 | FW40: 0 | FX40: 300 | FY40: 0 | FZ40: 0 | GA40: 0 | GB40: =T_InfraS[[#This Row],[2020/21 Revised Baseline]]*(1+$GB$33) -> 0 | GC40: 5 | GD40: 1 | GE40: 3 | GF40: 513 | GG40: 005 | GH40: =IF(T_InfraS[[#This Row],[Department]]<>FM39,1,GH39+1) -> 4 | GI40: 004 | GJ40: 005004 | GN40: =IFERROR(INDEX($FN$36:$FN$481,MATCH(0,COUNTIF($GO$26:GO30,$FN$36:$FN$481),0)),"") ->  | GO40: =IFERROR(INDEX(T_InfraS[Infrastructure category],MATCH(0,INDEX(COUNTIF($GP$26:GP30,T_InfraS[Infrastructure category]),0),0)),"") ->  | GP40: =IFERROR(INDEX(T_InfraS[Project category],MATCH(0,INDEX(COUNTIF(GQ$26:GQ39,T_InfraS[Project category]),0),0)),"") ->  | GT40: 5 | GV40: My_Performance_Area2 | GW40: $H$22:$H$36 | HA40: 5 | HB40: 2017/18 | HH40: 4 | HI40: Cooperative Governance and Traditional Affairs | HJ40: 4 | HK40: National Disaster Management Centre | HL40: 8 | HM40: Municipal Disaster Recovery Grant | HN40: Municipal disaster recovery grant | HO40: Capital | HP40: Transfers and subsidies | HQ40: Provinces and municipalities | HR40: Municipalities | HS40: LCG | HT40: 190102 | HU40: 186121 | HV40: 140000 | HW40: 0 | HX40: 26147 | HY40: 26147 | HZ40: 21317 | IA40: 0 | IB40: 0 | ID40: =SUMIF(Table28[Transfers and subsidies / Payments for financial assets detail],T_SharesGrants[[#This Row],[Transfers and subsidies / Payments for financial assets detail]],Table28[2021/22]) -> 0 | IE40: 1 | IF40: 4481 | IG40: 00443 | IH40: 3 | IM40: 8 | IN40: Planning, Monitoring and Evaluation | IO40: Sector Planning and Monitoring | IP40: Sector Planning, Monitoring and Intervention Support | IR40: Salaries and wages | IS40: 0 | IT40: -3248 | JA40: 5 | JB40: =IFERROR(INDEX(T_InfraS[Project name],MATCH(IZ40,T_InfraS[Combo_Lookup],0)),"") ->  | JD40: Tender | JF40: Current transfers | JK40: 0 | JL40: 1 | JM40: 3 | JN40: 003001 | JO40: Communications | JP40: Government Communication and Information System | JQ40: 371392 | JR40: 365476 | JS40: 385256 | JT40: 401450 | JU40: 420485 | JV40: 441683 | JW40: 471442 | JX40: 500309.31 | KD40: The Presidency | KE40: Administration | KF40: Support Service to President | KG40: NAT | KH40: National share (Including debt-services costs) | KI40: National share (Excluding debt-services costs) | KJ40: Not related to or unavailable | KK40: 7322 | KL40: Compensation of employees | KM40: 001001002001
A41: 2 | B41: Alternative scenario 1 | T41: 9 | U41: Public Enterprises | W41: 7 | X41: National Treasury | Y41: 3 | Z41: Public Finance and Budget Management | AB41: 2 | AC41: Parliament | AD41: 4 | AE41: Support Services | AF41: 3 | AG41: Human Resources Management | AH41: =REPT(0,3-LEN(T_Sprog[[#This Row],[Vote No.]]))&T_Sprog[[#This Row],[Vote No.]] -> 002 | AI41: =REPT(0,3-LEN(T_Sprog[[#This Row],[Programme No.]]))&T_Sprog[[#This Row],[Programme No.]] -> 004 | AJ41: =REPT(0,3-LEN(T_Sprog[[#This Row],[Subprogramme No.]]))&T_Sprog[[#This Row],[Subprogramme No.]] -> 003 | AK41: =T_Sprog[[#This Row],[DeptID]]&T_Sprog[[#This Row],[ProgID]] -> 002004 | AL41: =T_Sprog[[#This Row],[ComboID_DP]]&T_Sprog[[#This Row],[SProgID]] -> 002004003 | BN41: 6 | BO41: MyYear6 | BP41: 2020/21 | BR41: 2020 | BS41: 21 | BT41: 2020/21 | BV41: 1 | BW41: The Presidency | BX41: 1 | BY41: Administration | BZ41: 57 | CA41: Other machinery and equipment | CB41: 16906.34451 | CC41: 001057 | CD41: 001001057 | CE41: 001001 | CG41: =T_ENE_2016[[#This Row],[Vote No.]]&T_ENE_2016[[#This Row],[Programme No.]]&T_ENE_2016[[#This Row],[Subprogramme No.]] -> 111 | CH41: =INDEX((T_Econ3[Econ3_No]),MATCH(T_ENE_2016[[#This Row],[Econ4]],T_Econ3[Econ3],0)) -> 44 | CI41: 1 | CJ41: The Presidency | CK41: 1 | CL41: Administration | CM41: 1 | CN41: Management | CO41: Transfers and subsidies | CP41: Provinces and municipalities | CQ41: Municipalities | CR41: 4 | CS41: 3 | CT41: 0 | CU41: 5 | CV41: 5 | CW41: 0 | CX41: 0 | CY41: 0 | DC41: 0 | DD41: 0 | DE41: 0 | DF41: The Presidency|Administration | DG41: 001 | DH41: 001 | DI41: 001 | DJ41: 044 | DK41: 001001 | DL41: 001044 | DM41: 44 | DN41: 001001001044 | DP41: 001001044 | DS41: 003422 | DT41: 2 | DU41: 3 | DV41: Communications | DW41: 4 | DX41: Entity Oversight | DY41: 2 | DZ41: South African Broadcasting Corporation: Channel Africa | EA41: 58068 | EB41: 61320 | EC41: 64693 | ED41: 00342 | EE41: Broadcasting and Community Media | EH41: Transfers and subsidies | EI41: Public corporations and private enterprises | EJ41: Public corporations | EK41: Current | EL41: =LEFT(T_Transfers_NAT[[#This Row],[Uid]],4)&T_Transfers_NAT[[#This Row],[TCounterProgLvl]] -> 00342 | EM41: =IF(T_Transfers_NAT[[#This Row],[Vote No.]]<>DU40,1,IF(T_Transfers_NAT[[#This Row],[Programme No.]]<>DW40,1,EM40+1)) -> 2 | EP41: The Presidency | EQ41: Administration | ER41: 6 | ES41: 70 | ET41: 1 | EU41: 76 | EV41: 22073 | EW41: 75 | EX41: 22725 | EY41: 75 | EZ41: 23625 | FA41: 75 | FB41: 25738 | FC41: The Presidency|Administration | FD41: 001 | FE41: 001 | FF41: 001001 | FI41: 2 | FJ41: =T_InfraS[[#This Row],[Project name]]&"|"&T_InfraS[[#This Row],[Type of infrastructure]] -> Bochum|Building | FK41: =COUNTIF(T_InfraS[Project name],T_InfraS[[#This Row],[Project name]]) -> 2 | FL41: 5 | FM41: Home Affairs | FN41: Departmental infrastructure | FO41: Small projects | FP41: Administration | FQ41: Bochum | FR41: Building | FS41: Pre-feasibility | FT41: Maintenance and repair | FU41: Construction of new office building | FV41: 0 | FW41: 0 | FX41: 0 | FY41: 0 | FZ41: 47 | GA41: 0 | GB41: =T_InfraS[[#This Row],[2020/21 Revised Baseline]]*(1+$GB$33) -> 0 | GC41: 5 | GD41: 1 | GE41: 3 | GF41: 513 | GG41: 005 | GH41: =IF(T_InfraS[[#This Row],[Department]]<>FM40,1,GH40+1) -> 5 | GI41: 005 | GJ41: 005005 | GN41: =IFERROR(INDEX($FN$36:$FN$481,MATCH(0,COUNTIF($GO$26:GO40,$FN$36:$FN$481),0)),"") ->  | GO41: =IFERROR(INDEX(T_InfraS[Infrastructure category],MATCH(0,INDEX(COUNTIF($GP$26:GP40,T_InfraS[Infrastructure category]),0),0)),"") ->  | GP41: =IFERROR(INDEX(T_InfraS[Project category],MATCH(0,INDEX(COUNTIF(GQ$26:GQ40,T_InfraS[Project category]),0),0)),"") ->  | GT41: 6 | GV41: My_Performance_Area3 | GW41: $I$22:$I$36 | HA41: 6 | HB41: 2018/19 | HH41: 4 | HI41: Cooperative Governance and Traditional Affairs | HJ41: 5 | HK41: Local Government Support and Intervention Management | HL41: 6 | HM41: Municipal Infrastructure Grant | HN41: Municipal infrastructure grant | HO41: Capital | HP41: Transfers and subsidies | HQ41: Provinces and municipalities | HR41: Municipalities | HS41: LCG | HT41: 14745445 | HU41: 14955762 | HV41: 14914028 | HW41: 15891252 | HX41: 15891252 | HY41: 15891252 | HZ41: 15287685 | IA41: 15733731 | IB41: 16599086 | ID41: =SUMIF(Table28[Transfers and subsidies / Payments for financial assets detail],T_SharesGrants[[#This Row],[Transfers and subsidies / Payments for financial assets detail]],Table28[2021/22]) -> 17844019 | IE41: 1 | IF41: 4561 | IG41: 00451 | IH41: 1 | IM41: 30 | IN41: Science and Technology | IO41: Technology Innovation | IP41: Space Science | IR41: Departmental agencies (non-business entities) | IS41: Various institutions: Space science research-Economic competitiveness and support package | IT41: -31558 | JA41: 6 | JB41: =IFERROR(INDEX(T_InfraS[Project name],MATCH(IZ41,T_InfraS[Combo_Lookup],0)),"") ->  | JD41: Construction | JF41: Capital transfers | JK41: 0 | JL41: 2 | JM41: 3 | JN41: 003002 | JO41: Communications | JP41: Independent Communications Authority of South Africa | JQ41: 376221 | JR41: 393619 | JS41: 373071 | JT41: 430383 | JU41: 443961 | JV41: 461241 | JW41: 486609 | JX41: 513372.495 | KD41: The Presidency | KE41: Administration | KF41: Support Service to Deputy President | KG41: NAT | KH41: National share (Including debt-services costs) | KI41: National share (Excluding debt-services costs) | KJ41: Not related to or unavailable | KK41: 4425 | KL41: Compensation of employees | KM41: 001001003001
A42: 3 | B42: Alternative scenario 2 | T42: 10 | U42: Public Service and Administration | W42: 7 | X42: National Treasury | Y42: 4 | Z42: Asset and Liability Management | AB42: 2 | AC42: Parliament | AD42: 4 | AE42: Support Services | AF42: 4 | AG42: Information Communication and Technology | AH42: =REPT(0,3-LEN(T_Sprog[[#This Row],[Vote No.]]))&T_Sprog[[#This Row],[Vote No.]] -> 002 | AI42: =REPT(0,3-LEN(T_Sprog[[#This Row],[Programme No.]]))&T_Sprog[[#This Row],[Programme No.]] -> 004 | AJ42: =REPT(0,3-LEN(T_Sprog[[#This Row],[Subprogramme No.]]))&T_Sprog[[#This Row],[Subprogramme No.]] -> 004 | AK42: =T_Sprog[[#This Row],[DeptID]]&T_Sprog[[#This Row],[ProgID]] -> 002004 | AL42: =T_Sprog[[#This Row],[ComboID_DP]]&T_Sprog[[#This Row],[SProgID]] -> 002004004 | BN42: 7 | BO42: MyYear7 | BP42: 2021/22 | BR42: 2021 | BS42: 22 | BT42: 2021/22 | BV42: 1 | BW42: The Presidency | BX42: 1 | BY42: Administration | BZ42: 62 | CA42: Software and other intangible assets | CB42: 143.64 | CC42: 001062 | CD42: 001001062 | CE42: 001001 | CG42: =T_ENE_2016[[#This Row],[Vote No.]]&T_ENE_2016[[#This Row],[Programme No.]]&T_ENE_2016[[#This Row],[Subprogramme No.]] -> 111 | CH42: =INDEX((T_Econ3[Econ3_No]),MATCH(T_ENE_2016[[#This Row],[Econ4]],T_Econ3[Econ3],0)) -> 53 | CI42: 1 | CJ42: The Presidency | CK42: 1 | CL42: Administration | CM42: 1 | CN42: Management | CO42: Transfers and subsidies | CP42: Households | CQ42: Other transfers to households | CR42: 244 | CS42: 204 | CT42: 0 | CU42: 0 | CV42: 0 | CW42: 0 | CX42: 0 | CY42: 0 | DC42: 0 | DD42: 0 | DE42: 0 | DF42: The Presidency|Administration | DG42: 001 | DH42: 001 | DI42: 001 | DJ42: 053 | DK42: 001001 | DL42: 001053 | DM42: 53 | DN42: 001001001053 | DP42: 001001053 | DS42: 003423 | DT42: 3 | DU42: 3 | DV42: Communications | DW42: 4 | DX42: Entity Oversight | DY42: 2 | DZ42: South African Broadcasting Corporation: Public broadcaster | EA42: 115669 | EB42: 123246 | EC42: 130025 | ED42: 00342 | EE42: Broadcasting and Community Media | EH42: Transfers and subsidies | EI42: Public corporations and private enterprises | EJ42: Public corporations | EK42: Current | EL42: =LEFT(T_Transfers_NAT[[#This Row],[Uid]],4)&T_Transfers_NAT[[#This Row],[TCounterProgLvl]] -> 00343 | EM42: =IF(T_Transfers_NAT[[#This Row],[Vote No.]]<>DU41,1,IF(T_Transfers_NAT[[#This Row],[Programme No.]]<>DW41,1,EM41+1)) -> 3 | EP42: The Presidency | EQ42: Administration | ER42: 7 | ES42: 64 | ET42: 2 | EU42: 65 | EV42: 22768 | EW42: 64 | EX42: 23424 | EY42: 64 | EZ42: 24256 | FA42: 64 | FB42: 26386 | FC42: The Presidency|Administration | FD42: 001 | FE42: 001 | FF42: 001001 | FI42: 1 | FJ42: =T_InfraS[[#This Row],[Project name]]&"|"&T_InfraS[[#This Row],[Type of infrastructure]] -> Brakpan|Building | FK42: =COUNTIF(T_InfraS[Project name],T_InfraS[[#This Row],[Project name]]) -> 1 | FL42: 5 | FM42: Home Affairs | FN42: Departmental infrastructure | FO42: Small projects | FP42: Administration | FQ42: Brakpan | FR42: Building | FS42: Construction | FT42: Upgrading and additions | FU42: Renovations, repairs and maintenance of buildings to make them habitable | FV42: 2564 | FW42: 2030 | FX42: 0 | FY42: 0 | FZ42: 0 | GA42: 0 | GB42: =T_InfraS[[#This Row],[2020/21 Revised Baseline]]*(1+$GB$33) -> 0 | GC42: 5 | GD42: 1 | GE42: 3 | GF42: 513 | GG42: 005 | GH42: =IF(T_InfraS[[#This Row],[Department]]<>FM41,1,GH41+1) -> 6 | GI42: 006 | GJ42: 005006 | GN42: =IFERROR(INDEX($FN$36:$FN$481,MATCH(0,COUNTIF($GO$26:GO41,$FN$36:$FN$481),0)),"") ->  | GO42: =IFERROR(INDEX(T_InfraS[Infrastructure category],MATCH(0,INDEX(COUNTIF($GP$26:GP41,T_InfraS[Infrastructure category]),0),0)),"") ->  | GP42: =IFERROR(INDEX(T_InfraS[Project category],MATCH(0,INDEX(COUNTIF(GQ$26:GQ41,T_InfraS[Project category]),0),0)),"") ->  | GT42: 7 | GV42: My_Performance_Area4 | GW42: $J$22:$J$36 | HA42: 7 | HB42: 2019/20 | HH42: 7 | HI42: National Treasury | HJ42: 16 | HK42: Direct charge against the National Revenue Fund | HL42: 1 | HM42: Provincial Equitable Share | HN42: Provincial equitable share | HO42: Current | HP42: Transfers and subsidies | HQ42: Provinces and municipalities | HR42: Provinces | HS42: PES | HT42: 359921783 | HU42: 386500009 | HV42: 410698585 | HW42: 441331122 | HX42: 441331122 | HY42: 441331122 | HZ42: 470286510 | IA42: 505019653 | IB42: 542446855 | ID42: =SUMIF(Table28[DOR abbrv],T_SharesGrants[[#This Row],[DOR]],Table28[2021/22]) -> 577159111 | IE42: 1 | IF42: 71611 | IG42: 007161 | IH42: 1 | IM42: 30 | IN42: Science and Technology | IO42: Research, Development and Support | IP42: Human Capital and Science Promotions | IR42: Departmental agencies (non-business entities) | IS42: National Research Foundation: Human resources development for science and engineering: Economic competitiveness and support package | IT42: -23142 | JA42: 7 | JB42: =IFERROR(INDEX(T_InfraS[Project name],MATCH(IZ42,T_InfraS[Combo_Lookup],0)),"") ->  | JD42: Hand over | JK42: 0 | JL42: 3 | JM42: 3 | JN42: 003003 | JO42: Communications | JP42: Brand South Africa | JQ42: 167686 | JR42: 173160 | JS42: 181186 | JT42: 194300 | JU42: 200430 | JV42: 211654 | JW42: 223294 | JX42: 235575.17 | KD42: The Presidency | KE42: Administration | KF42: Management | KG42: NAT | KH42: National share (Including debt-services costs) | KI42: National share (Excluding debt-services costs) | KJ42: Not related to or unavailable | KK42: 1773 | KL42: Goods and services | KM42: 001001001002
T43: 45 | U43: Public Service Commission | W43: 7 | X43: National Treasury | Y43: 5 | Z43: Financial Accounting and Supply Chain Management Systems | AB43: 2 | AC43: Parliament | AD43: 4 | AE43: Support Services | AF43: 5 | AG43: Institutional Support Services | AH43: =REPT(0,3-LEN(T_Sprog[[#This Row],[Vote No.]]))&T_Sprog[[#This Row],[Vote No.]] -> 002 | AI43: =REPT(0,3-LEN(T_Sprog[[#This Row],[Programme No.]]))&T_Sprog[[#This Row],[Programme No.]] -> 004 | AJ43: =REPT(0,3-LEN(T_Sprog[[#This Row],[Subprogramme No.]]))&T_Sprog[[#This Row],[Subprogramme No.]] -> 005 | AK43: =T_Sprog[[#This Row],[DeptID]]&T_Sprog[[#This Row],[ProgID]] -> 002004 | AL43: =T_Sprog[[#This Row],[ComboID_DP]]&T_Sprog[[#This Row],[SProgID]] -> 002004005 | BN43: 8 | BO43: MyYear8 | BP43: 2022/23 | BR43: 2022 | BS43: 23 | BT43: 2022/23 | BV43: 1 | BW43: The Presidency | BX43: 1 | BY43: Administration | BZ43: 63 | CA43: Payments for financial assets | CB43: 889.18966 | CC43: 001063 | CD43: 001001063 | CE43: 001001 | CG43: =T_ENE_2016[[#This Row],[Vote No.]]&T_ENE_2016[[#This Row],[Programme No.]]&T_ENE_2016[[#This Row],[Subprogramme No.]] -> 111 | CH43: =INDEX((T_Econ3[Econ3_No]),MATCH(T_ENE_2016[[#This Row],[Econ4]],T_Econ3[Econ3],0)) -> 52 | CI43: 1 | CJ43: The Presidency | CK43: 1 | CL43: Administration | CM43: 1 | CN43: Management | CO43: Transfers and subsidies | CP43: Households | CQ43: Social benefits | CR43: 503 | CS43: 2240 | CT43: 0 | CU43: 3155 | CV43: 3155 | CW43: 0 | CX43: 0 | CY43: 0 | DC43: 0 | DD43: 0 | DE43: 0 | DF43: The Presidency|Administration | DG43: 001 | DH43: 001 | DI43: 001 | DJ43: 052 | DK43: 001001 | DL43: 001052 | DM43: 52 | DN43: 001001001052 | DP43: 001001052 | DS43: 003424 | DT43: 4 | DU43: 3 | DV43: Communications | DW43: 4 | DX43: Entity Oversight | DY43: 2 | DZ43: South African Broadcasting Corporation: Programme productions | EA43: 13684 | EB43: 14450 | EC43: 15245 | ED43: 00342 | EE43: Broadcasting and Community Media | EH43: Transfers and subsidies | EI43: Public corporations and private enterprises | EJ43: Public corporations | EK43: Current | EL43: =LEFT(T_Transfers_NAT[[#This Row],[Uid]],4)&T_Transfers_NAT[[#This Row],[TCounterProgLvl]] -> 00344 | EM43: =IF(T_Transfers_NAT[[#This Row],[Vote No.]]<>DU42,1,IF(T_Transfers_NAT[[#This Row],[Programme No.]]<>DW42,1,EM42+1)) -> 4 | EP43: The Presidency | EQ43: Administration | ER43: 8 | ES43: 54 | ET43: 2 | EU43: 51 | EV43: 21711 | EW43: 50 | EX43: 22200 | EY43: 50 | EZ43: 23050 | FA43: 50 | FB43: 25042 | FC43: The Presidency|Administration | FD43: 001 | FE43: 001 | FF43: 001001 | FI43: 1 | FJ43: =T_InfraS[[#This Row],[Project name]]&"|"&T_InfraS[[#This Row],[Type of infrastructure]] -> Bushbuckridge|Building | FK43: =COUNTIF(T_InfraS[Project name],T_InfraS[[#This Row],[Project name]]) -> 1 | FL43: 5 | FM43: Home Affairs | FN43: Departmental infrastructure | FO43: Small projects | FP43: Administration | FQ43: Bushbuckridge | FR43: Building | FS43: Pre-feasibility | FT43: Maintenance and repair | FU43: Construction of new office building | FV43: 0 | FW43: 0 | FX43: 0 | FY43: 7695 | FZ43: 0 | GA43: 0 | GB43: =T_InfraS[[#This Row],[2020/21 Revised Baseline]]*(1+$GB$33) -> 0 | GC43: 5 | GD43: 1 | GE43: 3 | GF43: 513 | GG43: 005 | GH43: =IF(T_InfraS[[#This Row],[Department]]<>FM42,1,GH42+1) -> 7 | GI43: 007 | GJ43: 005007 | GN43: =IFERROR(INDEX($FN$36:$FN$481,MATCH(0,COUNTIF($GO$26:GO42,$FN$36:$FN$481),0)),"") ->  | GO43: =IFERROR(INDEX(T_InfraS[Infrastructure category],MATCH(0,INDEX(COUNTIF($GP$26:GP42,T_InfraS[Infrastructure category]),0),0)),"") ->  | GP43: =IFERROR(INDEX(T_InfraS[Project category],MATCH(0,INDEX(COUNTIF(GQ$26:GQ42,T_InfraS[Project category]),0),0)),"") ->  | GT43: 8 | GV43: My_Performance_Area5 | GW43: $K$22:$K$36 | HA43: 8 | HB43: Comment | HH43: 7 | HI43: National Treasury | HJ43: 16 | HK43: Direct charge against the National Revenue Fund | HL43: 3 | HM43: General Fuel Levy Sharing with Metropolitan Municipalities | HN43: General fuel levy sharing with metropolitan municipalities | HO43: Current | HP43: Transfers and subsidies | HQ43: Provinces and municipalities | HR43: Municipalities | HS43: GFL | HT43: 10190162 | HU43: 10658909 | HV43: 11223830 | HW43: 11785023 | HX43: 11785023 | HY43: 11785023 | HZ43: 12468554 | IA43: 13166793 | IB43: 14026878 | ID43: =SUMIF(Table28[Transfers and subsidies / Payments for financial assets detail],T_SharesGrants[[#This Row],[Transfers and subsidies / Payments for financial assets detail]],Table28[2021/22]) -> 15182495 | IE43: 1 | IF43: 71631 | IG43: 007162 | IH43: 2 | IM43: 30 | IN43: Science and Technology | IO43: Socio-Economic Innovation Partnerships | IP43: Technology Localisation, Beneficiation and Advanced Manufacturing | IR43: Departmental agencies (non-business entities) | IS43: Various institutions: Economic competitiveness and support package: Local manufacturing capacity research and technical support | IT43: -84154 | JA43: 8 | JB43: =IFERROR(INDEX(T_InfraS[Project name],MATCH(IZ43,T_InfraS[Combo_Lookup],0)),"") ->  | JD43: Handed over | JK43: 0 | JL43: 4 | JM43: 3 | JN43: 003004 | JO43: Communications | JP43: Film and Publication Board | JQ43: 78901 | JR43: 82359 | JS43: 86472 | JT43: 91684 | JU43: 94577 | JV43: 99873 | JW43: 105366 | JX43: 111161.13 | KD43: The Presidency | KE43: Administration | KF43: Support Service to President | KG43: NAT | KH43: National share (Including debt-services costs) | KI43: National share (Excluding debt-services costs) | KJ43: Not related to or unavailable | KK43: 729 | KL43: Goods and services | KM43: 001001002002
T44: 11 | U44: Public Works | W44: 7 | X44: National Treasury | Y44: 6 | Z44: International Financial Relations | AB44: 2 | AC44: Parliament | AD44: 4 | AE44: Support Services | AF44: 6 | AG44: Member's Support Services | AH44: =REPT(0,3-LEN(T_Sprog[[#This Row],[Vote No.]]))&T_Sprog[[#This Row],[Vote No.]] -> 002 | AI44: =REPT(0,3-LEN(T_Sprog[[#This Row],[Programme No.]]))&T_Sprog[[#This Row],[Programme No.]] -> 004 | AJ44: =REPT(0,3-LEN(T_Sprog[[#This Row],[Subprogramme No.]]))&T_Sprog[[#This Row],[Subprogramme No.]] -> 006 | AK44: =T_Sprog[[#This Row],[DeptID]]&T_Sprog[[#This Row],[ProgID]] -> 002004 | AL44: =T_Sprog[[#This Row],[ComboID_DP]]&T_Sprog[[#This Row],[SProgID]] -> 002004006 | BN44: 9 | BO44: MyYear9 | BP44: 2023/24 | BR44: 2023 | BS44: 24 | BT44: 2023/24 | BV44: 1 | BW44: The Presidency | BX44: 2 | BY44: Executive Support | BZ44: 1 | CA44: Compensation of employees | CB44: 13313.96029 | CC44: 001001 | CD44: 001002001 | CE44: 001002 | CG44: =T_ENE_2016[[#This Row],[Vote No.]]&T_ENE_2016[[#This Row],[Programme No.]]&T_ENE_2016[[#This Row],[Subprogramme No.]] -> 111 | CH44: =INDEX((T_Econ3[Econ3_No]),MATCH(T_ENE_2016[[#This Row],[Econ4]],T_Econ3[Econ3],0)) -> 46 | CI44: 1 | CJ44: The Presidency | CK44: 1 | CL44: Administration | CM44: 1 | CN44: Management | CO44: Transfers and subsidies | CP44: Departmental agencies and accounts | CQ44: Departmental agencies (non-business entities) | CR44: 3 | CS44: 0 | CT44: 36 | CU44: 36 | CV44: 36 | CW44: 38 | CX44: 40 | CY44: 42 | DC44: 40 | DD44: 42 | DE44: 44 | DF44: The Presidency|Administration | DG44: 001 | DH44: 001 | DI44: 001 | DJ44: 046 | DK44: 001001 | DL44: 001046 | DM44: 46 | DN44: 001001001046 | DP44: 001001046 | DS44: 003431 | DT44: 1 | DU44: 3 | DV44: Communications | DW44: 4 | DX44: Entity Oversight | DY44: 3 | DZ44: Brand South Africa | EA44: 200430 | EB44: 211654 | EC44: 223294 | ED44: 00343 | EE44: Communication and Branding | EH44: Transfers and subsidies | EI44: Departmental agencies and accounts | EJ44: Departmental agencies (non-business entities) | EK44: Current | EL44: =LEFT(T_Transfers_NAT[[#This Row],[Uid]],4)&T_Transfers_NAT[[#This Row],[TCounterProgLvl]] -> 00345 | EM44: =IF(T_Transfers_NAT[[#This Row],[Vote No.]]<>DU43,1,IF(T_Transfers_NAT[[#This Row],[Programme No.]]<>DW43,1,EM43+1)) -> 5 | EP44: The Presidency | EQ44: Administration | ER44: 9 | ES44: 43 | ET44: 6 | EU44: 40 | EV44: 20765 | EW44: 39 | EX44: 21138 | EY44: 39 | EZ44: 21918 | FA44: 38 | FB44: 23215 | FC44: The Presidency|Administration | FD44: 001 | FE44: 001 | FF44: 001001 | FI44: 2 | FJ44: =T_InfraS[[#This Row],[Project name]]&"|"&T_InfraS[[#This Row],[Type of infrastructure]] -> Christiana|Upgrading of offices | FK44: =COUNTIF(T_InfraS[Project name],T_InfraS[[#This Row],[Project name]]) -> 2 | FL44: 5 | FM44: Home Affairs | FN44: Departmental infrastructure | FO44: Small projects | FP44: Administration | FQ44: Christiana | FR44: Upgrading of offices | FS44: Construction | FT44: Upgrading and additions | FU44: Upgrades and renovations of office buildings (such as painting and new flooring) | FV44: 300 | FW44: 0 | FX44: 1998 | FY44: 0 | FZ44: 0 | GA44: 0 | GB44: =T_InfraS[[#This Row],[2020/21 Revised Baseline]]*(1+$GB$33) -> 0 | GC44: 5 | GD44: 1 | GE44: 3 | GF44: 513 | GG44: 005 | GH44: =IF(T_InfraS[[#This Row],[Department]]<>FM43,1,GH43+1) -> 8 | GI44: 008 | GJ44: 005008 | GN44: =IFERROR(INDEX($FN$36:$FN$481,MATCH(0,COUNTIF($GO$26:GO43,$FN$36:$FN$481),0)),"") ->  | GO44: =IFERROR(INDEX(T_InfraS[Infrastructure category],MATCH(0,INDEX(COUNTIF($GP$26:GP43,T_InfraS[Infrastructure category]),0),0)),"") ->  | GP44: =IFERROR(INDEX(T_InfraS[Project category],MATCH(0,INDEX(COUNTIF(GQ$26:GQ43,T_InfraS[Project category]),0),0)),"") ->  | GT44: 9 | GV44: My_Component_ID | GW44: $G$41 | HA44: 9 | HB44: Proposal component ID | HH44: 7 | HI44: National Treasury | HJ44: 8 | HK44: Technical Support and Development Finance | HL44: 2 | HM44: Local Government Financial Management Support | HN44: Local government financial management grant | HO44: Current | HP44: Transfers and subsidies | HQ44: Provinces and municipalities | HR44: Municipalities | HS44: LCG | HT44: 449138 | HU44: 452491 | HV44: 465264 | HW44: 502006 | HX44: 502006 | HY44: 502006 | HZ44: 504566 | IA44: 532822 | IB44: 561713 | ID44: =SUMIF(Table28[Transfers and subsidies / Payments for financial assets detail],T_SharesGrants[[#This Row],[Transfers and subsidies / Payments for financial assets detail]],Table28[2021/22]) -> 592607 | IE44: 1 | IF44: 7821 | IG44: 00781 | IH44: 1 | IM44: 30 | IN44: Science and Technology | IO44: Socio-Economic Innovation Partnerships | IP44: Technology Localisation, Beneficiation and Advanced Manufacturing | IR44: Departmental agencies (non-business entities) | IS44: Various institutions: Economic competitiveness and support package: Local systems of innovation for the cold chain technologies project | IT44: -65219 | JA44: 9 | JB44: =IFERROR(INDEX(T_InfraS[Project name],MATCH(IZ44,T_InfraS[Combo_Lookup],0)),"") ->  | JD44: On hold | JK44: 0 | JL44: 1 | JM44: 4 | JN44: 004001 | JO44: Cooperative Governance and Traditional Affairs | JP44: Employment programmes | JQ44: 1558729 | JR44: 2374230 | JS44: 2371096 | JT44: 3640066 | JU44: 3869903 | JV44: 4084119 | JW44: 4311600 | JX44: 4577252.42 | KD44: The Presidency | KE44: Administration | KF44: Support Service to Deputy President | KG44: NAT | KH44: National share (Including debt-services costs) | KI44: National share (Excluding debt-services costs) | KJ44: Not related to or unavailable | KK44: 209 | KL44: Goods and services | KM44: 001001003002
T45: 39 | U45: Rural Development and Land Reform | W45: 7 | X45: National Treasury | Y45: 7 | Z45: Civil and Military Pensions, Contributions to Funds and Other Benefits | AB45: 2 | AC45: Parliament | AD45: 5 | AE45: Associated Services | AF45: 1 | AG45: Political Party Support | AH45: =REPT(0,3-LEN(T_Sprog[[#This Row],[Vote No.]]))&T_Sprog[[#This Row],[Vote No.]] -> 002 | AI45: =REPT(0,3-LEN(T_Sprog[[#This Row],[Programme No.]]))&T_Sprog[[#This Row],[Programme No.]] -> 005 | AJ45: =REPT(0,3-LEN(T_Sprog[[#This Row],[Subprogramme No.]]))&T_Sprog[[#This Row],[Subprogramme No.]] -> 001 | AK45: =T_Sprog[[#This Row],[DeptID]]&T_Sprog[[#This Row],[ProgID]] -> 002005 | AL45: =T_Sprog[[#This Row],[ComboID_DP]]&T_Sprog[[#This Row],[SProgID]] -> 002005001 | BN45: 10 | BO45: MyYear10 | BP45: 2024/25 | BR45: 2024 | BS45: 25 | BT45: 2024/25 | BV45: 1 | BW45: The Presidency | BX45: 2 | BY45: Executive Support | BZ45: 2 | CA45: Goods and Services | CB45: 26376.98805 | CC45: 001002 | CD45: 001002002 | CE45: 001002 | CG45: =T_ENE_2016[[#This Row],[Vote No.]]&T_ENE_2016[[#This Row],[Programme No.]]&T_ENE_2016[[#This Row],[Subprogramme No.]] -> 111 | CH45: =INDEX((T_Econ3[Econ3_No]),MATCH(T_ENE_2016[[#This Row],[Econ4]],T_Econ3[Econ3],0)) -> 50 | CI45: 1 | CJ45: The Presidency | CK45: 1 | CL45: Administration | CM45: 1 | CN45: Management | CO45: Transfers and subsidies | CP45: Public corporations and private enterprises | CQ45: Private enterprises | CR45: 0 | CS45: 42 | CT45: 0 | CU45: 0 | CV45: 0 | CW45: 0 | CX45: 0 | CY45: 0 | DC45: 0 | DD45: 0 | DE45: 0 | DF45: The Presidency|Administration | DG45: 001 | DH45: 001 | DI45: 001 | DJ45: 050 | DK45: 001001 | DL45: 001050 | DM45: 50 | DN45: 001001001050 | DP45: 001001050 | DS45: 003432 | DT45: 2 | DU45: 3 | DV45: Communications | DW45: 4 | DX45: Entity Oversight | DY45: 3 | DZ45: Government Communication and Information System | EA45: 420485 | EB45: 441683 | EC45: 471442 | ED45: 00343 | EE45: Communication and Branding | EH45: Transfers and subsidies | EI45: Departmental agencies and accounts | EJ45: Departmental agencies (non-business entities) | EK45: Current | EL45: =LEFT(T_Transfers_NAT[[#This Row],[Uid]],4)&T_Transfers_NAT[[#This Row],[TCounterProgLvl]] -> 00346 | EM45: =IF(T_Transfers_NAT[[#This Row],[Vote No.]]<>DU44,1,IF(T_Transfers_NAT[[#This Row],[Programme No.]]<>DW44,1,EM44+1)) -> 6 | EP45: The Presidency | EQ45: Administration | ER45: 10 | ES45: 14 | ET45: 0 | EU45: 14 | EV45: 8684 | EW45: 14 | EX45: 9058 | EY45: 14 | EZ45: 9408 | FA45: 14 | FB45: 10230 | FC45: The Presidency|Administration | FD45: 001 | FE45: 001 | FF45: 001001 | FI45: 2 | FJ45: =T_InfraS[[#This Row],[Project name]]&"|"&T_InfraS[[#This Row],[Type of infrastructure]] -> Christiana|Upgrading of offices | FK45: =COUNTIF(T_InfraS[Project name],T_InfraS[[#This Row],[Project name]]) -> 2 | FL45: 5 | FM45: Home Affairs | FN45: Departmental infrastructure | FO45: Small projects | FP45: Administration | FQ45: Christiana | FR45: Upgrading of offices | FS45: Construction | FT45: Maintenance and repair | FU45: Upgrades and renovations of office buildings (such as painting and new flooring) | FV45: 0 | FW45: 0 | FX45: 0 | FY45: 3500 | FZ45: 0 | GA45: 0 | GB45: =T_InfraS[[#This Row],[2020/21 Revised Baseline]]*(1+$GB$33) -> 0 | GC45: 5 | GD45: 1 | GE45: 3 | GF45: 513 | GG45: 005 | GH45: =IF(T_InfraS[[#This Row],[Department]]<>FM44,1,GH44+1) -> 9 | GI45: 009 | GJ45: 005009 | GN45: =IFERROR(INDEX($FN$36:$FN$481,MATCH(0,COUNTIF($GO$26:GO44,$FN$36:$FN$481),0)),"") ->  | GO45: =IFERROR(INDEX(T_InfraS[Infrastructure category],MATCH(0,INDEX(COUNTIF($GP$26:GP44,T_InfraS[Infrastructure category]),0),0)),"") ->  | GP45: =IFERROR(INDEX(T_InfraS[Project category],MATCH(0,INDEX(COUNTIF(GQ$26:GQ44,T_InfraS[Project category]),0),0)),"") ->  | GT45: 10 | GV45: My_Flow | GW45: $G$44 | HA45: 10 | HB45: Increase/Decrease | HH45: 7 | HI45: National Treasury | HJ45: 8 | HK45: Technical Support and Development Finance | HL45: 2 | HM45: Local Government Financial Management Support | HN45: Municipal restructuring grant | HO45: Current | HP45: Transfers and subsidies | HQ45: Provinces and municipalities | HR45: Municipalities | HS45: LCG | HT45: 0 | HU45: 0 | HV45: 0 | HW45: 0 | HX45: 0 | HY45: 0 | HZ45: 0 | IA45: 0 | IB45: 514425 | ID45: =SUMIF(Table28[Transfers and subsidies / Payments for financial assets detail],T_SharesGrants[[#This Row],[Transfers and subsidies / Payments for financial assets detail]],Table28[2021/22]) -> 542718 | IE45: 2 | IF45: 7822 | IG45: 00782 | IH45: 2 | IM45: 33 | IN45: Tourism | IO45: Tourism Sector Support Services | IP45: Tourism Incentive Programme | IR45: Departmental agencies (non-business entities) | IS45: Tourism incentive programme | IT45: -26939 | JA45: 10 | JB45: =IFERROR(INDEX(T_InfraS[Project name],MATCH(IZ45,T_InfraS[Combo_Lookup],0)),"") ->  | JD45: Complete | JK45: 0 | JL45: 2 | JM45: 4 | JN45: 004002 | JO45: Cooperative Governance and Traditional Affairs | JP45: Municipal equitable share | JQ45: 41592070 | JR45: 49366507 | JS45: 50708988 | JT45: 57012141 | JU45: 62731845 | JV45: 68973465 | JW45: 75683326 | JX45: 82161818.71 | KD45: The Presidency | KE45: Administration | KF45: Management | KG45: NAT | KH45: National share (Including debt-services costs) | KI45: National share (Excluding debt-services costs) | KJ45: Not related to or unavailable | KK45: 602 | KL45: Goods and services | KM45: 001001001002
T46: 30 | U46: Science and Technology | W46: 7 | X46: National Treasury | Y46: 8 | Z46: Technical Support and Development Finance | AB46: 2 | AC46: Parliament | AD46: 5 | AE46: Associated Services | AF46: 2 | AG46: Constituency Support | AH46: =REPT(0,3-LEN(T_Sprog[[#This Row],[Vote No.]]))&T_Sprog[[#This Row],[Vote No.]] -> 002 | AI46: =REPT(0,3-LEN(T_Sprog[[#This Row],[Programme No.]]))&T_Sprog[[#This Row],[Programme No.]] -> 005 | AJ46: =REPT(0,3-LEN(T_Sprog[[#This Row],[Subprogramme No.]]))&T_Sprog[[#This Row],[Subprogramme No.]] -> 002 | AK46: =T_Sprog[[#This Row],[DeptID]]&T_Sprog[[#This Row],[ProgID]] -> 002005 | AL46: =T_Sprog[[#This Row],[ComboID_DP]]&T_Sprog[[#This Row],[SProgID]] -> 002005002 | BN46: 11 | BO46: MyYear11 | BP46: 2025/26 | BR46: 2025 | BS46: 26 | BT46: 2025/26 | BV46: 1 | BW46: The Presidency | BX46: 2 | BY46: Executive Support | BZ46: 52 | CA46: Social benefits | CB46: 1325.74839 | CC46: 001052 | CD46: 001002052 | CE46: 001002 | CG46: =T_ENE_2016[[#This Row],[Vote No.]]&T_ENE_2016[[#This Row],[Programme No.]]&T_ENE_2016[[#This Row],[Subprogramme No.]] -> 111 | CH46: =INDEX((T_Econ3[Econ3_No]),MATCH(T_ENE_2016[[#This Row],[Econ4]],T_Econ3[Econ3],0)) -> 63 | CI46: 1 | CJ46: The Presidency | CK46: 1 | CL46: Administration | CM46: 1 | CN46: Management | CO46: Payments for financial assets | CP46: Payments for financial assets | CQ46: Payments for financial assets | CR46: 1069 | CS46: 799 | CT46: 0 | CU46: 0 | CV46: 0 | CW46: 0 | CX46: 0 | CY46: 0 | DC46: 0 | DD46: 0 | DE46: 0 | DF46: The Presidency|Administration | DG46: 001 | DH46: 001 | DI46: 001 | DJ46: 063 | DK46: 001001 | DL46: 001063 | DM46: 63 | DN46: 001001001063 | DP46: 001001063 | DS46: 003441 | DT46: 1 | DU46: 3 | DV46: Communications | DW46: 4 | DX46: Entity Oversight | DY46: 4 | DZ46: Independent Communications Authority of South Africa | EA46: 443961 | EB46: 461241 | EC46: 486609 | ED46: 00344 | EE46: Regulatory Institutions | EH46: Transfers and subsidies | EI46: Departmental agencies and accounts | EJ46: Departmental agencies (non-business entities) | EK46: Current | EL46: =LEFT(T_Transfers_NAT[[#This Row],[Uid]],4)&T_Transfers_NAT[[#This Row],[TCounterProgLvl]] -> 00347 | EM46: =IF(T_Transfers_NAT[[#This Row],[Vote No.]]<>DU45,1,IF(T_Transfers_NAT[[#This Row],[Programme No.]]<>DW45,1,EM45+1)) -> 7 | EP46: The Presidency | EQ46: Administration | ER46: 11 | ES46: 64 | ET46: 4 | EU46: 63 | EV46: 40717 | EW46: 63 | EX46: 42525 | EY46: 63 | EZ46: 44100 | FA46: 61 | FB46: 46418 | FC46: The Presidency|Administration | FD46: 001 | FE46: 001 | FF46: 001001 | FI46: 1 | FJ46: =T_InfraS[[#This Row],[Project name]]&"|"&T_InfraS[[#This Row],[Type of infrastructure]] -> Feasibility study: Redevelopment of the 6 Ports of Entry (Beit Bridge, Lembobo, Maseru, Kopfontein, Oshoek and Ficksburg)|Major upgrade of Home Affairs offices | FK46: =COUNTIF(T_InfraS[Project name],T_InfraS[[#This Row],[Project name]]) -> 1 | FL46: 5 | FM46: Home Affairs | FN46: Departmental infrastructure | FO46: Small projects | FP46: Administration | FQ46: Feasibility study: Redevelopment of the 6 Ports of Entry (Beit Bridge, Lembobo, Maseru, Kopfontein, Oshoek and Ficksburg) | FR46: Major upgrade of Home Affairs offices | FS46: Feasibility | FT46: Upgrading and additions | FU46: Renovations, repairs and maintenance of buildings to make them habitable | FV46: 26564 | FW46: 12327 | FX46: 0 | FY46: 0 | FZ46: 0 | GA46: 0 | GB46: =T_InfraS[[#This Row],[2020/21 Revised Baseline]]*(1+$GB$33) -> 0 | GC46: 5 | GD46: 1 | GE46: 3 | GF46: 513 | GG46: 005 | GH46: =IF(T_InfraS[[#This Row],[Department]]<>FM45,1,GH45+1) -> 10 | GI46: 010 | GJ46: 005010 | GN46: =IFERROR(INDEX($FN$36:$FN$481,MATCH(0,COUNTIF($GO$26:GO45,$FN$36:$FN$481),0)),"") ->  | GO46: =IFERROR(INDEX(T_InfraS[Infrastructure category],MATCH(0,INDEX(COUNTIF($GP$26:GP45,T_InfraS[Infrastructure category]),0),0)),"") ->  | GT46: 11 | GV46: My_Type_of_change_item | GW46: $G$47 | HA46: 11 | HB46: Type of change | HH46: 7 | HI46: National Treasury | HJ46: 8 | HK46: Technical Support and Development Finance | HL46: 3 | HM46: Urban Development and Support | HN46: Integrated city development grant | HO46: Capital | HP46: Transfers and subsidies | HQ46: Provinces and municipalities | HR46: Municipalities | HS46: LCG | HT46: 255000 | HU46: 251300 | HV46: 266805 | HW46: 292119 | HX46: 292119 | HY46: 292119 | HZ46: 293609 | IA46: 310051 | IB46: 327319 | ID46: =SUMIF(Table28[Transfers and subsidies / Payments for financial assets detail],T_SharesGrants[[#This Row],[Transfers and subsidies / Payments for financial assets detail]],Table28[2021/22]) -> 351868 | IE46: 1 | IF46: 7831 | IG46: 00783 | IH46: 3 | IM46: 33 | IN46: Tourism | IO46: Tourism Sector Support Services | IP46: Tourism Incentive Programme | IR46: Public corporations | IS46: Tourism incentive programme | IT46: -9878 | JA46: 11 | JB46: =IFERROR(INDEX(T_InfraS[Project name],MATCH(IZ46,T_InfraS[Combo_Lookup],0)),"") ->  | JD46: On-going | JK46: 0 | JL46: 3 | JM46: 4 | JN46: 004003 | JO46: Cooperative Governance and Traditional Affairs | JP46: Municipal infrastructure grant | JQ46: 14745445 | JR46: 14955762 | JS46: 14914028 | JT46: 15891252 | JU46: 15287685 | JV46: 15733731 | JW46: 16599086 | JX46: 17844017.45 | KD46: The Presidency | KE46: Administration | KF46: Support Service to President | KG46: NAT | KH46: National share (Including debt-services costs) | KI46: National share (Excluding debt-services costs) | KJ46: Not related to or unavailable | KK46: 147 | KL46: Goods and services | KM46: 001001002002
G47: 1 | H47: Current payments | I47: =INDEX(('Econ ENE'!$M$5:$M$71),MATCH(Tables!H47,OFFSET('Econ ENE'!$Q$5:$Q$71,0,Tables!G47),0)) -> 1 | L47: Id | M47: Type_of_change | O47: Increase | P47: Decrease | T47: 31 | U47: Small Business Development | W47: 7 | X47: National Treasury | Y47: 9 | Z47: Revenue Administration | AB47: 2 | AC47: Parliament | AD47: 5 | AE47: Associated Services | AF47: 3 | AG47: Party Leadership Support | AH47: =REPT(0,3-LEN(T_Sprog[[#This Row],[Vote No.]]))&T_Sprog[[#This Row],[Vote No.]] -> 002 | AI47: =REPT(0,3-LEN(T_Sprog[[#This Row],[Programme No.]]))&T_Sprog[[#This Row],[Programme No.]] -> 005 | AJ47: =REPT(0,3-LEN(T_Sprog[[#This Row],[Subprogramme No.]]))&T_Sprog[[#This Row],[Subprogramme No.]] -> 003 | AK47: =T_Sprog[[#This Row],[DeptID]]&T_Sprog[[#This Row],[ProgID]] -> 002005 | AL47: =T_Sprog[[#This Row],[ComboID_DP]]&T_Sprog[[#This Row],[SProgID]] -> 002005003 | BN47: 12 | BO47: MyYear12 | BP47: 2026/27 | BR47: 2026 | BS47: 27 | BT47: 2026/27 | BV47: 1 | BW47: The Presidency | BX47: 2 | BY47: Executive Support | BZ47: 57 | CA47: Other machinery and equipment | CB47: 103.37866 | CC47: 001057 | CD47: 001002057 | CE47: 001002 | CG47: =T_ENE_2016[[#This Row],[Vote No.]]&T_ENE_2016[[#This Row],[Programme No.]]&T_ENE_2016[[#This Row],[Subprogramme No.]] -> 112 | CH47: =INDEX((T_Econ3[Econ3_No]),MATCH(T_ENE_2016[[#This Row],[Econ4]],T_Econ3[Econ3],0)) -> 1 | CI47: 1 | CJ47: The Presidency | CK47: 1 | CL47: Administration | CM47: 2 | CN47: Support Service to President | CO47: Current payments | CP47: Compensation of employees | CQ47: Compensation of employees | CR47: 42591 | CS47: 42628 | CT47: 39288 | CU47: 39288 | CV47: 39288 | CW47: 41588 | CX47: 44748 | CY47: 48104 | DC47: 44748 | DD47: 48104 | DE47: 51231 | DF47: The Presidency|Administration | DG47: 001 | DH47: 001 | DI47: 002 | DJ47: 001 | DK47: 001001 | DL47: 001001 | DM47: 1 | DN47: 001001002001 | DP47: 001001001 | DS47: 003442 | DT47: 2 | DU47: 3 | DV47: Communications | DW47: 4 | DX47: Entity Oversight | DY47: 4 | DZ47: Film and Publication Board | EA47: 94577 | EB47: 99873 | EC47: 105366 | ED47: 00344 | EE47: Regulatory Institutions | EH47: Transfers and subsidies | EI47: Departmental agencies and accounts | EJ47: Departmental agencies (non-business entities) | EK47: Current | EL47: =LEFT(T_Transfers_NAT[[#This Row],[Uid]],4)&T_Transfers_NAT[[#This Row],[TCounterProgLvl]] -> 00348 | EM47: =IF(T_Transfers_NAT[[#This Row],[Vote No.]]<>DU46,1,IF(T_Transfers_NAT[[#This Row],[Programme No.]]<>DW46,1,EM46+1)) -> 8 | EP47: The Presidency | EQ47: Administration | ER47: 12 | ES47: 39 | ET47: 0 | EU47: 31 | EV47: 27354 | EW47: 29 | EX47: 26709 | EY47: 29 | EZ47: 27724 | FA47: 29 | FB47: 30172 | FC47: The Presidency|Administration | FD47: 001 | FE47: 001 | FF47: 001001 | FI47: 2 | FJ47: =T_InfraS[[#This Row],[Project name]]&"|"&T_InfraS[[#This Row],[Type of infrastructure]] -> Ganyesa|Building | FK47: =COUNTIF(T_InfraS[Project name],T_InfraS[[#This Row],[Project name]]) -> 2 | FL47: 5 | FM47: Home Affairs | FN47: Departmental infrastructure | FO47: Small projects | FP47: Administration | FQ47: Ganyesa | FR47: Building | FS47: Pre-feasibility | FT47: Upgrading and additions | FU47: Construction of new office building | FV47: 0 | FW47: 0 | FX47: 300 | FY47: 0 | FZ47: 0 | GA47: 0 | GB47: =T_InfraS[[#This Row],[2020/21 Revised Baseline]]*(1+$GB$33) -> 0 | GC47: 5 | GD47: 1 | GE47: 3 | GF47: 513 | GG47: 005 | GH47: =IF(T_InfraS[[#This Row],[Department]]<>FM46,1,GH46+1) -> 11 | GI47: 011 | GJ47: 005011 | GN47: =IFERROR(INDEX($FN$36:$FN$481,MATCH(0,COUNTIF($GO$26:GO46,$FN$36:$FN$481),0)),"") ->  | GO47: =IFERROR(INDEX(T_InfraS[Infrastructure category],MATCH(0,INDEX(COUNTIF($GP$26:GP46,T_InfraS[Infrastructure category]),0),0)),"") ->  | GT47: 12 | GV47: My_Type_of_change_description | GW47: $G$50 | HA47: 12 | HB47: Programme | HH47: 7 | HI47: National Treasury | HJ47: 8 | HK47: Technical Support and Development Finance | HL47: 3 | HM47: Urban Development and Support | HN47: Neighbourhood development partnership grant | HO47: Capital | HP47: Transfers and subsidies | HQ47: Provinces and municipalities | HR47: Municipalities | HS47: LCG | HT47: 590390 | HU47: 583575 | HV47: 591860 | HW47: 663390 | HX47: 663390 | HY47: 663390 | HZ47: 601867 | IA47: 621172 | IB47: 654936 | ID47: =SUMIF(Table28[Transfers and subsidies / Payments for financial assets detail],T_SharesGrants[[#This Row],[Transfers and subsidies / Payments for financial assets detail]],Table28[2021/22]) -> 704056 | IE47: 2 | IF47: 7832 | IG47: 00784 | IH47: 4 | IM47: 34 | IN47: Trade and Industry | IO47: Incentive Development and Administration | IP47: Manufacturing Incentives | IR47: Private enterprises | IS47: Various institutions: Manufacturing development incentives | IT47: -1666247 | JA47: 12 | JB47: =IFERROR(INDEX(T_InfraS[Project name],MATCH(IZ47,T_InfraS[Combo_Lookup],0)),"") ->  | JK47: 0 | JL47: 4 | JM47: 4 | JN47: 004004 | JO47: Cooperative Governance and Traditional Affairs | JP47: Municipal Disaster Relief Grant | JQ47: 35532 | JR47: 0 | JS47: 118075 | JT47: 300281 | JU47: 349280 | JV47: 335488 | JW47: 353940 | JX47: 373406.7 | KD47: The Presidency | KE47: Administration | KF47: Management | KG47: NAT | KH47: National share (Including debt-services costs) | KI47: National share (Excluding debt-services costs) | KJ47: Not related to or unavailable | KK47: 4884 | KL47: Goods and services | KM47: 001001001002
G48: 2 | H48: Compensation of employees | I48: =INDEX(('Econ ENE'!$M$5:$M$71),MATCH(Tables!H48,OFFSET('Econ ENE'!$Q$5:$Q$71,0,Tables!G48),0)) -> 1 | L48: 1 | M48: Increase | O48: =M56 -> Input cost / Cost pressure | P48: =M59 -> Cost containment / efficiency | T48: 17 | U48: Social Development | W48: 7 | X48: National Treasury | Y48: 10 | Z48: Financial Intelligence and State Security | AB48: 2 | AC48: Parliament | AD48: 5 | AE48: Associated Services | AF48: 4 | AG48: National Assembly Members’ Facilities | AH48: =REPT(0,3-LEN(T_Sprog[[#This Row],[Vote No.]]))&T_Sprog[[#This Row],[Vote No.]] -> 002 | AI48: =REPT(0,3-LEN(T_Sprog[[#This Row],[Programme No.]]))&T_Sprog[[#This Row],[Programme No.]] -> 005 | AJ48: =REPT(0,3-LEN(T_Sprog[[#This Row],[Subprogramme No.]]))&T_Sprog[[#This Row],[Subprogramme No.]] -> 004 | AK48: =T_Sprog[[#This Row],[DeptID]]&T_Sprog[[#This Row],[ProgID]] -> 002005 | AL48: =T_Sprog[[#This Row],[ComboID_DP]]&T_Sprog[[#This Row],[SProgID]] -> 002005004 | BN48: 13 | BO48: MyYear13 | BP48: 2027/28 | BR48: 2027 | BS48: 28 | BT48: 2027/28 | BV48: 1 | BW48: The Presidency | BX48: 2 | BY48: Executive Support | BZ48: 63 | CA48: Payments for financial assets | CB48: 281.94343 | CC48: 001063 | CD48: 001002063 | CE48: 001002 | CG48: =T_ENE_2016[[#This Row],[Vote No.]]&T_ENE_2016[[#This Row],[Programme No.]]&T_ENE_2016[[#This Row],[Subprogramme No.]] -> 112 | CH48: =INDEX((T_Econ3[Econ3_No]),MATCH(T_ENE_2016[[#This Row],[Econ4]],T_Econ3[Econ3],0)) -> 2 | CI48: 1 | CJ48: The Presidency | CK48: 1 | CL48: Administration | CM48: 2 | CN48: Support Service to President | CO48: Current payments | CP48: Goods and services | CQ48: Goods and services | CR48: 22144 | CS48: 19294 | CT48: 22129 | CU48: 21196 | CV48: 21196 | CW48: 23415 | CX48: 24679 | CY48: 26033 | DC48: 24679 | DD48: 26033 | DE48: 27465 | DF48: The Presidency|Administration | DG48: 001 | DH48: 001 | DI48: 002 | DJ48: 002 | DK48: 001001 | DL48: 001002 | DM48: 2 | DN48: 001001002002 | DP48: 001001002 | DS48: 004131 | DT48: 1 | DU48: 4 | DV48: Cooperative Governance and Traditional Affairs | DW48: 1 | DX48: Administration | DY48: 3 | DZ48: Vehicle licences | EA48: 106 | EB48: 112 | EC48: 118 | ED48: 00413 | EE48: Corporate Services | EH48: Transfers and subsidies | EI48: Provinces and municipalities | EJ48: Municipalities | EK48: Current | EL48: =LEFT(T_Transfers_NAT[[#This Row],[Uid]],4)&T_Transfers_NAT[[#This Row],[TCounterProgLvl]] -> 00411 | EM48: =IF(T_Transfers_NAT[[#This Row],[Vote No.]]<>DU47,1,IF(T_Transfers_NAT[[#This Row],[Programme No.]]<>DW47,1,EM47+1)) -> 1 | EP48: The Presidency | EQ48: Administration | ER48: 13 | ES48: 37 | ET48: 1 | EU48: 38 | EV48: 38353 | EW48: 39 | EX48: 40404 | EY48: 38 | EZ48: 40888 | FA48: 38 | FB48: 44046 | FC48: The Presidency|Administration | FD48: 001 | FE48: 001 | FF48: 001001 | FI48: 2 | FJ48: =T_InfraS[[#This Row],[Project name]]&"|"&T_InfraS[[#This Row],[Type of infrastructure]] -> Ganyesa|Building | FK48: =COUNTIF(T_InfraS[Project name],T_InfraS[[#This Row],[Project name]]) -> 2 | FL48: 5 | FM48: Home Affairs | FN48: Departmental infrastructure | FO48: Small projects | FP48: Administration | FQ48: Ganyesa | FR48: Building | FS48: Pre-feasibility | FT48: Maintenance and repair | FU48: Construction of new office building | FV48: 0 | FW48: 0 | FX48: 0 | FY48: 300 | FZ48: 6277 | GA48: 0 | GB48: =T_InfraS[[#This Row],[2020/21 Revised Baseline]]*(1+$GB$33) -> 0 | GC48: 5 | GD48: 1 | GE48: 3 | GF48: 513 | GG48: 005 | GH48: =IF(T_InfraS[[#This Row],[Department]]<>FM47,1,GH47+1) -> 12 | GI48: 012 | GJ48: 005012 | GO48: =IFERROR(INDEX(T_InfraS[Infrastructure category],MATCH(0,INDEX(COUNTIF($GP$26:GP47,T_InfraS[Infrastructure category]),0),0)),"") ->  | GT48: 13 | GV48: My_Prog | GW48: $G$53 | HA48: 13 | HB48: Subprogramme | HH48: 7 | HI48: National Treasury | HJ48: 8 | HK48: Technical Support and Development Finance | HL48: 6 | HM48: Infrastructure Development Support | HN48: Infrastructure skills development grant | HO48: Current | HP48: Transfers and subsidies | HQ48: Provinces and municipalities | HR48: Municipalities | HS48: LCG | HT48: 104425 | HU48: 124465 | HV48: 130471 | HW48: 140774 | HX48: 140774 | HY48: 140774 | HZ48: 141492 | IA48: 149416 | IB48: 157930 | ID48: =SUMIF(Table28[Transfers and subsidies / Payments for financial assets detail],T_SharesGrants[[#This Row],[Transfers and subsidies / Payments for financial assets detail]],Table28[2021/22]) -> 166616 | IE48: 1 | IF48: 7861 | IG48: 00785 | IH48: 5 | JA48: 13 | JB48: =IFERROR(INDEX(T_InfraS[Project name],MATCH(IZ48,T_InfraS[Combo_Lookup],0)),"") ->  | JK48: 0 | JL48: 5 | JM48: 4 | JN48: 004005 | JO48: Cooperative Governance and Traditional Affairs | JP48: Provincial Disaster Relief Grant | JQ48: 85951 | JR48: 35588 | JS48: 0 | JT48: 123432 | JU48: 123591 | JV48: 130904 | JW48: 138489 | JX48: 146105.895 | KD48: The Presidency | KE48: Administration | KF48: Support Service to President | KG48: NAT | KH48: National share (Including debt-services costs) | KI48: National share (Excluding debt-services costs) | KJ48: Not related to or unavailable | KK48: 1113 | KL48: Goods and services | KM48: 001001002002
B49: Group_Id | D49: Sub-group_Id | G49: 2 | H49: Goods and services | I49: =INDEX(('Econ ENE'!$M$5:$M$71),MATCH(Tables!H49,OFFSET('Econ ENE'!$Q$5:$Q$71,0,Tables!G49),0)) -> 2 | L49: 2 | M49: Decrease | O49: =M57 -> Higher priority | T49: 40 | U49: Sport and Recreation South Africa | W49: 7 | X49: National Treasury | Y49: 11 | Z49: Direct charge against the National Revenue Fund | AB49: 2 | AC49: Parliament | AD49: 5 | AE49: Associated Services | AF49: 5 | AG49: National Council of Provinces Members’ Facilities | AH49: =REPT(0,3-LEN(T_Sprog[[#This Row],[Vote No.]]))&T_Sprog[[#This Row],[Vote No.]] -> 002 | AI49: =REPT(0,3-LEN(T_Sprog[[#This Row],[Programme No.]]))&T_Sprog[[#This Row],[Programme No.]] -> 005 | AJ49: =REPT(0,3-LEN(T_Sprog[[#This Row],[Subprogramme No.]]))&T_Sprog[[#This Row],[Subprogramme No.]] -> 005 | AK49: =T_Sprog[[#This Row],[DeptID]]&T_Sprog[[#This Row],[ProgID]] -> 002005 | AL49: =T_Sprog[[#This Row],[ComboID_DP]]&T_Sprog[[#This Row],[SProgID]] -> 002005005 | BN49: 14 | BO49: MyYear14 | BP49: 2028/29 | BR49: 2028 | BS49: 29 | BT49: 2028/29 | BV49: 1 | BW49: The Presidency | BX49: 3 | BY49: Direct charge against the National Revenue Fund | BZ49: 1 | CA49: Compensation of employees | CB49: 5712.11129 | CC49: 001001 | CD49: 001003001 | CE49: 001003 | CG49: =T_ENE_2016[[#This Row],[Vote No.]]&T_ENE_2016[[#This Row],[Programme No.]]&T_ENE_2016[[#This Row],[Subprogramme No.]] -> 112 | CH49: =INDEX((T_Econ3[Econ3_No]),MATCH(T_ENE_2016[[#This Row],[Econ4]],T_Econ3[Econ3],0)) -> 57 | CI49: 1 | CJ49: The Presidency | CK49: 1 | CL49: Administration | CM49: 2 | CN49: Support Service to President | CO49: Payments for capital assets | CP49: Machinery and equipment | CQ49: Other machinery and equipment | CR49: 889 | CS49: 875 | CT49: 851 | CU49: 851 | CV49: 851 | CW49: 689 | CX49: 723 | CY49: 754 | DC49: 723 | DD49: 754 | DE49: 795 | DF49: The Presidency|Administration | DG49: 001 | DH49: 001 | DI49: 002 | DJ49: 057 | DK49: 001001 | DL49: 001057 | DM49: 57 | DN49: 001001002057 | DP49: 001001057 | DS49: 004271 | DT49: 1 | DU49: 4 | DV49: Cooperative Governance and Traditional Affairs | DW49: 2 | DX49: Regional and Urban Development and Legislative Support | DY49: 7 | DZ49: Municipal Demarcation Board | EA49: 53568 | EB49: 56568 | EC49: 59679 | ED49: 00427 | EE49: Municipal Demarcation Board | EH49: Transfers and subsidies | EI49: Departmental agencies and accounts | EJ49: Departmental agencies (non-business entities) | EK49: Current | EL49: =LEFT(T_Transfers_NAT[[#This Row],[Uid]],4)&T_Transfers_NAT[[#This Row],[TCounterProgLvl]] -> 00421 | EM49: =IF(T_Transfers_NAT[[#This Row],[Vote No.]]<>DU48,1,IF(T_Transfers_NAT[[#This Row],[Programme No.]]<>DW48,1,EM48+1)) -> 1 | EP49: The Presidency | EQ49: Administration | ER49: 14 | ES49: 18 | ET49: 3 | EU49: 16 | EV49: 21501 | EW49: 16 | EX49: 22064 | EY49: 16 | EZ49: 22912 | FA49: 16 | FB49: 24687 | FC49: The Presidency|Administration | FD49: 001 | FE49: 001 | FF49: 001001 | FI49: 2 | FJ49: =T_InfraS[[#This Row],[Project name]]&"|"&T_InfraS[[#This Row],[Type of infrastructure]] -> Harding|Building | FK49: =COUNTIF(T_InfraS[Project name],T_InfraS[[#This Row],[Project name]]) -> 2 | FL49: 5 | FM49: Home Affairs | FN49: Departmental infrastructure | FO49: Small projects | FP49: Administration | FQ49: Harding | FR49: Building | FS49: Feasibility | FT49: Upgrading and additions | FU49: Construction of new office building | FV49: 300 | FW49: 0 | FX49: 5500 | FY49: 0 | FZ49: 0 | GA49: 0 | GB49: =T_InfraS[[#This Row],[2020/21 Revised Baseline]]*(1+$GB$33) -> 0 | GC49: 5 | GD49: 1 | GE49: 3 | GF49: 513 | GG49: 005 | GH49: =IF(T_InfraS[[#This Row],[Department]]<>FM48,1,GH48+1) -> 13 | GI49: 013 | GJ49: 005013 | GO49: =IFERROR(INDEX(T_InfraS[Infrastructure category],MATCH(0,INDEX(COUNTIF($GP$26:GP48,T_InfraS[Infrastructure category]),0),0)),"") ->  | GT49: 14 | GV49: My_Sprog | GW49: $G$55 | HA49: 14 | HB49: Econ | HH49: 11 | HI49: Public Works | HJ49: 3 | HK49: Expanded Public Works Programme | HL49: 2 | HM49: Expanded Public Works Programme: Infrastructure | HN49: Expanded public works programme integrated grant for provinces | HO49: Current | HP49: Transfers and subsidies | HQ49: Provinces and municipalities | HR49: Provinces | HS49: PCG | HT49: 347704 | HU49: 325607 | HV49: 402009 | HW49: 395579 | HX49: 395579 | HY49: 395579 | HZ49: 416036 | IA49: 451505 | IB49: 476338 | ID49: =SUMIF(Table28[Transfers and subsidies / Payments for financial assets detail],T_SharesGrants[[#This Row],[Transfers and subsidies / Payments for financial assets detail]],Table28[2021/22]) -> 502537 | IE49: 1 | IF49: 11321 | IG49: 01131 | IH49: 1 | JA49: 14 | JB49: =IFERROR(INDEX(T_InfraS[Project name],MATCH(IZ49,T_InfraS[Combo_Lookup],0)),"") ->  | JK49: 0 | JL49: 1 | JM49: 5 | JN49: 005001 | JO49: Home Affairs | JP49: Electoral Commission | JQ49: 1553617 | JR49: 1517104 | JS49: 1657901 | JT49: 1299912 | JU49: 1965004 | JV49: 1966939 | JW49: 1989312 | JX49: 2098724.16 | KD49: The Presidency | KE49: Administration | KF49: Management | KG49: NAT | KH49: National share (Including debt-services costs) | KI49: National share (Excluding debt-services costs) | KJ49: Not related to or unavailable | KK49: 6274 | KL49: Goods and services | KM49: 001001001002
B50: 1 | D50: 1 | G50: 2 | H50: Interest and rent on land | I50: =INDEX(('Econ ENE'!$M$5:$M$71),MATCH(Tables!H50,OFFSET('Econ ENE'!$Q$5:$Q$71,0,Tables!G50),0)) -> 3 | O50: =M58 -> Legal requirement | T50: 12 | U50: Statistics South Africa | W50: 8 | X50: Planning, Monitoring and Evaluation | Y50: 1 | Z50: Administration | AB50: 2 | AC50: Parliament | AD50: 6 | AE50: Direct charge against the National Revenue Fund | AF50: 1 | AG50: Members' Remuneration | AH50: =REPT(0,3-LEN(T_Sprog[[#This Row],[Vote No.]]))&T_Sprog[[#This Row],[Vote No.]] -> 002 | AI50: =REPT(0,3-LEN(T_Sprog[[#This Row],[Programme No.]]))&T_Sprog[[#This Row],[Programme No.]] -> 006 | AJ50: =REPT(0,3-LEN(T_Sprog[[#This Row],[Subprogramme No.]]))&T_Sprog[[#This Row],[Subprogramme No.]] -> 001 | AK50: =T_Sprog[[#This Row],[DeptID]]&T_Sprog[[#This Row],[ProgID]] -> 002006 | AL50: =T_Sprog[[#This Row],[ComboID_DP]]&T_Sprog[[#This Row],[SProgID]] -> 002006001 | BF50: =REPT("0",3-LEN($AT$6))&$AT$6&REPT("0",3-LEN(BF$9))&BF$9&REPT("0",3-LEN($AT26))&$AT26 ->  | BN50: 15 | BO50: MyYear15 | BP50: 2029/30 | BR50: 2029 | BS50: 30 | BT50: 2029/30 | BV50: 3 | BW50: Communications | BX50: 1 | BY50: Administration | BZ50: 1 | CA50: Compensation of employees | CB50: 42333.51039 | CC50: 003001 | CD50: 003001001 | CE50: 003001 | CG50: =T_ENE_2016[[#This Row],[Vote No.]]&T_ENE_2016[[#This Row],[Programme No.]]&T_ENE_2016[[#This Row],[Subprogramme No.]] -> 112 | CH50: =INDEX((T_Econ3[Econ3_No]),MATCH(T_ENE_2016[[#This Row],[Econ4]],T_Econ3[Econ3],0)) -> 53 | CI50: 1 | CJ50: The Presidency | CK50: 1 | CL50: Administration | CM50: 2 | CN50: Support Service to President | CO50: Transfers and subsidies | CP50: Households | CQ50: Other transfers to households | CR50: 6 | CS50: 0 | CT50: 0 | CU50: 0 | CV50: 0 | CW50: 0 | CX50: 0 | CY50: 0 | DC50: 0 | DD50: 0 | DE50: 0 | DF50: The Presidency|Administration | DG50: 001 | DH50: 001 | DI50: 002 | DJ50: 053 | DK50: 001001 | DL50: 001053 | DM50: 53 | DN50: 001001002053 | DP50: 001001053 | DS50: 004281 | DT50: 1 | DU50: 4 | DV50: Cooperative Governance and Traditional Affairs | DW50: 2 | DX50: Regional and Urban Development and Legislative Support | DY50: 8 | DZ50: South African Cities Network | EA50: 7353 | EB50: 7765 | EC50: 8192 | ED50: 00428 | EE50: South African Cities Network | EH50: Transfers and subsidies | EI50: Non-profit institutions | EJ50: Non-profit institutions | EK50: Current | EL50: =LEFT(T_Transfers_NAT[[#This Row],[Uid]],4)&T_Transfers_NAT[[#This Row],[TCounterProgLvl]] -> 00422 | EM50: =IF(T_Transfers_NAT[[#This Row],[Vote No.]]<>DU49,1,IF(T_Transfers_NAT[[#This Row],[Programme No.]]<>DW49,1,EM49+1)) -> 2 | EP50: The Presidency | EQ50: Administration | ER50: 15 | ES50: 5 | ET50: 2 | EU50: 8 | EV50: 11322 | EW50: 7 | EX50: 10213 | EY50: 7 | EZ50: 10572 | FA50: 7 | FB50: 11387 | FC50: The Presidency|Administration | FD50: 001 | FE50: 001 | FF50: 001001 | FI50: 2 | FJ50: =T_InfraS[[#This Row],[Project name]]&"|"&T_InfraS[[#This Row],[Type of infrastructure]] -> Harding|Building | FK50: =COUNTIF(T_InfraS[Project name],T_InfraS[[#This Row],[Project name]]) -> 2 | FL50: 5 | FM50: Home Affairs | FN50: Departmental infrastructure | FO50: Small projects | FP50: Administration | FQ50: Harding | FR50: Building | FS50: Feasibility | FT50: Maintenance and repair | FU50: Construction of new office building | FV50: 0 | FW50: 0 | FX50: 0 | FY50: 3500 | FZ50: 0 | GA50: 0 | GB50: =T_InfraS[[#This Row],[2020/21 Revised Baseline]]*(1+$GB$33) -> 0 | GC50: 5 | GD50: 1 | GE50: 3 | GF50: 513 | GG50: 005 | GH50: =IF(T_InfraS[[#This Row],[Department]]<>FM49,1,GH49+1) -> 14 | GI50: 014 | GJ50: 005014 | GT50: 15 | GV50: My_Econ_Area1 | GW50: $G$67:$G$98 | HA50: 15 | HB50: Transfer name | HH50: 11 | HI50: Public Works | HJ50: 3 | HK50: Expanded Public Works Programme | HL50: 2 | HM50: Expanded Public Works Programme: Infrastructure | HN50: Expanded public works programme integrated grant for municipalities | HO50: Current | HP50: Transfers and subsidies | HQ50: Provinces and municipalities | HR50: Municipalities | HS50: LCG | HT50: 594575 | HU50: 587685 | HV50: 663991 | HW50: 691447 | HX50: 691447 | HY50: 691447 | HZ50: 692878 | IA50: 741917 | IB50: 782918 | ID50: =SUMIF(Table28[Transfers and subsidies / Payments for financial assets detail],T_SharesGrants[[#This Row],[Transfers and subsidies / Payments for financial assets detail]],Table28[2021/22]) -> 825978 | IE50: 2 | IF50: 11322 | IG50: 01132 | IH50: 2 | JA50: 15 | JB50: =IFERROR(INDEX(T_InfraS[Project name],MATCH(IZ50,T_InfraS[Combo_Lookup],0)),"") ->  | JK50: 0 | JL50: 2 | JM50: 5 | JN50: 005002 | JO50: Home Affairs | JP50: Service Delivery to Provinces | JQ50: 1607794 | JR50: 2078316 | JS50: 1794296 | JT50: 1733110 | JU50: 1996892 | JV50: 2156495 | JW50: 2312616 | JX50: 2458054.53 | KD50: The Presidency | KE50: Administration | KF50: Management | KG50: NAT | KH50: National share (Including debt-services costs) | KI50: National share (Excluding debt-services costs) | KJ50: Not related to or unavailable | KK50: 1405 | KL50: Goods and services | KM50: 001001001002
B51: 2 | D51: 2 | G51: 1 | H51: Transfers and subsidies | I51: =INDEX(('Econ ENE'!$M$5:$M$71),MATCH(Tables!H51,OFFSET('Econ ENE'!$Q$5:$Q$71,0,Tables!G51),0)) -> 43 | T51: 32 | U51: Telecommunications and Postal Services | W51: 8 | X51: Planning, Monitoring and Evaluation | Y51: 2 | Z51: National Planning Coordination | AB51: 3 | AC51: Communications | AD51: 1 | AE51: Administration | AF51: 1 | AG51: Ministry | AH51: =REPT(0,3-LEN(T_Sprog[[#This Row],[Vote No.]]))&T_Sprog[[#This Row],[Vote No.]] -> 003 | AI51: =REPT(0,3-LEN(T_Sprog[[#This Row],[Programme No.]]))&T_Sprog[[#This Row],[Programme No.]] -> 001 | AJ51: =REPT(0,3-LEN(T_Sprog[[#This Row],[Subprogramme No.]]))&T_Sprog[[#This Row],[Subprogramme No.]] -> 001 | AK51: =T_Sprog[[#This Row],[DeptID]]&T_Sprog[[#This Row],[ProgID]] -> 003001 | AL51: =T_Sprog[[#This Row],[ComboID_DP]]&T_Sprog[[#This Row],[SProgID]] -> 003001001 | BV51: 3 | BW51: Communications | BX51: 1 | BY51: Administration | BZ51: 2 | CA51: Goods and Services | CB51: 20168.06469 | CC51: 003002 | CD51: 003001002 | CE51: 003001 | CG51: =T_ENE_2016[[#This Row],[Vote No.]]&T_ENE_2016[[#This Row],[Programme No.]]&T_ENE_2016[[#This Row],[Subprogramme No.]] -> 112 | CH51: =INDEX((T_Econ3[Econ3_No]),MATCH(T_ENE_2016[[#This Row],[Econ4]],T_Econ3[Econ3],0)) -> 52 | CI51: 1 | CJ51: The Presidency | CK51: 1 | CL51: Administration | CM51: 2 | CN51: Support Service to President | CO51: Transfers and subsidies | CP51: Households | CQ51: Social benefits | CR51: 289 | CS51: 43 | CT51: 0 | CU51: 460 | CV51: 460 | CW51: 0 | CX51: 0 | CY51: 0 | DC51: 0 | DD51: 0 | DE51: 0 | DF51: The Presidency|Administration | DG51: 001 | DH51: 001 | DI51: 002 | DJ51: 052 | DK51: 001001 | DL51: 001052 | DM51: 52 | DN51: 001001002052 | DP51: 001001052 | DS51: 004341 | DT51: 1 | DU51: 4 | DV51: Cooperative Governance and Traditional Affairs | DW51: 3 | DX51: Institutional Development | DY51: 4 | DZ51: Common Wealth to Local Government Forum | EA51: 590 | EB51: 600 | EC51: 640 | ED51: 00434 | EE51: Citizen Engagement | EH51: Transfers and subsidies | EI51: Foreign governments and international organisations | EJ51: Foreign governments and international organisations | EK51: Current | EL51: =LEFT(T_Transfers_NAT[[#This Row],[Uid]],4)&T_Transfers_NAT[[#This Row],[TCounterProgLvl]] -> 00431 | EM51: =IF(T_Transfers_NAT[[#This Row],[Vote No.]]<>DU50,1,IF(T_Transfers_NAT[[#This Row],[Programme No.]]<>DW50,1,EM50+1)) -> 1 | EP51: The Presidency | EQ51: Administration | ER51: 16 | ES51: 9 | ET51: 7 | EU51: 9 | EV51: 17453 | EW51: 9 | EX51: 18673 | EY51: 9 | EZ51: 19179 | FA51: 9 | FB51: 20728 | FC51: The Presidency|Administration | FD51: 001 | FE51: 001 | FF51: 001001 | FI51: 1 | FJ51: =T_InfraS[[#This Row],[Project name]]&"|"&T_InfraS[[#This Row],[Type of infrastructure]] -> Hluhluwe|Building | FK51: =COUNTIF(T_InfraS[Project name],T_InfraS[[#This Row],[Project name]]) -> 1 | FL51: 5 | FM51: Home Affairs | FN51: Departmental infrastructure | FO51: Small projects | FP51: Administration | FQ51: Hluhluwe | FR51: Building | FS51: Feasibility | FT51: Upgrading and additions | FU51: Construction of new office building | FV51: 10320 | FW51: 27374 | FX51: 1489 | FY51: 0 | FZ51: 0 | GA51: 0 | GB51: =T_InfraS[[#This Row],[2020/21 Revised Baseline]]*(1+$GB$33) -> 0 | GC51: 5 | GD51: 1 | GE51: 3 | GF51: 513 | GG51: 005 | GH51: =IF(T_InfraS[[#This Row],[Department]]<>FM50,1,GH50+1) -> 15 | GI51: 015 | GJ51: 005015 | GT51: 16 | GV51: My_Econ_Area2 | GW51: $H$67:$H$98 | HA51: 16 | HB51: 2017/18 | HH51: 11 | HI51: Public Works | HJ51: 3 | HK51: Expanded Public Works Programme | HL51: 3 | HM51: Expanded Public Works Programme: Operations | HN51: Social sector expanded public works programme incentive grant for provinces | HO51: Current | HP51: Transfers and subsidies | HQ51: Provinces and municipalities | HR51: Provinces | HS51: PCG | HT51: 257972 | HU51: 226103 | HV51: 359662 | HW51: 385583 | HX51: 385583 | HY51: 385583 | HZ51: 407948 | IA51: 430793 | IB51: 454487 | ID51: =SUMIF(Table28[Transfers and subsidies / Payments for financial assets detail],T_SharesGrants[[#This Row],[Transfers and subsidies / Payments for financial assets detail]],Table28[2021/22]) -> 479484 | IE51: 1 | IF51: 11331 | IG51: 01133 | IH51: 3 | JA51: 16 | JB51: =IFERROR(INDEX(T_InfraS[Project name],MATCH(IZ51,T_InfraS[Combo_Lookup],0)),"") ->  | JK51: 0 | JL51: 3 | JM51: 5 | JN51: 005003 | JO51: Home Affairs | JP51: Transversal Information Technology Management | JQ51: 682267 | JR51: 498353 | JS51: 807858 | JT51: 1162944 | JU51: 870243 | JV51: 913027 | JW51: 888117 | JX51: 937487.475 | KD51: The Presidency | KE51: Administration | KF51: Management | KG51: NAT | KH51: National share (Including debt-services costs) | KI51: National share (Excluding debt-services costs) | KJ51: Not related to or unavailable | KK51: 1444 | KL51: Goods and services | KM51: 001001001002
B52: 3 | D52: 3 | G52: 2 | H52: Provinces and municipalities | I52: =INDEX(('Econ ENE'!$M$5:$M$71),MATCH(Tables!H52,OFFSET('Econ ENE'!$Q$5:$Q$71,0,Tables!G52),0)) -> 43 | T52: 1 | U52: The Presidency | W52: 8 | X52: Planning, Monitoring and Evaluation | Y52: 3 | Z52: Sector Planning and Monitoring | AB52: 3 | AC52: Communications | AD52: 1 | AE52: Administration | AF52: 2 | AG52: Departmental Management | AH52: =REPT(0,3-LEN(T_Sprog[[#This Row],[Vote No.]]))&T_Sprog[[#This Row],[Vote No.]] -> 003 | AI52: =REPT(0,3-LEN(T_Sprog[[#This Row],[Programme No.]]))&T_Sprog[[#This Row],[Programme No.]] -> 001 | AJ52: =REPT(0,3-LEN(T_Sprog[[#This Row],[Subprogramme No.]]))&T_Sprog[[#This Row],[Subprogramme No.]] -> 002 | AK52: =T_Sprog[[#This Row],[DeptID]]&T_Sprog[[#This Row],[ProgID]] -> 003001 | AL52: =T_Sprog[[#This Row],[ComboID_DP]]&T_Sprog[[#This Row],[SProgID]] -> 003001002 | BV52: 3 | BW52: Communications | BX52: 1 | BY52: Administration | BZ52: 52 | CA52: Social benefits | CB52: 797.67604 | CC52: 003052 | CD52: 003001052 | CE52: 003001 | CG52: =T_ENE_2016[[#This Row],[Vote No.]]&T_ENE_2016[[#This Row],[Programme No.]]&T_ENE_2016[[#This Row],[Subprogramme No.]] -> 112 | CH52: =INDEX((T_Econ3[Econ3_No]),MATCH(T_ENE_2016[[#This Row],[Econ4]],T_Econ3[Econ3],0)) -> 63 | CI52: 1 | CJ52: The Presidency | CK52: 1 | CL52: Administration | CM52: 2 | CN52: Support Service to President | CO52: Payments for financial assets | CP52: Payments for financial assets | CQ52: Payments for financial assets | CR52: 25 | CS52: 146 | CT52: 0 | CU52: 0 | CV52: 0 | CW52: 0 | CX52: 0 | CY52: 0 | DC52: 0 | DD52: 0 | DE52: 0 | DF52: The Presidency|Administration | DG52: 001 | DH52: 001 | DI52: 002 | DJ52: 063 | DK52: 001001 | DL52: 001063 | DM52: 63 | DN52: 001001002063 | DP52: 001001063 | DS52: 004371 | DT52: 1 | DU52: 4 | DV52: Cooperative Governance and Traditional Affairs | DW52: 3 | DX52: Institutional Development | DY52: 7 | DZ52: Local government equitable share | EA52: 62731845 | EB52: 68973465 | EC52: 75683326 | ED52: 00437 | EE52: Local Government Equitable Share | EH52: Transfers and subsidies | EI52: Provinces and municipalities | EJ52: Municipalities | EK52: Current | EL52: =LEFT(T_Transfers_NAT[[#This Row],[Uid]],4)&T_Transfers_NAT[[#This Row],[TCounterProgLvl]] -> 00432 | EM52: =IF(T_Transfers_NAT[[#This Row],[Vote No.]]<>DU51,1,IF(T_Transfers_NAT[[#This Row],[Programme No.]]<>DW51,1,EM51+1)) -> 2 | EP52: The Presidency | EQ52: Direct charge against the National Revenue Fund | ER52: 16 | ES52: 2 | ET52: 0 | EU52: 2 | EV52: 5713 | EW52: 2 | EX52: 6373 | EY52: 2 | EZ52: 6742 | FA52: 2 | FB52: 7254 | FC52: The Presidency|Direct charge against the National Revenue Fund | FD52: 001 | FE52: 003 | FF52: 001003 | FI52: 2 | FJ52: =T_InfraS[[#This Row],[Project name]]&"|"&T_InfraS[[#This Row],[Type of infrastructure]] -> Ingwavuma|Building | FK52: =COUNTIF(T_InfraS[Project name],T_InfraS[[#This Row],[Project name]]) -> 2 | FL52: 5 | FM52: Home Affairs | FN52: Departmental infrastructure | FO52: Small projects | FP52: Administration | FQ52: Ingwavuma | FR52: Building | FS52: Feasibility | FT52: Upgrading and additions | FU52: Construction of new office building | FV52: 300 | FW52: 0 | FX52: 6009 | FY52: 0 | FZ52: 0 | GA52: 0 | GB52: =T_InfraS[[#This Row],[2020/21 Revised Baseline]]*(1+$GB$33) -> 0 | GC52: 5 | GD52: 1 | GE52: 3 | GF52: 513 | GG52: 005 | GH52: =IF(T_InfraS[[#This Row],[Department]]<>FM51,1,GH51+1) -> 16 | GI52: 016 | GJ52: 005016 | GT52: 17 | GV52: My_Econ_Area3 | GW52: $I$67:$I$98 | HA52: 17 | HB52: 2018/19 | HH52: 14 | HI52: Basic Education | HJ52: 2 | HK52: Curriculum Policy, Support and Monitoring | HL52: 2 | HM52: Curriculum Implementation and Monitoring | HN52: Learners with profound intellectual disabilities grant | HO52: Current | HP52: Transfers and subsidies | HQ52: Provinces and municipalities | HR52: Provinces | HS52: PCG | HT52: 0 | HU52: 0 | HV52: 0 | HW52: 72000 | HX52: 72000 | HY52: 72000 | HZ52: 185471 | IA52: 220785 | IB52: 242864 | ID52: =SUMIF(Table28[Transfers and subsidies / Payments for financial assets detail],T_SharesGrants[[#This Row],[Transfers and subsidies / Payments for financial assets detail]],Table28[2021/22]) -> 256222 | IE52: 1 | IF52: 14221 | IG52: 01421 | IH52: 1 | JA52: 17 | JB52: =IFERROR(INDEX(T_InfraS[Project name],MATCH(IZ52,T_InfraS[Combo_Lookup],0)),"") ->  | JK52: 0 | JL52: 1 | JM52: 6 | JN52: 006001 | JO52: International Relations and Cooperation | JP52: Compensation of employees | JQ52: 2754732 | JR52: 3083741 | JS52: 3115625 | JT52: 3022027 | JU52: 2964489 | JV52: 2874494 | JW52: 3090080 | JX52: 3290935.2 | KD52: The Presidency | KE52: Administration | KF52: Support Service to President | KG52: NAT | KH52: National share (Including debt-services costs) | KI52: National share (Excluding debt-services costs) | KJ52: Not related to or unavailable | KK52: 289 | KL52: Goods and services | KM52: 001001002002
B53: 4 | D53: 4 | G53: 3 | H53: Provinces | I53: =INDEX(('Econ ENE'!$M$5:$M$71),MATCH(Tables!H53,OFFSET('Econ ENE'!$Q$5:$Q$71,0,Tables!G53),0)) -> 43 | T53: 33 | U53: Tourism | W53: 8 | X53: Planning, Monitoring and Evaluation | Y53: 4 | Z53: Public Sector Monitoring and Capacity Development | AB53: 3 | AC53: Communications | AD53: 1 | AE53: Administration | AF53: 3 | AG53: Internal Audit | AH53: =REPT(0,3-LEN(T_Sprog[[#This Row],[Vote No.]]))&T_Sprog[[#This Row],[Vote No.]] -> 003 | AI53: =REPT(0,3-LEN(T_Sprog[[#This Row],[Programme No.]]))&T_Sprog[[#This Row],[Programme No.]] -> 001 | AJ53: =REPT(0,3-LEN(T_Sprog[[#This Row],[Subprogramme No.]]))&T_Sprog[[#This Row],[Subprogramme No.]] -> 003 | AK53: =T_Sprog[[#This Row],[DeptID]]&T_Sprog[[#This Row],[ProgID]] -> 003001 | AL53: =T_Sprog[[#This Row],[ComboID_DP]]&T_Sprog[[#This Row],[SProgID]] -> 003001003 | BV53: 3 | BW53: Communications | BX53: 1 | BY53: Administration | BZ53: 56 | CA53: Transport equipment | CB53: 1504.82901 | CC53: 003056 | CD53: 003001056 | CE53: 003001 | CG53: =T_ENE_2016[[#This Row],[Vote No.]]&T_ENE_2016[[#This Row],[Programme No.]]&T_ENE_2016[[#This Row],[Subprogramme No.]] -> 113 | CH53: =INDEX((T_Econ3[Econ3_No]),MATCH(T_ENE_2016[[#This Row],[Econ4]],T_Econ3[Econ3],0)) -> 1 | CI53: 1 | CJ53: The Presidency | CK53: 1 | CL53: Administration | CM53: 3 | CN53: Support Service to Deputy President | CO53: Current payments | CP53: Compensation of employees | CQ53: Compensation of employees | CR53: 33845 | CS53: 36225 | CT53: 36137 | CU53: 36137 | CV53: 36137 | CW53: 38250 | CX53: 41155 | CY53: 44242 | DC53: 41155 | DD53: 44242 | DE53: 47118 | DF53: The Presidency|Administration | DG53: 001 | DH53: 001 | DI53: 003 | DJ53: 001 | DK53: 001001 | DL53: 001001 | DM53: 1 | DN53: 001001003001 | DP53: 001001001 | DS53: 004381 | DT53: 1 | DU53: 4 | DV53: Cooperative Governance and Traditional Affairs | DW53: 3 | DX53: Institutional Development | DY53: 8 | DZ53: South African Local Government Association | EA53: 33100 | EB53: 34954 | EC53: 36876 | ED53: 00438 | EE53: South African Local Government Association | EH53: Transfers and subsidies | EI53: Departmental agencies and accounts | EJ53: Departmental agencies (non-business entities) | EK53: Current | EL53: =LEFT(T_Transfers_NAT[[#This Row],[Uid]],4)&T_Transfers_NAT[[#This Row],[TCounterProgLvl]] -> 00433 | EM53: =IF(T_Transfers_NAT[[#This Row],[Vote No.]]<>DU52,1,IF(T_Transfers_NAT[[#This Row],[Programme No.]]<>DW52,1,EM52+1)) -> 3 | EP53: The Presidency | EQ53: Executive Support | ER53: 6 | ES53: 8 | ET53: 0 | EU53: 9 | EV53: 2617 | EW53: 9 | EX53: 2847 | EY53: 9 | EZ53: 3072 | FA53: 9 | FB53: 3317 | FC53: The Presidency|Executive Support | FD53: 001 | FE53: 002 | FF53: 001002 | FI53: 2 | FJ53: =T_InfraS[[#This Row],[Project name]]&"|"&T_InfraS[[#This Row],[Type of infrastructure]] -> Ingwavuma|Building | FK53: =COUNTIF(T_InfraS[Project name],T_InfraS[[#This Row],[Project name]]) -> 2 | FL53: 5 | FM53: Home Affairs | FN53: Departmental infrastructure | FO53: Small projects | FP53: Administration | FQ53: Ingwavuma | FR53: Building | FS53: Feasibility | FT53: Maintenance and repair | FU53: Construction of new office building | FV53: 0 | FW53: 0 | FX53: 0 | FY53: 3500 | FZ53: 0 | GA53: 0 | GB53: =T_InfraS[[#This Row],[2020/21 Revised Baseline]]*(1+$GB$33) -> 0 | GC53: 5 | GD53: 1 | GE53: 3 | GF53: 513 | GG53: 005 | GH53: =IF(T_InfraS[[#This Row],[Department]]<>FM52,1,GH52+1) -> 17 | GI53: 017 | GJ53: 005017 | GT53: 18 | GV53: My_Econ_Area4 | GW53: $J$67:$J$98 | HA53: 18 | HB53: 2019/20 | HH53: 14 | HI53: Basic Education | HJ53: 2 | HK53: Curriculum Policy, Support and Monitoring | HL53: 4 | HM53: Curriculum and Quality Enhancement Programmes | HN53: Maths, science and technology grant | HO53: Capital | HP53: Transfers and subsidies | HQ53: Provinces and municipalities | HR53: Provinces | HS53: PCG | HT53: 336159 | HU53: 316942 | HV53: 362444 | HW53: 365145 | HX53: 365145 | HY53: 365145 | HZ53: 370483 | IA53: 391302 | IB53: 413259 | ID53: =SUMIF(Table28[Transfers and subsidies / Payments for financial assets detail],T_SharesGrants[[#This Row],[Transfers and subsidies / Payments for financial assets detail]],Table28[2021/22]) -> 435988 | IE53: 1 | IF53: 14241 | IG53: 01422 | IH53: 2 | JA53: 18 | JB53: =IFERROR(INDEX(T_InfraS[Project name],MATCH(IZ53,T_InfraS[Combo_Lookup],0)),"") ->  | JK53: 0 | JL53: 2 | JM53: 6 | JN53: 006002 | JO53: International Relations and Cooperation | JP53: Operating leases | JQ53: 893262 | JR53: 1016886 | JS53: 1070255 | JT53: 944975 | JU53: 978491 | JV53: 924565 | JW53: 966218 | JX53: 1019359.99 | KD53: The Presidency | KE53: Administration | KF53: Support Service to Deputy President | KG53: NAT | KH53: National share (Including debt-services costs) | KI53: National share (Excluding debt-services costs) | KJ53: Not related to or unavailable | KK53: 313 | KL53: Goods and services | KM53: 001001003002
B54: 5 | D54: 5 | G54: 3 | H54: Municipalities | I54: =INDEX(('Econ ENE'!$M$5:$M$71),MATCH(Tables!H54,OFFSET('Econ ENE'!$Q$5:$Q$71,0,Tables!G54),0)) -> 44 | T54: 34 | U54: Trade and Industry | W54: 8 | X54: Planning, Monitoring and Evaluation | Y54: 5 | Z54: Frontline and Citizen-Based Service Delivery and Monitoring | AB54: 3 | AC54: Communications | AD54: 1 | AE54: Administration | AF54: 4 | AG54: Corporate Services | AH54: =REPT(0,3-LEN(T_Sprog[[#This Row],[Vote No.]]))&T_Sprog[[#This Row],[Vote No.]] -> 003 | AI54: =REPT(0,3-LEN(T_Sprog[[#This Row],[Programme No.]]))&T_Sprog[[#This Row],[Programme No.]] -> 001 | AJ54: =REPT(0,3-LEN(T_Sprog[[#This Row],[Subprogramme No.]]))&T_Sprog[[#This Row],[Subprogramme No.]] -> 004 | AK54: =T_Sprog[[#This Row],[DeptID]]&T_Sprog[[#This Row],[ProgID]] -> 003001 | AL54: =T_Sprog[[#This Row],[ComboID_DP]]&T_Sprog[[#This Row],[SProgID]] -> 003001004 | BN54: Names | BV54: 3 | BW54: Communications | BX54: 1 | BY54: Administration | BZ54: 57 | CA54: Other machinery and equipment | CB54: 584.78138 | CC54: 003057 | CD54: 003001057 | CE54: 003001 | CG54: =T_ENE_2016[[#This Row],[Vote No.]]&T_ENE_2016[[#This Row],[Programme No.]]&T_ENE_2016[[#This Row],[Subprogramme No.]] -> 113 | CH54: =INDEX((T_Econ3[Econ3_No]),MATCH(T_ENE_2016[[#This Row],[Econ4]],T_Econ3[Econ3],0)) -> 2 | CI54: 1 | CJ54: The Presidency | CK54: 1 | CL54: Administration | CM54: 3 | CN54: Support Service to Deputy President | CO54: Current payments | CP54: Goods and services | CQ54: Goods and services | CR54: 14408 | CS54: 11007 | CT54: 15934 | CU54: 14634 | CV54: 14634 | CW54: 15972 | CX54: 16838 | CY54: 17753 | DC54: 16838 | DD54: 17753 | DE54: 18729 | DF54: The Presidency|Administration | DG54: 001 | DH54: 001 | DI54: 003 | DJ54: 002 | DK54: 001001 | DL54: 001002 | DM54: 2 | DN54: 001001003002 | DP54: 001001002 | DS54: 0043101 | DT54: 1 | DU54: 4 | DV54: Cooperative Governance and Traditional Affairs | DW54: 3 | DX54: Institutional Development | DY54: 10 | DZ54: Department of Traditional Affairs | EA54: 153306 | EB54: 163351 | EC54: 173912 | ED54: 004310 | EE54: Department of Traditional Affairs | EH54: Transfers and subsidies | EI54: Departmental agencies and accounts | EJ54: Departmental agencies (non-business entities) | EK54: Current | EL54: =LEFT(T_Transfers_NAT[[#This Row],[Uid]],4)&T_Transfers_NAT[[#This Row],[TCounterProgLvl]] -> 00434 | EM54: =IF(T_Transfers_NAT[[#This Row],[Vote No.]]<>DU53,1,IF(T_Transfers_NAT[[#This Row],[Programme No.]]<>DW53,1,EM53+1)) -> 4 | EP54: The Presidency | EQ54: Executive Support | ER54: 7 | ES54: 1 | ET54: 0 | EU54: 1 | EV54: 272 | EW54: 1 | EX54: 351 | EY54: 1 | EZ54: 379 | FA54: 1 | FB54: 410 | FC54: The Presidency|Executive Support | FD54: 001 | FE54: 002 | FF54: 001002 | FI54: 2 | FJ54: =T_InfraS[[#This Row],[Project name]]&"|"&T_InfraS[[#This Row],[Type of infrastructure]] -> Itsoseng|Upgrading of offices | FK54: =COUNTIF(T_InfraS[Project name],T_InfraS[[#This Row],[Project name]]) -> 2 | FL54: 5 | FM54: Home Affairs | FN54: Departmental infrastructure | FO54: Small projects | FP54: Administration | FQ54: Itsoseng | FR54: Upgrading of offices | FS54: Construction | FT54: Upgrading and additions | FU54: Upgrades and renovations of office buildings (such as painting and new flooring) | FV54: 300 | FW54: 0 | FX54: 2397 | FY54: 0 | FZ54: 0 | GA54: 0 | GB54: =T_InfraS[[#This Row],[2020/21 Revised Baseline]]*(1+$GB$33) -> 0 | GC54: 5 | GD54: 1 | GE54: 3 | GF54: 513 | GG54: 005 | GH54: =IF(T_InfraS[[#This Row],[Department]]<>FM53,1,GH53+1) -> 18 | GI54: 018 | GJ54: 005018 | GT54: 19 | GV54: My_Transfers_Existing_Area1 | GW54: $G$108:$G$157 | HA54: 19 | HB54: 2017/18 | HH54: 14 | HI54: Basic Education | HJ54: 3 | HK54: Teachers, Education Human Resources and Institutional Development | HL54: 2 | HM54: Education Human Resources Management | HN54: Occupational specific dispensation for education sector therapists grant | HO54: Current | HP54: Transfers and subsidies | HQ54: Provinces and municipalities | HR54: Provinces | HS54: PCG | HT54: 213000 | HU54: 66275 | HV54: 0 | HW54: 0 | HX54: 0 | HY54: 0 | HZ54: 0 | IA54: 0 | IB54: 0 | ID54: =SUMIF(Table28[Transfers and subsidies / Payments for financial assets detail],T_SharesGrants[[#This Row],[Transfers and subsidies / Payments for financial assets detail]],Table28[2021/22]) -> 0 | IE54: 1 | IF54: 14321 | IG54: 01431 | IH54: 1 | JA54: 19 | JB54: =IFERROR(INDEX(T_InfraS[Project name],MATCH(IZ54,T_InfraS[Combo_Lookup],0)),"") ->  | JK54: 0 | JL54: 3 | JM54: 6 | JN54: 006003 | JO54: International Relations and Cooperation | JP54: Property payments | JQ54: 225119 | JR54: 388497 | JS54: 393839 | JT54: 267793 | JU54: 416514 | JV54: 371015 | JW54: 389593 | JX54: 411020.615 | KD54: The Presidency | KE54: Administration | KF54: Management | KG54: NAT | KH54: National share (Including debt-services costs) | KI54: National share (Excluding debt-services costs) | KJ54: Not related to or unavailable | KK54: 12404 | KL54: Goods and services | KM54: 001001001002
B55: 6 | D55: 6 | G55: 2 | H55: Departmental agencies and accounts | I55: =INDEX(('Econ ENE'!$M$5:$M$71),MATCH(Tables!H55,OFFSET('Econ ENE'!$Q$5:$Q$71,0,Tables!G55),0)) -> 45 | L55: Id | M55: Increase_Decrease | T55: 43 | U55: Traditional Affairs | W55: 8 | X55: Planning, Monitoring and Evaluation | Y55: 6 | Z55: Evidence and Knowledge Systems | AB55: 3 | AC55: Communications | AD55: 1 | AE55: Administration | AF55: 5 | AG55: Financial Management | AH55: =REPT(0,3-LEN(T_Sprog[[#This Row],[Vote No.]]))&T_Sprog[[#This Row],[Vote No.]] -> 003 | AI55: =REPT(0,3-LEN(T_Sprog[[#This Row],[Programme No.]]))&T_Sprog[[#This Row],[Programme No.]] -> 001 | AJ55: =REPT(0,3-LEN(T_Sprog[[#This Row],[Subprogramme No.]]))&T_Sprog[[#This Row],[Subprogramme No.]] -> 005 | AK55: =T_Sprog[[#This Row],[DeptID]]&T_Sprog[[#This Row],[ProgID]] -> 003001 | AL55: =T_Sprog[[#This Row],[ComboID_DP]]&T_Sprog[[#This Row],[SProgID]] -> 003001005 | BN55: MTEF_Headings | BO55: =MyYear5 -> 2019/20 | BP55: =MyYear6 -> 2020/21 | BQ55: =MyYear7 -> 2021/22 | BV55: 3 | BW55: Communications | BX55: 1 | BY55: Administration | BZ55: 63 | CA55: Payments for financial assets | CB55: 74.28831 | CC55: 003063 | CD55: 003001063 | CE55: 003001 | CG55: =T_ENE_2016[[#This Row],[Vote No.]]&T_ENE_2016[[#This Row],[Programme No.]]&T_ENE_2016[[#This Row],[Subprogramme No.]] -> 113 | CH55: =INDEX((T_Econ3[Econ3_No]),MATCH(T_ENE_2016[[#This Row],[Econ4]],T_Econ3[Econ3],0)) -> 57 | CI55: 1 | CJ55: The Presidency | CK55: 1 | CL55: Administration | CM55: 3 | CN55: Support Service to Deputy President | CO55: Payments for capital assets | CP55: Machinery and equipment | CQ55: Other machinery and equipment | CR55: 723 | CS55: 583 | CT55: 834 | CU55: 834 | CV55: 834 | CW55: 649 | CX55: 681 | CY55: 710 | DC55: 681 | DD55: 710 | DE55: 749 | DF55: The Presidency|Administration | DG55: 001 | DH55: 001 | DI55: 003 | DJ55: 057 | DK55: 001001 | DL55: 001057 | DM55: 57 | DN55: 001001003057 | DP55: 001001057 | DS55: 0043111 | DT55: 1 | DU55: 4 | DV55: Cooperative Governance and Traditional Affairs | DW55: 3 | DX55: Institutional Development | DY55: 11 | DZ55: United Cities and Local Governments of Africa - South African Regional Office | EA55: 5426 | EB55: 5730 | EC55: 6045 | ED55: 004311 | EE55: United Cities and Local Government of Africa | EH55: Transfers and subsidies | EI55: Non-profit institutions | EJ55: Non-profit institutions | EK55: Current | EL55: =LEFT(T_Transfers_NAT[[#This Row],[Uid]],4)&T_Transfers_NAT[[#This Row],[TCounterProgLvl]] -> 00435 | EM55: =IF(T_Transfers_NAT[[#This Row],[Vote No.]]<>DU54,1,IF(T_Transfers_NAT[[#This Row],[Programme No.]]<>DW54,1,EM54+1)) -> 5 | EP55: The Presidency | EQ55: Executive Support | ER55: 8 | ES55: 1 | ET55: 0 | EU55: 1 | EV55: 285 | EW55: 1 | EX55: 354 | EY55: 1 | EZ55: 380 | FA55: 1 | FB55: 410 | FC55: The Presidency|Executive Support | FD55: 001 | FE55: 002 | FF55: 001002 | FI55: 2 | FJ55: =T_InfraS[[#This Row],[Project name]]&"|"&T_InfraS[[#This Row],[Type of infrastructure]] -> Itsoseng|Upgrading of offices | FK55: =COUNTIF(T_InfraS[Project name],T_InfraS[[#This Row],[Project name]]) -> 2 | FL55: 5 | FM55: Home Affairs | FN55: Departmental infrastructure | FO55: Small projects | FP55: Administration | FQ55: Itsoseng | FR55: Upgrading of offices | FS55: Construction | FT55: Maintenance and repair | FU55: Upgrades and renovations of office buildings (such as painting and new flooring) | FV55: 0 | FW55: 0 | FX55: 0 | FY55: 3500 | FZ55: 0 | GA55: 0 | GB55: =T_InfraS[[#This Row],[2020/21 Revised Baseline]]*(1+$GB$33) -> 0 | GC55: 5 | GD55: 1 | GE55: 3 | GF55: 513 | GG55: 005 | GH55: =IF(T_InfraS[[#This Row],[Department]]<>FM54,1,GH54+1) -> 19 | GI55: 019 | GJ55: 005019 | GT55: 20 | GV55: My_Transfers_Existing_Area2 | GW55: $H$108:$H$157 | HA55: 20 | HB55: 2018/19 | HH55: 14 | HI55: Basic Education | HJ55: 4 | HK55: Planning, Information and Assessment | HL55: 3 | HM55: School Infrastructure | HN55: Education infrastructure grant | HO55: Capital | HP55: Transfers and subsidies | HQ55: Provinces and municipalities | HR55: Provinces | HS55: PCG | HT55: 7326584 | HU55: 9354443 | HV55: 9933282 | HW55: 10045562 | HX55: 10045562 | HY55: 10045562 | HZ55: 9917734 | IA55: 10314159 | IB55: 11466632 | ID55: =SUMIF(Table28[Transfers and subsidies / Payments for financial assets detail],T_SharesGrants[[#This Row],[Transfers and subsidies / Payments for financial assets detail]],Table28[2021/22]) -> 12326629 | IE55: 1 | IF55: 14431 | IG55: 01441 | IH55: 1 | JA55: 20 | JB55: =IFERROR(INDEX(T_InfraS[Project name],MATCH(IZ55,T_InfraS[Combo_Lookup],0)),"") ->  | JK55: 0 | JL55: 4 | JM55: 6 | JN55: 006004 | JO55: International Relations and Cooperation | JP55: Travel and subsistence | JQ55: 315896 | JR55: 335194 | JS55: 272413 | JT55: 279885 | JU55: 292425 | JV55: 271649 | JW55: 279946 | JX55: 295343.03 | KD55: The Presidency | KE55: Administration | KF55: Support Service to President | KG55: NAT | KH55: National share (Including debt-services costs) | KI55: National share (Excluding debt-services costs) | KJ55: Not related to or unavailable | KK55: 1207 | KL55: Goods and services | KM55: 001001002002
D56: 7 | G56: 3 | H56: Departmental agencies (non-business entities) | I56: =INDEX(('Econ ENE'!$M$5:$M$71),MATCH(Tables!H56,OFFSET('Econ ENE'!$Q$5:$Q$71,0,Tables!G56),0)) -> 46 | L56: 1 | M56: Input cost / Cost pressure | T56: 35 | U56: Transport | W56: 8 | X56: Planning, Monitoring and Evaluation | Y56: 7 | Z56: National Youth Development | AB56: 3 | AC56: Communications | AD56: 2 | AE56: Communications Policy, Research and Development | AF56: 1 | AG56: Broadcasting Policy | AH56: =REPT(0,3-LEN(T_Sprog[[#This Row],[Vote No.]]))&T_Sprog[[#This Row],[Vote No.]] -> 003 | AI56: =REPT(0,3-LEN(T_Sprog[[#This Row],[Programme No.]]))&T_Sprog[[#This Row],[Programme No.]] -> 002 | AJ56: =REPT(0,3-LEN(T_Sprog[[#This Row],[Subprogramme No.]]))&T_Sprog[[#This Row],[Subprogramme No.]] -> 001 | AK56: =T_Sprog[[#This Row],[DeptID]]&T_Sprog[[#This Row],[ProgID]] -> 003002 | AL56: =T_Sprog[[#This Row],[ComboID_DP]]&T_Sprog[[#This Row],[SProgID]] -> 003002001 | BV56: 3 | BW56: Communications | BX56: 2 | BY56: Communications Policy, Research and Development | BZ56: 1 | CA56: Compensation of employees | CB56: 4409.20806 | CC56: 003001 | CD56: 003002001 | CE56: 003002 | CG56: =T_ENE_2016[[#This Row],[Vote No.]]&T_ENE_2016[[#This Row],[Programme No.]]&T_ENE_2016[[#This Row],[Subprogramme No.]] -> 113 | CH56: =INDEX((T_Econ3[Econ3_No]),MATCH(T_ENE_2016[[#This Row],[Econ4]],T_Econ3[Econ3],0)) -> 52 | CI56: 1 | CJ56: The Presidency | CK56: 1 | CL56: Administration | CM56: 3 | CN56: Support Service to Deputy President | CO56: Transfers and subsidies | CP56: Households | CQ56: Social benefits | CR56: 7 | CS56: 120 | CT56: 0 | CU56: 1215 | CV56: 1215 | CW56: 0 | CX56: 0 | CY56: 0 | DC56: 0 | DD56: 0 | DE56: 0 | DF56: The Presidency|Administration | DG56: 001 | DH56: 001 | DI56: 003 | DJ56: 052 | DK56: 001001 | DL56: 001052 | DM56: 52 | DN56: 001001003052 | DP56: 001001052 | DS56: 0043112 | DT56: 2 | DU56: 4 | DV56: Cooperative Governance and Traditional Affairs | DW56: 3 | DX56: Institutional Development | DY56: 11 | DZ56: United Cities and Local Governments of Africa - Moroccan office | EA56: 1356 | EB56: 1432 | EC56: 1511 | ED56: 004311 | EE56: United Cities and Local Government of Africa | EH56: Transfers and subsidies | EI56: Foreign governments and international organisations | EJ56: Foreign governments and international organisations | EK56: Current | EL56: =LEFT(T_Transfers_NAT[[#This Row],[Uid]],4)&T_Transfers_NAT[[#This Row],[TCounterProgLvl]] -> 00436 | EM56: =IF(T_Transfers_NAT[[#This Row],[Vote No.]]<>DU55,1,IF(T_Transfers_NAT[[#This Row],[Programme No.]]<>DW55,1,EM55+1)) -> 6 | EP56: The Presidency | EQ56: Executive Support | ER56: 9 | ES56: 1 | ET56: 0 | EU56: 1 | EV56: 595 | EW56: 1 | EX56: 647 | EY56: 1 | EZ56: 698 | FA56: 1 | FB56: 754 | FC56: The Presidency|Executive Support | FD56: 001 | FE56: 002 | FF56: 001002 | FI56: 2 | FJ56: =T_InfraS[[#This Row],[Project name]]&"|"&T_InfraS[[#This Row],[Type of infrastructure]] -> Komanga|Building | FK56: =COUNTIF(T_InfraS[Project name],T_InfraS[[#This Row],[Project name]]) -> 2 | FL56: 5 | FM56: Home Affairs | FN56: Departmental infrastructure | FO56: Small projects | FP56: Administration | FQ56: Komanga | FR56: Building | FS56: Feasibility | FT56: Upgrading and additions | FU56: Construction of new office building | FV56: 300 | FW56: 0 | FX56: 6200 | FY56: 0 | FZ56: 0 | GA56: 0 | GB56: =T_InfraS[[#This Row],[2020/21 Revised Baseline]]*(1+$GB$33) -> 0 | GC56: 5 | GD56: 1 | GE56: 3 | GF56: 513 | GG56: 005 | GH56: =IF(T_InfraS[[#This Row],[Department]]<>FM55,1,GH55+1) -> 20 | GI56: 020 | GJ56: 005020 | GT56: 21 | GV56: My_Transfers_Existing_Area3 | GW56: $I$108:$I$157 | HA56: 21 | HB56: 2019/20 | HH56: 14 | HI56: Basic Education | HJ56: 5 | HK56: Educational Enrichment Services | HL56: 3 | HM56: Care and Support in Schools | HN56: National school nutrition programme grant | HO56: Current | HP56: Transfers and subsidies | HQ56: Provinces and municipalities | HR56: Provinces | HS56: PCG | HT56: 5461915 | HU56: 5685381 | HV56: 6059655 | HW56: 6426313 | HX56: 6426313 | HY56: 6426313 | HZ56: 6802079 | IA56: 7185715 | IB56: 7695901 | ID56: =SUMIF(Table28[Transfers and subsidies / Payments for financial assets detail],T_SharesGrants[[#This Row],[Transfers and subsidies / Payments for financial assets detail]],Table28[2021/22]) -> 8165351 | IE56: 1 | IF56: 14531 | IG56: 01451 | IH56: 1 | JA56: 21 | JB56: =IFERROR(INDEX(T_InfraS[Project name],MATCH(IZ56,T_InfraS[Combo_Lookup],0)),"") ->  | JK56: 0 | JL56: 5 | JM56: 6 | JN56: 006005 | JO56: International Relations and Cooperation | JP56: Foreign governments and international organisations | JQ56: 585152 | JR56: 621004 | JS56: 822354.9955 | JT56: 586357 | JU56: 609176 | JV56: 599274 | JW56: 632235 | JX56: 667007.925 | KD56: The Presidency | KE56: Administration | KF56: Support Service to Deputy President | KG56: NAT | KH56: National share (Including debt-services costs) | KI56: National share (Excluding debt-services costs) | KJ56: Not related to or unavailable | KK56: 1804 | KL56: Goods and services | KM56: 001001003002
D57: 8 | G57: 3 | H57: Social security funds | I57: =INDEX(('Econ ENE'!$M$5:$M$71),MATCH(Tables!H57,OFFSET('Econ ENE'!$Q$5:$Q$71,0,Tables!G57),0)) -> 45 | L57: 2 | M57: Higher priority | T57: 36 | U57: Water and Sanitation | W57: 9 | X57: Public Enterprises | Y57: 1 | Z57: Administration | AB57: 3 | AC57: Communications | AD57: 2 | AE57: Communications Policy, Research and Development | AF57: 2 | AG57: Technology and Engineering Services | AH57: =REPT(0,3-LEN(T_Sprog[[#This Row],[Vote No.]]))&T_Sprog[[#This Row],[Vote No.]] -> 003 | AI57: =REPT(0,3-LEN(T_Sprog[[#This Row],[Programme No.]]))&T_Sprog[[#This Row],[Programme No.]] -> 002 | AJ57: =REPT(0,3-LEN(T_Sprog[[#This Row],[Subprogramme No.]]))&T_Sprog[[#This Row],[Subprogramme No.]] -> 002 | AK57: =T_Sprog[[#This Row],[DeptID]]&T_Sprog[[#This Row],[ProgID]] -> 003002 | AL57: =T_Sprog[[#This Row],[ComboID_DP]]&T_Sprog[[#This Row],[SProgID]] -> 003002002 | BV57: 3 | BW57: Communications | BX57: 2 | BY57: Communications Policy, Research and Development | BZ57: 2 | CA57: Goods and Services | CB57: 1427.42033 | CC57: 003002 | CD57: 003002002 | CE57: 003002 | CG57: =T_ENE_2016[[#This Row],[Vote No.]]&T_ENE_2016[[#This Row],[Programme No.]]&T_ENE_2016[[#This Row],[Subprogramme No.]] -> 113 | CH57: =INDEX((T_Econ3[Econ3_No]),MATCH(T_ENE_2016[[#This Row],[Econ4]],T_Econ3[Econ3],0)) -> 63 | CI57: 1 | CJ57: The Presidency | CK57: 1 | CL57: Administration | CM57: 3 | CN57: Support Service to Deputy President | CO57: Payments for financial assets | CP57: Payments for financial assets | CQ57: Payments for financial assets | CR57: 39 | CS57: 36 | CT57: 0 | CU57: 0 | CV57: 0 | CW57: 0 | CX57: 0 | CY57: 0 | DC57: 0 | DD57: 0 | DE57: 0 | DF57: The Presidency|Administration | DG57: 001 | DH57: 001 | DI57: 003 | DJ57: 063 | DK57: 001001 | DL57: 001063 | DM57: 63 | DN57: 001001003063 | DP57: 001001063 | DS57: 004471 | DT57: 1 | DU57: 4 | DV57: Cooperative Governance and Traditional Affairs | DW57: 4 | DX57: National Disaster Management Centre | DY57: 7 | DZ57: Municipal disaster relief grant | EA57: 349280 | EB57: 335488 | EC57: 353940 | ED57: 00447 | EE57: Disaster Relief Grant | EH57: Transfers and subsidies | EI57: Provinces and municipalities | EJ57: Municipalities | EK57: Current | EL57: =LEFT(T_Transfers_NAT[[#This Row],[Uid]],4)&T_Transfers_NAT[[#This Row],[TCounterProgLvl]] -> 00441 | EM57: =IF(T_Transfers_NAT[[#This Row],[Vote No.]]<>DU56,1,IF(T_Transfers_NAT[[#This Row],[Programme No.]]<>DW56,1,EM56+1)) -> 1 | EP57: The Presidency | EQ57: Executive Support | ER57: 11 | ES57: 1 | ET57: 0 | EU57: 1 | EV57: 794 | EW57: 1 | EX57: 864 | EY57: 1 | EZ57: 932 | FA57: 1 | FB57: 1007 | FC57: The Presidency|Executive Support | FD57: 001 | FE57: 002 | FF57: 001002 | FI57: 2 | FJ57: =T_InfraS[[#This Row],[Project name]]&"|"&T_InfraS[[#This Row],[Type of infrastructure]] -> Komanga|Building | FK57: =COUNTIF(T_InfraS[Project name],T_InfraS[[#This Row],[Project name]]) -> 2 | FL57: 5 | FM57: Home Affairs | FN57: Departmental infrastructure | FO57: Small projects | FP57: Administration | FQ57: Komanga | FR57: Building | FS57: Feasibility | FT57: Maintenance and repair | FU57: Construction of new office building | FV57: 0 | FW57: 0 | FX57: 0 | FY57: 3500 | FZ57: 0 | GA57: 0 | GB57: =T_InfraS[[#This Row],[2020/21 Revised Baseline]]*(1+$GB$33) -> 0 | GC57: 5 | GD57: 1 | GE57: 3 | GF57: 513 | GG57: 005 | GH57: =IF(T_InfraS[[#This Row],[Department]]<>FM56,1,GH56+1) -> 21 | GI57: 021 | GJ57: 005021 | GT57: 22 | GV57: My_Transfers_Existing_Area4 | GW57: $J$108:$J$157 | HA57: 22 | HB57: 2017/18 | HH57: 14 | HI57: Basic Education | HJ57: 5 | HK57: Educational Enrichment Services | HL57: 3 | HM57: Care and Support in Schools | HN57: HIV and AIDS (life skills education) grant | HO57: Current | HP57: Transfers and subsidies | HQ57: Provinces and municipalities | HR57: Provinces | HS57: PCG | HT57: 212138 | HU57: 208730 | HV57: 224187 | HW57: 245308 | HX57: 245308 | HY57: 245308 | HZ57: 243235 | IA57: 256951 | IB57: 270644 | ID57: =SUMIF(Table28[Transfers and subsidies / Payments for financial assets detail],T_SharesGrants[[#This Row],[Transfers and subsidies / Payments for financial assets detail]],Table28[2021/22]) -> 285529 | IE57: 2 | IF57: 14532 | IG57: 01452 | IH57: 2 | JA57: 22 | JB57: =IFERROR(INDEX(T_InfraS[Project name],MATCH(IZ57,T_InfraS[Combo_Lookup],0)),"") ->  | JK57: 0 | JL57: 1 | JM57: 7 | JN57: 007001 | JO57: National Treasury | JP57: South African Revenue Service | JQ57: 844105 | JR57: 943444 | JS57: 1043355 | JT57: 1141561 | JU57: 1207772 | JV57: 1275407 | JW57: 1345554 | JX57: 1419559.47 | KD57: The Presidency | KE57: Administration | KF57: Management | KG57: NAT | KH57: National share (Including debt-services costs) | KI57: National share (Excluding debt-services costs) | KJ57: Not related to or unavailable | KK57: 18901 | KL57: Goods and services | KM57: 001001001002
G58: 2 | H58: Higher education institutions | I58: =INDEX(('Econ ENE'!$M$5:$M$71),MATCH(Tables!H58,OFFSET('Econ ENE'!$Q$5:$Q$71,0,Tables!G58),0)) -> 47 | L58: 3 | M58: Legal requirement | T58: 13 | U58: Women | W58: 9 | X58: Public Enterprises | Y58: 2 | Z58: State-owned Companies Governance Assurance and Performance | AB58: 3 | AC58: Communications | AD58: 3 | AE58: Industry and Capacity Development | AF58: 1 | AG58: Broadcasting Digital Migration | AH58: =REPT(0,3-LEN(T_Sprog[[#This Row],[Vote No.]]))&T_Sprog[[#This Row],[Vote No.]] -> 003 | AI58: =REPT(0,3-LEN(T_Sprog[[#This Row],[Programme No.]]))&T_Sprog[[#This Row],[Programme No.]] -> 003 | AJ58: =REPT(0,3-LEN(T_Sprog[[#This Row],[Subprogramme No.]]))&T_Sprog[[#This Row],[Subprogramme No.]] -> 001 | AK58: =T_Sprog[[#This Row],[DeptID]]&T_Sprog[[#This Row],[ProgID]] -> 003003 | AL58: =T_Sprog[[#This Row],[ComboID_DP]]&T_Sprog[[#This Row],[SProgID]] -> 003003001 | BV58: 3 | BW58: Communications | BX58: 3 | BY58: Industry and Capacity Development | BZ58: 1 | CA58: Compensation of employees | CB58: 13505.14334 | CC58: 003001 | CD58: 003003001 | CE58: 003003 | CG58: =T_ENE_2016[[#This Row],[Vote No.]]&T_ENE_2016[[#This Row],[Programme No.]]&T_ENE_2016[[#This Row],[Subprogramme No.]] -> 121 | CH58: =INDEX((T_Econ3[Econ3_No]),MATCH(T_ENE_2016[[#This Row],[Econ4]],T_Econ3[Econ3],0)) -> 1 | CI58: 1 | CJ58: The Presidency | CK58: 2 | CL58: Executive Support | CM58: 1 | CN58: Cabinet Services | CO58: Current payments | CP58: Compensation of employees | CQ58: Compensation of employees | CR58: 15682 | CS58: 14287 | CT58: 16293 | CU58: 16143 | CV58: 16143 | CW58: 17232 | CX58: 18413 | CY58: 19794 | DC58: 18413 | DD58: 19794 | DE58: 21080 | DF58: The Presidency|Executive Support | DG58: 001 | DH58: 002 | DI58: 001 | DJ58: 001 | DK58: 001002 | DL58: 001001 | DM58: 1 | DN58: 001002001001 | DP58: 001002001 | DS58: 004472 | DT58: 2 | DU58: 4 | DV58: Cooperative Governance and Traditional Affairs | DW58: 4 | DX58: National Disaster Management Centre | DY58: 7 | DZ58: Provincial disaster relief grant | EA58: 123591 | EB58: 130904 | EC58: 138489 | ED58: 00447 | EE58: Disaster Relief Grant | EH58: Transfers and subsidies | EI58: Provinces and municipalities | EJ58: Provinces | EK58: Current | EL58: =LEFT(T_Transfers_NAT[[#This Row],[Uid]],4)&T_Transfers_NAT[[#This Row],[TCounterProgLvl]] -> 00442 | EM58: =IF(T_Transfers_NAT[[#This Row],[Vote No.]]<>DU57,1,IF(T_Transfers_NAT[[#This Row],[Programme No.]]<>DW57,1,EM57+1)) -> 2 | EP58: The Presidency | EQ58: Executive Support | ER58: 12 | ES58: 3 | ET58: 0 | EU58: 3 | EV58: 2683 | EW58: 3 | EX58: 2919 | EY58: 3 | EZ58: 3150 | FA58: 3 | FB58: 3401 | FC58: The Presidency|Executive Support | FD58: 001 | FE58: 002 | FF58: 001002 | FI58: 2 | FJ58: =T_InfraS[[#This Row],[Project name]]&"|"&T_InfraS[[#This Row],[Type of infrastructure]] -> Lebombo official residential accommodation|Building | FK58: =COUNTIF(T_InfraS[Project name],T_InfraS[[#This Row],[Project name]]) -> 2 | FL58: 5 | FM58: Home Affairs | FN58: Departmental infrastructure | FO58: Small projects | FP58: Administration | FQ58: Lebombo official residential accommodation | FR58: Building | FS58: Feasibility | FT58: Upgrading and additions | FU58: Provision of residential accommodation for officials | FV58: 11456 | FW58: 436 | FX58: 0 | FY58: 0 | FZ58: 0 | GA58: 0 | GB58: =T_InfraS[[#This Row],[2020/21 Revised Baseline]]*(1+$GB$33) -> 0 | GC58: 5 | GD58: 1 | GE58: 3 | GF58: 513 | GG58: 005 | GH58: =IF(T_InfraS[[#This Row],[Department]]<>FM57,1,GH57+1) -> 22 | GI58: 022 | GJ58: 005022 | GT58: 23 | GV58: My_Transfers_Existing_Area5 | GW58: $K$108:$K$157 | HA58: 23 | HB58: 2018/19 | HH58: 16 | HI58: Health | HJ58: 2 | HK58: National Health Insurance, Health Planning and Systems Enablement | HL58: 5 | HM58: Health Financing and National Health Insurance | HN58: National health insurance grant | HO58: Current | HP58: Transfers and subsidies | HQ58: Provinces and municipalities | HR58: Provinces | HS58: PCG | HT58: 76956 | HU58: 61077 | HV58: 94227 | HW58: 0 | HX58: 0 | HY58: 0 | HZ58: 0 | IA58: 0 | IB58: 0 | ID58: =SUMIF(Table28[Transfers and subsidies / Payments for financial assets detail],T_SharesGrants[[#This Row],[Transfers and subsidies / Payments for financial assets detail]],Table28[2021/22]) -> 0 | IE58: 1 | IF58: 16251 | IG58: 01621 | IH58: 1 | JA58: 23 | JB58: =IFERROR(INDEX(T_InfraS[Project name],MATCH(IZ58,T_InfraS[Combo_Lookup],0)),"") ->  | JK58: 0 | JL58: 2 | JM58: 7 | JN58: 007002 | JO58: National Treasury | JP58: Post-Retirement medical scheme | JQ58: 1511127 | JR58: 2109613 | JS58: 2135862 | JT58: 2404553 | JU58: 2615996 | JV58: 2896491 | JW58: 3068233 | JX58: 3236985.815 | KD58: The Presidency | KE58: Administration | KF58: Management | KG58: NAT | KH58: National share (Including debt-services costs) | KI58: National share (Excluding debt-services costs) | KJ58: Not related to or unavailable | KK58: 5296 | KL58: Goods and services | KM58: 001001001002
G59: 2 | H59: Foreign governments and international organisations | I59: =INDEX(('Econ ENE'!$M$5:$M$71),MATCH(Tables!H59,OFFSET('Econ ENE'!$Q$5:$Q$71,0,Tables!G59),0)) -> 48 | L59: 4 | M59: Cost containment / efficiency | W59: 9 | X59: Public Enterprises | Y59: 3 | Z59: Business Enhancement, Transformation and Industrialisation | AB59: 3 | AC59: Communications | AD59: 3 | AE59: Industry and Capacity Development | AF59: 2 | AG59: Industry Research and Analysis | AH59: =REPT(0,3-LEN(T_Sprog[[#This Row],[Vote No.]]))&T_Sprog[[#This Row],[Vote No.]] -> 003 | AI59: =REPT(0,3-LEN(T_Sprog[[#This Row],[Programme No.]]))&T_Sprog[[#This Row],[Programme No.]] -> 003 | AJ59: =REPT(0,3-LEN(T_Sprog[[#This Row],[Subprogramme No.]]))&T_Sprog[[#This Row],[Subprogramme No.]] -> 002 | AK59: =T_Sprog[[#This Row],[DeptID]]&T_Sprog[[#This Row],[ProgID]] -> 003003 | AL59: =T_Sprog[[#This Row],[ComboID_DP]]&T_Sprog[[#This Row],[SProgID]] -> 003003002 | AS59: Dept | AT59: ProgNo | AU59: SPNo | AX59: DSP_ID | AY59: SPSP_ID | AZ59: Prog | BA59: Sprog | BN59: Costing assumptions | BV59: 3 | BW59: Communications | BX59: 3 | BY59: Industry and Capacity Development | BZ59: 2 | CA59: Goods and Services | CB59: 7426.86726 | CC59: 003002 | CD59: 003003002 | CE59: 003003 | CG59: =T_ENE_2016[[#This Row],[Vote No.]]&T_ENE_2016[[#This Row],[Programme No.]]&T_ENE_2016[[#This Row],[Subprogramme No.]] -> 121 | CH59: =INDEX((T_Econ3[Econ3_No]),MATCH(T_ENE_2016[[#This Row],[Econ4]],T_Econ3[Econ3],0)) -> 2 | CI59: 1 | CJ59: The Presidency | CK59: 2 | CL59: Executive Support | CM59: 1 | CN59: Cabinet Services | CO59: Current payments | CP59: Goods and services | CQ59: Goods and services | CR59: 4030 | CS59: 12334 | CT59: 28759 | CU59: 28259 | CV59: 28259 | CW59: 31190 | CX59: 32761 | CY59: 34507 | DC59: 32761 | DD59: 34507 | DE59: 36404 | DF59: The Presidency|Executive Support | DG59: 001 | DH59: 002 | DI59: 001 | DJ59: 002 | DK59: 001002 | DL59: 001002 | DM59: 2 | DN59: 001002001002 | DP59: 001002002 | DS59: 004481 | DT59: 1 | DU59: 4 | DV59: Cooperative Governance and Traditional Affairs | DW59: 4 | DX59: National Disaster Management Centre | DY59: 8 | DZ59: Municipal disaster recovery grant | EA59: 21317 | EB59: 0 | EC59: 0 | ED59: 00448 | EE59: Municipal Disaster Recovery Grant | EH59: Transfers and subsidies | EI59: Provinces and municipalities | EJ59: Municipalities | EK59: Capital | EL59: =LEFT(T_Transfers_NAT[[#This Row],[Uid]],4)&T_Transfers_NAT[[#This Row],[TCounterProgLvl]] -> 00443 | EM59: =IF(T_Transfers_NAT[[#This Row],[Vote No.]]<>DU58,1,IF(T_Transfers_NAT[[#This Row],[Programme No.]]<>DW58,1,EM58+1)) -> 3 | EP59: The Presidency | EQ59: Executive Support | ER59: 13 | ES59: 3 | ET59: 2 | EU59: 3 | EV59: 2889 | EW59: 3 | EX59: 3690 | EY59: 3 | EZ59: 3944 | FA59: 3 | FB59: 4219 | FC59: The Presidency|Executive Support | FD59: 001 | FE59: 002 | FF59: 001002 | FI59: 2 | FJ59: =T_InfraS[[#This Row],[Project name]]&"|"&T_InfraS[[#This Row],[Type of infrastructure]] -> Lebombo official residential accommodation|Building | FK59: =COUNTIF(T_InfraS[Project name],T_InfraS[[#This Row],[Project name]]) -> 2 | FL59: 5 | FM59: Home Affairs | FN59: Departmental infrastructure | FO59: Small projects | FP59: Administration | FQ59: Lebombo official residential accommodation | FR59: Building | FS59: Feasibility | FT59: Maintenance and repair | FU59: Provision of residential accommodation for officials | FV59: 0 | FW59: 0 | FX59: 0 | FY59: 11000 | FZ59: 13500 | GA59: 15082 | GB59: =T_InfraS[[#This Row],[2020/21 Revised Baseline]]*(1+$GB$33) -> 16213.15 | GC59: 5 | GD59: 1 | GE59: 3 | GF59: 513 | GG59: 005 | GH59: =IF(T_InfraS[[#This Row],[Department]]<>FM58,1,GH58+1) -> 23 | GI59: 023 | GJ59: 005023 | GT59: 24 | GV59: My_Transfers_Existing_Area6 | GW59: $L$108:$L$157 | HA59: 24 | HB59: 2019/20 | HH59: 16 | HI59: Health | HJ59: 3 | HK59: HIV and AIDS, Tuberculosis, and Maternal and Child Health | HL59: 2 | HM59: HIV and AIDS | HN59: Comprehensive HIV and AIDS grant | HO59: Current | HP59: Transfers and subsidies | HQ59: Provinces and municipalities | HR59: Provinces | HS59: PCG | HT59: 12102108 | HU59: 13670730 | HV59: 0 | HW59: 0 | HX59: 0 | HY59: 0 | HZ59: 0 | IA59: 0 | IB59: 0 | ID59: =SUMIF(Table28[Transfers and subsidies / Payments for financial assets detail],T_SharesGrants[[#This Row],[Transfers and subsidies / Payments for financial assets detail]],Table28[2021/22]) -> 0 | IE59: 1 | IF59: 16321 | IG59: 01631 | IH59: 1 | JA59: 24 | JB59: =IFERROR(INDEX(T_InfraS[Project name],MATCH(IZ59,T_InfraS[Combo_Lookup],0)),"") ->  | JK59: 0 | JL59: 3 | JM59: 7 | JN59: 007003 | JO59: National Treasury | JP59: Secret Services | JQ59: 286736 | JR59: 307211 | JS59: 403474 | JT59: 303554 | JU59: 417067 | JV59: 440422 | JW59: 464645 | JX59: 490200.475 | KD59: The Presidency | KE59: Administration | KF59: Support Service to President | KG59: NAT | KH59: National share (Including debt-services costs) | KI59: National share (Excluding debt-services costs) | KJ59: Not related to or unavailable | KK59: 72 | KL59: Goods and services | KM59: 001001002002
G60: 2 | H60: Public corporations and private enterprises | I60: =INDEX(('Econ ENE'!$M$5:$M$71),MATCH(Tables!H60,OFFSET('Econ ENE'!$Q$5:$Q$71,0,Tables!G60),0)) -> 49 | W60: 10 | X60: Public Service and Administration | Y60: 1 | Z60: Administration | AB60: 3 | AC60: Communications | AD60: 3 | AE60: Industry and Capacity Development | AF60: 3 | AG60: Inter-governmental Relations and Stakeholder Management | AH60: =REPT(0,3-LEN(T_Sprog[[#This Row],[Vote No.]]))&T_Sprog[[#This Row],[Vote No.]] -> 003 | AI60: =REPT(0,3-LEN(T_Sprog[[#This Row],[Programme No.]]))&T_Sprog[[#This Row],[Programme No.]] -> 003 | AJ60: =REPT(0,3-LEN(T_Sprog[[#This Row],[Subprogramme No.]]))&T_Sprog[[#This Row],[Subprogramme No.]] -> 003 | AK60: =T_Sprog[[#This Row],[DeptID]]&T_Sprog[[#This Row],[ProgID]] -> 003003 | AL60: =T_Sprog[[#This Row],[ComboID_DP]]&T_Sprog[[#This Row],[SProgID]] -> 003003003 | AS60: =REPT("0",3-LEN($AT$6))&AT6 ->  | AT60: 1 | AU60: 1 | AV60: =REPT("0",3-LEN(AT60))&AT60 -> 001 | AW60: =REPT("0",3-LEN(AU60))&AU60 -> 001 | AX60: =AS60&AV60 ->  | AY60: =AX60&AW60 ->  | AZ60: =IFERROR(INDEX((T_Sprog[Programme]),MATCH(AX60,T_Sprog[ComboID_DP],0)),"") ->  | BA60: =IFERROR(INDEX((T_Sprog[Subprogramme]),MATCH(AY60,T_Sprog[ComboID_DPSP],0)),"") ->  | BN60: Item | BO60: 2018/19 | BP60: 2019/20 | BQ60: 2020/21 | BV60: 3 | BW60: Communications | BX60: 3 | BY60: Industry and Capacity Development | BZ60: 52 | CA60: Social benefits | CB60: 465.31943 | CC60: 003052 | CD60: 003003052 | CE60: 003003 | CG60: =T_ENE_2016[[#This Row],[Vote No.]]&T_ENE_2016[[#This Row],[Programme No.]]&T_ENE_2016[[#This Row],[Subprogramme No.]] -> 121 | CH60: =INDEX((T_Econ3[Econ3_No]),MATCH(T_ENE_2016[[#This Row],[Econ4]],T_Econ3[Econ3],0)) -> 57 | CI60: 1 | CJ60: The Presidency | CK60: 2 | CL60: Executive Support | CM60: 1 | CN60: Cabinet Services | CO60: Payments for capital assets | CP60: Machinery and equipment | CQ60: Other machinery and equipment | CR60: 810 | CS60: 407 | CT60: 1117 | CU60: 1117 | CV60: 1117 | CW60: 1155 | CX60: 1212 | CY60: 1275 | DC60: 1212 | DD60: 1275 | DE60: 1345 | DF60: The Presidency|Executive Support | DG60: 001 | DH60: 002 | DI60: 001 | DJ60: 057 | DK60: 001002 | DL60: 001057 | DM60: 57 | DN60: 001002001057 | DP60: 001002057 | DS60: 004561 | DT60: 1 | DU60: 4 | DV60: Cooperative Governance and Traditional Affairs | DW60: 5 | DX60: Local Government Support and Intervention Management | DY60: 6 | DZ60: Municipal infrastructure grant | EA60: 15287685 | EB60: 15733731 | EC60: 16599086 | ED60: 00456 | EE60: Municipal Infrastructure Grant | EH60: Transfers and subsidies | EI60: Provinces and municipalities | EJ60: Municipalities | EK60: Capital | EL60: =LEFT(T_Transfers_NAT[[#This Row],[Uid]],4)&T_Transfers_NAT[[#This Row],[TCounterProgLvl]] -> 00451 | EM60: =IF(T_Transfers_NAT[[#This Row],[Vote No.]]<>DU59,1,IF(T_Transfers_NAT[[#This Row],[Programme No.]]<>DW59,1,EM59+1)) -> 1 | EP60: The Presidency | EQ60: Executive Support | ER60: 14 | ES60: 2 | ET60: 0 | EU60: 2 | EV60: 2692 | EW60: 2 | EX60: 2700 | EY60: 2 | EZ60: 2784 | FA60: 2 | FB60: 2870 | FC60: The Presidency|Executive Support | FD60: 001 | FE60: 002 | FF60: 001002 | FI60: 2 | FJ60: =T_InfraS[[#This Row],[Project name]]&"|"&T_InfraS[[#This Row],[Type of infrastructure]] -> Lebombo refugee reception centre |Building | FK60: =COUNTIF(T_InfraS[Project name],T_InfraS[[#This Row],[Project name]]) -> 2 | FL60: 5 | FM60: Home Affairs | FN60: Departmental infrastructure | FO60: Small projects | FP60: Administration | FQ60: Lebombo refugee reception centre | FR60: Building | FS60: Feasibility | FT60: Upgrading and additions | FU60: Construction of a refugee reception centre | FV60: 1500 | FW60: 896 | FX60: 0 | FY60: 0 | FZ60: 0 | GA60: 0 | GB60: =T_InfraS[[#This Row],[2020/21 Revised Baseline]]*(1+$GB$33) -> 0 | GC60: 5 | GD60: 1 | GE60: 3 | GF60: 513 | GG60: 005 | GH60: =IF(T_InfraS[[#This Row],[Department]]<>FM59,1,GH59+1) -> 24 | GI60: 024 | GJ60: 005024 | GT60: 25 | GV60: My_Transfers_New_Area1 | GW60: $G$162:$G$181 | HA60: 25 | HB60: Existing/New | HH60: 16 | HI60: Health | HJ60: 3 | HK60: HIV and AIDS, Tuberculosis, and Maternal and Child Health | HL60: 2 | HM60: HIV and AIDS | HN60: Comprehensive HIV, AIDS and tuberculosis grant | HO60: Current | HP60: Transfers and subsidies | HQ60: Provinces and municipalities | HR60: Provinces | HS60: PCG | HT60: 0 | HU60: 0 | HV60: 15290603 | HW60: 17557903 | HX60: 17577737 | HY60: 17577737 | HZ60: 19921697 | IA60: 22038995 | IB60: 24438471 | ID60: =SUMIF(Table28[Transfers and subsidies / Payments for financial assets detail],T_SharesGrants[[#This Row],[Transfers and subsidies / Payments for financial assets detail]],Table28[2021/22]) -> 26782587 | IE60: 2 | IF60: 16322 | IG60: 01632 | IH60: 2 | JA60: 25 | JB60: =IFERROR(INDEX(T_InfraS[Project name],MATCH(IZ60,T_InfraS[Combo_Lookup],0)),"") ->  | JK60: 0 | JL60: 4 | JM60: 7 | JN60: 007004 | JO60: National Treasury | JP60: Government Technical Advisory Centre | JQ60: 28300 | JR60: 693000 | JS60: 625602 | JT60: 524964 | JU60: 777680 | JV60: 867157 | JW60: 975051 | JX60: 1028678.805 | KD60: The Presidency | KE60: Administration | KF60: Management | KG60: NAT | KH60: National share (Including debt-services costs) | KI60: National share (Excluding debt-services costs) | KJ60: Not related to or unavailable | KK60: 5410 | KL60: Goods and services | KM60: 001001001002
G61: 3 | H61: Public corporations | I61: =INDEX(('Econ ENE'!$M$5:$M$71),MATCH(Tables!H61,OFFSET('Econ ENE'!$Q$5:$Q$71,0,Tables!G61),0)) -> 49 | W61: 10 | X61: Public Service and Administration | Y61: 2 | Z61: Policy Development, Research and Analysis | AB61: 3 | AC61: Communications | AD61: 4 | AE61: Entity Oversight | AF61: 1 | AG61: Programme Management for Entity Oversight | AH61: =REPT(0,3-LEN(T_Sprog[[#This Row],[Vote No.]]))&T_Sprog[[#This Row],[Vote No.]] -> 003 | AI61: =REPT(0,3-LEN(T_Sprog[[#This Row],[Programme No.]]))&T_Sprog[[#This Row],[Programme No.]] -> 004 | AJ61: =REPT(0,3-LEN(T_Sprog[[#This Row],[Subprogramme No.]]))&T_Sprog[[#This Row],[Subprogramme No.]] -> 001 | AK61: =T_Sprog[[#This Row],[DeptID]]&T_Sprog[[#This Row],[ProgID]] -> 003004 | AL61: =T_Sprog[[#This Row],[ComboID_DP]]&T_Sprog[[#This Row],[SProgID]] -> 003004001 | AS61: =AS60 ->  | AT61: 1 | AU61: 2 | AV61: =REPT("0",3-LEN(AT61))&AT61 -> 001 | AW61: 002 | AZ61: =IFERROR(INDEX((T_Sprog[Programme]),MATCH(AX61,T_Sprog[ComboID_DP],0)),"") ->  | BA61: =IFERROR(INDEX((T_Sprog[Subprogramme]),MATCH(AY61,T_Sprog[ComboID_DPSP],0)),"") ->  | BN61: CPI | BO61: 0.057 | BP61: 0.056 | BQ61: 0.055 | BV61: 3 | BW61: Communications | BX61: 3 | BY61: Industry and Capacity Development | BZ61: 63 | CA61: Payments for financial assets | CB61: 3.6 | CC61: 003063 | CD61: 003003063 | CE61: 003003 | CG61: =T_ENE_2016[[#This Row],[Vote No.]]&T_ENE_2016[[#This Row],[Programme No.]]&T_ENE_2016[[#This Row],[Subprogramme No.]] -> 121 | CH61: =INDEX((T_Econ3[Econ3_No]),MATCH(T_ENE_2016[[#This Row],[Econ4]],T_Econ3[Econ3],0)) -> 52 | CI61: 1 | CJ61: The Presidency | CK61: 2 | CL61: Executive Support | CM61: 1 | CN61: Cabinet Services | CO61: Transfers and subsidies | CP61: Households | CQ61: Social benefits | CR61: 0 | CS61: 591 | CT61: 0 | CU61: 1320 | CV61: 1320 | CW61: 0 | CX61: 0 | CY61: 0 | DC61: 0 | DD61: 0 | DE61: 0 | DF61: The Presidency|Executive Support | DG61: 001 | DH61: 002 | DI61: 001 | DJ61: 052 | DK61: 001002 | DL61: 001052 | DM61: 52 | DN61: 001002001052 | DP61: 001002052 | DS61: 004571 | DT61: 1 | DU61: 4 | DV61: Cooperative Governance and Traditional Affairs | DW61: 5 | DX61: Local Government Support and Intervention Management | DY61: 7 | DZ61: Municipal Infrastructure Support Agent | EA61: 342456 | EB61: 355593 | EC61: 375151 | ED61: 00457 | EE61: Municipal Infrastructure Support Agent | EH61: Transfers and subsidies | EI61: Departmental agencies and accounts | EJ61: Departmental agencies (non-business entities) | EK61: Current | EL61: =LEFT(T_Transfers_NAT[[#This Row],[Uid]],4)&T_Transfers_NAT[[#This Row],[TCounterProgLvl]] -> 00452 | EM61: =IF(T_Transfers_NAT[[#This Row],[Vote No.]]<>DU60,1,IF(T_Transfers_NAT[[#This Row],[Programme No.]]<>DW60,1,EM60+1)) -> 2 | EP61: The Presidency | EQ61: Executive Support | ER61: 15 | ES61: 1 | ET61: 0 | EU61: 1 | EV61: 1460 | EW61: 1 | EX61: 1771 | EY61: 1 | EZ61: 1893 | FA61: 1 | FB61: 2025 | FC61: The Presidency|Executive Support | FD61: 001 | FE61: 002 | FF61: 001002 | FI61: 2 | FJ61: =T_InfraS[[#This Row],[Project name]]&"|"&T_InfraS[[#This Row],[Type of infrastructure]] -> Lebombo refugee reception centre |Building | FK61: =COUNTIF(T_InfraS[Project name],T_InfraS[[#This Row],[Project name]]) -> 2 | FL61: 5 | FM61: Home Affairs | FN61: Departmental infrastructure | FO61: Small projects | FP61: Administration | FQ61: Lebombo refugee reception centre | FR61: Building | FS61: Feasibility | FT61: Maintenance and repair | FU61: Construction of a refugee reception centre | FV61: 0 | FW61: 0 | FX61: 0 | FY61: 10000 | FZ61: 12000 | GA61: 13500 | GB61: =T_InfraS[[#This Row],[2020/21 Revised Baseline]]*(1+$GB$33) -> 14512.5 | GC61: 5 | GD61: 1 | GE61: 3 | GF61: 513 | GG61: 005 | GH61: =IF(T_InfraS[[#This Row],[Department]]<>FM60,1,GH60+1) -> 25 | GI61: 025 | GJ61: 005025 | GT61: 26 | GV61: My_Transfers_New_Area2 | GW61: $H$162:$H$181 | HA61: 26 | HB61: Infrastructure category | HH61: 16 | HI61: Health | HJ61: 3 | HK61: HIV and AIDS, Tuberculosis, and Maternal and Child Health | HL61: 5 | HM61: Child, Youth and School Health | HN61: Human papillomavirus vaccine grant | HO61: Current | HP61: Transfers and subsidies | HQ61: Provinces and municipalities | HR61: Provinces | HS61: PCG | HT61: 0 | HU61: 0 | HV61: 0 | HW61: 0 | HX61: 0 | HY61: 0 | HZ61: 200000 | IA61: 211200 | IB61: 222816 | ID61: =SUMIF(Table28[Transfers and subsidies / Payments for financial assets detail],T_SharesGrants[[#This Row],[Transfers and subsidies / Payments for financial assets detail]],Table28[2021/22]) -> 235071 | IE61: 1 | IF61: 16351 | IG61: 01633 | IH61: 3 | JA61: 26 | JB61: =IFERROR(INDEX(T_InfraS[Project name],MATCH(IZ61,T_InfraS[Combo_Lookup],0)),"") ->  | JK61: 0 | JL61: 5 | JM61: 7 | JN61: 007005 | JO61: National Treasury | JP61: BRICS | JQ61: 0 | JR61: 2298000 | JS61: 3515000 | JT61: 4500000 | JU61: 3991000 | JV61: 4250000 | JW61: 4483360 | JX61: 4729944.8 | KD61: The Presidency | KE61: Administration | KF61: Support Service to President | KG61: NAT | KH61: National share (Including debt-services costs) | KI61: National share (Excluding debt-services costs) | KJ61: Not related to or unavailable | KK61: 94 | KL61: Goods and services | KM61: 001001002002
G62: 3 | H62: Private enterprises | I62: =INDEX(('Econ ENE'!$M$5:$M$71),MATCH(Tables!H62,OFFSET('Econ ENE'!$Q$5:$Q$71,0,Tables!G62),0)) -> 50 | W62: 10 | X62: Public Service and Administration | Y62: 3 | Z62: Public Service Employment and Conditions of Service | AB62: 3 | AC62: Communications | AD62: 4 | AE62: Entity Oversight | AF62: 2 | AG62: Broadcasting and Community Media | AH62: =REPT(0,3-LEN(T_Sprog[[#This Row],[Vote No.]]))&T_Sprog[[#This Row],[Vote No.]] -> 003 | AI62: =REPT(0,3-LEN(T_Sprog[[#This Row],[Programme No.]]))&T_Sprog[[#This Row],[Programme No.]] -> 004 | AJ62: =REPT(0,3-LEN(T_Sprog[[#This Row],[Subprogramme No.]]))&T_Sprog[[#This Row],[Subprogramme No.]] -> 002 | AK62: =T_Sprog[[#This Row],[DeptID]]&T_Sprog[[#This Row],[ProgID]] -> 003004 | AL62: =T_Sprog[[#This Row],[ComboID_DP]]&T_Sprog[[#This Row],[SProgID]] -> 003004002 | AT62: 1 | AU62: 3 | AV62: 001 | AW62: 003 | AZ62: =IFERROR(INDEX((T_Sprog[Programme]),MATCH(AX62,T_Sprog[ComboID_DP],0)),"") ->  | BA62: =IFERROR(INDEX((T_Sprog[Subprogramme]),MATCH(AY62,T_Sprog[ComboID_DPSP],0)),"") ->  | BN62: CoLA | BO62: 0.067 | BP62: 0.066 | BQ62: 0.075 | BV62: 3 | BW62: Communications | BX62: 4 | BY62: Entity Oversight | BZ62: 1 | CA62: Compensation of employees | CB62: 4235.8178 | CC62: 003001 | CD62: 003004001 | CE62: 003004 | CG62: =T_ENE_2016[[#This Row],[Vote No.]]&T_ENE_2016[[#This Row],[Programme No.]]&T_ENE_2016[[#This Row],[Subprogramme No.]] -> 121 | CH62: =INDEX((T_Econ3[Econ3_No]),MATCH(T_ENE_2016[[#This Row],[Econ4]],T_Econ3[Econ3],0)) -> 63 | CI62: 1 | CJ62: The Presidency | CK62: 2 | CL62: Executive Support | CM62: 1 | CN62: Cabinet Services | CO62: Payments for financial assets | CP62: Payments for financial assets | CQ62: Payments for financial assets | CR62: 3 | CS62: 5 | CT62: 0 | CU62: 0 | CV62: 0 | CW62: 0 | CX62: 0 | CY62: 0 | DC62: 0 | DD62: 0 | DE62: 0 | DF62: The Presidency|Executive Support | DG62: 001 | DH62: 002 | DI62: 001 | DJ62: 063 | DK62: 001002 | DL62: 001063 | DM62: 63 | DN62: 001002001063 | DP62: 001002063 | DS62: 004611 | DT62: 1 | DU62: 4 | DV62: Cooperative Governance and Traditional Affairs | DW62: 6 | DX62: Community Work Programme | DY62: 1 | DZ62: National Bodies: Community Care | EA62: 1000799 | EB62: 1200000 | EC62: 1400000 | ED62: 00461 | EE62: Management: Community Work Programme | EH62: Transfers and subsidies | EI62: Non-profit institutions | EJ62: Non-profit institutions | EK62: Current | EL62: =LEFT(T_Transfers_NAT[[#This Row],[Uid]],4)&T_Transfers_NAT[[#This Row],[TCounterProgLvl]] -> 00461 | EM62: =IF(T_Transfers_NAT[[#This Row],[Vote No.]]<>DU61,1,IF(T_Transfers_NAT[[#This Row],[Programme No.]]<>DW61,1,EM61+1)) -> 1 | EP62: Communications | EQ62: Administration | ER62: 1 | ES62: 0 | ET62: 0 | EU62: 0 | EV62: 0 | EW62: 0 | EX62: 0 | EY62: 1 | EZ62: 12 | FA62: 1 | FB62: 13 | FC62: Communications|Administration | FD62: 003 | FE62: 001 | FF62: 003001 | FI62: 1 | FJ62: =T_InfraS[[#This Row],[Project name]]&"|"&T_InfraS[[#This Row],[Type of infrastructure]] -> Lichtenburg|Upgrading of offices | FK62: =COUNTIF(T_InfraS[Project name],T_InfraS[[#This Row],[Project name]]) -> 1 | FL62: 5 | FM62: Home Affairs | FN62: Departmental infrastructure | FO62: Small projects | FP62: Administration | FQ62: Lichtenburg | FR62: Upgrading of offices | FS62: Construction | FT62: Upgrading and additions | FU62: Upgrades and renovations of office buildings (such as painting and new flooring) | FV62: 300 | FW62: 0 | FX62: 5000 | FY62: 0 | FZ62: 0 | GA62: 0 | GB62: =T_InfraS[[#This Row],[2020/21 Revised Baseline]]*(1+$GB$33) -> 0 | GC62: 5 | GD62: 1 | GE62: 3 | GF62: 513 | GG62: 005 | GH62: =IF(T_InfraS[[#This Row],[Department]]<>FM61,1,GH61+1) -> 26 | GI62: 026 | GJ62: 005026 | GT62: 27 | GV62: My_Transfers_New_Area3 | GW62: $I$162:$I$181 | HA62: 27 | HB62: Project category | HH62: 16 | HI62: Health | HJ62: 5 | HK62: Hospitals, Tertiary Health Services and Human Resource Development | HL62: 2 | HM62: Health Facilities Infrastructure Management | HN62: Health facility revitalisation grant | HO62: Capital | HP62: Transfers and subsidies | HQ62: Provinces and municipalities | HR62: Provinces | HS62: PCG | HT62: 5501981 | HU62: 5417045 | HV62: 5272680 | HW62: 5654495 | HX62: 5684495 | HY62: 5684495 | HZ62: 5815694 | IA62: 6046973 | IB62: 6379557 | ID62: =SUMIF(Table28[Transfers and subsidies / Payments for financial assets detail],T_SharesGrants[[#This Row],[Transfers and subsidies / Payments for financial assets detail]],Table28[2021/22]) -> 6858024 | IE62: 1 | IF62: 16521 | IG62: 01651 | IH62: 1 | JA62: 27 | JB62: =IFERROR(INDEX(T_InfraS[Project name],MATCH(IZ62,T_InfraS[Combo_Lookup],0)),"") ->  | JK62: 0 | JL62: 1 | JM62: 8 | JN62: 008001 | JO62: Planning, Monitoring and Evaluation | JP62: National Youth Development Agency | JQ62: 408237 | JR62: 409789 | JS62: 405766 | JT62: 432806 | JU62: 446461 | JV62: 463838 | JW62: 489348 | JX62: 516262.14 | KD62: The Presidency | KE62: Administration | KF62: Support Service to Deputy President | KG62: NAT | KH62: National share (Including debt-services costs) | KI62: National share (Excluding debt-services costs) | KJ62: Not related to or unavailable | KK62: 121 | KL62: Goods and services | KM62: 001001003002
G63: 2 | H63: Non-profit institutions | I63: =INDEX(('Econ ENE'!$M$5:$M$71),MATCH(Tables!H63,OFFSET('Econ ENE'!$Q$5:$Q$71,0,Tables!G63),0)) -> 51 | W63: 10 | X63: Public Service and Administration | Y63: 4 | Z63: Government Chief Information Officer | AB63: 3 | AC63: Communications | AD63: 4 | AE63: Entity Oversight | AF63: 3 | AG63: Communication and Branding | AH63: =REPT(0,3-LEN(T_Sprog[[#This Row],[Vote No.]]))&T_Sprog[[#This Row],[Vote No.]] -> 003 | AI63: =REPT(0,3-LEN(T_Sprog[[#This Row],[Programme No.]]))&T_Sprog[[#This Row],[Programme No.]] -> 004 | AJ63: =REPT(0,3-LEN(T_Sprog[[#This Row],[Subprogramme No.]]))&T_Sprog[[#This Row],[Subprogramme No.]] -> 003 | AK63: =T_Sprog[[#This Row],[DeptID]]&T_Sprog[[#This Row],[ProgID]] -> 003004 | AL63: =T_Sprog[[#This Row],[ComboID_DP]]&T_Sprog[[#This Row],[SProgID]] -> 003004003 | AT63: 1 | AU63: 4 | AV63: 001 | AW63: 004 | AZ63: =IFERROR(INDEX((T_Sprog[Programme]),MATCH(AX63,T_Sprog[ComboID_DP],0)),"") ->  | BA63: =IFERROR(INDEX((T_Sprog[Subprogramme]),MATCH(AY63,T_Sprog[ComboID_DPSP],0)),"") ->  | BV63: 3 | BW63: Communications | BX63: 4 | BY63: Entity Oversight | BZ63: 2 | CA63: Goods and Services | CB63: 430.07228 | CC63: 003002 | CD63: 003004002 | CE63: 003004 | CG63: =T_ENE_2016[[#This Row],[Vote No.]]&T_ENE_2016[[#This Row],[Programme No.]]&T_ENE_2016[[#This Row],[Subprogramme No.]] -> 131 | CH63: =INDEX((T_Econ3[Econ3_No]),MATCH(T_ENE_2016[[#This Row],[Econ4]],T_Econ3[Econ3],0)) -> 1 | CI63: 1 | CJ63: The Presidency | CK63: 3 | CL63: Direct charge against the National Revenue Fund | CM63: 1 | CN63: Salary of the President | CO63: Current payments | CP63: Compensation of employees | CQ63: Compensation of employees | CR63: 2885 | CS63: 2996 | CT63: 3438 | CU63: 3438 | CV63: 3438 | CW63: 3637 | CX63: 3913 | CY63: 4206 | DC63: 3913 | DD63: 4206 | DE63: 4479 | DF63: The Presidency|Direct charge against the National Revenue Fund | DG63: 001 | DH63: 003 | DI63: 001 | DJ63: 001 | DK63: 001003 | DL63: 001001 | DM63: 1 | DN63: 001003001001 | DP63: 001003001 | DS63: 005111 | DT63: 1 | DU63: 5 | DV63: Home Affairs | DW63: 1 | DX63: Administration | DY63: 1 | DZ63: Communication | EA63: 4 | EB63: 4 | EC63: 4 | ED63: 00511 | EE63: Ministry | EH63: Transfers and subsidies | EI63: Departmental agencies and accounts | EJ63: Departmental agencies (non-business entities) | EK63: Current | EL63: =LEFT(T_Transfers_NAT[[#This Row],[Uid]],4)&T_Transfers_NAT[[#This Row],[TCounterProgLvl]] -> 00511 | EM63: =IF(T_Transfers_NAT[[#This Row],[Vote No.]]<>DU62,1,IF(T_Transfers_NAT[[#This Row],[Programme No.]]<>DW62,1,EM62+1)) -> 1 | EP63: Communications | EQ63: Administration | ER63: 2 | ES63: 0 | ET63: 0 | EU63: 0 | EV63: 0 | EW63: 0 | EX63: 0 | EY63: 0 | EZ63: 0 | FA63: 1 | FB63: 107 | FC63: Communications|Administration | FD63: 003 | FE63: 001 | FF63: 003001 | FI63: 1 | FJ63: =T_InfraS[[#This Row],[Project name]]&"|"&T_InfraS[[#This Row],[Type of infrastructure]] -> Look and feel|Upgrading of offices | FK63: =COUNTIF(T_InfraS[Project name],T_InfraS[[#This Row],[Project name]]) -> 1 | FL63: 5 | FM63: Home Affairs | FN63: Departmental infrastructure | FO63: Small projects | FP63: Administration | FQ63: Look and feel | FR63: Upgrading of offices | FS63: Construction | FT63: Maintenance and repair | FU63: Upgrades and renovations of office buildings (such as painting and new flooring) | FV63: 18612 | FW63: 11568 | FX63: 0 | FY63: 0 | FZ63: 0 | GA63: 0 | GB63: =T_InfraS[[#This Row],[2020/21 Revised Baseline]]*(1+$GB$33) -> 0 | GC63: 5 | GD63: 1 | GE63: 3 | GF63: 513 | GG63: 005 | GH63: =IF(T_InfraS[[#This Row],[Department]]<>FM62,1,GH62+1) -> 27 | GI63: 027 | GJ63: 005027 | GT63: 28 | GV63: My_Transfers_New_Area4 | GW63: $J$162:$J$181 | HA63: 28 | HB63: Programme/Project name | HH63: 16 | HI63: Health | HJ63: 5 | HK63: Hospitals, Tertiary Health Services and Human Resource Development | HL63: 3 | HM63: Tertiary Health Care Planning and Policy | HN63: National tertiary services grant | HO63: Current | HP63: Transfers and subsidies | HQ63: Provinces and municipalities | HR63: Provinces | HS63: PCG | HT63: 10168235 | HU63: 10381174 | HV63: 10846778 | HW63: 11676145 | HX63: 11676145 | HY63: 11676145 | HZ63: 12400703 | IA63: 13185528 | IB63: 14068863 | ID63: =SUMIF(Table28[Transfers and subsidies / Payments for financial assets detail],T_SharesGrants[[#This Row],[Transfers and subsidies / Payments for financial assets detail]],Table28[2021/22]) -> 14842650 | IE63: 1 | IF63: 16531 | IG63: 01652 | IH63: 2 | JA63: 28 | JB63: =IFERROR(INDEX(T_InfraS[Project name],MATCH(IZ63,T_InfraS[Combo_Lookup],0)),"") ->  | JK63: 0 | JL63: 2 | JM63: 8 | JN63: 008002 | JO63: Planning, Monitoring and Evaluation | JP63: Computer services | JQ63: 21101 | JR63: 23485 | JS63: 24506 | JT63: 24400 | JU63: 26487 | JV63: 28065 | JW63: 29737 | JX63: 31372.535 | KD63: The Presidency | KE63: Administration | KF63: Management | KG63: NAT | KH63: National share (Including debt-services costs) | KI63: National share (Excluding debt-services costs) | KJ63: Not related to or unavailable | KK63: 3949 | KL63: Goods and services | KM63: 001001001002
G64: 2 | H64: Households | I64: =INDEX(('Econ ENE'!$M$5:$M$71),MATCH(Tables!H64,OFFSET('Econ ENE'!$Q$5:$Q$71,0,Tables!G64),0)) -> 52 | W64: 10 | X64: Public Service and Administration | Y64: 5 | Z64: Service Delivery Support | AB64: 3 | AC64: Communications | AD64: 4 | AE64: Entity Oversight | AF64: 4 | AG64: Regulatory Institutions | AH64: =REPT(0,3-LEN(T_Sprog[[#This Row],[Vote No.]]))&T_Sprog[[#This Row],[Vote No.]] -> 003 | AI64: =REPT(0,3-LEN(T_Sprog[[#This Row],[Programme No.]]))&T_Sprog[[#This Row],[Programme No.]] -> 004 | AJ64: =REPT(0,3-LEN(T_Sprog[[#This Row],[Subprogramme No.]]))&T_Sprog[[#This Row],[Subprogramme No.]] -> 004 | AK64: =T_Sprog[[#This Row],[DeptID]]&T_Sprog[[#This Row],[ProgID]] -> 003004 | AL64: =T_Sprog[[#This Row],[ComboID_DP]]&T_Sprog[[#This Row],[SProgID]] -> 003004004 | AT64: 1 | AU64: 5 | AV64: 001 | AW64: 005 | AZ64: =IFERROR(INDEX((T_Sprog[Programme]),MATCH(AX64,T_Sprog[ComboID_DP],0)),"") ->  | BA64: =IFERROR(INDEX((T_Sprog[Subprogramme]),MATCH(AY64,T_Sprog[ComboID_DPSP],0)),"") ->  | BV64: 3 | BW64: Communications | BX64: 4 | BY64: Entity Oversight | BZ64: 46 | CA64: Departmental agencies (non-business entities) | CB64: 1147822 | CC64: 003046 | CD64: 003004046 | CE64: 003004 | CG64: =T_ENE_2016[[#This Row],[Vote No.]]&T_ENE_2016[[#This Row],[Programme No.]]&T_ENE_2016[[#This Row],[Subprogramme No.]] -> 132 | CH64: =INDEX((T_Econ3[Econ3_No]),MATCH(T_ENE_2016[[#This Row],[Econ4]],T_Econ3[Econ3],0)) -> 1 | CI64: 1 | CJ64: The Presidency | CK64: 3 | CL64: Direct charge against the National Revenue Fund | CM64: 2 | CN64: Salary of the Deputy President | CO64: Current payments | CP64: Compensation of employees | CQ64: Compensation of employees | CR64: 2735 | CS64: 2717 | CT64: 2935 | CU64: 2935 | CV64: 2935 | CW64: 3105 | CX64: 3341 | CY64: 3592 | DC64: 3341 | DD64: 3592 | DE64: 3825 | DF64: The Presidency|Direct charge against the National Revenue Fund | DG64: 001 | DH64: 003 | DI64: 002 | DJ64: 001 | DK64: 001003 | DL64: 001001 | DM64: 1 | DN64: 001003002001 | DP64: 001003001 | DS64: 005121 | DT64: 1 | DU64: 5 | DV64: Home Affairs | DW64: 1 | DX64: Administration | DY64: 2 | DZ64: Vehicle licences | EA64: 252 | EB64: 266 | EC64: 281 | ED64: 00512 | EE64: Management Support Services | EH64: Transfers and subsidies | EI64: Provinces and municipalities | EJ64: Municipalities | EK64: Current | EL64: =LEFT(T_Transfers_NAT[[#This Row],[Uid]],4)&T_Transfers_NAT[[#This Row],[TCounterProgLvl]] -> 00512 | EM64: =IF(T_Transfers_NAT[[#This Row],[Vote No.]]<>DU63,1,IF(T_Transfers_NAT[[#This Row],[Programme No.]]<>DW63,1,EM63+1)) -> 2 | EP64: Communications | EQ64: Administration | ER64: 3 | ES64: 2 | ET64: 1 | EU64: 3 | EV64: 544 | EW64: 3 | EX64: 561 | EY64: 2 | EZ64: 404 | FA64: 2 | FB64: 436 | FC64: Communications|Administration | FD64: 003 | FE64: 001 | FF64: 003001 | FI64: 2 | FJ64: =T_InfraS[[#This Row],[Project name]]&"|"&T_InfraS[[#This Row],[Type of infrastructure]] -> Louis Trichardt|Upgrading of offices | FK64: =COUNTIF(T_InfraS[Project name],T_InfraS[[#This Row],[Project name]]) -> 2 | FL64: 5 | FM64: Home Affairs | FN64: Departmental infrastructure | FO64: Small projects | FP64: Administration | FQ64: Louis Trichardt | FR64: Upgrading of offices | FS64: Construction | FT64: Upgrading and additions | FU64: Upgrades and renovations of office buildings (such as painting and new flooring) | FV64: 773 | FW64: 0 | FX64: 1000 | FY64: 0 | FZ64: 0 | GA64: 0 | GB64: =T_InfraS[[#This Row],[2020/21 Revised Baseline]]*(1+$GB$33) -> 0 | GC64: 5 | GD64: 1 | GE64: 3 | GF64: 513 | GG64: 005 | GH64: =IF(T_InfraS[[#This Row],[Department]]<>FM63,1,GH63+1) -> 28 | GI64: 028 | GJ64: 005028 | GT64: 29 | GV64: My_Transfers_New_Area5 | GW64: $K$162:$K$181 | HA64: 29 | HB64: Type of infrastructure | HH64: 16 | HI64: Health | HJ64: 5 | HK64: Hospitals, Tertiary Health Services and Human Resource Development | HL64: 5 | HM64: Human Resources for Health | HN64: Health professions training and development grant | HO64: Current | HP64: Transfers and subsidies | HQ64: Provinces and municipalities | HR64: Provinces | HS64: PCG | HT64: 2321788 | HU64: 2374722 | HV64: 2476724 | HW64: 2631849 | HX64: 2631849 | HY64: 2631849 | HZ64: 2784496 | IA64: 2940428 | IB64: 3102152 | ID64: =SUMIF(Table28[Transfers and subsidies / Payments for financial assets detail],T_SharesGrants[[#This Row],[Transfers and subsidies / Payments for financial assets detail]],Table28[2021/22]) -> 3272770 | IE64: 1 | IF64: 16551 | IG64: 01653 | IH64: 3 | JA64: 29 | JB64: =IFERROR(INDEX(T_InfraS[Project name],MATCH(IZ64,T_InfraS[Combo_Lookup],0)),"") ->  | JK64: 0 | JL64: 3 | JM64: 8 | JN64: 008003 | JO64: Planning, Monitoring and Evaluation | JP64: Consultants: Business and advisory services | JQ64: 52545 | JR64: 51168 | JS64: 61591 | JT64: 91735 | JU64: 36379 | JV64: 35195 | JW64: 38717 | JX64: 40846.435 | KD64: The Presidency | KE64: Administration | KF64: Support Service to President | KG64: NAT | KH64: National share (Including debt-services costs) | KI64: National share (Excluding debt-services costs) | KJ64: Not related to or unavailable | KK64: 742 | KL64: Goods and services | KM64: 001001002002
G65: 3 | H65: Social benefits | I65: =INDEX(('Econ ENE'!$M$5:$M$71),MATCH(Tables!H65,OFFSET('Econ ENE'!$Q$5:$Q$71,0,Tables!G65),0)) -> 52 | W65: 10 | X65: Public Service and Administration | Y65: 6 | Z65: Governance of Public Administration | AB65: 4 | AC65: Cooperative Governance and Traditional Affairs | AD65: 1 | AE65: Administration | AF65: 1 | AG65: Ministry | AH65: =REPT(0,3-LEN(T_Sprog[[#This Row],[Vote No.]]))&T_Sprog[[#This Row],[Vote No.]] -> 004 | AI65: =REPT(0,3-LEN(T_Sprog[[#This Row],[Programme No.]]))&T_Sprog[[#This Row],[Programme No.]] -> 001 | AJ65: =REPT(0,3-LEN(T_Sprog[[#This Row],[Subprogramme No.]]))&T_Sprog[[#This Row],[Subprogramme No.]] -> 001 | AK65: =T_Sprog[[#This Row],[DeptID]]&T_Sprog[[#This Row],[ProgID]] -> 004001 | AL65: =T_Sprog[[#This Row],[ComboID_DP]]&T_Sprog[[#This Row],[SProgID]] -> 004001001 | AT65: 1 | AU65: 6 | AV65: 001 | AW65: 006 | AZ65: =IFERROR(INDEX((T_Sprog[Programme]),MATCH(AX65,T_Sprog[ComboID_DP],0)),"") ->  | BA65: =IFERROR(INDEX((T_Sprog[Subprogramme]),MATCH(AY65,T_Sprog[ComboID_DPSP],0)),"") ->  | BV65: 3 | BW65: Communications | BX65: 4 | BY65: Entity Oversight | BZ65: 49 | CA65: Public corporations | CB65: 173766 | CC65: 003049 | CD65: 003004049 | CE65: 003004 | CG65: =T_ENE_2016[[#This Row],[Vote No.]]&T_ENE_2016[[#This Row],[Programme No.]]&T_ENE_2016[[#This Row],[Subprogramme No.]] -> 211 | CH65: =INDEX((T_Econ3[Econ3_No]),MATCH(T_ENE_2016[[#This Row],[Econ4]],T_Econ3[Econ3],0)) -> 1 | CI65: 2 | CJ65: Parliament | CK65: 1 | CL65: Strategic Leadership and Governance | CM65: 1 | CN65: Office of the Speaker | CO65: Current payments | CP65: Compensation of employees | CQ65: Compensation of employees | CR65: 27473 | CS65: 33326 | CT65: 27933 | CU65: 27933 | CV65: 27933 | CW65: 40292 | CX65: 30638 | CY65: 42168 | DC65: 30638 | DD65: 42168 | DE65: 44908 | DF65: Parliament|Strategic Leadership and Governance | DG65: 002 | DH65: 001 | DI65: 001 | DJ65: 001 | DK65: 002001 | DL65: 002001 | DM65: 1 | DN65: 002001001001 | DP65: 002001001 | DS65: 005122 | DT65: 2 | DU65: 5 | DV65: Home Affairs | DW65: 1 | DX65: Administration | DY65: 2 | DZ65: Employee social benefits | EA65: 813 | EB65: 859 | EC65: 906 | ED65: 00512 | EE65: Management Support Services | EH65: Transfers and subsidies | EI65: Households | EJ65: Social benefits | EK65: Current | EL65: =LEFT(T_Transfers_NAT[[#This Row],[Uid]],4)&T_Transfers_NAT[[#This Row],[TCounterProgLvl]] -> 00513 | EM65: =IF(T_Transfers_NAT[[#This Row],[Vote No.]]<>DU64,1,IF(T_Transfers_NAT[[#This Row],[Programme No.]]<>DW64,1,EM64+1)) -> 3 | EP65: Communications | EQ65: Administration | ER65: 4 | ES65: 0 | ET65: 0 | EU65: 0 | EV65: 0 | EW65: 0 | EX65: 0 | EY65: 3 | EZ65: 680 | FA65: 3 | FB65: 734 | FC65: Communications|Administration | FD65: 003 | FE65: 001 | FF65: 003001 | FI65: 2 | FJ65: =T_InfraS[[#This Row],[Project name]]&"|"&T_InfraS[[#This Row],[Type of infrastructure]] -> Louis Trichardt|Upgrading of offices | FK65: =COUNTIF(T_InfraS[Project name],T_InfraS[[#This Row],[Project name]]) -> 2 | FL65: 5 | FM65: Home Affairs | FN65: Departmental infrastructure | FO65: Small projects | FP65: Administration | FQ65: Louis Trichardt | FR65: Upgrading of offices | FS65: Construction | FT65: Maintenance and repair | FU65: Upgrades and renovations of office buildings (such as painting and new flooring) | FV65: 0 | FW65: 0 | FX65: 0 | FY65: 3500 | FZ65: 0 | GA65: 0 | GB65: =T_InfraS[[#This Row],[2020/21 Revised Baseline]]*(1+$GB$33) -> 0 | GC65: 5 | GD65: 1 | GE65: 3 | GF65: 513 | GG65: 005 | GH65: =IF(T_InfraS[[#This Row],[Department]]<>FM64,1,GH64+1) -> 29 | GI65: 029 | GJ65: 005029 | GT65: 30 | GV65: My_Transfers_New_Area6 | GW65: $L$162:$L$181 | HA65: 30 | HB65: Current project stage | HH65: 17 | HI65: Social Development | HJ65: 4 | HK65: Welfare Services Policy Development and Implementation Support | HL65: 2 | HM65: Substance Abuse | HN65: Substance abuse treatment grant | HO65: Capital | HP65: Transfers and subsidies | HQ65: Provinces and municipalities | HR65: Provinces | HS65: PCG | HT65: 27530 | HU65: 47500 | HV65: 85500 | HW65: 56950 | HX65: 56950 | HY65: 56950 | HZ65: 70833 | IA65: 74800 | IB65: 78914 | ID65: =SUMIF(Table28[Transfers and subsidies / Payments for financial assets detail],T_SharesGrants[[#This Row],[Transfers and subsidies / Payments for financial assets detail]],Table28[2021/22]) -> 83254 | IE65: 1 | IF65: 17421 | IG65: 01741 | IH65: 1 | JA65: 30 | JB65: =IFERROR(INDEX(T_InfraS[Project name],MATCH(IZ65,T_InfraS[Combo_Lookup],0)),"") ->  | JK65: 0 | JL65: 4 | JM65: 8 | JN65: 008004 | JO65: Planning, Monitoring and Evaluation | JP65: Operating leases | JQ65: 2852 | JR65: 6655 | JS65: 6903 | JT65: 10436 | JU65: 15987 | JV65: 20849 | JW65: 22089 | JX65: 23303.895 | KD65: The Presidency | KE65: Administration | KF65: Management | KG65: NAT | KH65: National share (Including debt-services costs) | KI65: National share (Excluding debt-services costs) | KJ65: Not related to or unavailable | KK65: 5173 | KL65: Goods and services | KM65: 001001001002
G66: 3 | H66: Other transfers to households | I66: =INDEX(('Econ ENE'!$M$5:$M$71),MATCH(Tables!H66,OFFSET('Econ ENE'!$Q$5:$Q$71,0,Tables!G66),0)) -> 53 | M66: Previous year sources | W66: 11 | X66: Public Works | Y66: 1 | Z66: Administration | AB66: 4 | AC66: Cooperative Governance and Traditional Affairs | AD66: 1 | AE66: Administration | AF66: 2 | AG66: Management | AH66: =REPT(0,3-LEN(T_Sprog[[#This Row],[Vote No.]]))&T_Sprog[[#This Row],[Vote No.]] -> 004 | AI66: =REPT(0,3-LEN(T_Sprog[[#This Row],[Programme No.]]))&T_Sprog[[#This Row],[Programme No.]] -> 001 | AJ66: =REPT(0,3-LEN(T_Sprog[[#This Row],[Subprogramme No.]]))&T_Sprog[[#This Row],[Subprogramme No.]] -> 002 | AK66: =T_Sprog[[#This Row],[DeptID]]&T_Sprog[[#This Row],[ProgID]] -> 004001 | AL66: =T_Sprog[[#This Row],[ComboID_DP]]&T_Sprog[[#This Row],[SProgID]] -> 004001002 | AT66: 1 | AU66: 7 | AV66: 001 | AW66: 007 | AZ66: =IFERROR(INDEX((T_Sprog[Programme]),MATCH(AX66,T_Sprog[ComboID_DP],0)),"") ->  | BA66: =IFERROR(INDEX((T_Sprog[Subprogramme]),MATCH(AY66,T_Sprog[ComboID_DPSP],0)),"") ->  | BV66: 4 | BW66: Cooperative Governance and Traditional Affairs | BX66: 1 | BY66: Administration | BZ66: 1 | CA66: Compensation of employees | CB66: 124051.4119 | CC66: 004001 | CD66: 004001001 | CE66: 004001 | CG66: =T_ENE_2016[[#This Row],[Vote No.]]&T_ENE_2016[[#This Row],[Programme No.]]&T_ENE_2016[[#This Row],[Subprogramme No.]] -> 211 | CH66: =INDEX((T_Econ3[Econ3_No]),MATCH(T_ENE_2016[[#This Row],[Econ4]],T_Econ3[Econ3],0)) -> 2 | CI66: 2 | CJ66: Parliament | CK66: 1 | CL66: Strategic Leadership and Governance | CM66: 1 | CN66: Office of the Speaker | CO66: Current payments | CP66: Goods and services | CQ66: Goods and services | CR66: 17446 | CS66: 11545 | CT66: 11177 | CU66: 11177 | CV66: 11177 | CW66: 11856 | CX66: 12711 | CY66: 13410 | DC66: 12711 | DD66: 13410 | DE66: 14152 | DF66: Parliament|Strategic Leadership and Governance | DG66: 002 | DH66: 001 | DI66: 001 | DJ66: 002 | DK66: 002001 | DL66: 002002 | DM66: 2 | DN66: 002001001002 | DP66: 002001002 | DS66: 005123 | DT66: 3 | DU66: 5 | DV66: Home Affairs | DW66: 1 | DX66: Administration | DY66: 2 | DZ66: Communication | EA66: 4 | EB66: 4 | EC66: 4 | ED66: 00512 | EE66: Management Support Services | EH66: Transfers and subsidies | EI66: Departmental agencies and accounts | EJ66: Departmental agencies (non-business entities) | EK66: Current | EL66: =LEFT(T_Transfers_NAT[[#This Row],[Uid]],4)&T_Transfers_NAT[[#This Row],[TCounterProgLvl]] -> 00514 | EM66: =IF(T_Transfers_NAT[[#This Row],[Vote No.]]<>DU65,1,IF(T_Transfers_NAT[[#This Row],[Programme No.]]<>DW65,1,EM65+1)) -> 4 | EP66: Communications | EQ66: Administration | ER66: 5 | ES66: 2 | ET66: 0 | EU66: 3 | EV66: 719 | EW66: 2 | EX66: 508 | EY66: 3 | EZ66: 822 | FA66: 2 | FB66: 592 | FC66: Communications|Administration | FD66: 003 | FE66: 001 | FF66: 003001 | FI66: 2 | FJ66: =T_InfraS[[#This Row],[Project name]]&"|"&T_InfraS[[#This Row],[Type of infrastructure]] -> Lusikisiki|Building | FK66: =COUNTIF(T_InfraS[Project name],T_InfraS[[#This Row],[Project name]]) -> 2 | FL66: 5 | FM66: Home Affairs | FN66: Departmental infrastructure | FO66: Small projects | FP66: Administration | FQ66: Lusikisiki | FR66: Building | FS66: Various | FT66: Upgrading and additions | FU66: Demolition of old prison and construction of new office building | FV66: 250 | FW66: 4643 | FX66: 1500 | FY66: 0 | FZ66: 0 | GA66: 0 | GB66: =T_InfraS[[#This Row],[2020/21 Revised Baseline]]*(1+$GB$33) -> 0 | GC66: 5 | GD66: 1 | GE66: 3 | GF66: 513 | GG66: 005 | GH66: =IF(T_InfraS[[#This Row],[Department]]<>FM65,1,GH65+1) -> 30 | GI66: 030 | GJ66: 005030 | GT66: 31 | GV66: My_Transfers_New_Area7 | GW66: $M$162:$M$181 | HA66: 31 | HB66: 2017/18 | HH66: 17 | HI66: Social Development | HJ66: 4 | HK66: Welfare Services Policy Development and Implementation Support | HL66: 5 | HM66: Children | HN66: Early childhood development grant | HO66: Current | HP66: Transfers and subsidies | HQ66: Provinces and municipalities | HR66: Provinces | HS66: PCG | HT66: 0 | HU66: 0 | HV66: 0 | HW66: 317612 | HX66: 317612 | HY66: 317612 | HZ66: 490800 | IA66: 518228 | IB66: 552949 | ID66: =SUMIF(Table28[Transfers and subsidies / Payments for financial assets detail],T_SharesGrants[[#This Row],[Transfers and subsidies / Payments for financial assets detail]],Table28[2021/22]) -> 583361 | IE66: 1 | IF66: 17451 | IG66: 01742 | IH66: 2 | JA66: 31 | JB66: =IFERROR(INDEX(T_InfraS[Project name],MATCH(IZ66,T_InfraS[Combo_Lookup],0)),"") ->  | JK66: 0 | JL66: 5 | JM66: 8 | JN66: 008005 | JO66: Planning, Monitoring and Evaluation | JP66: Travel and subsistence | JQ66: 28408 | JR66: 33163 | JS66: 35588 | JT66: 36067 | JU66: 37094 | JV66: 38686 | JW66: 40466 | JX66: 42152.525 | KD66: The Presidency | KE66: Administration | KF66: Support Service to President | KG66: NAT | KH66: National share (Including debt-services costs) | KI66: National share (Excluding debt-services costs) | KJ66: Not related to or unavailable | KK66: 13 | KL66: Goods and services | KM66: 001001002002
G67: 1 | H67: Payments for capital assets | I67: =INDEX(('Econ ENE'!$M$5:$M$71),MATCH(Tables!H67,OFFSET('Econ ENE'!$Q$5:$Q$71,0,Tables!G67),0)) -> 54 | M67: AFS | W67: 11 | X67: Public Works | Y67: 2 | Z67: Intergovernmental Coordination | AB67: 4 | AC67: Cooperative Governance and Traditional Affairs | AD67: 1 | AE67: Administration | AF67: 3 | AG67: Corporate Services | AH67: =REPT(0,3-LEN(T_Sprog[[#This Row],[Vote No.]]))&T_Sprog[[#This Row],[Vote No.]] -> 004 | AI67: =REPT(0,3-LEN(T_Sprog[[#This Row],[Programme No.]]))&T_Sprog[[#This Row],[Programme No.]] -> 001 | AJ67: =REPT(0,3-LEN(T_Sprog[[#This Row],[Subprogramme No.]]))&T_Sprog[[#This Row],[Subprogramme No.]] -> 003 | AK67: =T_Sprog[[#This Row],[DeptID]]&T_Sprog[[#This Row],[ProgID]] -> 004001 | AL67: =T_Sprog[[#This Row],[ComboID_DP]]&T_Sprog[[#This Row],[SProgID]] -> 004001003 | AT67: 1 | AU67: 8 | AV67: 001 | AW67: 008 | AZ67: =IFERROR(INDEX((T_Sprog[Programme]),MATCH(AX67,T_Sprog[ComboID_DP],0)),"") ->  | BA67: =IFERROR(INDEX((T_Sprog[Subprogramme]),MATCH(AY67,T_Sprog[ComboID_DPSP],0)),"") ->  | BV67: 4 | BW67: Cooperative Governance and Traditional Affairs | BX67: 1 | BY67: Administration | BZ67: 2 | CA67: Goods and Services | CB67: 128834.5101 | CC67: 004002 | CD67: 004001002 | CE67: 004001 | CG67: =T_ENE_2016[[#This Row],[Vote No.]]&T_ENE_2016[[#This Row],[Programme No.]]&T_ENE_2016[[#This Row],[Subprogramme No.]] -> 211 | CH67: =INDEX((T_Econ3[Econ3_No]),MATCH(T_ENE_2016[[#This Row],[Econ4]],T_Econ3[Econ3],0)) -> 57 | CI67: 2 | CJ67: Parliament | CK67: 1 | CL67: Strategic Leadership and Governance | CM67: 1 | CN67: Office of the Speaker | CO67: Payments for capital assets | CP67: Machinery and equipment | CQ67: Other machinery and equipment | CR67: 263 | CS67: 32 | CT67: 292 | CU67: 292 | CV67: 292 | CW67: 309 | CX67: 326 | CY67: 344 | DC67: 326 | DD67: 344 | DE67: 363 | DF67: Parliament|Strategic Leadership and Governance | DG67: 002 | DH67: 001 | DI67: 001 | DJ67: 057 | DK67: 002001 | DL67: 002057 | DM67: 57 | DN67: 002001001057 | DP67: 002001057 | DS67: 005131 | DT67: 1 | DU67: 5 | DV67: Home Affairs | DW67: 1 | DX67: Administration | DY67: 3 | DZ67: Vehicle licences | EA67: 565 | EB67: 597 | EC67: 630 | ED67: 00513 | EE67: Corporate Services | EH67: Transfers and subsidies | EI67: Provinces and municipalities | EJ67: Municipalities | EK67: Current | EL67: =LEFT(T_Transfers_NAT[[#This Row],[Uid]],4)&T_Transfers_NAT[[#This Row],[TCounterProgLvl]] -> 00515 | EM67: =IF(T_Transfers_NAT[[#This Row],[Vote No.]]<>DU66,1,IF(T_Transfers_NAT[[#This Row],[Programme No.]]<>DW66,1,EM66+1)) -> 5 | EP67: Communications | EQ67: Administration | ER67: 6 | ES67: 9 | ET67: 0 | EU67: 11 | EV67: 2290 | EW67: 11 | EX67: 3201 | EY67: 11 | EZ67: 3454 | FA67: 11 | FB67: 3730 | FC67: Communications|Administration | FD67: 003 | FE67: 001 | FF67: 003001 | FI67: 2 | FJ67: =T_InfraS[[#This Row],[Project name]]&"|"&T_InfraS[[#This Row],[Type of infrastructure]] -> Lusikisiki|Building | FK67: =COUNTIF(T_InfraS[Project name],T_InfraS[[#This Row],[Project name]]) -> 2 | FL67: 5 | FM67: Home Affairs | FN67: Departmental infrastructure | FO67: Small projects | FP67: Administration | FQ67: Lusikisiki | FR67: Building | FS67: Various | FT67: Maintenance and repair | FU67: Renovations, repairs and maintenance of buildings to make them habitable | FV67: 0 | FW67: 0 | FX67: 0 | FY67: 43762 | FZ67: 3726 | GA67: 0 | GB67: =T_InfraS[[#This Row],[2020/21 Revised Baseline]]*(1+$GB$33) -> 0 | GC67: 5 | GD67: 1 | GE67: 3 | GF67: 513 | GG67: 005 | GH67: =IF(T_InfraS[[#This Row],[Department]]<>FM66,1,GH66+1) -> 31 | GI67: 031 | GJ67: 005031 | GT67: 32 | GV67: My_Grants_Area1 | GW67: $G$190:$G$204 | HA67: 32 | HB67: 2018/19 | HH67: 17 | HI67: Social Development | HJ67: 4 | HK67: Welfare Services Policy Development and Implementation Support | HL67: 10 | HM67: Social Worker Scholarships | HN67: Social worker employment grant | HO67: Current | HP67: Transfers and subsidies | HQ67: Provinces and municipalities | HR67: Provinces | HS67: PCG | HT67: 0 | HU67: 0 | HV67: 0 | HW67: 181830 | HX67: 181830 | HY67: 181830 | HZ67: 196783 | IA67: 212656 | IB67: 226904 | ID67: =SUMIF(Table28[Transfers and subsidies / Payments for financial assets detail],T_SharesGrants[[#This Row],[Transfers and subsidies / Payments for financial assets detail]],Table28[2021/22]) -> 239384 | IE67: 1 | IF67: 174101 | IG67: 01743 | IH67: 3 | JA67: 32 | JB67: =IFERROR(INDEX(T_InfraS[Project name],MATCH(IZ67,T_InfraS[Combo_Lookup],0)),"") ->  | JK67: 0 | JL67: 6 | JM67: 8 | JN67: 008006 | JO67: Planning, Monitoring and Evaluation | JP67: Compensation of employees | JQ67: 161141 | JR67: 176910 | JS67: 202190 | JT67: 243737 | JU67: 312788 | JV67: 331556 | JW67: 356423 | JX67: 376131.375 | KD67: The Presidency | KE67: Administration | KF67: Management | KG67: NAT | KH67: National share (Including debt-services costs) | KI67: National share (Excluding debt-services costs) | KJ67: Not related to or unavailable | KK67: 18 | KL67: Goods and services | KM67: 001001001002
G68: 2 | H68: Buildings and other fixed structures | I68: =INDEX(('Econ ENE'!$M$5:$M$71),MATCH(Tables!H68,OFFSET('Econ ENE'!$Q$5:$Q$71,0,Tables!G68),0)) -> 54 | M68: ENE | W68: 11 | X68: Public Works | Y68: 3 | Z68: Expanded Public Works Programme | AB68: 4 | AC68: Cooperative Governance and Traditional Affairs | AD68: 1 | AE68: Administration | AF68: 4 | AG68: Financial Services | AH68: =REPT(0,3-LEN(T_Sprog[[#This Row],[Vote No.]]))&T_Sprog[[#This Row],[Vote No.]] -> 004 | AI68: =REPT(0,3-LEN(T_Sprog[[#This Row],[Programme No.]]))&T_Sprog[[#This Row],[Programme No.]] -> 001 | AJ68: =REPT(0,3-LEN(T_Sprog[[#This Row],[Subprogramme No.]]))&T_Sprog[[#This Row],[Subprogramme No.]] -> 004 | AK68: =T_Sprog[[#This Row],[DeptID]]&T_Sprog[[#This Row],[ProgID]] -> 004001 | AL68: =T_Sprog[[#This Row],[ComboID_DP]]&T_Sprog[[#This Row],[SProgID]] -> 004001004 | AT68: 1 | AU68: 9 | AV68: 001 | AW68: 009 | AZ68: =IFERROR(INDEX((T_Sprog[Programme]),MATCH(AX68,T_Sprog[ComboID_DP],0)),"") ->  | BA68: =IFERROR(INDEX((T_Sprog[Subprogramme]),MATCH(AY68,T_Sprog[ComboID_DPSP],0)),"") ->  | BV68: 4 | BW68: Cooperative Governance and Traditional Affairs | BX68: 1 | BY68: Administration | BZ68: 43 | CA68: Provinces | CB68: 22.1964 | CC68: 004043 | CD68: 004001043 | CE68: 004001 | CG68: =T_ENE_2016[[#This Row],[Vote No.]]&T_ENE_2016[[#This Row],[Programme No.]]&T_ENE_2016[[#This Row],[Subprogramme No.]] -> 212 | CH68: =INDEX((T_Econ3[Econ3_No]),MATCH(T_ENE_2016[[#This Row],[Econ4]],T_Econ3[Econ3],0)) -> 1 | CI68: 2 | CJ68: Parliament | CK68: 1 | CL68: Strategic Leadership and Governance | CM68: 2 | CN68: Office of the Chairperson | CO68: Current payments | CP68: Compensation of employees | CQ68: Compensation of employees | CR68: 16642 | CS68: 27837 | CT68: 16946 | CU68: 16946 | CV68: 16946 | CW68: 28668 | CX68: 18132 | CY68: 28724 | DC68: 18132 | DD68: 28724 | DE68: 30591 | DF68: Parliament|Strategic Leadership and Governance | DG68: 002 | DH68: 001 | DI68: 002 | DJ68: 001 | DK68: 002001 | DL68: 002001 | DM68: 1 | DN68: 002001002001 | DP68: 002001001 | DS68: 005132 | DT68: 2 | DU68: 5 | DV68: Home Affairs | DW68: 1 | DX68: Administration | DY68: 3 | DZ68: Employee social benefits | EA68: 768 | EB68: 811 | EC68: 856 | ED68: 00513 | EE68: Corporate Services | EH68: Transfers and subsidies | EI68: Households | EJ68: Social benefits | EK68: Current | EL68: =LEFT(T_Transfers_NAT[[#This Row],[Uid]],4)&T_Transfers_NAT[[#This Row],[TCounterProgLvl]] -> 00516 | EM68: =IF(T_Transfers_NAT[[#This Row],[Vote No.]]<>DU67,1,IF(T_Transfers_NAT[[#This Row],[Programme No.]]<>DW67,1,EM67+1)) -> 6 | EP68: Communications | EQ68: Administration | ER68: 7 | ES68: 4 | ET68: 0 | EU68: 2 | EV68: 628 | EW68: 4 | EX68: 1316 | EY68: 4 | EZ68: 1420 | FA68: 5 | FB68: 1917 | FC68: Communications|Administration | FD68: 003 | FE68: 001 | FF68: 003001 | FI68: 1 | FJ68: =T_InfraS[[#This Row],[Project name]]&"|"&T_InfraS[[#This Row],[Type of infrastructure]] -> Marabastad|Building | FK68: =COUNTIF(T_InfraS[Project name],T_InfraS[[#This Row],[Project name]]) -> 1 | FL68: 5 | FM68: Home Affairs | FN68: Departmental infrastructure | FO68: Small projects | FP68: Administration | FQ68: Marabastad | FR68: Building | FS68: Various | FT68: Upgrading and additions | FU68: Construction of ablution block and shelter | FV68: 157 | FW68: 53304 | FX68: 0 | FY68: 0 | FZ68: 0 | GA68: 0 | GB68: =T_InfraS[[#This Row],[2020/21 Revised Baseline]]*(1+$GB$33) -> 0 | GC68: 5 | GD68: 1 | GE68: 3 | GF68: 513 | GG68: 005 | GH68: =IF(T_InfraS[[#This Row],[Department]]<>FM67,1,GH67+1) -> 32 | GI68: 032 | GJ68: 005032 | GT68: 33 | GV68: My_Grants_Area2 | GW68: $H$190:$H$204 | HA68: 33 | HB68: 2019/20 | HH68: 24 | HI68: Agriculture, Forestry and Fisheries | HJ68: 2 | HK68: Agricultural Production, Health and Food Safety | HL68: 3 | HM68: Plant Production and Health | HN68: Ilima/Letsema projects grant | HO68: Current | HP68: Transfers and subsidies | HQ68: Provinces and municipalities | HR68: Provinces | HS68: PCG | HT68: 460625 | HU68: 466713 | HV68: 491363 | HW68: 522139 | HX68: 522139 | HY68: 522139 | HZ68: 552423 | IA68: 583359 | IB68: 615444 | ID68: =SUMIF(Table28[Transfers and subsidies / Payments for financial assets detail],T_SharesGrants[[#This Row],[Transfers and subsidies / Payments for financial assets detail]],Table28[2021/22]) -> 652986 | IE68: 1 | IF68: 24231 | IG68: 02421 | IH68: 1 | JA68: 33 | JB68: =IFERROR(INDEX(T_InfraS[Project name],MATCH(IZ68,T_InfraS[Combo_Lookup],0)),"") ->  | JK68: 0 | JL68: 1 | JM68: 9 | JN68: 009001 | JO68: Public Enterprises | JP68: Compensation of employees | JQ68: 141210 | JR68: 139977 | JS68: 148321 | JT68: 156906 | JU68: 171444 | JV68: 184514 | JW68: 198312 | JX68: 211202.28 | KD68: The Presidency | KE68: Administration | KF68: Management | KG68: NAT | KH68: National share (Including debt-services costs) | KI68: National share (Excluding debt-services costs) | KJ68: Not related to or unavailable | KK68: 1625 | KL68: Goods and services | KM68: 001001001002
G69: 3 | H69: Buildings | I69: =INDEX(('Econ ENE'!$M$5:$M$71),MATCH(Tables!H69,OFFSET('Econ ENE'!$Q$5:$Q$71,0,Tables!G69),0)) -> 54 | W69: 11 | X69: Public Works | Y69: 4 | Z69: Property and Construction Industry Policy and Research | AB69: 4 | AC69: Cooperative Governance and Traditional Affairs | AD69: 1 | AE69: Administration | AF69: 5 | AG69: Internal Audit and Risk Management | AH69: =REPT(0,3-LEN(T_Sprog[[#This Row],[Vote No.]]))&T_Sprog[[#This Row],[Vote No.]] -> 004 | AI69: =REPT(0,3-LEN(T_Sprog[[#This Row],[Programme No.]]))&T_Sprog[[#This Row],[Programme No.]] -> 001 | AJ69: =REPT(0,3-LEN(T_Sprog[[#This Row],[Subprogramme No.]]))&T_Sprog[[#This Row],[Subprogramme No.]] -> 005 | AK69: =T_Sprog[[#This Row],[DeptID]]&T_Sprog[[#This Row],[ProgID]] -> 004001 | AL69: =T_Sprog[[#This Row],[ComboID_DP]]&T_Sprog[[#This Row],[SProgID]] -> 004001005 | AT69: 1 | AU69: 10 | AV69: 001 | AW69: 010 | AZ69: =IFERROR(INDEX((T_Sprog[Programme]),MATCH(AX69,T_Sprog[ComboID_DP],0)),"") ->  | BA69: =IFERROR(INDEX((T_Sprog[Subprogramme]),MATCH(AY69,T_Sprog[ComboID_DPSP],0)),"") ->  | BV69: 4 | BW69: Cooperative Governance and Traditional Affairs | BX69: 1 | BY69: Administration | BZ69: 52 | CA69: Social benefits | CB69: 96.67339 | CC69: 004052 | CD69: 004001052 | CE69: 004001 | CG69: =T_ENE_2016[[#This Row],[Vote No.]]&T_ENE_2016[[#This Row],[Programme No.]]&T_ENE_2016[[#This Row],[Subprogramme No.]] -> 212 | CH69: =INDEX((T_Econ3[Econ3_No]),MATCH(T_ENE_2016[[#This Row],[Econ4]],T_Econ3[Econ3],0)) -> 2 | CI69: 2 | CJ69: Parliament | CK69: 1 | CL69: Strategic Leadership and Governance | CM69: 2 | CN69: Office of the Chairperson | CO69: Current payments | CP69: Goods and services | CQ69: Goods and services | CR69: 22202 | CS69: 8873 | CT69: 14733 | CU69: 14733 | CV69: 14733 | CW69: 15683 | CX69: 16751 | CY69: 17672 | DC69: 16751 | DD69: 17672 | DE69: 18643 | DF69: Parliament|Strategic Leadership and Governance | DG69: 002 | DH69: 001 | DI69: 002 | DJ69: 002 | DK69: 002001 | DL69: 002002 | DM69: 2 | DN69: 002001002002 | DP69: 002001002 | DS69: 005141 | DT69: 1 | DU69: 5 | DV69: Home Affairs | DW69: 1 | DX69: Administration | DY69: 4 | DZ69: Employee social benefits | EA69: 128 | EB69: 135 | EC69: 142 | ED69: 00514 | EE69: Transversal Information Technology Management | EH69: Transfers and subsidies | EI69: Households | EJ69: Social benefits | EK69: Current | EL69: =LEFT(T_Transfers_NAT[[#This Row],[Uid]],4)&T_Transfers_NAT[[#This Row],[TCounterProgLvl]] -> 00517 | EM69: =IF(T_Transfers_NAT[[#This Row],[Vote No.]]<>DU68,1,IF(T_Transfers_NAT[[#This Row],[Programme No.]]<>DW68,1,EM68+1)) -> 7 | EP69: Communications | EQ69: Administration | ER69: 8 | ES69: 8 | ET69: 0 | EU69: 11 | EV69: 3711 | EW69: 8 | EX69: 3384 | EY69: 10 | EZ69: 4564 | FA69: 10 | FB69: 4928 | FC69: Communications|Administration | FD69: 003 | FE69: 001 | FF69: 003001 | FI69: 2 | FJ69: =T_InfraS[[#This Row],[Project name]]&"|"&T_InfraS[[#This Row],[Type of infrastructure]] -> Maseru |Building | FK69: =COUNTIF(T_InfraS[Project name],T_InfraS[[#This Row],[Project name]]) -> 2 | FL69: 5 | FM69: Home Affairs | FN69: Departmental infrastructure | FO69: Small projects | FP69: Administration | FQ69: Maseru | FR69: Building | FS69: Feasibility | FT69: Upgrading and additions | FU69: Provision of residential accommodation for officials | FV69: 2546 | FW69: 0 | FX69: 0 | FY69: 0 | FZ69: 0 | GA69: 0 | GB69: =T_InfraS[[#This Row],[2020/21 Revised Baseline]]*(1+$GB$33) -> 0 | GC69: 5 | GD69: 1 | GE69: 3 | GF69: 513 | GG69: 005 | GH69: =IF(T_InfraS[[#This Row],[Department]]<>FM68,1,GH68+1) -> 33 | GI69: 033 | GJ69: 005033 | GT69: 34 | GV69: My_Grants_Area3 | GW69: $I$190:$I$204 | HA69: 34 | HB69: Comment | HH69: 24 | HI69: Agriculture, Forestry and Fisheries | HJ69: 3 | HK69: Food Security and Agrarian Reform | HL69: 2 | HM69: Food Security | HN69: Comprehensive agricultural support programme grant: Infrastructure | HO69: Current | HP69: Transfers and subsidies | HQ69: Provinces and municipalities | HR69: Provinces | HS69: PCG | HT69: 929529 | HU69: 1167779 | HV69: 1148115 | HW69: 1112138 | HX69: 1112138 | HY69: 1112138 | HZ69: 1164766 | IA69: 1350209 | IB69: 1509021 | ID69: =SUMIF(Table28[Transfers and subsidies / Payments for financial assets detail],T_SharesGrants[[#This Row],[Transfers and subsidies / Payments for financial assets detail]],Table28[2021/22]) -> 1622198 | IE69: 1 | IF69: 24321 | IG69: 02431 | IH69: 1 | JA69: 34 | JB69: =IFERROR(INDEX(T_InfraS[Project name],MATCH(IZ69,T_InfraS[Combo_Lookup],0)),"") ->  | JK69: 0 | JL69: 2 | JM69: 9 | JN69: 009002 | JO69: Public Enterprises | JP69: Consultants: Business and advisory services | JQ69: 25080 | JR69: 14800 | JS69: 19995 | JT69: 46209 | JU69: 31970 | JV69: 36724 | JW69: 36117 | JX69: 38103.435 | KD69: The Presidency | KE69: Administration | KF69: Support Service to President | KG69: NAT | KH69: National share (Including debt-services costs) | KI69: National share (Excluding debt-services costs) | KJ69: Not related to or unavailable | KK69: 272 | KL69: Goods and services | KM69: 001001002002
G70: 3 | H70: Other fixed structures | I70: =INDEX(('Econ ENE'!$M$5:$M$71),MATCH(Tables!H70,OFFSET('Econ ENE'!$Q$5:$Q$71,0,Tables!G70),0)) -> 55 | W70: 11 | X70: Public Works | Y70: 5 | Z70: Prestige Policy | AB70: 4 | AC70: Cooperative Governance and Traditional Affairs | AD70: 1 | AE70: Administration | AF70: 6 | AG70: Office Accommodation | AH70: =REPT(0,3-LEN(T_Sprog[[#This Row],[Vote No.]]))&T_Sprog[[#This Row],[Vote No.]] -> 004 | AI70: =REPT(0,3-LEN(T_Sprog[[#This Row],[Programme No.]]))&T_Sprog[[#This Row],[Programme No.]] -> 001 | AJ70: =REPT(0,3-LEN(T_Sprog[[#This Row],[Subprogramme No.]]))&T_Sprog[[#This Row],[Subprogramme No.]] -> 006 | AK70: =T_Sprog[[#This Row],[DeptID]]&T_Sprog[[#This Row],[ProgID]] -> 004001 | AL70: =T_Sprog[[#This Row],[ComboID_DP]]&T_Sprog[[#This Row],[SProgID]] -> 004001006 | AT70: 1 | AU70: 11 | AV70: 001 | AW70: 011 | AZ70: =IFERROR(INDEX((T_Sprog[Programme]),MATCH(AX70,T_Sprog[ComboID_DP],0)),"") ->  | BA70: =IFERROR(INDEX((T_Sprog[Subprogramme]),MATCH(AY70,T_Sprog[ComboID_DPSP],0)),"") ->  | BV70: 4 | BW70: Cooperative Governance and Traditional Affairs | BX70: 1 | BY70: Administration | BZ70: 53 | CA70: Other transfers to households | CB70: 20 | CC70: 004053 | CD70: 004001053 | CE70: 004001 | CG70: =T_ENE_2016[[#This Row],[Vote No.]]&T_ENE_2016[[#This Row],[Programme No.]]&T_ENE_2016[[#This Row],[Subprogramme No.]] -> 212 | CH70: =INDEX((T_Econ3[Econ3_No]),MATCH(T_ENE_2016[[#This Row],[Econ4]],T_Econ3[Econ3],0)) -> 57 | CI70: 2 | CJ70: Parliament | CK70: 1 | CL70: Strategic Leadership and Governance | CM70: 2 | CN70: Office of the Chairperson | CO70: Payments for capital assets | CP70: Machinery and equipment | CQ70: Other machinery and equipment | CR70: 101 | CS70: 80 | CT70: 112 | CU70: 112 | CV70: 112 | CW70: 118 | CX70: 125 | CY70: 132 | DC70: 125 | DD70: 132 | DE70: 139 | DF70: Parliament|Strategic Leadership and Governance | DG70: 002 | DH70: 001 | DI70: 002 | DJ70: 057 | DK70: 002001 | DL70: 002057 | DM70: 57 | DN70: 002001002057 | DP70: 002001057 | DS70: 005251 | DT70: 1 | DU70: 5 | DV70: Home Affairs | DW70: 2 | DX70: Citizen Affairs | DY70: 5 | DZ70: Vehicle licences | EA70: 1066 | EB70: 1126 | EC70: 1188 | ED70: 00525 | EE70: Service Delivery to Provinces | EH70: Transfers and subsidies | EI70: Provinces and municipalities | EJ70: Municipalities | EK70: Current | EL70: =LEFT(T_Transfers_NAT[[#This Row],[Uid]],4)&T_Transfers_NAT[[#This Row],[TCounterProgLvl]] -> 00521 | EM70: =IF(T_Transfers_NAT[[#This Row],[Vote No.]]<>DU69,1,IF(T_Transfers_NAT[[#This Row],[Programme No.]]<>DW69,1,EM69+1)) -> 1 | EP70: Communications | EQ70: Administration | ER70: 9 | ES70: 6 | ET70: 0 | EU70: 3 | EV70: 1317 | EW70: 5 | EX70: 2328 | EY70: 6 | EZ70: 3013 | FA70: 6 | FB70: 3254 | FC70: Communications|Administration | FD70: 003 | FE70: 001 | FF70: 003001 | FI70: 2 | FJ70: =T_InfraS[[#This Row],[Project name]]&"|"&T_InfraS[[#This Row],[Type of infrastructure]] -> Maseru |Building | FK70: =COUNTIF(T_InfraS[Project name],T_InfraS[[#This Row],[Project name]]) -> 2 | FL70: 5 | FM70: Home Affairs | FN70: Departmental infrastructure | FO70: Small projects | FP70: Administration | FQ70: Maseru | FR70: Building | FS70: Feasibility | FT70: Maintenance and repair | FU70: Provision of residential accommodation for officials | FV70: 0 | FW70: 0 | FX70: 0 | FY70: 14500 | FZ70: 14500 | GA70: 14500 | GB70: =T_InfraS[[#This Row],[2020/21 Revised Baseline]]*(1+$GB$33) -> 15587.5 | GC70: 5 | GD70: 1 | GE70: 3 | GF70: 513 | GG70: 005 | GH70: =IF(T_InfraS[[#This Row],[Department]]<>FM69,1,GH69+1) -> 34 | GI70: 034 | GJ70: 005034 | GT70: 35 | GV70: My_Grants_Area4 | GW70: $J$190:$J$204 | HH70: 24 | HI70: Agriculture, Forestry and Fisheries | HJ70: 3 | HK70: Food Security and Agrarian Reform | HL70: 3 | HM70: Sector Capacity Development | HN70: Comprehensive agricultural support programme grant: Upgrading of provincial agricultural colleges | HO70: Current | HP70: Transfers and subsidies | HQ70: Provinces and municipalities | HR70: Provinces | HS70: PCG | HT70: 57701 | HU70: 69473 | HV70: 70826 | HW70: 56831 | HX70: 56831 | HY70: 56831 | HZ70: 74461 | IA70: 79672 | IB70: 87850 | ID70: =SUMIF(Table28[Transfers and subsidies / Payments for financial assets detail],T_SharesGrants[[#This Row],[Transfers and subsidies / Payments for financial assets detail]],Table28[2021/22]) -> 94439 | IE70: 1 | IF70: 24331 | IG70: 02432 | IH70: 2 | JA70: 35 | JB70: =IFERROR(INDEX(T_InfraS[Project name],MATCH(IZ70,T_InfraS[Combo_Lookup],0)),"") ->  | JK70: 0 | JL70: 3 | JM70: 9 | JN70: 009003 | JO70: Public Enterprises | JP70: Travel and subsistence | JQ70: 17422 | JR70: 19233 | JS70: 17229 | JT70: 13417 | JU70: 18064 | JV70: 18790 | JW70: 19588 | JX70: 20665.34 | KD70: The Presidency | KE70: Administration | KF70: Management | KG70: NAT | KH70: National share (Including debt-services costs) | KI70: National share (Excluding debt-services costs) | KJ70: Not related to or unavailable | KK70: 8504 | KL70: Goods and services | KM70: 001001001002
G71: 2 | H71: Machinery and equipment | I71: =INDEX(('Econ ENE'!$M$5:$M$71),MATCH(Tables!H71,OFFSET('Econ ENE'!$Q$5:$Q$71,0,Tables!G71),0)) -> 56 | W71: 12 | X71: Statistics South Africa | Y71: 1 | Z71: Administration | AB71: 4 | AC71: Cooperative Governance and Traditional Affairs | AD71: 2 | AE71: Regional and Urban Development and Legislative Support | AF71: 1 | AG71: Management Regional and Urban Development and Legislative Support | AH71: =REPT(0,3-LEN(T_Sprog[[#This Row],[Vote No.]]))&T_Sprog[[#This Row],[Vote No.]] -> 004 | AI71: =REPT(0,3-LEN(T_Sprog[[#This Row],[Programme No.]]))&T_Sprog[[#This Row],[Programme No.]] -> 002 | AJ71: =REPT(0,3-LEN(T_Sprog[[#This Row],[Subprogramme No.]]))&T_Sprog[[#This Row],[Subprogramme No.]] -> 001 | AK71: =T_Sprog[[#This Row],[DeptID]]&T_Sprog[[#This Row],[ProgID]] -> 004002 | AL71: =T_Sprog[[#This Row],[ComboID_DP]]&T_Sprog[[#This Row],[SProgID]] -> 004002001 | AT71: 1 | AU71: 12 | AV71: 001 | AW71: 012 | AZ71: =IFERROR(INDEX((T_Sprog[Programme]),MATCH(AX71,T_Sprog[ComboID_DP],0)),"") ->  | BA71: =IFERROR(INDEX((T_Sprog[Subprogramme]),MATCH(AY71,T_Sprog[ComboID_DPSP],0)),"") ->  | BV71: 4 | BW71: Cooperative Governance and Traditional Affairs | BX71: 1 | BY71: Administration | BZ71: 56 | CA71: Transport equipment | CB71: 1194.65 | CC71: 004056 | CD71: 004001056 | CE71: 004001 | CG71: =T_ENE_2016[[#This Row],[Vote No.]]&T_ENE_2016[[#This Row],[Programme No.]]&T_ENE_2016[[#This Row],[Subprogramme No.]] -> 213 | CH71: =INDEX((T_Econ3[Econ3_No]),MATCH(T_ENE_2016[[#This Row],[Econ4]],T_Econ3[Econ3],0)) -> 1 | CI71: 2 | CJ71: Parliament | CK71: 1 | CL71: Strategic Leadership and Governance | CM71: 3 | CN71: Treasury Advise Office | CO71: Current payments | CP71: Compensation of employees | CQ71: Compensation of employees | CR71: 1870 | CS71: 0 | CT71: 0 | CU71: 0 | CV71: 0 | CW71: 0 | CX71: 0 | CY71: 0 | DC71: 0 | DD71: 0 | DE71: 0 | DF71: Parliament|Strategic Leadership and Governance | DG71: 002 | DH71: 001 | DI71: 003 | DJ71: 001 | DK71: 002001 | DL71: 002001 | DM71: 1 | DN71: 002001003001 | DP71: 002001001 | DS71: 005252 | DT71: 2 | DU71: 5 | DV71: Home Affairs | DW71: 2 | DX71: Citizen Affairs | DY71: 5 | DZ71: Employee social benefits | EA71: 1376 | EB71: 1453 | EC71: 1533 | ED71: 00525 | EE71: Service Delivery to Provinces | EH71: Transfers and subsidies | EI71: Households | EJ71: Social benefits | EK71: Current | EL71: =LEFT(T_Transfers_NAT[[#This Row],[Uid]],4)&T_Transfers_NAT[[#This Row],[TCounterProgLvl]] -> 00522 | EM71: =IF(T_Transfers_NAT[[#This Row],[Vote No.]]<>DU70,1,IF(T_Transfers_NAT[[#This Row],[Programme No.]]<>DW70,1,EM70+1)) -> 2 | EP71: Communications | EQ71: Administration | ER71: 10 | ES71: 0 | ET71: 0 | EU71: 1 | EV71: 267 | EW71: 0 | EX71: 0 | EY71: 2 | EZ71: 1161 | FA71: 2 | FB71: 1254 | FC71: Communications|Administration | FD71: 003 | FE71: 001 | FF71: 003001 | FI71: 1 | FJ71: =T_InfraS[[#This Row],[Project name]]&"|"&T_InfraS[[#This Row],[Type of infrastructure]] -> Ministry|Building | FK71: =COUNTIF(T_InfraS[Project name],T_InfraS[[#This Row],[Project name]]) -> 1 | FL71: 5 | FM71: Home Affairs | FN71: Departmental infrastructure | FO71: Small projects | FP71: Administration | FQ71: Ministry | FR71: Building | FS71: Pre-feasibility | FT71: Maintenance and repair | FU71: Rezoning of office building | FV71: 159 | FW71: 0 | FX71: 0 | FY71: 0 | FZ71: 0 | GA71: 0 | GB71: =T_InfraS[[#This Row],[2020/21 Revised Baseline]]*(1+$GB$33) -> 0 | GC71: 5 | GD71: 1 | GE71: 3 | GF71: 513 | GG71: 005 | GH71: =IF(T_InfraS[[#This Row],[Department]]<>FM70,1,GH70+1) -> 35 | GI71: 035 | GJ71: 005035 | GT71: 36 | GV71: My_Grants_Area5 | GW71: $K$190:$K$204 | HH71: 24 | HI71: Agriculture, Forestry and Fisheries | HJ71: 3 | HK71: Food Security and Agrarian Reform | HL71: 4 | HM71: National Extension Support Services | HN71: Comprehensive agricultural support programme grant: Extension recovery planning services | HO71: Current | HP71: Transfers and subsidies | HQ71: Provinces and municipalities | HR71: Provinces | HS71: PCG | HT71: 352708 | HU71: 343873 | HV71: 346149 | HW71: 337906 | HX71: 337906 | HY71: 337906 | HZ71: 355648 | IA71: 380544 | IB71: 404881 | ID71: =SUMIF(Table28[Transfers and subsidies / Payments for financial assets detail],T_SharesGrants[[#This Row],[Transfers and subsidies / Payments for financial assets detail]],Table28[2021/22]) -> 427149 | IE71: 1 | IF71: 24341 | IG71: 02433 | IH71: 3 | IS71: =INDEX(Table7[Vote No.],MATCH(IT71,Table7[Department],0)) -> 24 | IT71: Agriculture, Forestry and Fisheries | JA71: 36 | JB71: =IFERROR(INDEX(T_InfraS[Project name],MATCH(IZ71,T_InfraS[Combo_Lookup],0)),"") ->  | JK71: 0 | JL71: 1 | JM71: 10 | JN71: 010001 | JO71: Public Service and Administration | JP71: Compensation of employees | JQ71: 229113 | JR71: 242534 | JS71: 254534 | JT71: 265211 | JU71: 288455 | JV71: 310454 | JW71: 333741 | JX71: 355407.54 | KD71: The Presidency | KE71: Administration | KF71: Management | KG71: NAT | KH71: National share (Including debt-services costs) | KI71: National share (Excluding debt-services costs) | KJ71: Not related to or unavailable | KK71: 1307 | KL71: Goods and services | KM71: 001001001002
G72: 3 | H72: Transport equipment | I72: =INDEX(('Econ ENE'!$M$5:$M$71),MATCH(Tables!H72,OFFSET('Econ ENE'!$Q$5:$Q$71,0,Tables!G72),0)) -> 56 | W72: 12 | X72: Statistics South Africa | Y72: 2 | Z72: Economic Statistics | AB72: 4 | AC72: Cooperative Governance and Traditional Affairs | AD72: 2 | AE72: Regional and Urban Development and Legislative Support | AF72: 2 | AG72: Local Government Legislative Support and Institutional Establishment | AH72: =REPT(0,3-LEN(T_Sprog[[#This Row],[Vote No.]]))&T_Sprog[[#This Row],[Vote No.]] -> 004 | AI72: =REPT(0,3-LEN(T_Sprog[[#This Row],[Programme No.]]))&T_Sprog[[#This Row],[Programme No.]] -> 002 | AJ72: =REPT(0,3-LEN(T_Sprog[[#This Row],[Subprogramme No.]]))&T_Sprog[[#This Row],[Subprogramme No.]] -> 002 | AK72: =T_Sprog[[#This Row],[DeptID]]&T_Sprog[[#This Row],[ProgID]] -> 004002 | AL72: =T_Sprog[[#This Row],[ComboID_DP]]&T_Sprog[[#This Row],[SProgID]] -> 004002002 | AT72: 1 | AU72: 13 | AV72: 001 | AW72: 013 | AZ72: =IFERROR(INDEX((T_Sprog[Programme]),MATCH(AX72,T_Sprog[ComboID_DP],0)),"") ->  | BA72: =IFERROR(INDEX((T_Sprog[Subprogramme]),MATCH(AY72,T_Sprog[ComboID_DPSP],0)),"") ->  | BV72: 4 | BW72: Cooperative Governance and Traditional Affairs | BX72: 1 | BY72: Administration | BZ72: 57 | CA72: Other machinery and equipment | CB72: 3075.77534 | CC72: 004057 | CD72: 004001057 | CE72: 004001 | CG72: =T_ENE_2016[[#This Row],[Vote No.]]&T_ENE_2016[[#This Row],[Programme No.]]&T_ENE_2016[[#This Row],[Subprogramme No.]] -> 213 | CH72: =INDEX((T_Econ3[Econ3_No]),MATCH(T_ENE_2016[[#This Row],[Econ4]],T_Econ3[Econ3],0)) -> 2 | CI72: 2 | CJ72: Parliament | CK72: 1 | CL72: Strategic Leadership and Governance | CM72: 3 | CN72: Treasury Advise Office | CO72: Current payments | CP72: Goods and services | CQ72: Goods and services | CR72: 138 | CS72: 0 | CT72: 0 | CU72: 0 | CV72: 0 | CW72: 0 | CX72: 0 | CY72: 0 | DC72: 0 | DD72: 0 | DE72: 0 | DF72: Parliament|Strategic Leadership and Governance | DG72: 002 | DH72: 001 | DI72: 003 | DJ72: 002 | DK72: 002001 | DL72: 002002 | DM72: 2 | DN72: 002001003002 | DP72: 002001002 | DS72: 005281 | DT72: 1 | DU72: 5 | DV72: Home Affairs | DW72: 2 | DX72: Citizen Affairs | DY72: 8 | DZ72: Electoral Commission | EA72: 1965004 | EB72: 1966939 | EC72: 1989312 | ED72: 00528 | EE72: Electoral Commission | EH72: Transfers and subsidies | EI72: Departmental agencies and accounts | EJ72: Departmental agencies (non-business entities) | EK72: Current | EL72: =LEFT(T_Transfers_NAT[[#This Row],[Uid]],4)&T_Transfers_NAT[[#This Row],[TCounterProgLvl]] -> 00523 | EM72: =IF(T_Transfers_NAT[[#This Row],[Vote No.]]<>DU71,1,IF(T_Transfers_NAT[[#This Row],[Programme No.]]<>DW71,1,EM71+1)) -> 3 | EP72: Communications | EQ72: Administration | ER72: 11 | ES72: 10 | ET72: 0 | EU72: 9 | EV72: 5249 | EW72: 13 | EX72: 6630 | EY72: 16 | EZ72: 8804 | FA72: 15 | FB72: 8913 | FC72: Communications|Administration | FD72: 003 | FE72: 001 | FF72: 003001 | FI72: 2 | FJ72: =T_InfraS[[#This Row],[Project name]]&"|"&T_InfraS[[#This Row],[Type of infrastructure]] -> Modimolle|Building | FK72: =COUNTIF(T_InfraS[Project name],T_InfraS[[#This Row],[Project name]]) -> 2 | FL72: 5 | FM72: Home Affairs | FN72: Departmental infrastructure | FO72: Small projects | FP72: Administration | FQ72: Modimolle | FR72: Building | FS72: Pre-feasibility | FT72: Upgrading and additions | FU72: Construction of new office building | FV72: 129 | FW72: 0 | FX72: 500 | FY72: 0 | FZ72: 0 | GA72: 0 | GB72: =T_InfraS[[#This Row],[2020/21 Revised Baseline]]*(1+$GB$33) -> 0 | GC72: 5 | GD72: 1 | GE72: 3 | GF72: 513 | GG72: 005 | GH72: =IF(T_InfraS[[#This Row],[Department]]<>FM71,1,GH71+1) -> 36 | GI72: 036 | GJ72: 005036 | GT72: 37 | GV72: My_Grants_Area6 | GW72: $L$190:$L$204 | HH72: 24 | HI72: Agriculture, Forestry and Fisheries | HJ72: 5 | HK72: Forestry and Natural Resources Management | HL72: 4 | HM72: Natural Resources Management | HN72: Land care programme grant | HO72: Current | HP72: Transfers and subsidies | HQ72: Provinces and municipalities | HR72: Provinces | HS72: PCG | HT72: 67837 | HU72: 65011 | HV72: 69265 | HW72: 73604 | HX72: 73604 | HY72: 73604 | HZ72: 77873 | IA72: 82234 | IB72: 86757 | ID72: =SUMIF(Table28[Transfers and subsidies / Payments for financial assets detail],T_SharesGrants[[#This Row],[Transfers and subsidies / Payments for financial assets detail]],Table28[2021/22]) -> 91529 | IE72: 1 | IF72: 24541 | IG72: 02451 | IH72: 1 | IS72: =INDEX(Table7[Vote No.],MATCH(IT72,Table7[Department],0)) -> 37 | IT72: Arts and Culture | JA72: 37 | JB72: =IFERROR(INDEX(T_InfraS[Project name],MATCH(IZ72,T_InfraS[Combo_Lookup],0)),"") ->  | JK72: 0 | JL72: 2 | JM72: 10 | JN72: 010002 | JO72: Public Service and Administration | JP72: National School of Government | JQ72: 138508 | JR72: 140439 | JS72: 71067 | JT72: 153906 | JU72: 168959 | JV72: 179293 | JW72: 190322 | JX72: 201417.71 | KD72: The Presidency | KE72: Administration | KF72: Support Service to President | KG72: NAT | KH72: National share (Including debt-services costs) | KI72: National share (Excluding debt-services costs) | KJ72: Not related to or unavailable | KK72: 76 | KL72: Goods and services | KM72: 001001002002
G73: 3 | H73: Other machinery and equipment | I73: =INDEX(('Econ ENE'!$M$5:$M$71),MATCH(Tables!H73,OFFSET('Econ ENE'!$Q$5:$Q$71,0,Tables!G73),0)) -> 57 | W73: 12 | X73: Statistics South Africa | Y73: 3 | Z73: Population and Social Statistics | AB73: 4 | AC73: Cooperative Governance and Traditional Affairs | AD73: 2 | AE73: Regional and Urban Development and Legislative Support | AF73: 3 | AG73: Urban Development Planning | AH73: =REPT(0,3-LEN(T_Sprog[[#This Row],[Vote No.]]))&T_Sprog[[#This Row],[Vote No.]] -> 004 | AI73: =REPT(0,3-LEN(T_Sprog[[#This Row],[Programme No.]]))&T_Sprog[[#This Row],[Programme No.]] -> 002 | AJ73: =REPT(0,3-LEN(T_Sprog[[#This Row],[Subprogramme No.]]))&T_Sprog[[#This Row],[Subprogramme No.]] -> 003 | AK73: =T_Sprog[[#This Row],[DeptID]]&T_Sprog[[#This Row],[ProgID]] -> 004002 | AL73: =T_Sprog[[#This Row],[ComboID_DP]]&T_Sprog[[#This Row],[SProgID]] -> 004002003 | AT73: 1 | AU73: 14 | AV73: 001 | AW73: 014 | AZ73: =IFERROR(INDEX((T_Sprog[Programme]),MATCH(AX73,T_Sprog[ComboID_DP],0)),"") ->  | BA73: =IFERROR(INDEX((T_Sprog[Subprogramme]),MATCH(AY73,T_Sprog[ComboID_DPSP],0)),"") ->  | BV73: 4 | BW73: Cooperative Governance and Traditional Affairs | BX73: 1 | BY73: Administration | BZ73: 63 | CA73: Payments for financial assets | CB73: 117.24786 | CC73: 004063 | CD73: 004001063 | CE73: 004001 | CG73: =T_ENE_2016[[#This Row],[Vote No.]]&T_ENE_2016[[#This Row],[Programme No.]]&T_ENE_2016[[#This Row],[Subprogramme No.]] -> 213 | CH73: =INDEX((T_Econ3[Econ3_No]),MATCH(T_ENE_2016[[#This Row],[Econ4]],T_Econ3[Econ3],0)) -> 57 | CI73: 2 | CJ73: Parliament | CK73: 1 | CL73: Strategic Leadership and Governance | CM73: 3 | CN73: Treasury Advise Office | CO73: Payments for capital assets | CP73: Machinery and equipment | CQ73: Other machinery and equipment | CR73: 49 | CS73: 0 | CT73: 0 | CU73: 0 | CV73: 0 | CW73: 0 | CX73: 0 | CY73: 0 | DC73: 0 | DD73: 0 | DE73: 0 | DF73: Parliament|Strategic Leadership and Governance | DG73: 002 | DH73: 001 | DI73: 003 | DJ73: 057 | DK73: 002001 | DL73: 002057 | DM73: 57 | DN73: 002001003057 | DP73: 002001057 | DS73: 005291 | DT73: 1 | DU73: 5 | DV73: Home Affairs | DW73: 2 | DX73: Citizen Affairs | DY73: 9 | DZ73: Represented Political Parties’ Fund | EA73: 149394 | EB73: 157760 | EC73: 166437 | ED73: 00529 | EE73: Represented Political Parties’ Fund | EH73: Transfers and subsidies | EI73: Departmental agencies and accounts | EJ73: Departmental agencies (non-business entities) | EK73: Current | EL73: =LEFT(T_Transfers_NAT[[#This Row],[Uid]],4)&T_Transfers_NAT[[#This Row],[TCounterProgLvl]] -> 00524 | EM73: =IF(T_Transfers_NAT[[#This Row],[Vote No.]]<>DU72,1,IF(T_Transfers_NAT[[#This Row],[Programme No.]]<>DW72,1,EM72+1)) -> 4 | EP73: Communications | EQ73: Administration | ER73: 12 | ES73: 1 | ET73: 0 | EU73: 3 | EV73: 2247 | EW73: 3 | EX73: 2337 | EY73: 4 | EZ73: 3362 | FA73: 5 | FB73: 4538 | FC73: Communications|Administration | FD73: 003 | FE73: 001 | FF73: 003001 | FI73: 2 | FJ73: =T_InfraS[[#This Row],[Project name]]&"|"&T_InfraS[[#This Row],[Type of infrastructure]] -> Modimolle|Building | FK73: =COUNTIF(T_InfraS[Project name],T_InfraS[[#This Row],[Project name]]) -> 2 | FL73: 5 | FM73: Home Affairs | FN73: Departmental infrastructure | FO73: Small projects | FP73: Administration | FQ73: Modimolle | FR73: Building | FS73: Pre-feasibility | FT73: Maintenance and repair | FU73: Construction of new office building | FV73: 0 | FW73: 0 | FX73: 0 | FY73: 300 | FZ73: 300 | GA73: 0 | GB73: =T_InfraS[[#This Row],[2020/21 Revised Baseline]]*(1+$GB$33) -> 0 | GC73: 5 | GD73: 1 | GE73: 3 | GF73: 513 | GG73: 005 | GH73: =IF(T_InfraS[[#This Row],[Department]]<>FM72,1,GH72+1) -> 37 | GI73: 037 | GJ73: 005037 | GT73: 38 | GV73: My_Grants_Area7 | GW73: $M$190:$M$204 | HH73: 24 | HI73: Agriculture, Forestry and Fisheries | HJ73: 5 | HK73: Forestry and Natural Resources Management | HL73: 4 | HM73: Natural Resources Management | HN73: Comprehensive agricultural support programme grant: Disasters: Flood damaged infrastructure | HO73: Current | HP73: Transfers and subsidies | HQ73: Provinces and municipalities | HR73: Provinces | HS73: PCG | HT73: 493761 | HU73: 58601 | HV73: 76734 | HW73: 139071 | HX73: 139071 | HY73: 139071 | HZ73: 155935 | IA73: 65631 | IB73: 0 | ID73: =SUMIF(Table28[Transfers and subsidies / Payments for financial assets detail],T_SharesGrants[[#This Row],[Transfers and subsidies / Payments for financial assets detail]],Table28[2021/22]) -> 0 | IE73: 2 | IF73: 24542 | IG73: 02452 | IH73: 2 | IS73: =INDEX(Table7[Vote No.],MATCH(IT73,Table7[Department],0)) -> 14 | IT73: Basic Education | JA73: 38 | JB73: =IFERROR(INDEX(T_InfraS[Project name],MATCH(IZ73,T_InfraS[Combo_Lookup],0)),"") ->  | JK73: 0 | JL73: 3 | JM73: 10 | JN73: 010003 | JO73: Public Service and Administration | JP73: Centre for Public Service Innovation | JQ73: 22553 | JR73: 29003 | JS73: 32094 | JT73: 34055 | JU73: 36030 | JV73: 38437 | JW73: 40969 | JX73: 43447.295 | KD73: The Presidency | KE73: Administration | KF73: Management | KG73: NAT | KH73: National share (Including debt-services costs) | KI73: National share (Excluding debt-services costs) | KJ73: Not related to or unavailable | KK73: 2274 | KL73: Goods and services | KM73: 001001001002
G74: 2 | H74: Heritage assets | I74: =INDEX(('Econ ENE'!$M$5:$M$71),MATCH(Tables!H74,OFFSET('Econ ENE'!$Q$5:$Q$71,0,Tables!G74),0)) -> 58 | W74: 12 | X74: Statistics South Africa | Y74: 4 | Z74: Methodology, Standards and Research | AB74: 4 | AC74: Cooperative Governance and Traditional Affairs | AD74: 2 | AE74: Regional and Urban Development and Legislative Support | AF74: 4 | AG74: Spatial Planning Districts and Regions | AH74: =REPT(0,3-LEN(T_Sprog[[#This Row],[Vote No.]]))&T_Sprog[[#This Row],[Vote No.]] -> 004 | AI74: =REPT(0,3-LEN(T_Sprog[[#This Row],[Programme No.]]))&T_Sprog[[#This Row],[Programme No.]] -> 002 | AJ74: =REPT(0,3-LEN(T_Sprog[[#This Row],[Subprogramme No.]]))&T_Sprog[[#This Row],[Subprogramme No.]] -> 004 | AK74: =T_Sprog[[#This Row],[DeptID]]&T_Sprog[[#This Row],[ProgID]] -> 004002 | AL74: =T_Sprog[[#This Row],[ComboID_DP]]&T_Sprog[[#This Row],[SProgID]] -> 004002004 | AT74: 1 | AU74: 15 | AV74: 001 | AW74: 015 | AZ74: =IFERROR(INDEX((T_Sprog[Programme]),MATCH(AX74,T_Sprog[ComboID_DP],0)),"") ->  | BA74: =IFERROR(INDEX((T_Sprog[Subprogramme]),MATCH(AY74,T_Sprog[ComboID_DPSP],0)),"") ->  | BV74: 4 | BW74: Cooperative Governance and Traditional Affairs | BX74: 2 | BY74: Regional and Urban Development and Legislative Support | BZ74: 1 | CA74: Compensation of employees | CB74: 16898.34025 | CC74: 004001 | CD74: 004002001 | CE74: 004002 | CG74: =T_ENE_2016[[#This Row],[Vote No.]]&T_ENE_2016[[#This Row],[Programme No.]]&T_ENE_2016[[#This Row],[Subprogramme No.]] -> 214 | CH74: =INDEX((T_Econ3[Econ3_No]),MATCH(T_ENE_2016[[#This Row],[Econ4]],T_Econ3[Econ3],0)) -> 1 | CI74: 2 | CJ74: Parliament | CK74: 1 | CL74: Strategic Leadership and Governance | CM74: 4 | CN74: Parliamentary Budget Office | CO74: Current payments | CP74: Compensation of employees | CQ74: Compensation of employees | CR74: 10571 | CS74: 12598 | CT74: 0 | CU74: 0 | CV74: 0 | CW74: 0 | CX74: 0 | CY74: 0 | DC74: 0 | DD74: 0 | DE74: 0 | DF74: Parliament|Strategic Leadership and Governance | DG74: 002 | DH74: 001 | DI74: 004 | DJ74: 001 | DK74: 002001 | DL74: 002001 | DM74: 1 | DN74: 002001004001 | DP74: 002001001 | DS74: 005311 | DT74: 1 | DU74: 5 | DV74: Home Affairs | DW74: 3 | DX74: Immigration Affairs | DY74: 1 | DZ74: Employee social benefits | EA74: 404 | EB74: 427 | EC74: 450 | ED74: 00531 | EE74: Immigration Affairs Management | EH74: Transfers and subsidies | EI74: Households | EJ74: Social benefits | EK74: Current | EL74: =LEFT(T_Transfers_NAT[[#This Row],[Uid]],4)&T_Transfers_NAT[[#This Row],[TCounterProgLvl]] -> 00531 | EM74: =IF(T_Transfers_NAT[[#This Row],[Vote No.]]<>DU73,1,IF(T_Transfers_NAT[[#This Row],[Programme No.]]<>DW73,1,EM73+1)) -> 1 | EP74: Communications | EQ74: Administration | ER74: 13 | ES74: 8 | ET74: 2 | EU74: 9 | EV74: 9956.5 | EW74: 9 | EX74: 8280 | EY74: 9 | EZ74: 8849 | FA74: 9 | FB74: 9467 | FC74: Communications|Administration | FD74: 003 | FE74: 001 | FF74: 003001 | FI74: 2 | FJ74: =T_InfraS[[#This Row],[Project name]]&"|"&T_InfraS[[#This Row],[Type of infrastructure]] -> Mokopane|Building | FK74: =COUNTIF(T_InfraS[Project name],T_InfraS[[#This Row],[Project name]]) -> 2 | FL74: 5 | FM74: Home Affairs | FN74: Departmental infrastructure | FO74: Small projects | FP74: Administration | FQ74: Mokopane | FR74: Building | FS74: Construction | FT74: Upgrading and additions | FU74: Construction of new office building | FV74: 0 | FW74: 0 | FX74: 2642 | FY74: 0 | FZ74: 0 | GA74: 0 | GB74: =T_InfraS[[#This Row],[2020/21 Revised Baseline]]*(1+$GB$33) -> 0 | GC74: 5 | GD74: 1 | GE74: 3 | GF74: 513 | GG74: 005 | GH74: =IF(T_InfraS[[#This Row],[Department]]<>FM73,1,GH73+1) -> 38 | GI74: 038 | GJ74: 005038 | GT74: 39 | GV74: My_Head_count_Area1 | GW74: $H$213 | HH74: 26 | HI74: Energy | HJ74: 4 | HK74: Electrification and Energy Programme and Project Management | HL74: 1 | HM74: Integrated National Electrification Programme | HN74: Integrated National Electrification Programme Grant | HO74: Capital | HP74: Transfers and subsidies | HQ74: Provinces and municipalities | HR74: Municipalities | HS74: LCG | HT74: 1104658 | HU74: 1980340 | HV74: 1946246 | HW74: 2087048 | HX74: 2087048 | HY74: 2087048 | HZ74: 1904477 | IA74: 2127928 | IB74: 2244964 | ID74: =SUMIF(Table28[Transfers and subsidies / Payments for financial assets detail],T_SharesGrants[[#This Row],[Transfers and subsidies / Payments for financial assets detail]],Table28[2021/22]) -> 2413336 | IE74: 1 | IF74: 26411 | IG74: 02641 | IH74: 1 | IS74: =INDEX(Table7[Vote No.],MATCH(IT74,Table7[Department],0)) -> 4 | IT74: Cooperative Governance and Traditional Affairs | JA74: 39 | JB74: =IFERROR(INDEX(T_InfraS[Project name],MATCH(IZ74,T_InfraS[Combo_Lookup],0)),"") ->  | JK74: 0 | JL74: 4 | JM74: 10 | JN74: 010004 | JO74: Public Service and Administration | JP74: Public Service Commission | JQ74: 225526 | JR74: 229752 | JS74: 229233 | JT74: 242764 | JU74: 264399 | JV74: 278229 | JW74: 297627 | JX74: 316333.485 | KD74: The Presidency | KE74: Administration | KF74: Support Service to President | KG74: NAT | KH74: National share (Including debt-services costs) | KI74: National share (Excluding debt-services costs) | KJ74: Not related to or unavailable | KK74: 135 | KL74: Goods and services | KM74: 001001002002
